Workbook

Sheet LC
A1: ChromSimLC_1.01 Bo Svensmark, svensmark@plen.ku.dk, Analytical Chemistry, PLEN KU 2017-2024 | P1: Most cells are proteted. To unprotect go to Review and click Unprotect sheet | AF1: Gradient profile plot | AI1: Time | AJ1: tM-marker | AK1: 1 | AL1: 2 | AM1: 3 | AN1: 4 | AO1: 5 | AP1: 6 | AQ1: 7 | AR1: 8 | AS1: 9 | AT1: 10 | AU1: 11 | AV1: Signal #1 | AX1: tM-marker | AY1: 1 | AZ1: 2 | BA1: 3 | BB1: 4 | BC1: 5 | BD1: 6 | BE1: 7 | BF1: 8 | BG1: 9 | BH1: 10 | BI1: 11 | BJ1: Signal #3 | BL1: tM-marker | BM1: 1 | BN1: 2 | BO1: 3 | BP1: 4 | BQ1: 5 | BR1: 6 | BS1: 7 | BT1: 8 | BU1: 9 | BV1: 10 | BW1: 11 | BX1: Signal #5 | BZ1: tM-marker | CA1: 1 | CB1: 2 | CC1: 3 | CD1: 4 | CE1: 5 | CF1: 6 | CG1: 7 | CH1: 8 | CI1: 9 | CJ1: 10 | CK1: 11 | CL1: Signal #2 | CN1: tM-marker | CO1: 1 | CP1: 2 | CQ1: 3 | CR1: 4 | CS1: 5 | CT1: 6 | CU1: 7 | CV1: 8 | CW1: 9 | CX1: 10 | CY1: 11 | CZ1: Signal #4
L2: Do only change the white input cells! | AE2: Time | AF2: Green | AG2: Blue | AI2: 0 | AJ2: =$B$23*NORMDIST($AI2,$B$20,$B$24*$B$20,FALSE) -> 1.913482434e-136 | AK2: =B$6*IF(B$6>0,NORMDIST($AI2,B$53,C$53/4,FALSE),0) -> 0 | AL2: =B$7*IF(B$7>0,NORMDIST($AI2,B$54,C$54/4,FALSE),0) -> 0 | AM2: =B$8*IF(B$8>0,NORMDIST($AI2,B$55,C$55/4,FALSE),0) -> 0 | AN2: =B$9*IF(B$9>0,NORMDIST($AI2,B$56,C$56/4,FALSE),0) -> 0 | AO2: =B$10*IF(B$10>0,NORMDIST($AI2,B$57,C$57/4,FALSE),0) -> 0 | AP2: =B$11*IF(B$11>0,NORMDIST($AI2,B$58,$C$58/4,FALSE),0) -> 0 | AQ2: =$B$12*IF($B$12>0,NORMDIST($AI2,B$59,$C$59/4,FALSE),0) -> 0 | AR2: =$B$13*IF($B$13>0,NORMDIST($AI2,B$60,$C$60/4,FALSE),0) -> 0 | AS2: =$B$14*IF($B$14>0,NORMDIST($AI2,$B$61,$C$61/4,FALSE),0) -> 0 | AT2: =$B$15*IF($B$15>0,NORMDIST($AI2,$B$62,$C$62/4,FALSE),0) -> 0 | AU2: =$B$16*IF($B$16>0,NORMDIST($AI2,$B$63,$C$63/4,FALSE),0) -> 0 | AV2: =IF($O$20<>0,SUM(AJ2:AU2)*$O$20+$N$20,-1) -> 11 | AX2: =$B$23*NORMDIST($AI2,$B$20,$B$24*$B$20,FALSE) -> 1.913482434e-136 | AY2: =IF(B$6>0,B$6*NORMDIST($AI2,F$53,G$53/4,FALSE),0) -> 0 | AZ2: =IF(B$7>0,B$7*NORMDIST($AI2,F$54,G$54/4,FALSE),0) -> 0 | BA2: =IF(B$8>0,B$8*NORMDIST($AI2,F$55,G$55/4,FALSE),0) -> 0 | BB2: =IF(B$9>0,B$9*NORMDIST($AI2,F$56,G$56/4,FALSE),0) -> 0 | BC2: =IF(B$10>0,B$10*NORMDIST($AI2,F$57,G$57/4,FALSE),0) -> 0 | BD2: =IF(B$11>0,B$11*NORMDIST($AI2,F$58,G$58/4,FALSE),0) -> 0 | BE2: =IF($B$12>0,$B$12*NORMDIST($AI2,$F$59,$G$59/4,FALSE),0) -> 0 | BF2: =IF($B$13>0,$B$13*NORMDIST($AI2,$F$60,$G$60/4,FALSE),0) -> 0 | BG2: =IF($B$14>0,$B$14*NORMDIST($AI2,$F$61,$G$61/4,FALSE),0) -> 0 | BH2: =IF($B$15>0,$B$15*NORMDIST($AI2,$F$62,$G$62/4,FALSE),0) -> 0 | BI2: =IF($B$16>0,$B$16*NORMDIST($AI2,$F$63,$G$63/4,FALSE),0) -> 0 | BJ2: =IF($O$22<>0,SUM(AX2:BI2)*$O$22+$N$22,-1) -> 15 | BL2: =$B$23*NORMDIST($AI2,$B$20,$B$20*$B$24,FALSE) -> 1.913482434e-136 | BM2: =IF($B$6>0,$B$6*NORMDIST($AI2,$J$53,$K$53/4,FALSE),0) -> 0 | BN2: =IF($B$7>0,$B$7*NORMDIST($AI2,$J$54,$K$54/4,FALSE),0) -> 0 | BO2: =IF($B$8>0,$B$8*NORMDIST($AI2,$J$55,$K$55/4,FALSE),0) -> 0 | BP2: =IF($B$9>0,$B$9*NORMDIST($AI2,$J$56,$K$56/4,FALSE),0) -> 0 | BQ2: =IF($B$10>0,$B$10*NORMDIST($AI2,$J$57,$K$57/4,FALSE),0) -> 0 | BR2: =IF($B$11>0,$B$11*NORMDIST($AI2,$J$58,$K$58/4,FALSE),0) -> 0 | BS2: =IF($B$12>0,$B$12*NORMDIST($AI2,$J$59,$K$59/4,FALSE),0) -> 0 | BT2: =IF($B$13>0,$B$13*NORMDIST($AI2,$J$60,$K$60/4,FALSE),0) -> 0 | BU2: =IF($B$14>0,$B$14*NORMDIST($AI2,$J$61,$K$61/4,FALSE),0) -> 0 | BV2: =IF($B$15>0,$B$15*NORMDIST($AI2,$J$62,$K$62/4,FALSE),0) -> 0 | BW2: =IF($B$16>0,$B$16*NORMDIST($AI2,$J$63,$K$63/4,FALSE),0) -> 0 | BX2: =IF($O$24<>0,SUM(BL2:BW2)*$O$24+$N$24,-1) -> 10 | BZ2: =$B$23*NORMDIST($AI2,$B$20,$B$20*$B$24,FALSE) -> 1.913482434e-136 | CA2: =IF($B$6>0,$B$6*NORMDIST($AI2,$B$68,$C$68/4,FALSE),0) -> 0 | CB2: =IF($B$7>0,$B$7*NORMDIST($AI2,$B$69,$C$69/4,FALSE),0) -> 0 | CC2: =IF($B$8>0,$B$8*NORMDIST($AI2,$B$70,$C$70/4,FALSE),0) -> 0 | CD2: =IF($B$9>0,$B$9*NORMDIST($AI2,$B$71,$C$71/4,FALSE),0) -> 0 | CE2: =IF($B$10>0,$B$10*NORMDIST($AI2,$B$72,$C$72/4,FALSE),0) -> 0 | CF2: =IF($B$11>0,$B$11*NORMDIST($AI2,$B$73,$C$73/4,FALSE),0) -> 0 | CG2: =IF($B$12>0,$B$12*NORMDIST($AI2,$B$74,$C$74/4,FALSE),0) -> 0 | CH2: =IF($B$13>0,$B$13*NORMDIST($AI2,$B$75,$C$75/4,FALSE),0) -> 0 | CI2: =IF($B$14>0,$B$14*NORMDIST($AI2,$B$76,$C$76/4,FALSE),0) -> 0 | CJ2: =IF($B$15>0,$B$15*NORMDIST($AI2,$B$77,$C$77/4,FALSE),0) -> 0 | CK2: =IF($B$16>0,$B$16*NORMDIST($AI2,$B$78,$C$78/4,FALSE),0) -> 0 | CL2: =IF($O$21<>0,SUM(BZ2:CK2)*$O$21+$N$21,-1) -> -1 | CN2: =$B$23*NORMDIST($AI2,$B$20,$B$20*$B$24,FALSE) -> 1.913482434e-136 | CO2: =IF($B$6>0,$B$6*NORMDIST($AI2,$F$68,$G$68/4,FALSE),0) -> 0 | CP2: =IF($B$7>0,$B$7*NORMDIST($AI2,$F$69,$G$69/4,FALSE),0) -> 0 | CQ2: =IF($B$8>0,$B$8*NORMDIST($AI2,$F$70,$G$70/4,FALSE),0) -> 0 | CR2: =IF($B$9>0,$B$9*NORMDIST($AI2,$F$71,$G$71/4,FALSE),0) -> 0 | CS2: =IF($B$10>0,$B$10*NORMDIST($AI2,$F$72,$G$72/4,FALSE),0) -> 0 | CT2: =IF($B$11>0,$B$11*NORMDIST($AI2,$F$73,$G$73/4,FALSE),0) -> 0 | CU2: =IF($B$12>0,$B$12*NORMDIST($AI2,$F$74,$G$74/4,FALSE),0) -> 0 | CV2: =IF($B$13>0,$B$13*NORMDIST($AI2,$F$75,$G$75/4,FALSE),0) -> 0 | CW2: =IF($B$14>0,$B$14*NORMDIST($AI2,$F$76,$G$76/4,FALSE),0) -> 0 | CX2: =IF($B$15>0,$B$15*NORMDIST($AI2,$F$77,$G$77/4,FALSE),0) -> 0 | CY2: =IF($B$16>0,$B$16*NORMDIST($AI2,$F$78,$G$78/4,FALSE),0) -> 0 | CZ2: =IF($O$23<>0,SUM(CN2:CY2)*$O$23+$N$23,-1) -> -1
R3: Column difference | T3: Lookup address | V3: =V4 -> C10:I16 | W3: =W4 -> C18:I23 | AE3: 0 | AF3: =IF($L$20>0,IF($AE3<$J$20,$H$20,IF($AE3<$J$20+$K$20,$H$20+((I$20-H$20)*($AE3-J$20)/K$20),$I$20)),$H$20) -> 0.2 | AG3: =IF($L$22>0,IF($AE3<$J$22,$H$22,IF($AE3<$J$22+$K$22,$H$22+((I$22-H$22)*($AE3-J$22)/K$22),$I$22)),$H$22) -> 0.2 | AI3: =AI2+$B$25 -> 0.02 | AJ3: 4.531256984e-131 | AK3: 0 | AL3: 0 | AM3: 0 | AN3: 0 | AO3: 0 | AP3: 0 | AQ3: 0 | AR3: 0 | AS3: 0 | AT3: 0 | AU3: 0 | AV3: =IF($O$20<>0,SUM(AJ3:AU3)*$O$20+$N$20,-1) -> 11 | AX3: =$B$23*NORMDIST($AI3,$B$20,$B$24*$B$20,FALSE) -> 4.531256984e-131 | AY3: =IF(B$6>0,B$6*NORMDIST($AI3,F$53,G$53/4,FALSE),0) -> 0 | AZ3: 0 | BA3: 0 | BB3: 0 | BC3: 0 | BD3: 0 | BE3: 0 | BF3: 0 | BG3: 0 | BH3: 0 | BI3: 0 | BJ3: =IF($O$22<>0,SUM(AX3:BI3)*$O$22+$N$22,-1) -> 15 | BL3: 4.531256984e-131 | BM3: 0 | BN3: 0 | BO3: 0 | BP3: 0 | BQ3: 0 | BR3: 0 | BS3: 0 | BT3: 0 | BU3: 0 | BV3: 0 | BW3: 0 | BX3: =IF($O$24<>0,SUM(BL3:BW3)*$O$24+$N$24,-1) -> 10 | BZ3: 4.531256984e-131 | CA3: 0 | CB3: 0 | CC3: 0 | CD3: 0 | CE3: 0 | CF3: 0 | CG3: 0 | CH3: 0 | CI3: 0 | CJ3: 0 | CK3: 0 | CL3: =IF($O$21<>0,SUM(BZ3:CK3)*$O$21+$N$21,-1) -> -1 | CN3: 4.531256984e-131 | CO3: 0 | CP3: 0 | CQ3: 0 | CR3: 0 | CS3: 0 | CT3: 0 | CU3: 0 | CV3: 0 | CW3: 0 | CX3: 0 | CY3: 0 | CZ3: =IF($O$23<>0,SUM(CN3:CY3)*$O$23+$N$23,-1) -> -1
A4: Table 1 | M4: # | N4: 1 | T4: Lookup | V4: =VLOOKUP(E20,Columns!K10:L61,2,FALSE) -> C10:I16 | W4: =VLOOKUP(E22,Columns!K10:L61,2,FALSE) -> C18:I23 | AE4: =AE3+$B$22/100 -> 0.4 | AF4: =IF($L$20>0,IF($AE4<$J$20,$H$20,IF($AE4<$J$20+$K$20,$H$20+((I$20-H$20)*($AE4-J$20)/K$20),$I$20)),$H$20) -> 0.208 | AG4: =IF($L$22>0,IF($AE4<$J$22,$H$22,IF($AE4<$J$22+$K$22,$H$22+((I$22-H$22)*($AE4-J$22)/K$22),$I$22)),$H$22) -> 0.208 | AI4: 0.04 | AJ4: 8.356786104e-126 | AK4: 0 | AL4: 0 | AM4: 0 | AN4: 0 | AO4: 0 | AP4: 0 | AQ4: 0 | AR4: 0 | AS4: 0 | AT4: 0 | AU4: 0 | AV4: =IF($O$20<>0,SUM(AJ4:AU4)*$O$20+$N$20,-1) -> 11 | AX4: 8.356786104e-126 | AY4: 0 | AZ4: 0 | BA4: 0 | BB4: 0 | BC4: 0 | BD4: 0 | BE4: 0 | BF4: 0 | BG4: 0 | BH4: 0 | BI4: 0 | BJ4: =IF($O$22<>0,SUM(AX4:BI4)*$O$22+$N$22,-1) -> 15 | BL4: 8.356786104e-126 | BM4: 0 | BN4: 0 | BO4: 0 | BP4: 0 | BQ4: 0 | BR4: 0 | BS4: 0 | BT4: 0 | BU4: 0 | BV4: 0 | BW4: 0 | BX4: =IF($O$24<>0,SUM(BL4:BW4)*$O$24+$N$24,-1) -> 10 | BZ4: 8.356786104e-126 | CA4: 0 | CB4: 0 | CC4: 0 | CD4: 0 | CE4: 0 | CF4: 0 | CG4: 0 | CH4: 0 | CI4: 0 | CJ4: 0 | CK4: 0 | CL4: =IF($O$21<>0,SUM(BZ4:CK4)*$O$21+$N$21,-1) -> -1 | CN4: 8.356786104e-126 | CO4: 0 | CP4: 0 | CQ4: 0 | CR4: 0 | CS4: 0 | CT4: 0 | CU4: 0 | CV4: 0 | CW4: 0 | CX4: 0 | CY4: 0 | CZ4: =IF($O$23<>0,SUM(CN4:CY4)*$O$23+$N$23,-1) -> -1
B5: Conc | C5: Tetrahydrofuran | E5: tR(ref) | F5: w(ref) | M5: 1 - Cos q | N5: d | P5: Column systems | R5: 1 - Cos q | S5: d | T5: Column names | AE5: 0.8 | AF5: =IF($L$20>0,IF($AE5<$J$20,$H$20,IF($AE5<$J$20+$K$20,$H$20+((I$20-H$20)*($AE5-J$20)/K$20),$I$20)),$H$20) -> 0.216 | AG5: =IF($L$22>0,IF($AE5<$J$22,$H$22,IF($AE5<$J$22+$K$22,$H$22+((I$22-H$22)*($AE5-J$22)/K$22),$I$22)),$H$22) -> 0.216 | AI5: 0.06 | AJ5: 1.200290196e-120 | AK5: 0 | AL5: 0 | AM5: 0 | AN5: 0 | AO5: 0 | AP5: 0 | AQ5: 0 | AR5: 0 | AS5: 0 | AT5: 0 | AU5: 0 | AV5: =IF($O$20<>0,SUM(AJ5:AU5)*$O$20+$N$20,-1) -> 11 | AX5: 1.200290196e-120 | AY5: 0 | AZ5: 0 | BA5: 0 | BB5: 0 | BC5: 0 | BD5: 0 | BE5: 0 | BF5: 0 | BG5: 0 | BH5: 0 | BI5: 0 | BJ5: =IF($O$22<>0,SUM(AX5:BI5)*$O$22+$N$22,-1) -> 15 | BL5: 1.200290196e-120 | BM5: 0 | BN5: 0 | BO5: 0 | BP5: 0 | BQ5: 0 | BR5: 0 | BS5: 0 | BT5: 0 | BU5: 0 | BV5: 0 | BW5: 0 | BX5: =IF($O$24<>0,SUM(BL5:BW5)*$O$24+$N$24,-1) -> 10 | BZ5: 1.200290196e-120 | CA5: 0 | CB5: 0 | CC5: 0 | CD5: 0 | CE5: 0 | CF5: 0 | CG5: 0 | CH5: 0 | CI5: 0 | CJ5: 0 | CK5: 0 | CL5: =IF($O$21<>0,SUM(BZ5:CK5)*$O$21+$N$21,-1) -> -1 | CN5: 1.200290196e-120 | CO5: 0 | CP5: 0 | CQ5: 0 | CR5: 0 | CS5: 0 | CT5: 0 | CU5: 0 | CV5: 0 | CW5: 0 | CX5: 0 | CY5: 0 | CZ5: =IF($O$23<>0,SUM(CN5:CY5)*$O$23+$N$23,-1) -> -1
A6: =IF(C6<>"",IF(ISNA(VLOOKUP(C6,Compounds!$B$11:'Compounds'!$G$403,1,FALSE)),"Name error",1),"") -> 1 | B6: 1 | C6: Aniline | E6: 2.728632401 | F6: 0.07447731446 | M6: Column difference | P6: =IF(Columns!K10<>"",Columns!K10,"") -> Chromlith/ACN | R6: =IF(Columns!S10<>"",Columns!S10,"") -> 0 | S6: =IF(Columns!T10<>"",Columns!T10,"") -> 0 | T6: =IF(Columns!M10<>"",Columns!M10,"") -> Chromlith RP-18e/ACN | AE6: 1.2 | AF6: =IF($L$20>0,IF($AE6<$J$20,$H$20,IF($AE6<$J$20+$K$20,$H$20+((I$20-H$20)*($AE6-J$20)/K$20),$I$20)),$H$20) -> 0.224 | AG6: =IF($L$22>0,IF($AE6<$J$22,$H$22,IF($AE6<$J$22+$K$22,$H$22+((I$22-H$22)*($AE6-J$22)/K$22),$I$22)),$H$22) -> 0.224 | AI6: 0.08 | AJ6: 1.342640091e-115 | AK6: 0 | AL6: 0 | AM6: 0 | AN6: 0 | AO6: 0 | AP6: 0 | AQ6: 0 | AR6: 0 | AS6: 0 | AT6: 0 | AU6: 0 | AV6: =IF($O$20<>0,SUM(AJ6:AU6)*$O$20+$N$20,-1) -> 11 | AX6: 1.342640091e-115 | AY6: 0 | AZ6: 0 | BA6: 0 | BB6: 0 | BC6: 0 | BD6: 0 | BE6: 0 | BF6: 0 | BG6: 0 | BH6: 0 | BI6: 0 | BJ6: =IF($O$22<>0,SUM(AX6:BI6)*$O$22+$N$22,-1) -> 15 | BL6: 1.342640091e-115 | BM6: 0 | BN6: 0 | BO6: 0 | BP6: 0 | BQ6: 0 | BR6: 0 | BS6: 0 | BT6: 0 | BU6: 0 | BV6: 0 | BW6: 0 | BX6: =IF($O$24<>0,SUM(BL6:BW6)*$O$24+$N$24,-1) -> 10 | BZ6: 1.342640091e-115 | CA6: 0 | CB6: 0 | CC6: 0 | CD6: 0 | CE6: 0 | CF6: 0 | CG6: 0 | CH6: 0 | CI6: 0 | CJ6: 0 | CK6: 0 | CL6: =IF($O$21<>0,SUM(BZ6:CK6)*$O$21+$N$21,-1) -> -1 | CN6: 1.342640091e-115 | CO6: 0 | CP6: 0 | CQ6: 0 | CR6: 0 | CS6: 0 | CT6: 0 | CU6: 0 | CV6: 0 | CW6: 0 | CX6: 0 | CY6: 0 | CZ6: =IF($O$23<>0,SUM(CN6:CY6)*$O$23+$N$23,-1) -> -1
A7: =IF(C7<>"",IF(ISNA(VLOOKUP(C7,Compounds!$B$11:'Compounds'!$G$403,1,FALSE)),"Name error",2),"") -> 2 | B7: 1 | C7: Indole | E7: 6.879299497 | F7: 0.1501216414 | H7: =IF(OR(E20<>J14,E22<>K14),"Please Update column parameters","") ->  | P7: =IF(Columns!K11<>"",Columns!K11,"") -> Chromlith/MeHO | R7: =IF(Columns!S11<>"",Columns!S11,"") -> 0.02124231284 | S7: =IF(Columns!T11<>"",Columns!T11,"") -> 0.2061179897 | T7: =IF(Columns!M11<>"",Columns!M11,"") -> Chromlith RP-18e/MeOH | AE7: 1.6 | AF7: =IF($L$20>0,IF($AE7<$J$20,$H$20,IF($AE7<$J$20+$K$20,$H$20+((I$20-H$20)*($AE7-J$20)/K$20),$I$20)),$H$20) -> 0.232 | AG7: =IF($L$22>0,IF($AE7<$J$22,$H$22,IF($AE7<$J$22+$K$22,$H$22+((I$22-H$22)*($AE7-J$22)/K$22),$I$22)),$H$22) -> 0.232 | AI7: 0.1 | AJ7: 1.169659204e-110 | AK7: 0 | AL7: 0 | AM7: 0 | AN7: 0 | AO7: 0 | AP7: 0 | AQ7: 0 | AR7: 0 | AS7: 0 | AT7: 0 | AU7: 0 | AV7: =IF($O$20<>0,SUM(AJ7:AU7)*$O$20+$N$20,-1) -> 11 | AX7: 1.169659204e-110 | AY7: 0 | AZ7: 0 | BA7: 0 | BB7: 0 | BC7: 0 | BD7: 0 | BE7: 0 | BF7: 0 | BG7: 0 | BH7: 0 | BI7: 0 | BJ7: =IF($O$22<>0,SUM(AX7:BI7)*$O$22+$N$22,-1) -> 15 | BL7: 1.169659204e-110 | BM7: 0 | BN7: 0 | BO7: 0 | BP7: 0 | BQ7: 0 | BR7: 0 | BS7: 0 | BT7: 0 | BU7: 0 | BV7: 0 | BW7: 0 | BX7: =IF($O$24<>0,SUM(BL7:BW7)*$O$24+$N$24,-1) -> 10 | BZ7: 1.169659204e-110 | CA7: 0 | CB7: 0 | CC7: 0 | CD7: 0 | CE7: 0 | CF7: 0 | CG7: 0 | CH7: 0 | CI7: 0 | CJ7: 0 | CK7: 0 | CL7: =IF($O$21<>0,SUM(BZ7:CK7)*$O$21+$N$21,-1) -> -1 | CN7: 1.169659204e-110 | CO7: 0 | CP7: 0 | CQ7: 0 | CR7: 0 | CS7: 0 | CT7: 0 | CU7: 0 | CV7: 0 | CW7: 0 | CX7: 0 | CY7: 0 | CZ7: =IF($O$23<>0,SUM(CN7:CY7)*$O$23+$N$23,-1) -> -1
A8: =IF(C8<>"",IF(ISNA(VLOOKUP(C8,Compounds!$B$11:'Compounds'!$G$403,1,FALSE)),"Name error",3),"") -> 3 | B8: 1 | C8: toluene | E8: 11.46558484 | F8: 0.2101264451 | H8: Nonlinear simulation | P8: =IF(Columns!K12<>"",Columns!K12,"") -> IAM/ACN | R8: =IF(Columns!S12<>"",Columns!S12,"") -> 0.01850257193 | S8: =IF(Columns!T12<>"",Columns!T12,"") -> 0.192367211 | T8: =IF(Columns!M12<>"",Columns!M12,"") -> IAM PC DD2/ACN | AE8: 2 | AF8: =IF($L$20>0,IF($AE8<$J$20,$H$20,IF($AE8<$J$20+$K$20,$H$20+((I$20-H$20)*($AE8-J$20)/K$20),$I$20)),$H$20) -> 0.24 | AG8: =IF($L$22>0,IF($AE8<$J$22,$H$22,IF($AE8<$J$22+$K$22,$H$22+((I$22-H$22)*($AE8-J$22)/K$22),$I$22)),$H$22) -> 0.24 | AI8: 0.12 | AJ8: 7.935703882e-106 | AK8: 0 | AL8: 0 | AM8: 0 | AN8: 0 | AO8: 0 | AP8: 0 | AQ8: 0 | AR8: 0 | AS8: 0 | AT8: 0 | AU8: 0 | AV8: =IF($O$20<>0,SUM(AJ8:AU8)*$O$20+$N$20,-1) -> 11 | AX8: 7.935703882e-106 | AY8: 0 | AZ8: 0 | BA8: 0 | BB8: 0 | BC8: 0 | BD8: 0 | BE8: 0 | BF8: 0 | BG8: 0 | BH8: 0 | BI8: 0 | BJ8: =IF($O$22<>0,SUM(AX8:BI8)*$O$22+$N$22,-1) -> 15 | BL8: 7.935703882e-106 | BM8: 0 | BN8: 0 | BO8: 0 | BP8: 0 | BQ8: 0 | BR8: 0 | BS8: 0 | BT8: 0 | BU8: 0 | BV8: 0 | BW8: 0 | BX8: =IF($O$24<>0,SUM(BL8:BW8)*$O$24+$N$24,-1) -> 10 | BZ8: 7.935703882e-106 | CA8: 0 | CB8: 0 | CC8: 0 | CD8: 0 | CE8: 0 | CF8: 0 | CG8: 0 | CH8: 0 | CI8: 0 | CJ8: 0 | CK8: 0 | CL8: =IF($O$21<>0,SUM(BZ8:CK8)*$O$21+$N$21,-1) -> -1 | CN8: 7.935703882e-106 | CO8: 0 | CP8: 0 | CQ8: 0 | CR8: 0 | CS8: 0 | CT8: 0 | CU8: 0 | CV8: 0 | CW8: 0 | CX8: 0 | CY8: 0 | CZ8: =IF($O$23<>0,SUM(CN8:CY8)*$O$23+$N$23,-1) -> -1
A9: =IF(C9<>"",IF(ISNA(VLOOKUP(C9,Compounds!$B$11:'Compounds'!$G$403,1,FALSE)),"Name error",4),"") -> 4 | B9: 1 | C9: Styrene | E9: 12.73232905 | F9: 0.2146153632 | P9: =IF(Columns!K13<>"",Columns!K13,"") -> IAM/MeOH | R9: =IF(Columns!S13<>"",Columns!S13,"") -> 0.02566818234 | S9: =IF(Columns!T13<>"",Columns!T13,"") -> 0.2265752958 | T9: =IF(Columns!M13<>"",Columns!M13,"") -> IAM PC DD2/MeOH | AE9: 2.4 | AF9: =IF($L$20>0,IF($AE9<$J$20,$H$20,IF($AE9<$J$20+$K$20,$H$20+((I$20-H$20)*($AE9-J$20)/K$20),$I$20)),$H$20) -> 0.248 | AG9: =IF($L$22>0,IF($AE9<$J$22,$H$22,IF($AE9<$J$22+$K$22,$H$22+((I$22-H$22)*($AE9-J$22)/K$22),$I$22)),$H$22) -> 0.248 | AI9: 0.14 | AJ9: 4.193126307e-101 | AK9: 0 | AL9: 0 | AM9: 0 | AN9: 0 | AO9: 0 | AP9: 0 | AQ9: 0 | AR9: 0 | AS9: 0 | AT9: 0 | AU9: 0 | AV9: =IF($O$20<>0,SUM(AJ9:AU9)*$O$20+$N$20,-1) -> 11 | AX9: 4.193126307e-101 | AY9: 0 | AZ9: 0 | BA9: 0 | BB9: 0 | BC9: 0 | BD9: 0 | BE9: 0 | BF9: 0 | BG9: 0 | BH9: 0 | BI9: 0 | BJ9: =IF($O$22<>0,SUM(AX9:BI9)*$O$22+$N$22,-1) -> 15 | BL9: 4.193126307e-101 | BM9: 0 | BN9: 0 | BO9: 0 | BP9: 0 | BQ9: 0 | BR9: 0 | BS9: 0 | BT9: 0 | BU9: 0 | BV9: 0 | BW9: 0 | BX9: =IF($O$24<>0,SUM(BL9:BW9)*$O$24+$N$24,-1) -> 10 | BZ9: 4.193126307e-101 | CA9: 0 | CB9: 0 | CC9: 0 | CD9: 0 | CE9: 0 | CF9: 0 | CG9: 0 | CH9: 0 | CI9: 0 | CJ9: 0 | CK9: 0 | CL9: =IF($O$21<>0,SUM(BZ9:CK9)*$O$21+$N$21,-1) -> -1 | CN9: 4.193126307e-101 | CO9: 0 | CP9: 0 | CQ9: 0 | CR9: 0 | CS9: 0 | CT9: 0 | CU9: 0 | CV9: 0 | CW9: 0 | CX9: 0 | CY9: 0 | CZ9: =IF($O$23<>0,SUM(CN9:CY9)*$O$23+$N$23,-1) -> -1
A10: =IF(C10<>"",IF(ISNA(VLOOKUP(C10,Compounds!$B$11:'Compounds'!$G$403,1,FALSE)),"Name error",5),"") -> 5 | B10: 1 | C10: Anthracene | E10: 19.47771656 | F10: 0.1793510973 | J10: =IF('Macro input'!B20>0,"Please update green","ok") -> ok | P10: =IF(Columns!K14<>"",Columns!K14,"") -> Fusion/MeOH | R10: =IF(Columns!S14<>"",Columns!S14,"") -> 0.007336973411 | S10: =IF(Columns!T14<>"",Columns!T14,"") -> 0.1211360674 | T10: =IF(Columns!M14<>"",Columns!M14,"") -> Synergi Fusion-RP/MeOH | AE10: 2.8 | AF10: =IF($L$20>0,IF($AE10<$J$20,$H$20,IF($AE10<$J$20+$K$20,$H$20+((I$20-H$20)*($AE10-J$20)/K$20),$I$20)),$H$20) -> 0.256 | AG10: =IF($L$22>0,IF($AE10<$J$22,$H$22,IF($AE10<$J$22+$K$22,$H$22+((I$22-H$22)*($AE10-J$22)/K$22),$I$22)),$H$22) -> 0.256 | AI10: 0.16 | AJ10: 1.725507355e-96 | AK10: 0 | AL10: 0 | AM10: 0 | AN10: 0 | AO10: 0 | AP10: 0 | AQ10: 0 | AR10: 0 | AS10: 0 | AT10: 0 | AU10: 0 | AV10: =IF($O$20<>0,SUM(AJ10:AU10)*$O$20+$N$20,-1) -> 11 | AX10: 1.725507355e-96 | AY10: 0 | AZ10: 0 | BA10: 0 | BB10: 0 | BC10: 0 | BD10: 0 | BE10: 0 | BF10: 0 | BG10: 0 | BH10: 0 | BI10: 0 | BJ10: =IF($O$22<>0,SUM(AX10:BI10)*$O$22+$N$22,-1) -> 15 | BL10: 1.725507355e-96 | BM10: 0 | BN10: 0 | BO10: 0 | BP10: 0 | BQ10: 0 | BR10: 0 | BS10: 0 | BT10: 0 | BU10: 0 | BV10: 0 | BW10: 0 | BX10: =IF($O$24<>0,SUM(BL10:BW10)*$O$24+$N$24,-1) -> 10 | BZ10: 1.725507355e-96 | CA10: 0 | CB10: 0 | CC10: 0 | CD10: 0 | CE10: 0 | CF10: 0 | CG10: 0 | CH10: 0 | CI10: 0 | CJ10: 0 | CK10: 0 | CL10: =IF($O$21<>0,SUM(BZ10:CK10)*$O$21+$N$21,-1) -> -1 | CN10: 1.725507355e-96 | CO10: 0 | CP10: 0 | CQ10: 0 | CR10: 0 | CS10: 0 | CT10: 0 | CU10: 0 | CV10: 0 | CW10: 0 | CX10: 0 | CY10: 0 | CZ10: =IF($O$23<>0,SUM(CN10:CY10)*$O$23+$N$23,-1) -> -1
A11: =IF(C11<>"",IF(ISNA(VLOOKUP(C11,Compounds!$B$11:'Compounds'!$G$403,1,FALSE)),"Name error",6),"") -> 6 | B11: 1 | C11: Pyrene | E11: 20.51240842 | F11: 0.1682861516 | I11: =IF('Macro input'!A2*B22>2^16,"N(Fortran) too high","") ->  | P11: =IF(Columns!K15<>"",Columns!K15,"") -> Hydro/ACN | R11: =IF(Columns!S15<>"",Columns!S15,"") -> 0.0007766832471 | S11: =IF(Columns!T15<>"",Columns!T15,"") -> 0.0394127707 | T11: =IF(Columns!M15<>"",Columns!M15,"") -> Synergi Hydro-RP/ACN | AE11: 3.2 | AF11: =IF($L$20>0,IF($AE11<$J$20,$H$20,IF($AE11<$J$20+$K$20,$H$20+((I$20-H$20)*($AE11-J$20)/K$20),$I$20)),$H$20) -> 0.264 | AG11: =IF($L$22>0,IF($AE11<$J$22,$H$22,IF($AE11<$J$22+$K$22,$H$22+((I$22-H$22)*($AE11-J$22)/K$22),$I$22)),$H$22) -> 0.264 | AI11: 0.18 | AJ11: 5.529960951e-92 | AK11: 0 | AL11: 0 | AM11: 0 | AN11: 0 | AO11: 0 | AP11: 0 | AQ11: 0 | AR11: 0 | AS11: 0 | AT11: 0 | AU11: 0 | AV11: =IF($O$20<>0,SUM(AJ11:AU11)*$O$20+$N$20,-1) -> 11 | AX11: 5.529960951e-92 | AY11: 0 | AZ11: 0 | BA11: 0 | BB11: 0 | BC11: 0 | BD11: 0 | BE11: 0 | BF11: 0 | BG11: 0 | BH11: 0 | BI11: 0 | BJ11: =IF($O$22<>0,SUM(AX11:BI11)*$O$22+$N$22,-1) -> 15 | BL11: 5.529960951e-92 | BM11: 0 | BN11: 0 | BO11: 0 | BP11: 0 | BQ11: 0 | BR11: 0 | BS11: 0 | BT11: 0 | BU11: 0 | BV11: 0 | BW11: 0 | BX11: =IF($O$24<>0,SUM(BL11:BW11)*$O$24+$N$24,-1) -> 10 | BZ11: 5.529960951e-92 | CA11: 0 | CB11: 0 | CC11: 0 | CD11: 0 | CE11: 0 | CF11: 0 | CG11: 0 | CH11: 0 | CI11: 0 | CJ11: 0 | CK11: 0 | CL11: =IF($O$21<>0,SUM(BZ11:CK11)*$O$21+$N$21,-1) -> -1 | CN11: 5.529960951e-92 | CO11: 0 | CP11: 0 | CQ11: 0 | CR11: 0 | CS11: 0 | CT11: 0 | CU11: 0 | CV11: 0 | CW11: 0 | CX11: 0 | CY11: 0 | CZ11: =IF($O$23<>0,SUM(CN11:CY11)*$O$23+$N$23,-1) -> -1
A12: =IF(C12<>"",IF(ISNA(VLOOKUP(C12,Compounds!$B$11:'Compounds'!$G$403,1,FALSE)),"Name error",7),"") -> 7 | B12: 1 | C12: Decane | E12: 25.17956958 | F12: 0.1636678571 | J12: =IF('Macro input'!M20<>0,"Please update blue","ok") -> ok | P12: =IF(Columns!K16<>"",Columns!K16,"") -> Hydro/MeOH | R12: =IF(Columns!S16<>"",Columns!S16,"") -> 0.009120835618 | S12: =IF(Columns!T16<>"",Columns!T16,"") -> 0.1350617312 | T12: =IF(Columns!M16<>"",Columns!M16,"") -> Synergi Hydro-RP/MeOH | AE12: 3.6 | AF12: =IF($L$20>0,IF($AE12<$J$20,$H$20,IF($AE12<$J$20+$K$20,$H$20+((I$20-H$20)*($AE12-J$20)/K$20),$I$20)),$H$20) -> 0.272 | AG12: =IF($L$22>0,IF($AE12<$J$22,$H$22,IF($AE12<$J$22+$K$22,$H$22+((I$22-H$22)*($AE12-J$22)/K$22),$I$22)),$H$22) -> 0.272 | AI12: 0.2 | AJ12: 1.380237091e-87 | AK12: 0 | AL12: 0 | AM12: 0 | AN12: 0 | AO12: 0 | AP12: 0 | AQ12: 0 | AR12: 0 | AS12: 0 | AT12: 0 | AU12: 0 | AV12: =IF($O$20<>0,SUM(AJ12:AU12)*$O$20+$N$20,-1) -> 11 | AX12: 1.380237091e-87 | AY12: 0 | AZ12: 0 | BA12: 0 | BB12: 0 | BC12: 0 | BD12: 0 | BE12: 0 | BF12: 0 | BG12: 0 | BH12: 0 | BI12: 0 | BJ12: =IF($O$22<>0,SUM(AX12:BI12)*$O$22+$N$22,-1) -> 15 | BL12: 1.380237091e-87 | BM12: 0 | BN12: 0 | BO12: 0 | BP12: 0 | BQ12: 0 | BR12: 0 | BS12: 0 | BT12: 0 | BU12: 0 | BV12: 0 | BW12: 0 | BX12: =IF($O$24<>0,SUM(BL12:BW12)*$O$24+$N$24,-1) -> 10 | BZ12: 1.380237091e-87 | CA12: 0 | CB12: 0 | CC12: 0 | CD12: 0 | CE12: 0 | CF12: 0 | CG12: 0 | CH12: 0 | CI12: 0 | CJ12: 0 | CK12: 0 | CL12: =IF($O$21<>0,SUM(BZ12:CK12)*$O$21+$N$21,-1) -> -1 | CN12: 1.380237091e-87 | CO12: 0 | CP12: 0 | CQ12: 0 | CR12: 0 | CS12: 0 | CT12: 0 | CU12: 0 | CV12: 0 | CW12: 0 | CX12: 0 | CY12: 0 | CZ12: =IF($O$23<>0,SUM(CN12:CY12)*$O$23+$N$23,-1) -> -1
A13: =IF(C13<>"",IF(ISNA(VLOOKUP(C13,Compounds!$B$11:'Compounds'!$G$403,1,FALSE)),"Name error",8),"") -> 8 | B13: 1 | C13: Tetradecane | E13: 28.04656253 | F13: 0.1301413762 | P13: =IF(Columns!K17<>"",Columns!K17,"") ->  | R13: =IF(Columns!S17<>"",Columns!S17,"") ->  | S13: =IF(Columns!T17<>"",Columns!T17,"") ->  | T13: =IF(Columns!M17<>"",Columns!M17,"") ->  | AE13: 4 | AF13: =IF($L$20>0,IF($AE13<$J$20,$H$20,IF($AE13<$J$20+$K$20,$H$20+((I$20-H$20)*($AE13-J$20)/K$20),$I$20)),$H$20) -> 0.28 | AG13: =IF($L$22>0,IF($AE13<$J$22,$H$22,IF($AE13<$J$22+$K$22,$H$22+((I$22-H$22)*($AE13-J$22)/K$22),$I$22)),$H$22) -> 0.28 | AI13: 0.22 | AJ13: 2.682944585e-83 | AK13: 0 | AL13: 0 | AM13: 0 | AN13: 0 | AO13: 0 | AP13: 0 | AQ13: 0 | AR13: 0 | AS13: 0 | AT13: 0 | AU13: 0 | AV13: =IF($O$20<>0,SUM(AJ13:AU13)*$O$20+$N$20,-1) -> 11 | AX13: 2.682944585e-83 | AY13: 0 | AZ13: 0 | BA13: 0 | BB13: 0 | BC13: 0 | BD13: 0 | BE13: 0 | BF13: 0 | BG13: 0 | BH13: 0 | BI13: 0 | BJ13: =IF($O$22<>0,SUM(AX13:BI13)*$O$22+$N$22,-1) -> 15 | BL13: 2.682944585e-83 | BM13: 0 | BN13: 0 | BO13: 0 | BP13: 0 | BQ13: 0 | BR13: 0 | BS13: 0 | BT13: 0 | BU13: 0 | BV13: 0 | BW13: 0 | BX13: =IF($O$24<>0,SUM(BL13:BW13)*$O$24+$N$24,-1) -> 10 | BZ13: 2.682944585e-83 | CA13: 0 | CB13: 0 | CC13: 0 | CD13: 0 | CE13: 0 | CF13: 0 | CG13: 0 | CH13: 0 | CI13: 0 | CJ13: 0 | CK13: 0 | CL13: =IF($O$21<>0,SUM(BZ13:CK13)*$O$21+$N$21,-1) -> -1 | CN13: 2.682944585e-83 | CO13: 0 | CP13: 0 | CQ13: 0 | CR13: 0 | CS13: 0 | CT13: 0 | CU13: 0 | CV13: 0 | CW13: 0 | CX13: 0 | CY13: 0 | CZ13: =IF($O$23<>0,SUM(CN13:CY13)*$O$23+$N$23,-1) -> -1
A14: =IF(C14<>"",IF(ISNA(VLOOKUP(C14,Compounds!$B$11:'Compounds'!$G$403,1,FALSE)),"Name error",9),"") -> Name error | B14: 0 | C14: Pyren | J14: =SPmodel!B21 -> Chromlith/ACN | K14: =SPmodel!P21 -> Chromlith/MeHO | M14: Column difference | P14: =IF(Columns!K18<>"",Columns!K18,"") ->  | R14: =IF(Columns!S18<>"",Columns!S18,"") ->  | S14: =IF(Columns!T18<>"",Columns!T18,"") ->  | T14: =IF(Columns!M18<>"",Columns!M18,"") ->  | AE14: 4.4 | AF14: =IF($L$20>0,IF($AE14<$J$20,$H$20,IF($AE14<$J$20+$K$20,$H$20+((I$20-H$20)*($AE14-J$20)/K$20),$I$20)),$H$20) -> 0.288 | AG14: =IF($L$22>0,IF($AE14<$J$22,$H$22,IF($AE14<$J$22+$K$22,$H$22+((I$22-H$22)*($AE14-J$22)/K$22),$I$22)),$H$22) -> 0.288 | AI14: 0.24 | AJ14: 4.061590092e-79 | AK14: 0 | AL14: 0 | AM14: 0 | AN14: 0 | AO14: 0 | AP14: 0 | AQ14: 0 | AR14: 0 | AS14: 0 | AT14: 0 | AU14: 0 | AV14: =IF($O$20<>0,SUM(AJ14:AU14)*$O$20+$N$20,-1) -> 11 | AX14: 4.061590092e-79 | AY14: 0 | AZ14: 0 | BA14: 0 | BB14: 0 | BC14: 0 | BD14: 0 | BE14: 0 | BF14: 0 | BG14: 0 | BH14: 0 | BI14: 0 | BJ14: =IF($O$22<>0,SUM(AX14:BI14)*$O$22+$N$22,-1) -> 15 | BL14: 4.061590092e-79 | BM14: 0 | BN14: 0 | BO14: 0 | BP14: 0 | BQ14: 0 | BR14: 0 | BS14: 0 | BT14: 0 | BU14: 0 | BV14: 0 | BW14: 0 | BX14: =IF($O$24<>0,SUM(BL14:BW14)*$O$24+$N$24,-1) -> 10 | BZ14: 4.061590092e-79 | CA14: 0 | CB14: 0 | CC14: 0 | CD14: 0 | CE14: 0 | CF14: 0 | CG14: 0 | CH14: 0 | CI14: 0 | CJ14: 0 | CK14: 0 | CL14: =IF($O$21<>0,SUM(BZ14:CK14)*$O$21+$N$21,-1) -> -1 | CN14: 4.061590092e-79 | CO14: 0 | CP14: 0 | CQ14: 0 | CR14: 0 | CS14: 0 | CT14: 0 | CU14: 0 | CV14: 0 | CW14: 0 | CX14: 0 | CY14: 0 | CZ14: =IF($O$23<>0,SUM(CN14:CY14)*$O$23+$N$23,-1) -> -1
A15: =IF(C15<>"",IF(ISNA(VLOOKUP(C15,Compounds!$B$11:'Compounds'!$G$403,1,FALSE)),"Name error",10),"") ->  | B15: 0 | H15: Calibration min f | J15: =MIN(SPmodel!B22:B31) -> 0.1 | K15: =MIN(SPmodel!P22:P31) -> 0.2 | M15: 1 - Cos q | N15: d | P15: =IF(Columns!K19<>"",Columns!K19,"") ->  | R15: =IF(Columns!S19<>"",Columns!S19,"") ->  | S15: =IF(Columns!T19<>"",Columns!T19,"") ->  | T15: =IF(Columns!M19<>"",Columns!M19,"") ->  | AE15: 4.8 | AF15: =IF($L$20>0,IF($AE15<$J$20,$H$20,IF($AE15<$J$20+$K$20,$H$20+((I$20-H$20)*($AE15-J$20)/K$20),$I$20)),$H$20) -> 0.296 | AG15: =IF($L$22>0,IF($AE15<$J$22,$H$22,IF($AE15<$J$22+$K$22,$H$22+((I$22-H$22)*($AE15-J$22)/K$22),$I$22)),$H$22) -> 0.296 | AI15: 0.26 | AJ15: 4.788581229e-75 | AK15: 0 | AL15: 0 | AM15: 0 | AN15: 0 | AO15: 0 | AP15: 0 | AQ15: 0 | AR15: 0 | AS15: 0 | AT15: 0 | AU15: 0 | AV15: =IF($O$20<>0,SUM(AJ15:AU15)*$O$20+$N$20,-1) -> 11 | AX15: 4.788581229e-75 | AY15: 0 | AZ15: 0 | BA15: 0 | BB15: 0 | BC15: 0 | BD15: 0 | BE15: 0 | BF15: 0 | BG15: 0 | BH15: 0 | BI15: 0 | BJ15: =IF($O$22<>0,SUM(AX15:BI15)*$O$22+$N$22,-1) -> 15 | BL15: 4.788581229e-75 | BM15: 0 | BN15: 0 | BO15: 0 | BP15: 0 | BQ15: 0 | BR15: 0 | BS15: 0 | BT15: 0 | BU15: 0 | BV15: 0 | BW15: 0 | BX15: =IF($O$24<>0,SUM(BL15:BW15)*$O$24+$N$24,-1) -> 10 | BZ15: 4.788581229e-75 | CA15: 0 | CB15: 0 | CC15: 0 | CD15: 0 | CE15: 0 | CF15: 0 | CG15: 0 | CH15: 0 | CI15: 0 | CJ15: 0 | CK15: 0 | CL15: =IF($O$21<>0,SUM(BZ15:CK15)*$O$21+$N$21,-1) -> -1 | CN15: 4.788581229e-75 | CO15: 0 | CP15: 0 | CQ15: 0 | CR15: 0 | CS15: 0 | CT15: 0 | CU15: 0 | CV15: 0 | CW15: 0 | CX15: 0 | CY15: 0 | CZ15: =IF($O$23<>0,SUM(CN15:CY15)*$O$23+$N$23,-1) -> -1
A16: =IF(C16<>"",IF(ISNA(VLOOKUP(C16,Compounds!$B$11:'Compounds'!$G$403,1,FALSE)),"Name error",11),"") ->  | B16: 0 | H16: Calibration max f | J16: =MAX(SPmodel!B22:B31) -> 0.6 | K16: =MAX(SPmodel!P22:P31) -> 0.6 | M16: =VLOOKUP(E22,P6:S26,3,FALSE) -> 0.02124231284 | N16: =VLOOKUP(E22,P6:S26,4,FALSE) -> 0.2061179897 | P16: =IF(Columns!K20<>"",Columns!K20,"") ->  | R16: =IF(Columns!S20<>"",Columns!S20,"") ->  | S16: =IF(Columns!T20<>"",Columns!T20,"") ->  | T16: =IF(Columns!M20<>"",Columns!M20,"") ->  | AE16: 5.2 | AF16: =IF($L$20>0,IF($AE16<$J$20,$H$20,IF($AE16<$J$20+$K$20,$H$20+((I$20-H$20)*($AE16-J$20)/K$20),$I$20)),$H$20) -> 0.304 | AG16: =IF($L$22>0,IF($AE16<$J$22,$H$22,IF($AE16<$J$22+$K$22,$H$22+((I$22-H$22)*($AE16-J$22)/K$22),$I$22)),$H$22) -> 0.304 | AI16: 0.28 | AJ16: 4.396873856e-71 | AK16: 0 | AL16: 0 | AM16: 0 | AN16: 0 | AO16: 0 | AP16: 0 | AQ16: 0 | AR16: 0 | AS16: 0 | AT16: 0 | AU16: 0 | AV16: =IF($O$20<>0,SUM(AJ16:AU16)*$O$20+$N$20,-1) -> 11 | AX16: 4.396873856e-71 | AY16: 0 | AZ16: 0 | BA16: 0 | BB16: 0 | BC16: 0 | BD16: 0 | BE16: 0 | BF16: 0 | BG16: 0 | BH16: 0 | BI16: 0 | BJ16: =IF($O$22<>0,SUM(AX16:BI16)*$O$22+$N$22,-1) -> 15 | BL16: 4.396873856e-71 | BM16: 0 | BN16: 0 | BO16: 0 | BP16: 0 | BQ16: 0 | BR16: 0 | BS16: 0 | BT16: 0 | BU16: 0 | BV16: 0 | BW16: 0 | BX16: =IF($O$24<>0,SUM(BL16:BW16)*$O$24+$N$24,-1) -> 10 | BZ16: 4.396873856e-71 | CA16: 0 | CB16: 0 | CC16: 0 | CD16: 0 | CE16: 0 | CF16: 0 | CG16: 0 | CH16: 0 | CI16: 0 | CJ16: 0 | CK16: 0 | CL16: =IF($O$21<>0,SUM(BZ16:CK16)*$O$21+$N$21,-1) -> -1 | CN16: 4.396873856e-71 | CO16: 0 | CP16: 0 | CQ16: 0 | CR16: 0 | CS16: 0 | CT16: 0 | CU16: 0 | CV16: 0 | CW16: 0 | CX16: 0 | CY16: 0 | CZ16: =IF($O$23<>0,SUM(CN16:CY16)*$O$23+$N$23,-1) -> -1
P17: =IF(Columns!K21<>"",Columns!K21,"") ->  | R17: =IF(Columns!S21<>"",Columns!S21,"") ->  | S17: =IF(Columns!T21<>"",Columns!T21,"") ->  | T17: =IF(Columns!M21<>"",Columns!M21,"") ->  | AE17: 5.6 | AF17: =IF($L$20>0,IF($AE17<$J$20,$H$20,IF($AE17<$J$20+$K$20,$H$20+((I$20-H$20)*($AE17-J$20)/K$20),$I$20)),$H$20) -> 0.312 | AG17: =IF($L$22>0,IF($AE17<$J$22,$H$22,IF($AE17<$J$22+$K$22,$H$22+((I$22-H$22)*($AE17-J$22)/K$22),$I$22)),$H$22) -> 0.312 | AI17: 0.3 | AJ17: 3.144180957e-67 | AK17: 0 | AL17: 0 | AM17: 0 | AN17: 0 | AO17: 0 | AP17: 0 | AQ17: 0 | AR17: 0 | AS17: 0 | AT17: 0 | AU17: 0 | AV17: =IF($O$20<>0,SUM(AJ17:AU17)*$O$20+$N$20,-1) -> 11 | AX17: 3.144180957e-67 | AY17: 0 | AZ17: 0 | BA17: 0 | BB17: 0 | BC17: 0 | BD17: 0 | BE17: 0 | BF17: 0 | BG17: 0 | BH17: 0 | BI17: 0 | BJ17: =IF($O$22<>0,SUM(AX17:BI17)*$O$22+$N$22,-1) -> 15 | BL17: 3.144180957e-67 | BM17: 0 | BN17: 0 | BO17: 0 | BP17: 0 | BQ17: 0 | BR17: 0 | BS17: 0 | BT17: 0 | BU17: 0 | BV17: 0 | BW17: 0 | BX17: =IF($O$24<>0,SUM(BL17:BW17)*$O$24+$N$24,-1) -> 10 | BZ17: 3.144180957e-67 | CA17: 0 | CB17: 0 | CC17: 0 | CD17: 0 | CE17: 0 | CF17: 0 | CG17: 0 | CH17: 0 | CI17: 0 | CJ17: 0 | CK17: 0 | CL17: =IF($O$21<>0,SUM(BZ17:CK17)*$O$21+$N$21,-1) -> -1 | CN17: 3.144180957e-67 | CO17: 0 | CP17: 0 | CQ17: 0 | CR17: 0 | CS17: 0 | CT17: 0 | CU17: 0 | CV17: 0 | CW17: 0 | CX17: 0 | CY17: 0 | CZ17: =IF($O$23<>0,SUM(CN17:CY17)*$O$23+$N$23,-1) -> -1
A18: Table 2 | C18: Table 3 | P18: =IF(Columns!K22<>"",Columns!K22,"") ->  | R18: =IF(Columns!S22<>"",Columns!S22,"") ->  | S18: =IF(Columns!T22<>"",Columns!T22,"") ->  | T18: =IF(Columns!M22<>"",Columns!M22,"") ->  | AE18: 6 | AF18: =IF($L$20>0,IF($AE18<$J$20,$H$20,IF($AE18<$J$20+$K$20,$H$20+((I$20-H$20)*($AE18-J$20)/K$20),$I$20)),$H$20) -> 0.32 | AG18: =IF($L$22>0,IF($AE18<$J$22,$H$22,IF($AE18<$J$22+$K$22,$H$22+((I$22-H$22)*($AE18-J$22)/K$22),$I$22)),$H$22) -> 0.32 | AI18: 0.32 | AJ18: 1.751045534e-63 | AK18: 0 | AL18: 0 | AM18: 0 | AN18: 0 | AO18: 0 | AP18: 0 | AQ18: 0 | AR18: 0 | AS18: 0 | AT18: 0 | AU18: 0 | AV18: =IF($O$20<>0,SUM(AJ18:AU18)*$O$20+$N$20,-1) -> 11 | AX18: 1.751045534e-63 | AY18: 0 | AZ18: 0 | BA18: 0 | BB18: 0 | BC18: 0 | BD18: 0 | BE18: 0 | BF18: 0 | BG18: 0 | BH18: 0 | BI18: 0 | BJ18: =IF($O$22<>0,SUM(AX18:BI18)*$O$22+$N$22,-1) -> 15 | BL18: 1.751045534e-63 | BM18: 0 | BN18: 0 | BO18: 0 | BP18: 0 | BQ18: 0 | BR18: 0 | BS18: 0 | BT18: 0 | BU18: 0 | BV18: 0 | BW18: 0 | BX18: =IF($O$24<>0,SUM(BL18:BW18)*$O$24+$N$24,-1) -> 10 | BZ18: 1.751045534e-63 | CA18: 0 | CB18: 0 | CC18: 0 | CD18: 0 | CE18: 0 | CF18: 0 | CG18: 0 | CH18: 0 | CI18: 0 | CJ18: 0 | CK18: 0 | CL18: =IF($O$21<>0,SUM(BZ18:CK18)*$O$21+$N$21,-1) -> -1 | CN18: 1.751045534e-63 | CO18: 0 | CP18: 0 | CQ18: 0 | CR18: 0 | CS18: 0 | CT18: 0 | CU18: 0 | CV18: 0 | CW18: 0 | CX18: 0 | CY18: 0 | CZ18: =IF($O$23<>0,SUM(CN18:CY18)*$O$23+$N$23,-1) -> -1
A19: GC-parameters | E19: Name* | G19: Beta-ratio | H19: f start | I19: f end | J19: tD | K19: tG | L19: d f | M19: Degree | N19: Offset | O19: Amplify | P19: =IF(Columns!K23<>"",Columns!K23,"") ->  | R19: =IF(Columns!S23<>"",Columns!S23,"") ->  | S19: =IF(Columns!T23<>"",Columns!T23,"") ->  | T19: =IF(Columns!M23<>"",Columns!M23,"") ->  | AE19: 6.4 | AF19: =IF($L$20>0,IF($AE19<$J$20,$H$20,IF($AE19<$J$20+$K$20,$H$20+((I$20-H$20)*($AE19-J$20)/K$20),$I$20)),$H$20) -> 0.328 | AG19: =IF($L$22>0,IF($AE19<$J$22,$H$22,IF($AE19<$J$22+$K$22,$H$22+((I$22-H$22)*($AE19-J$22)/K$22),$I$22)),$H$22) -> 0.328 | AI19: 0.34 | AJ19: 7.594754247e-60 | AK19: 0 | AL19: 0 | AM19: 0 | AN19: 0 | AO19: 0 | AP19: 0 | AQ19: 0 | AR19: 0 | AS19: 0 | AT19: 0 | AU19: 0 | AV19: =IF($O$20<>0,SUM(AJ19:AU19)*$O$20+$N$20,-1) -> 11 | AX19: 7.594754247e-60 | AY19: 0 | AZ19: 0 | BA19: 0 | BB19: 0 | BC19: 0 | BD19: 0 | BE19: 0 | BF19: 0 | BG19: 0 | BH19: 0 | BI19: 0 | BJ19: =IF($O$22<>0,SUM(AX19:BI19)*$O$22+$N$22,-1) -> 15 | BL19: 7.594754247e-60 | BM19: 0 | BN19: 0 | BO19: 0 | BP19: 0 | BQ19: 0 | BR19: 0 | BS19: 0 | BT19: 0 | BU19: 0 | BV19: 0 | BW19: 0 | BX19: =IF($O$24<>0,SUM(BL19:BW19)*$O$24+$N$24,-1) -> 10 | BZ19: 7.594754247e-60 | CA19: 0 | CB19: 0 | CC19: 0 | CD19: 0 | CE19: 0 | CF19: 0 | CG19: 0 | CH19: 0 | CI19: 0 | CJ19: 0 | CK19: 0 | CL19: =IF($O$21<>0,SUM(BZ19:CK19)*$O$21+$N$21,-1) -> -1 | CN19: 7.594754247e-60 | CO19: 0 | CP19: 0 | CQ19: 0 | CR19: 0 | CS19: 0 | CT19: 0 | CU19: 0 | CV19: 0 | CW19: 0 | CX19: 0 | CY19: 0 | CZ19: =IF($O$23<>0,SUM(CN19:CY19)*$O$23+$N$23,-1) -> -1
A20: tM, min | B20: 1 | C20: Green Linear | E20: Chromlith/ACN | G20: 1 | H20: 0.2 | I20: 1 | J20: 0 | K20: 40 | L20: =IF(I20>H20,I20-H20,0) -> 0.8 | M20: 1 | N20: 11 | O20: 1 | P20: =IF(Columns!K24<>"",Columns!K24,"") ->  | R20: =IF(Columns!S24<>"",Columns!S24,"") ->  | S20: =IF(Columns!T24<>"",Columns!T24,"") ->  | T20: =IF(Columns!M24<>"",Columns!M24,"") ->  | AE20: 6.8 | AF20: =IF($L$20>0,IF($AE20<$J$20,$H$20,IF($AE20<$J$20+$K$20,$H$20+((I$20-H$20)*($AE20-J$20)/K$20),$I$20)),$H$20) -> 0.336 | AG20: =IF($L$22>0,IF($AE20<$J$22,$H$22,IF($AE20<$J$22+$K$22,$H$22+((I$22-H$22)*($AE20-J$22)/K$22),$I$22)),$H$22) -> 0.336 | AI20: 0.36 | AJ20: 2.565407682e-56 | AK20: 0 | AL20: 0 | AM20: 0 | AN20: 0 | AO20: 0 | AP20: 0 | AQ20: 0 | AR20: 0 | AS20: 0 | AT20: 0 | AU20: 0 | AV20: =IF($O$20<>0,SUM(AJ20:AU20)*$O$20+$N$20,-1) -> 11 | AX20: 2.565407682e-56 | AY20: 0 | AZ20: 0 | BA20: 0 | BB20: 0 | BC20: 0 | BD20: 0 | BE20: 0 | BF20: 0 | BG20: 0 | BH20: 0 | BI20: 0 | BJ20: =IF($O$22<>0,SUM(AX20:BI20)*$O$22+$N$22,-1) -> 15 | BL20: 2.565407682e-56 | BM20: 0 | BN20: 0 | BO20: 0 | BP20: 0 | BQ20: 0 | BR20: 0 | BS20: 0 | BT20: 0 | BU20: 0 | BV20: 0 | BW20: 0 | BX20: =IF($O$24<>0,SUM(BL20:BW20)*$O$24+$N$24,-1) -> 10 | BZ20: 2.565407682e-56 | CA20: 0 | CB20: 0 | CC20: 0 | CD20: 0 | CE20: 0 | CF20: 0 | CG20: 0 | CH20: 0 | CI20: 0 | CJ20: 0 | CK20: 0 | CL20: =IF($O$21<>0,SUM(BZ20:CK20)*$O$21+$N$21,-1) -> -1 | CN20: 2.565407682e-56 | CO20: 0 | CP20: 0 | CQ20: 0 | CR20: 0 | CS20: 0 | CT20: 0 | CU20: 0 | CV20: 0 | CW20: 0 | CX20: 0 | CY20: 0 | CZ20: =IF($O$23<>0,SUM(CN20:CY20)*$O$23+$N$23,-1) -> -1
A21: N | B21: 10000 | C21: Green Polynomial | M21: 2 | N21: 12 | O21: 0 | P21: =IF(Columns!K25<>"",Columns!K25,"") ->  | R21: =IF(Columns!S25<>"",Columns!S25,"") ->  | S21: =IF(Columns!T25<>"",Columns!T25,"") ->  | T21: =IF(Columns!M25<>"",Columns!M25,"") ->  | AE21: 7.2 | AF21: =IF($L$20>0,IF($AE21<$J$20,$H$20,IF($AE21<$J$20+$K$20,$H$20+((I$20-H$20)*($AE21-J$20)/K$20),$I$20)),$H$20) -> 0.344 | AG21: =IF($L$22>0,IF($AE21<$J$22,$H$22,IF($AE21<$J$22+$K$22,$H$22+((I$22-H$22)*($AE21-J$22)/K$22),$I$22)),$H$22) -> 0.344 | AI21: 0.38 | AJ21: 6.748782561e-53 | AK21: 0 | AL21: 0 | AM21: 0 | AN21: 0 | AO21: 0 | AP21: 0 | AQ21: 0 | AR21: 0 | AS21: 0 | AT21: 0 | AU21: 0 | AV21: =IF($O$20<>0,SUM(AJ21:AU21)*$O$20+$N$20,-1) -> 11 | AX21: 6.748782561e-53 | AY21: 0 | AZ21: 0 | BA21: 0 | BB21: 0 | BC21: 0 | BD21: 0 | BE21: 0 | BF21: 0 | BG21: 0 | BH21: 0 | BI21: 0 | BJ21: =IF($O$22<>0,SUM(AX21:BI21)*$O$22+$N$22,-1) -> 15 | BL21: 6.748782561e-53 | BM21: 0 | BN21: 0 | BO21: 0 | BP21: 0 | BQ21: 0 | BR21: 0 | BS21: 0 | BT21: 0 | BU21: 0 | BV21: 0 | BW21: 0 | BX21: =IF($O$24<>0,SUM(BL21:BW21)*$O$24+$N$24,-1) -> 10 | BZ21: 6.748782561e-53 | CA21: 0 | CB21: 0 | CC21: 0 | CD21: 0 | CE21: 0 | CF21: 0 | CG21: 0 | CH21: 0 | CI21: 0 | CJ21: 0 | CK21: 0 | CL21: =IF($O$21<>0,SUM(BZ21:CK21)*$O$21+$N$21,-1) -> -1 | CN21: 6.748782561e-53 | CO21: 0 | CP21: 0 | CQ21: 0 | CR21: 0 | CS21: 0 | CT21: 0 | CU21: 0 | CV21: 0 | CW21: 0 | CX21: 0 | CY21: 0 | CZ21: =IF($O$23<>0,SUM(CN21:CY21)*$O$23+$N$23,-1) -> -1
A22: tmax, min | B22: 40 | C22: Blue Linear | E22: Chromlith/MeHO | G22: 1 | H22: 0.2 | I22: 1 | J22: 0 | K22: 40 | L22: =IF(I22>H22,I22-H22,0) -> 0.8 | M22: 1 | N22: 15 | O22: 1 | P22: =IF(Columns!K26<>"",Columns!K26,"") ->  | R22: =IF(Columns!S26<>"",Columns!S26,"") ->  | S22: =IF(Columns!T26<>"",Columns!T26,"") ->  | T22: =IF(Columns!M26<>"",Columns!M26,"") ->  | AE22: 7.6 | AF22: =IF($L$20>0,IF($AE22<$J$20,$H$20,IF($AE22<$J$20+$K$20,$H$20+((I$20-H$20)*($AE22-J$20)/K$20),$I$20)),$H$20) -> 0.352 | AG22: =IF($L$22>0,IF($AE22<$J$22,$H$22,IF($AE22<$J$22+$K$22,$H$22+((I$22-H$22)*($AE22-J$22)/K$22),$I$22)),$H$22) -> 0.352 | AI22: 0.4 | AJ22: 1.382677387e-49 | AK22: 0 | AL22: 0 | AM22: 0 | AN22: 0 | AO22: 0 | AP22: 0 | AQ22: 0 | AR22: 0 | AS22: 0 | AT22: 0 | AU22: 0 | AV22: =IF($O$20<>0,SUM(AJ22:AU22)*$O$20+$N$20,-1) -> 11 | AX22: 1.382677387e-49 | AY22: 0 | AZ22: 0 | BA22: 0 | BB22: 0 | BC22: 0 | BD22: 0 | BE22: 0 | BF22: 0 | BG22: 0 | BH22: 0 | BI22: 0 | BJ22: =IF($O$22<>0,SUM(AX22:BI22)*$O$22+$N$22,-1) -> 15 | BL22: 1.382677387e-49 | BM22: 0 | BN22: 0 | BO22: 0 | BP22: 0 | BQ22: 0 | BR22: 0 | BS22: 0 | BT22: 0 | BU22: 0 | BV22: 0 | BW22: 0 | BX22: =IF($O$24<>0,SUM(BL22:BW22)*$O$24+$N$24,-1) -> 10 | BZ22: 1.382677387e-49 | CA22: 0 | CB22: 0 | CC22: 0 | CD22: 0 | CE22: 0 | CF22: 0 | CG22: 0 | CH22: 0 | CI22: 0 | CJ22: 0 | CK22: 0 | CL22: =IF($O$21<>0,SUM(BZ22:CK22)*$O$21+$N$21,-1) -> -1 | CN22: 1.382677387e-49 | CO22: 0 | CP22: 0 | CQ22: 0 | CR22: 0 | CS22: 0 | CT22: 0 | CU22: 0 | CV22: 0 | CW22: 0 | CX22: 0 | CY22: 0 | CZ22: =IF($O$23<>0,SUM(CN22:CY22)*$O$23+$N$23,-1) -> -1
A23: tM intensity | B23: 0.1 | C23: Blue Polynomial | M23: 2 | N23: 20 | O23: 0 | P23: =IF(Columns!K27<>"",Columns!K27,"") ->  | R23: =IF(Columns!S27<>"",Columns!S27,"") ->  | S23: =IF(Columns!T27<>"",Columns!T27,"") ->  | T23: =IF(Columns!M27<>"",Columns!M27,"") ->  | AE23: 8 | AF23: =IF($L$20>0,IF($AE23<$J$20,$H$20,IF($AE23<$J$20+$K$20,$H$20+((I$20-H$20)*($AE23-J$20)/K$20),$I$20)),$H$20) -> 0.36 | AG23: =IF($L$22>0,IF($AE23<$J$22,$H$22,IF($AE23<$J$22+$K$22,$H$22+((I$22-H$22)*($AE23-J$22)/K$22),$I$22)),$H$22) -> 0.36 | AI23: 0.42 | AJ23: 2.206188744e-46 | AK23: 0 | AL23: 0 | AM23: 0 | AN23: 0 | AO23: 0 | AP23: 0 | AQ23: 0 | AR23: 0 | AS23: 0 | AT23: 0 | AU23: 0 | AV23: =IF($O$20<>0,SUM(AJ23:AU23)*$O$20+$N$20,-1) -> 11 | AX23: 2.206188744e-46 | AY23: 0 | AZ23: 0 | BA23: 0 | BB23: 0 | BC23: 0 | BD23: 0 | BE23: 0 | BF23: 0 | BG23: 0 | BH23: 0 | BI23: 0 | BJ23: =IF($O$22<>0,SUM(AX23:BI23)*$O$22+$N$22,-1) -> 15 | BL23: 2.206188744e-46 | BM23: 0 | BN23: 0 | BO23: 0 | BP23: 0 | BQ23: 0 | BR23: 0 | BS23: 0 | BT23: 0 | BU23: 0 | BV23: 0 | BW23: 0 | BX23: =IF($O$24<>0,SUM(BL23:BW23)*$O$24+$N$24,-1) -> 10 | BZ23: 2.206188744e-46 | CA23: 0 | CB23: 0 | CC23: 0 | CD23: 0 | CE23: 0 | CF23: 0 | CG23: 0 | CH23: 0 | CI23: 0 | CJ23: 0 | CK23: 0 | CL23: =IF($O$21<>0,SUM(BZ23:CK23)*$O$21+$N$21,-1) -> -1 | CN23: 2.206188744e-46 | CO23: 0 | CP23: 0 | CQ23: 0 | CR23: 0 | CS23: 0 | CT23: 0 | CU23: 0 | CV23: 0 | CW23: 0 | CX23: 0 | CY23: 0 | CZ23: =IF($O$23<>0,SUM(CN23:CY23)*$O$23+$N$23,-1) -> -1
A24: 4/sqrt(N) | B24: =4/SQRT(B21) -> 0.04 | C24: Reference | N24: 10 | O24: -1 | P24: =IF(Columns!K28<>"",Columns!K28,"") ->  | R24: =IF(Columns!S28<>"",Columns!S28,"") ->  | S24: =IF(Columns!T28<>"",Columns!T28,"") ->  | T24: =IF(Columns!M28<>"",Columns!M28,"") ->  | AE24: 8.4 | AF24: =IF($L$20>0,IF($AE24<$J$20,$H$20,IF($AE24<$J$20+$K$20,$H$20+((I$20-H$20)*($AE24-J$20)/K$20),$I$20)),$H$20) -> 0.368 | AG24: =IF($L$22>0,IF($AE24<$J$22,$H$22,IF($AE24<$J$22+$K$22,$H$22+((I$22-H$22)*($AE24-J$22)/K$22),$I$22)),$H$22) -> 0.368 | AI24: 0.44 | AJ24: 2.741516398e-43 | AK24: 0 | AL24: 0 | AM24: 0 | AN24: 0 | AO24: 0 | AP24: 0 | AQ24: 0 | AR24: 0 | AS24: 0 | AT24: 0 | AU24: 0 | AV24: =IF($O$20<>0,SUM(AJ24:AU24)*$O$20+$N$20,-1) -> 11 | AX24: 2.741516398e-43 | AY24: 0 | AZ24: 0 | BA24: 0 | BB24: 0 | BC24: 0 | BD24: 0 | BE24: 0 | BF24: 0 | BG24: 0 | BH24: 0 | BI24: 0 | BJ24: =IF($O$22<>0,SUM(AX24:BI24)*$O$22+$N$22,-1) -> 15 | BL24: 2.741516398e-43 | BM24: 0 | BN24: 0 | BO24: 0 | BP24: 0 | BQ24: 0 | BR24: 0 | BS24: 0 | BT24: 0 | BU24: 0 | BV24: 0 | BW24: 0 | BX24: =IF($O$24<>0,SUM(BL24:BW24)*$O$24+$N$24,-1) -> 10 | BZ24: 2.741516398e-43 | CA24: 0 | CB24: 0 | CC24: 0 | CD24: 0 | CE24: 0 | CF24: 0 | CG24: 0 | CH24: 0 | CI24: 0 | CJ24: 0 | CK24: 0 | CL24: =IF($O$21<>0,SUM(BZ24:CK24)*$O$21+$N$21,-1) -> -1 | CN24: 2.741516398e-43 | CO24: 0 | CP24: 0 | CQ24: 0 | CR24: 0 | CS24: 0 | CT24: 0 | CU24: 0 | CV24: 0 | CW24: 0 | CX24: 0 | CY24: 0 | CZ24: =IF($O$23<>0,SUM(CN24:CY24)*$O$23+$N$23,-1) -> -1
A25: dt | B25: =B22/2000 -> 0.02 | P25: =IF(Columns!K29<>"",Columns!K29,"") ->  | R25: =IF(Columns!S29<>"",Columns!S29,"") ->  | S25: =IF(Columns!T29<>"",Columns!T29,"") ->  | T25: =IF(Columns!M29<>"",Columns!M29,"") ->  | AE25: 8.8 | AF25: =IF($L$20>0,IF($AE25<$J$20,$H$20,IF($AE25<$J$20+$K$20,$H$20+((I$20-H$20)*($AE25-J$20)/K$20),$I$20)),$H$20) -> 0.376 | AG25: =IF($L$22>0,IF($AE25<$J$22,$H$22,IF($AE25<$J$22+$K$22,$H$22+((I$22-H$22)*($AE25-J$22)/K$22),$I$22)),$H$22) -> 0.376 | AI25: 0.46 | AJ25: 2.653172035e-40 | AK25: 0 | AL25: 0 | AM25: 0 | AN25: 0 | AO25: 0 | AP25: 0 | AQ25: 0 | AR25: 0 | AS25: 0 | AT25: 0 | AU25: 0 | AV25: =IF($O$20<>0,SUM(AJ25:AU25)*$O$20+$N$20,-1) -> 11 | AX25: 2.653172035e-40 | AY25: 0 | AZ25: 0 | BA25: 0 | BB25: 0 | BC25: 0 | BD25: 0 | BE25: 0 | BF25: 0 | BG25: 0 | BH25: 0 | BI25: 0 | BJ25: =IF($O$22<>0,SUM(AX25:BI25)*$O$22+$N$22,-1) -> 15 | BL25: 2.653172035e-40 | BM25: 0 | BN25: 0 | BO25: 0 | BP25: 0 | BQ25: 0 | BR25: 0 | BS25: 0 | BT25: 0 | BU25: 0 | BV25: 0 | BW25: 0 | BX25: =IF($O$24<>0,SUM(BL25:BW25)*$O$24+$N$24,-1) -> 10 | BZ25: 2.653172035e-40 | CA25: 0 | CB25: 0 | CC25: 0 | CD25: 0 | CE25: 0 | CF25: 0 | CG25: 0 | CH25: 0 | CI25: 0 | CJ25: 0 | CK25: 0 | CL25: =IF($O$21<>0,SUM(BZ25:CK25)*$O$21+$N$21,-1) -> -1 | CN25: 2.653172035e-40 | CO25: 0 | CP25: 0 | CQ25: 0 | CR25: 0 | CS25: 0 | CT25: 0 | CU25: 0 | CV25: 0 | CW25: 0 | CX25: 0 | CY25: 0 | CZ25: =IF($O$23<>0,SUM(CN25:CY25)*$O$23+$N$23,-1) -> -1
P26: =IF(Columns!K30<>"",Columns!K30,"") ->  | R26: =IF(Columns!S30<>"",Columns!S30,"") ->  | S26: =IF(Columns!T30<>"",Columns!T30,"") ->  | T26: =IF(Columns!M30<>"",Columns!M30,"") ->  | AE26: 9.2 | AF26: =IF($L$20>0,IF($AE26<$J$20,$H$20,IF($AE26<$J$20+$K$20,$H$20+((I$20-H$20)*($AE26-J$20)/K$20),$I$20)),$H$20) -> 0.384 | AG26: =IF($L$22>0,IF($AE26<$J$22,$H$22,IF($AE26<$J$22+$K$22,$H$22+((I$22-H$22)*($AE26-J$22)/K$22),$I$22)),$H$22) -> 0.384 | AI26: 0.48 | AJ26: 1.999706939e-37 | AK26: 0 | AL26: 0 | AM26: 0 | AN26: 0 | AO26: 0 | AP26: 0 | AQ26: 0 | AR26: 0 | AS26: 0 | AT26: 0 | AU26: 0 | AV26: =IF($O$20<>0,SUM(AJ26:AU26)*$O$20+$N$20,-1) -> 11 | AX26: 1.999706939e-37 | AY26: 0 | AZ26: 0 | BA26: 0 | BB26: 0 | BC26: 0 | BD26: 0 | BE26: 0 | BF26: 0 | BG26: 0 | BH26: 0 | BI26: 0 | BJ26: =IF($O$22<>0,SUM(AX26:BI26)*$O$22+$N$22,-1) -> 15 | BL26: 1.999706939e-37 | BM26: 0 | BN26: 0 | BO26: 0 | BP26: 0 | BQ26: 0 | BR26: 0 | BS26: 0 | BT26: 0 | BU26: 0 | BV26: 0 | BW26: 0 | BX26: =IF($O$24<>0,SUM(BL26:BW26)*$O$24+$N$24,-1) -> 10 | BZ26: 1.999706939e-37 | CA26: 0 | CB26: 0 | CC26: 0 | CD26: 0 | CE26: 0 | CF26: 0 | CG26: 0 | CH26: 0 | CI26: 0 | CJ26: 0 | CK26: 0 | CL26: =IF($O$21<>0,SUM(BZ26:CK26)*$O$21+$N$21,-1) -> -1 | CN26: 1.999706939e-37 | CO26: 0 | CP26: 0 | CQ26: 0 | CR26: 0 | CS26: 0 | CT26: 0 | CU26: 0 | CV26: 0 | CW26: 0 | CX26: 0 | CY26: 0 | CZ26: =IF($O$23<>0,SUM(CN26:CY26)*$O$23+$N$23,-1) -> -1
AE27: 9.6 | AF27: =IF($L$20>0,IF($AE27<$J$20,$H$20,IF($AE27<$J$20+$K$20,$H$20+((I$20-H$20)*($AE27-J$20)/K$20),$I$20)),$H$20) -> 0.392 | AG27: =IF($L$22>0,IF($AE27<$J$22,$H$22,IF($AE27<$J$22+$K$22,$H$22+((I$22-H$22)*($AE27-J$22)/K$22),$I$22)),$H$22) -> 0.392 | AI27: 0.5 | AJ27: 1.173798839e-34 | AK27: 0 | AL27: 0 | AM27: 0 | AN27: 0 | AO27: 0 | AP27: 0 | AQ27: 0 | AR27: 0 | AS27: 0 | AT27: 0 | AU27: 0 | AV27: =IF($O$20<>0,SUM(AJ27:AU27)*$O$20+$N$20,-1) -> 11 | AX27: 1.173798839e-34 | AY27: 0 | AZ27: 0 | BA27: 0 | BB27: 0 | BC27: 0 | BD27: 0 | BE27: 0 | BF27: 0 | BG27: 0 | BH27: 0 | BI27: 0 | BJ27: =IF($O$22<>0,SUM(AX27:BI27)*$O$22+$N$22,-1) -> 15 | BL27: 1.173798839e-34 | BM27: 0 | BN27: 0 | BO27: 0 | BP27: 0 | BQ27: 0 | BR27: 0 | BS27: 0 | BT27: 0 | BU27: 0 | BV27: 0 | BW27: 0 | BX27: =IF($O$24<>0,SUM(BL27:BW27)*$O$24+$N$24,-1) -> 10 | BZ27: 1.173798839e-34 | CA27: 0 | CB27: 0 | CC27: 0 | CD27: 0 | CE27: 0 | CF27: 0 | CG27: 0 | CH27: 0 | CI27: 0 | CJ27: 0 | CK27: 0 | CL27: =IF($O$21<>0,SUM(BZ27:CK27)*$O$21+$N$21,-1) -> -1 | CN27: 1.173798839e-34 | CO27: 0 | CP27: 0 | CQ27: 0 | CR27: 0 | CS27: 0 | CT27: 0 | CU27: 0 | CV27: 0 | CW27: 0 | CX27: 0 | CY27: 0 | CZ27: =IF($O$23<>0,SUM(CN27:CY27)*$O$23+$N$23,-1) -> -1
AE28: 10 | AF28: =IF($L$20>0,IF($AE28<$J$20,$H$20,IF($AE28<$J$20+$K$20,$H$20+((I$20-H$20)*($AE28-J$20)/K$20),$I$20)),$H$20) -> 0.4 | AG28: =IF($L$22>0,IF($AE28<$J$22,$H$22,IF($AE28<$J$22+$K$22,$H$22+((I$22-H$22)*($AE28-J$22)/K$22),$I$22)),$H$22) -> 0.4 | AI28: 0.52 | AJ28: 5.365959339e-32 | AK28: 0 | AL28: 0 | AM28: 0 | AN28: 0 | AO28: 0 | AP28: 0 | AQ28: 0 | AR28: 0 | AS28: 0 | AT28: 0 | AU28: 0 | AV28: =IF($O$20<>0,SUM(AJ28:AU28)*$O$20+$N$20,-1) -> 11 | AX28: 5.365959339e-32 | AY28: 0 | AZ28: 0 | BA28: 0 | BB28: 0 | BC28: 0 | BD28: 0 | BE28: 0 | BF28: 0 | BG28: 0 | BH28: 0 | BI28: 0 | BJ28: =IF($O$22<>0,SUM(AX28:BI28)*$O$22+$N$22,-1) -> 15 | BL28: 5.365959339e-32 | BM28: 0 | BN28: 0 | BO28: 0 | BP28: 0 | BQ28: 0 | BR28: 0 | BS28: 0 | BT28: 0 | BU28: 0 | BV28: 0 | BW28: 0 | BX28: =IF($O$24<>0,SUM(BL28:BW28)*$O$24+$N$24,-1) -> 10 | BZ28: 5.365959339e-32 | CA28: 0 | CB28: 0 | CC28: 0 | CD28: 0 | CE28: 0 | CF28: 0 | CG28: 0 | CH28: 0 | CI28: 0 | CJ28: 0 | CK28: 0 | CL28: =IF($O$21<>0,SUM(BZ28:CK28)*$O$21+$N$21,-1) -> -1 | CN28: 5.365959339e-32 | CO28: 0 | CP28: 0 | CQ28: 0 | CR28: 0 | CS28: 0 | CT28: 0 | CU28: 0 | CV28: 0 | CW28: 0 | CX28: 0 | CY28: 0 | CZ28: =IF($O$23<>0,SUM(CN28:CY28)*$O$23+$N$23,-1) -> -1
AE29: 10.4 | AF29: =IF($L$20>0,IF($AE29<$J$20,$H$20,IF($AE29<$J$20+$K$20,$H$20+((I$20-H$20)*($AE29-J$20)/K$20),$I$20)),$H$20) -> 0.408 | AG29: =IF($L$22>0,IF($AE29<$J$22,$H$22,IF($AE29<$J$22+$K$22,$H$22+((I$22-H$22)*($AE29-J$22)/K$22),$I$22)),$H$22) -> 0.408 | AI29: 0.54 | AJ29: 1.910413853e-29 | AK29: 0 | AL29: 0 | AM29: 0 | AN29: 0 | AO29: 0 | AP29: 0 | AQ29: 0 | AR29: 0 | AS29: 0 | AT29: 0 | AU29: 0 | AV29: =IF($O$20<>0,SUM(AJ29:AU29)*$O$20+$N$20,-1) -> 11 | AX29: 1.910413853e-29 | AY29: 0 | AZ29: 0 | BA29: 0 | BB29: 0 | BC29: 0 | BD29: 0 | BE29: 0 | BF29: 0 | BG29: 0 | BH29: 0 | BI29: 0 | BJ29: =IF($O$22<>0,SUM(AX29:BI29)*$O$22+$N$22,-1) -> 15 | BL29: 1.910413853e-29 | BM29: 0 | BN29: 0 | BO29: 0 | BP29: 0 | BQ29: 0 | BR29: 0 | BS29: 0 | BT29: 0 | BU29: 0 | BV29: 0 | BW29: 0 | BX29: =IF($O$24<>0,SUM(BL29:BW29)*$O$24+$N$24,-1) -> 10 | BZ29: 1.910413853e-29 | CA29: 0 | CB29: 0 | CC29: 0 | CD29: 0 | CE29: 0 | CF29: 0 | CG29: 0 | CH29: 0 | CI29: 0 | CJ29: 0 | CK29: 0 | CL29: =IF($O$21<>0,SUM(BZ29:CK29)*$O$21+$N$21,-1) -> -1 | CN29: 1.910413853e-29 | CO29: 0 | CP29: 0 | CQ29: 0 | CR29: 0 | CS29: 0 | CT29: 0 | CU29: 0 | CV29: 0 | CW29: 0 | CX29: 0 | CY29: 0 | CZ29: =IF($O$23<>0,SUM(CN29:CY29)*$O$23+$N$23,-1) -> -1
AE30: 10.8 | AF30: =IF($L$20>0,IF($AE30<$J$20,$H$20,IF($AE30<$J$20+$K$20,$H$20+((I$20-H$20)*($AE30-J$20)/K$20),$I$20)),$H$20) -> 0.416 | AG30: =IF($L$22>0,IF($AE30<$J$22,$H$22,IF($AE30<$J$22+$K$22,$H$22+((I$22-H$22)*($AE30-J$22)/K$22),$I$22)),$H$22) -> 0.416 | AI30: 0.56 | AJ30: 5.297048134e-27 | AK30: 0 | AL30: 0 | AM30: 0 | AN30: 0 | AO30: 0 | AP30: 0 | AQ30: 0 | AR30: 0 | AS30: 0 | AT30: 0 | AU30: 0 | AV30: =IF($O$20<>0,SUM(AJ30:AU30)*$O$20+$N$20,-1) -> 11 | AX30: 5.297048134e-27 | AY30: 0 | AZ30: 0 | BA30: 0 | BB30: 0 | BC30: 0 | BD30: 0 | BE30: 0 | BF30: 0 | BG30: 0 | BH30: 0 | BI30: 0 | BJ30: =IF($O$22<>0,SUM(AX30:BI30)*$O$22+$N$22,-1) -> 15 | BL30: 5.297048134e-27 | BM30: 0 | BN30: 0 | BO30: 0 | BP30: 0 | BQ30: 0 | BR30: 0 | BS30: 0 | BT30: 0 | BU30: 0 | BV30: 0 | BW30: 0 | BX30: =IF($O$24<>0,SUM(BL30:BW30)*$O$24+$N$24,-1) -> 10 | BZ30: 5.297048134e-27 | CA30: 0 | CB30: 0 | CC30: 0 | CD30: 0 | CE30: 0 | CF30: 0 | CG30: 0 | CH30: 0 | CI30: 0 | CJ30: 0 | CK30: 0 | CL30: =IF($O$21<>0,SUM(BZ30:CK30)*$O$21+$N$21,-1) -> -1 | CN30: 5.297048134e-27 | CO30: 0 | CP30: 0 | CQ30: 0 | CR30: 0 | CS30: 0 | CT30: 0 | CU30: 0 | CV30: 0 | CW30: 0 | CX30: 0 | CY30: 0 | CZ30: =IF($O$23<>0,SUM(CN30:CY30)*$O$23+$N$23,-1) -> -1
AE31: 11.2 | AF31: =IF($L$20>0,IF($AE31<$J$20,$H$20,IF($AE31<$J$20+$K$20,$H$20+((I$20-H$20)*($AE31-J$20)/K$20),$I$20)),$H$20) -> 0.424 | AG31: =IF($L$22>0,IF($AE31<$J$22,$H$22,IF($AE31<$J$22+$K$22,$H$22+((I$22-H$22)*($AE31-J$22)/K$22),$I$22)),$H$22) -> 0.424 | AI31: 0.58 | AJ31: 1.143843898e-24 | AK31: 0 | AL31: 0 | AM31: 0 | AN31: 0 | AO31: 0 | AP31: 0 | AQ31: 0 | AR31: 0 | AS31: 0 | AT31: 0 | AU31: 0 | AV31: =IF($O$20<>0,SUM(AJ31:AU31)*$O$20+$N$20,-1) -> 11 | AX31: 1.143843898e-24 | AY31: 0 | AZ31: 0 | BA31: 0 | BB31: 0 | BC31: 0 | BD31: 0 | BE31: 0 | BF31: 0 | BG31: 0 | BH31: 0 | BI31: 0 | BJ31: =IF($O$22<>0,SUM(AX31:BI31)*$O$22+$N$22,-1) -> 15 | BL31: 1.143843898e-24 | BM31: 0 | BN31: 0 | BO31: 0 | BP31: 0 | BQ31: 0 | BR31: 0 | BS31: 0 | BT31: 0 | BU31: 0 | BV31: 0 | BW31: 0 | BX31: =IF($O$24<>0,SUM(BL31:BW31)*$O$24+$N$24,-1) -> 10 | BZ31: 1.143843898e-24 | CA31: 0 | CB31: 0 | CC31: 0 | CD31: 0 | CE31: 0 | CF31: 0 | CG31: 0 | CH31: 0 | CI31: 0 | CJ31: 0 | CK31: 0 | CL31: =IF($O$21<>0,SUM(BZ31:CK31)*$O$21+$N$21,-1) -> -1 | CN31: 1.143843898e-24 | CO31: 0 | CP31: 0 | CQ31: 0 | CR31: 0 | CS31: 0 | CT31: 0 | CU31: 0 | CV31: 0 | CW31: 0 | CX31: 0 | CY31: 0 | CZ31: =IF($O$23<>0,SUM(CN31:CY31)*$O$23+$N$23,-1) -> -1
AE32: 11.6 | AF32: =IF($L$20>0,IF($AE32<$J$20,$H$20,IF($AE32<$J$20+$K$20,$H$20+((I$20-H$20)*($AE32-J$20)/K$20),$I$20)),$H$20) -> 0.432 | AG32: =IF($L$22>0,IF($AE32<$J$22,$H$22,IF($AE32<$J$22+$K$22,$H$22+((I$22-H$22)*($AE32-J$22)/K$22),$I$22)),$H$22) -> 0.432 | AI32: 0.6 | AJ32: 1.923649657e-22 | AK32: 0 | AL32: 0 | AM32: 0 | AN32: 0 | AO32: 0 | AP32: 0 | AQ32: 0 | AR32: 0 | AS32: 0 | AT32: 0 | AU32: 0 | AV32: =IF($O$20<>0,SUM(AJ32:AU32)*$O$20+$N$20,-1) -> 11 | AX32: 1.923649657e-22 | AY32: 0 | AZ32: 0 | BA32: 0 | BB32: 0 | BC32: 0 | BD32: 0 | BE32: 0 | BF32: 0 | BG32: 0 | BH32: 0 | BI32: 0 | BJ32: =IF($O$22<>0,SUM(AX32:BI32)*$O$22+$N$22,-1) -> 15 | BL32: 1.923649657e-22 | BM32: 0 | BN32: 0 | BO32: 0 | BP32: 0 | BQ32: 0 | BR32: 0 | BS32: 0 | BT32: 0 | BU32: 0 | BV32: 0 | BW32: 0 | BX32: =IF($O$24<>0,SUM(BL32:BW32)*$O$24+$N$24,-1) -> 10 | BZ32: 1.923649657e-22 | CA32: 0 | CB32: 0 | CC32: 0 | CD32: 0 | CE32: 0 | CF32: 0 | CG32: 0 | CH32: 0 | CI32: 0 | CJ32: 0 | CK32: 0 | CL32: =IF($O$21<>0,SUM(BZ32:CK32)*$O$21+$N$21,-1) -> -1 | CN32: 1.923649657e-22 | CO32: 0 | CP32: 0 | CQ32: 0 | CR32: 0 | CS32: 0 | CT32: 0 | CU32: 0 | CV32: 0 | CW32: 0 | CX32: 0 | CY32: 0 | CZ32: =IF($O$23<>0,SUM(CN32:CY32)*$O$23+$N$23,-1) -> -1
AE33: 12 | AF33: =IF($L$20>0,IF($AE33<$J$20,$H$20,IF($AE33<$J$20+$K$20,$H$20+((I$20-H$20)*($AE33-J$20)/K$20),$I$20)),$H$20) -> 0.44 | AG33: =IF($L$22>0,IF($AE33<$J$22,$H$22,IF($AE33<$J$22+$K$22,$H$22+((I$22-H$22)*($AE33-J$22)/K$22),$I$22)),$H$22) -> 0.44 | AI33: 0.62 | AJ33: 2.519483849e-20 | AK33: 0 | AL33: 0 | AM33: 0 | AN33: 0 | AO33: 0 | AP33: 0 | AQ33: 0 | AR33: 0 | AS33: 0 | AT33: 0 | AU33: 0 | AV33: =IF($O$20<>0,SUM(AJ33:AU33)*$O$20+$N$20,-1) -> 11 | AX33: 2.519483849e-20 | AY33: 0 | AZ33: 0 | BA33: 0 | BB33: 0 | BC33: 0 | BD33: 0 | BE33: 0 | BF33: 0 | BG33: 0 | BH33: 0 | BI33: 0 | BJ33: =IF($O$22<>0,SUM(AX33:BI33)*$O$22+$N$22,-1) -> 15 | BL33: 2.519483849e-20 | BM33: 0 | BN33: 0 | BO33: 0 | BP33: 0 | BQ33: 0 | BR33: 0 | BS33: 0 | BT33: 0 | BU33: 0 | BV33: 0 | BW33: 0 | BX33: =IF($O$24<>0,SUM(BL33:BW33)*$O$24+$N$24,-1) -> 10 | BZ33: 2.519483849e-20 | CA33: 0 | CB33: 0 | CC33: 0 | CD33: 0 | CE33: 0 | CF33: 0 | CG33: 0 | CH33: 0 | CI33: 0 | CJ33: 0 | CK33: 0 | CL33: =IF($O$21<>0,SUM(BZ33:CK33)*$O$21+$N$21,-1) -> -1 | CN33: 2.519483849e-20 | CO33: 0 | CP33: 0 | CQ33: 0 | CR33: 0 | CS33: 0 | CT33: 0 | CU33: 0 | CV33: 0 | CW33: 0 | CX33: 0 | CY33: 0 | CZ33: =IF($O$23<>0,SUM(CN33:CY33)*$O$23+$N$23,-1) -> -1
AE34: 12.4 | AF34: =IF($L$20>0,IF($AE34<$J$20,$H$20,IF($AE34<$J$20+$K$20,$H$20+((I$20-H$20)*($AE34-J$20)/K$20),$I$20)),$H$20) -> 0.448 | AG34: =IF($L$22>0,IF($AE34<$J$22,$H$22,IF($AE34<$J$22+$K$22,$H$22+((I$22-H$22)*($AE34-J$22)/K$22),$I$22)),$H$22) -> 0.448 | AI34: 0.64 | AJ34: 2.569943393e-18 | AK34: 0 | AL34: 0 | AM34: 0 | AN34: 0 | AO34: 0 | AP34: 0 | AQ34: 0 | AR34: 0 | AS34: 0 | AT34: 0 | AU34: 0 | AV34: =IF($O$20<>0,SUM(AJ34:AU34)*$O$20+$N$20,-1) -> 11 | AX34: 2.569943393e-18 | AY34: 0 | AZ34: 0 | BA34: 0 | BB34: 0 | BC34: 0 | BD34: 0 | BE34: 0 | BF34: 0 | BG34: 0 | BH34: 0 | BI34: 0 | BJ34: =IF($O$22<>0,SUM(AX34:BI34)*$O$22+$N$22,-1) -> 15 | BL34: 2.569943393e-18 | BM34: 0 | BN34: 0 | BO34: 0 | BP34: 0 | BQ34: 0 | BR34: 0 | BS34: 0 | BT34: 0 | BU34: 0 | BV34: 0 | BW34: 0 | BX34: =IF($O$24<>0,SUM(BL34:BW34)*$O$24+$N$24,-1) -> 10 | BZ34: 2.569943393e-18 | CA34: 0 | CB34: 0 | CC34: 0 | CD34: 0 | CE34: 0 | CF34: 0 | CG34: 0 | CH34: 0 | CI34: 0 | CJ34: 0 | CK34: 0 | CL34: =IF($O$21<>0,SUM(BZ34:CK34)*$O$21+$N$21,-1) -> -1 | CN34: 2.569943393e-18 | CO34: 0 | CP34: 0 | CQ34: 0 | CR34: 0 | CS34: 0 | CT34: 0 | CU34: 0 | CV34: 0 | CW34: 0 | CX34: 0 | CY34: 0 | CZ34: =IF($O$23<>0,SUM(CN34:CY34)*$O$23+$N$23,-1) -> -1
AE35: 12.8 | AF35: =IF($L$20>0,IF($AE35<$J$20,$H$20,IF($AE35<$J$20+$K$20,$H$20+((I$20-H$20)*($AE35-J$20)/K$20),$I$20)),$H$20) -> 0.456 | AG35: =IF($L$22>0,IF($AE35<$J$22,$H$22,IF($AE35<$J$22+$K$22,$H$22+((I$22-H$22)*($AE35-J$22)/K$22),$I$22)),$H$22) -> 0.456 | AI35: 0.66 | AJ35: 2.041558908e-16 | AK35: 0 | AL35: 0 | AM35: 0 | AN35: 0 | AO35: 0 | AP35: 0 | AQ35: 0 | AR35: 0 | AS35: 0 | AT35: 0 | AU35: 0 | AV35: =IF($O$20<>0,SUM(AJ35:AU35)*$O$20+$N$20,-1) -> 11 | AX35: 2.041558908e-16 | AY35: 0 | AZ35: 0 | BA35: 0 | BB35: 0 | BC35: 0 | BD35: 0 | BE35: 0 | BF35: 0 | BG35: 0 | BH35: 0 | BI35: 0 | BJ35: =IF($O$22<>0,SUM(AX35:BI35)*$O$22+$N$22,-1) -> 15 | BL35: 2.041558908e-16 | BM35: 0 | BN35: 0 | BO35: 0 | BP35: 0 | BQ35: 0 | BR35: 0 | BS35: 0 | BT35: 0 | BU35: 0 | BV35: 0 | BW35: 0 | BX35: =IF($O$24<>0,SUM(BL35:BW35)*$O$24+$N$24,-1) -> 10 | BZ35: 2.041558908e-16 | CA35: 0 | CB35: 0 | CC35: 0 | CD35: 0 | CE35: 0 | CF35: 0 | CG35: 0 | CH35: 0 | CI35: 0 | CJ35: 0 | CK35: 0 | CL35: =IF($O$21<>0,SUM(BZ35:CK35)*$O$21+$N$21,-1) -> -1 | CN35: 2.041558908e-16 | CO35: 0 | CP35: 0 | CQ35: 0 | CR35: 0 | CS35: 0 | CT35: 0 | CU35: 0 | CV35: 0 | CW35: 0 | CX35: 0 | CY35: 0 | CZ35: =IF($O$23<>0,SUM(CN35:CY35)*$O$23+$N$23,-1) -> -1
AE36: =AE35+$B$22/100 -> 13.2 | AF36: =IF($L$20>0,IF($AE36<$J$20,$H$20,IF($AE36<$J$20+$K$20,$H$20+((I$20-H$20)*($AE36-J$20)/K$20),$I$20)),$H$20) -> 0.464 | AG36: =IF($L$22>0,IF($AE36<$J$22,$H$22,IF($AE36<$J$22+$K$22,$H$22+((I$22-H$22)*($AE36-J$22)/K$22),$I$22)),$H$22) -> 0.464 | AI36: 0.68 | AJ36: 1.263067771e-14 | AK36: 0 | AL36: 0 | AM36: 0 | AN36: 0 | AO36: 0 | AP36: 0 | AQ36: 0 | AR36: 0 | AS36: 0 | AT36: 0 | AU36: 0 | AV36: =IF($O$20<>0,SUM(AJ36:AU36)*$O$20+$N$20,-1) -> 11 | AX36: 1.263067771e-14 | AY36: 0 | AZ36: 0 | BA36: 0 | BB36: 0 | BC36: 0 | BD36: 0 | BE36: 0 | BF36: 0 | BG36: 0 | BH36: 0 | BI36: 0 | BJ36: =IF($O$22<>0,SUM(AX36:BI36)*$O$22+$N$22,-1) -> 15 | BL36: 1.263067771e-14 | BM36: 0 | BN36: 0 | BO36: 0 | BP36: 0 | BQ36: 0 | BR36: 0 | BS36: 0 | BT36: 0 | BU36: 0 | BV36: 0 | BW36: 0 | BX36: =IF($O$24<>0,SUM(BL36:BW36)*$O$24+$N$24,-1) -> 10 | BZ36: 1.263067771e-14 | CA36: 0 | CB36: 0 | CC36: 0 | CD36: 0 | CE36: 0 | CF36: 0 | CG36: 0 | CH36: 0 | CI36: 0 | CJ36: 0 | CK36: 0 | CL36: =IF($O$21<>0,SUM(BZ36:CK36)*$O$21+$N$21,-1) -> -1 | CN36: 1.263067771e-14 | CO36: 0 | CP36: 0 | CQ36: 0 | CR36: 0 | CS36: 0 | CT36: 0 | CU36: 0 | CV36: 0 | CW36: 0 | CX36: 0 | CY36: 0 | CZ36: =IF($O$23<>0,SUM(CN36:CY36)*$O$23+$N$23,-1) -> -1
AE37: 13.6 | AF37: =IF($L$20>0,IF($AE37<$J$20,$H$20,IF($AE37<$J$20+$K$20,$H$20+((I$20-H$20)*($AE37-J$20)/K$20),$I$20)),$H$20) -> 0.472 | AG37: =IF($L$22>0,IF($AE37<$J$22,$H$22,IF($AE37<$J$22+$K$22,$H$22+((I$22-H$22)*($AE37-J$22)/K$22),$I$22)),$H$22) -> 0.472 | AI37: 0.7 | AJ37: 6.085801333e-13 | AK37: 0 | AL37: 0 | AM37: 0 | AN37: 0 | AO37: 0 | AP37: 0 | AQ37: 0 | AR37: 0 | AS37: 0 | AT37: 0 | AU37: 0 | AV37: =IF($O$20<>0,SUM(AJ37:AU37)*$O$20+$N$20,-1) -> 11 | AX37: 6.085801333e-13 | AY37: 0 | AZ37: 0 | BA37: 0 | BB37: 0 | BC37: 0 | BD37: 0 | BE37: 0 | BF37: 0 | BG37: 0 | BH37: 0 | BI37: 0 | BJ37: =IF($O$22<>0,SUM(AX37:BI37)*$O$22+$N$22,-1) -> 15 | BL37: 6.085801333e-13 | BM37: 0 | BN37: 0 | BO37: 0 | BP37: 0 | BQ37: 0 | BR37: 0 | BS37: 0 | BT37: 0 | BU37: 0 | BV37: 0 | BW37: 0 | BX37: =IF($O$24<>0,SUM(BL37:BW37)*$O$24+$N$24,-1) -> 10 | BZ37: 6.085801333e-13 | CA37: 0 | CB37: 0 | CC37: 0 | CD37: 0 | CE37: 0 | CF37: 0 | CG37: 0 | CH37: 0 | CI37: 0 | CJ37: 0 | CK37: 0 | CL37: =IF($O$21<>0,SUM(BZ37:CK37)*$O$21+$N$21,-1) -> -1 | CN37: 6.085801333e-13 | CO37: 0 | CP37: 0 | CQ37: 0 | CR37: 0 | CS37: 0 | CT37: 0 | CU37: 0 | CV37: 0 | CW37: 0 | CX37: 0 | CY37: 0 | CZ37: =IF($O$23<>0,SUM(CN37:CY37)*$O$23+$N$23,-1) -> -1
AE38: 14 | AF38: =IF($L$20>0,IF($AE38<$J$20,$H$20,IF($AE38<$J$20+$K$20,$H$20+((I$20-H$20)*($AE38-J$20)/K$20),$I$20)),$H$20) -> 0.48 | AG38: =IF($L$22>0,IF($AE38<$J$22,$H$22,IF($AE38<$J$22+$K$22,$H$22+((I$22-H$22)*($AE38-J$22)/K$22),$I$22)),$H$22) -> 0.48 | AI38: 0.72 | AJ38: 2.283680102e-11 | AK38: 0 | AL38: 0 | AM38: 0 | AN38: 0 | AO38: 0 | AP38: 0 | AQ38: 0 | AR38: 0 | AS38: 0 | AT38: 0 | AU38: 0 | AV38: =IF($O$20<>0,SUM(AJ38:AU38)*$O$20+$N$20,-1) -> 11 | AX38: 2.283680102e-11 | AY38: 0 | AZ38: 0 | BA38: 0 | BB38: 0 | BC38: 0 | BD38: 0 | BE38: 0 | BF38: 0 | BG38: 0 | BH38: 0 | BI38: 0 | BJ38: =IF($O$22<>0,SUM(AX38:BI38)*$O$22+$N$22,-1) -> 15 | BL38: 2.283680102e-11 | BM38: 0 | BN38: 0 | BO38: 0 | BP38: 0 | BQ38: 0 | BR38: 0 | BS38: 0 | BT38: 0 | BU38: 0 | BV38: 0 | BW38: 0 | BX38: =IF($O$24<>0,SUM(BL38:BW38)*$O$24+$N$24,-1) -> 10 | BZ38: 2.283680102e-11 | CA38: 0 | CB38: 0 | CC38: 0 | CD38: 0 | CE38: 0 | CF38: 0 | CG38: 0 | CH38: 0 | CI38: 0 | CJ38: 0 | CK38: 0 | CL38: =IF($O$21<>0,SUM(BZ38:CK38)*$O$21+$N$21,-1) -> -1 | CN38: 2.283680102e-11 | CO38: 0 | CP38: 0 | CQ38: 0 | CR38: 0 | CS38: 0 | CT38: 0 | CU38: 0 | CV38: 0 | CW38: 0 | CX38: 0 | CY38: 0 | CZ38: =IF($O$23<>0,SUM(CN38:CY38)*$O$23+$N$23,-1) -> -1
AE39: 14.4 | AF39: =IF($L$20>0,IF($AE39<$J$20,$H$20,IF($AE39<$J$20+$K$20,$H$20+((I$20-H$20)*($AE39-J$20)/K$20),$I$20)),$H$20) -> 0.488 | AG39: =IF($L$22>0,IF($AE39<$J$22,$H$22,IF($AE39<$J$22+$K$22,$H$22+((I$22-H$22)*($AE39-J$22)/K$22),$I$22)),$H$22) -> 0.488 | AI39: 0.74 | AJ39: 6.673891537e-10 | AK39: 0 | AL39: 0 | AM39: 0 | AN39: 0 | AO39: 0 | AP39: 0 | AQ39: 0 | AR39: 0 | AS39: 0 | AT39: 0 | AU39: 0 | AV39: =IF($O$20<>0,SUM(AJ39:AU39)*$O$20+$N$20,-1) -> 11 | AX39: 6.673891537e-10 | AY39: 0 | AZ39: 0 | BA39: 0 | BB39: 0 | BC39: 0 | BD39: 0 | BE39: 0 | BF39: 0 | BG39: 0 | BH39: 0 | BI39: 0 | BJ39: =IF($O$22<>0,SUM(AX39:BI39)*$O$22+$N$22,-1) -> 15 | BL39: 6.673891537e-10 | BM39: 0 | BN39: 0 | BO39: 0 | BP39: 0 | BQ39: 0 | BR39: 0 | BS39: 0 | BT39: 0 | BU39: 0 | BV39: 0 | BW39: 0 | BX39: =IF($O$24<>0,SUM(BL39:BW39)*$O$24+$N$24,-1) -> 9.999999999 | BZ39: 6.673891537e-10 | CA39: 0 | CB39: 0 | CC39: 0 | CD39: 0 | CE39: 0 | CF39: 0 | CG39: 0 | CH39: 0 | CI39: 0 | CJ39: 0 | CK39: 0 | CL39: =IF($O$21<>0,SUM(BZ39:CK39)*$O$21+$N$21,-1) -> -1 | CN39: 6.673891537e-10 | CO39: 0 | CP39: 0 | CQ39: 0 | CR39: 0 | CS39: 0 | CT39: 0 | CU39: 0 | CV39: 0 | CW39: 0 | CX39: 0 | CY39: 0 | CZ39: =IF($O$23<>0,SUM(CN39:CY39)*$O$23+$N$23,-1) -> -1
AE40: 14.8 | AF40: =IF($L$20>0,IF($AE40<$J$20,$H$20,IF($AE40<$J$20+$K$20,$H$20+((I$20-H$20)*($AE40-J$20)/K$20),$I$20)),$H$20) -> 0.496 | AG40: =IF($L$22>0,IF($AE40<$J$22,$H$22,IF($AE40<$J$22+$K$22,$H$22+((I$22-H$22)*($AE40-J$22)/K$22),$I$22)),$H$22) -> 0.496 | AI40: 0.76 | AJ40: 1.518970712e-08 | AK40: 0 | AL40: 0 | AM40: 0 | AN40: 0 | AO40: 0 | AP40: 0 | AQ40: 0 | AR40: 0 | AS40: 0 | AT40: 0 | AU40: 0 | AV40: =IF($O$20<>0,SUM(AJ40:AU40)*$O$20+$N$20,-1) -> 11.00000002 | AX40: 1.518970712e-08 | AY40: 0 | AZ40: 0 | BA40: 0 | BB40: 0 | BC40: 0 | BD40: 0 | BE40: 0 | BF40: 0 | BG40: 0 | BH40: 0 | BI40: 0 | BJ40: =IF($O$22<>0,SUM(AX40:BI40)*$O$22+$N$22,-1) -> 15.00000002 | BL40: 1.518970712e-08 | BM40: 0 | BN40: 0 | BO40: 0 | BP40: 0 | BQ40: 0 | BR40: 0 | BS40: 0 | BT40: 0 | BU40: 0 | BV40: 0 | BW40: 0 | BX40: =IF($O$24<>0,SUM(BL40:BW40)*$O$24+$N$24,-1) -> 9.999999985 | BZ40: 1.518970712e-08 | CA40: 0 | CB40: 0 | CC40: 0 | CD40: 0 | CE40: 0 | CF40: 0 | CG40: 0 | CH40: 0 | CI40: 0 | CJ40: 0 | CK40: 0 | CL40: =IF($O$21<>0,SUM(BZ40:CK40)*$O$21+$N$21,-1) -> -1 | CN40: 1.518970712e-08 | CO40: 0 | CP40: 0 | CQ40: 0 | CR40: 0 | CS40: 0 | CT40: 0 | CU40: 0 | CV40: 0 | CW40: 0 | CX40: 0 | CY40: 0 | CZ40: =IF($O$23<>0,SUM(CN40:CY40)*$O$23+$N$23,-1) -> -1
AE41: 15.2 | AF41: =IF($L$20>0,IF($AE41<$J$20,$H$20,IF($AE41<$J$20+$K$20,$H$20+((I$20-H$20)*($AE41-J$20)/K$20),$I$20)),$H$20) -> 0.504 | AG41: =IF($L$22>0,IF($AE41<$J$22,$H$22,IF($AE41<$J$22+$K$22,$H$22+((I$22-H$22)*($AE41-J$22)/K$22),$I$22)),$H$22) -> 0.504 | AI41: 0.78 | AJ41: 2.692440011e-07 | AK41: 0 | AL41: 0 | AM41: 0 | AN41: 0 | AO41: 0 | AP41: 0 | AQ41: 0 | AR41: 0 | AS41: 0 | AT41: 0 | AU41: 0 | AV41: =IF($O$20<>0,SUM(AJ41:AU41)*$O$20+$N$20,-1) -> 11.00000027 | AX41: 2.692440011e-07 | AY41: 0 | AZ41: 0 | BA41: 0 | BB41: 0 | BC41: 0 | BD41: 0 | BE41: 0 | BF41: 0 | BG41: 0 | BH41: 0 | BI41: 0 | BJ41: =IF($O$22<>0,SUM(AX41:BI41)*$O$22+$N$22,-1) -> 15.00000027 | BL41: 2.692440011e-07 | BM41: 0 | BN41: 0 | BO41: 0 | BP41: 0 | BQ41: 0 | BR41: 0 | BS41: 0 | BT41: 0 | BU41: 0 | BV41: 0 | BW41: 0 | BX41: =IF($O$24<>0,SUM(BL41:BW41)*$O$24+$N$24,-1) -> 9.999999731 | BZ41: 2.692440011e-07 | CA41: 0 | CB41: 0 | CC41: 0 | CD41: 0 | CE41: 0 | CF41: 0 | CG41: 0 | CH41: 0 | CI41: 0 | CJ41: 0 | CK41: 0 | CL41: =IF($O$21<>0,SUM(BZ41:CK41)*$O$21+$N$21,-1) -> -1 | CN41: 2.692440011e-07 | CO41: 0 | CP41: 0 | CQ41: 0 | CR41: 0 | CS41: 0 | CT41: 0 | CU41: 0 | CV41: 0 | CW41: 0 | CX41: 0 | CY41: 0 | CZ41: =IF($O$23<>0,SUM(CN41:CY41)*$O$23+$N$23,-1) -> -1
AE42: 15.6 | AF42: =IF($L$20>0,IF($AE42<$J$20,$H$20,IF($AE42<$J$20+$K$20,$H$20+((I$20-H$20)*($AE42-J$20)/K$20),$I$20)),$H$20) -> 0.512 | AG42: =IF($L$22>0,IF($AE42<$J$22,$H$22,IF($AE42<$J$22+$K$22,$H$22+((I$22-H$22)*($AE42-J$22)/K$22),$I$22)),$H$22) -> 0.512 | AI42: 0.8 | AJ42: 3.716798787e-06 | AK42: 0 | AL42: 0 | AM42: 0 | AN42: 0 | AO42: 0 | AP42: 0 | AQ42: 0 | AR42: 0 | AS42: 0 | AT42: 0 | AU42: 0 | AV42: =IF($O$20<>0,SUM(AJ42:AU42)*$O$20+$N$20,-1) -> 11.00000372 | AX42: 3.716798787e-06 | AY42: 0 | AZ42: 0 | BA42: 0 | BB42: 0 | BC42: 0 | BD42: 0 | BE42: 0 | BF42: 0 | BG42: 0 | BH42: 0 | BI42: 0 | BJ42: =IF($O$22<>0,SUM(AX42:BI42)*$O$22+$N$22,-1) -> 15.00000372 | BL42: 3.716798787e-06 | BM42: 0 | BN42: 0 | BO42: 0 | BP42: 0 | BQ42: 0 | BR42: 0 | BS42: 0 | BT42: 0 | BU42: 0 | BV42: 0 | BW42: 0 | BX42: =IF($O$24<>0,SUM(BL42:BW42)*$O$24+$N$24,-1) -> 9.999996283 | BZ42: 3.716798787e-06 | CA42: 0 | CB42: 0 | CC42: 0 | CD42: 0 | CE42: 0 | CF42: 0 | CG42: 0 | CH42: 0 | CI42: 0 | CJ42: 0 | CK42: 0 | CL42: =IF($O$21<>0,SUM(BZ42:CK42)*$O$21+$N$21,-1) -> -1 | CN42: 3.716798787e-06 | CO42: 0 | CP42: 0 | CQ42: 0 | CR42: 0 | CS42: 0 | CT42: 0 | CU42: 0 | CV42: 0 | CW42: 0 | CX42: 0 | CY42: 0 | CZ42: =IF($O$23<>0,SUM(CN42:CY42)*$O$23+$N$23,-1) -> -1
AE43: 16 | AF43: =IF($L$20>0,IF($AE43<$J$20,$H$20,IF($AE43<$J$20+$K$20,$H$20+((I$20-H$20)*($AE43-J$20)/K$20),$I$20)),$H$20) -> 0.52 | AG43: =IF($L$22>0,IF($AE43<$J$22,$H$22,IF($AE43<$J$22+$K$22,$H$22+((I$22-H$22)*($AE43-J$22)/K$22),$I$22)),$H$22) -> 0.52 | AI43: 0.82 | AJ43: 3.995935277e-05 | AK43: 0 | AL43: 0 | AM43: 0 | AN43: 0 | AO43: 0 | AP43: 0 | AQ43: 0 | AR43: 0 | AS43: 0 | AT43: 0 | AU43: 0 | AV43: =IF($O$20<>0,SUM(AJ43:AU43)*$O$20+$N$20,-1) -> 11.00003996 | AX43: 3.995935277e-05 | AY43: 0 | AZ43: 0 | BA43: 0 | BB43: 0 | BC43: 0 | BD43: 0 | BE43: 0 | BF43: 0 | BG43: 0 | BH43: 0 | BI43: 0 | BJ43: =IF($O$22<>0,SUM(AX43:BI43)*$O$22+$N$22,-1) -> 15.00003996 | BL43: 3.995935277e-05 | BM43: 0 | BN43: 0 | BO43: 0 | BP43: 0 | BQ43: 0 | BR43: 0 | BS43: 0 | BT43: 0 | BU43: 0 | BV43: 0 | BW43: 0 | BX43: =IF($O$24<>0,SUM(BL43:BW43)*$O$24+$N$24,-1) -> 9.999960041 | BZ43: 3.995935277e-05 | CA43: 0 | CB43: 0 | CC43: 0 | CD43: 0 | CE43: 0 | CF43: 0 | CG43: 0 | CH43: 0 | CI43: 0 | CJ43: 0 | CK43: 0 | CL43: =IF($O$21<>0,SUM(BZ43:CK43)*$O$21+$N$21,-1) -> -1 | CN43: 3.995935277e-05 | CO43: 0 | CP43: 0 | CQ43: 0 | CR43: 0 | CS43: 0 | CT43: 0 | CU43: 0 | CV43: 0 | CW43: 0 | CX43: 0 | CY43: 0 | CZ43: =IF($O$23<>0,SUM(CN43:CY43)*$O$23+$N$23,-1) -> -1
AE44: 16.4 | AF44: =IF($L$20>0,IF($AE44<$J$20,$H$20,IF($AE44<$J$20+$K$20,$H$20+((I$20-H$20)*($AE44-J$20)/K$20),$I$20)),$H$20) -> 0.528 | AG44: =IF($L$22>0,IF($AE44<$J$22,$H$22,IF($AE44<$J$22+$K$22,$H$22+((I$22-H$22)*($AE44-J$22)/K$22),$I$22)),$H$22) -> 0.528 | AI44: 0.84 | AJ44: 0.0003345755644 | AK44: 0 | AL44: 0 | AM44: 0 | AN44: 0 | AO44: 0 | AP44: 0 | AQ44: 0 | AR44: 0 | AS44: 0 | AT44: 0 | AU44: 0 | AV44: =IF($O$20<>0,SUM(AJ44:AU44)*$O$20+$N$20,-1) -> 11.00033458 | AX44: 0.0003345755644 | AY44: 0 | AZ44: 0 | BA44: 0 | BB44: 0 | BC44: 0 | BD44: 0 | BE44: 0 | BF44: 0 | BG44: 0 | BH44: 0 | BI44: 0 | BJ44: =IF($O$22<>0,SUM(AX44:BI44)*$O$22+$N$22,-1) -> 15.00033458 | BL44: 0.0003345755644 | BM44: 0 | BN44: 0 | BO44: 0 | BP44: 0 | BQ44: 0 | BR44: 0 | BS44: 0 | BT44: 0 | BU44: 0 | BV44: 0 | BW44: 0 | BX44: =IF($O$24<>0,SUM(BL44:BW44)*$O$24+$N$24,-1) -> 9.999665424 | BZ44: 0.0003345755644 | CA44: 0 | CB44: 0 | CC44: 0 | CD44: 0 | CE44: 0 | CF44: 0 | CG44: 0 | CH44: 0 | CI44: 0 | CJ44: 0 | CK44: 0 | CL44: =IF($O$21<>0,SUM(BZ44:CK44)*$O$21+$N$21,-1) -> -1 | CN44: 0.0003345755644 | CO44: 0 | CP44: 0 | CQ44: 0 | CR44: 0 | CS44: 0 | CT44: 0 | CU44: 0 | CV44: 0 | CW44: 0 | CX44: 0 | CY44: 0 | CZ44: =IF($O$23<>0,SUM(CN44:CY44)*$O$23+$N$23,-1) -> -1
AE45: 16.8 | AF45: =IF($L$20>0,IF($AE45<$J$20,$H$20,IF($AE45<$J$20+$K$20,$H$20+((I$20-H$20)*($AE45-J$20)/K$20),$I$20)),$H$20) -> 0.536 | AG45: =IF($L$22>0,IF($AE45<$J$22,$H$22,IF($AE45<$J$22+$K$22,$H$22+((I$22-H$22)*($AE45-J$22)/K$22),$I$22)),$H$22) -> 0.536 | AI45: 0.86 | AJ45: 0.002181706738 | AK45: 0 | AL45: 0 | AM45: 0 | AN45: 0 | AO45: 0 | AP45: 0 | AQ45: 0 | AR45: 0 | AS45: 0 | AT45: 0 | AU45: 0 | AV45: =IF($O$20<>0,SUM(AJ45:AU45)*$O$20+$N$20,-1) -> 11.00218171 | AX45: 0.002181706738 | AY45: 0 | AZ45: 0 | BA45: 0 | BB45: 0 | BC45: 0 | BD45: 0 | BE45: 0 | BF45: 0 | BG45: 0 | BH45: 0 | BI45: 0 | BJ45: =IF($O$22<>0,SUM(AX45:BI45)*$O$22+$N$22,-1) -> 15.00218171 | BL45: 0.002181706738 | BM45: 0 | BN45: 0 | BO45: 0 | BP45: 0 | BQ45: 0 | BR45: 0 | BS45: 0 | BT45: 0 | BU45: 0 | BV45: 0 | BW45: 0 | BX45: =IF($O$24<>0,SUM(BL45:BW45)*$O$24+$N$24,-1) -> 9.997818293 | BZ45: 0.002181706738 | CA45: 0 | CB45: 0 | CC45: 0 | CD45: 0 | CE45: 0 | CF45: 0 | CG45: 0 | CH45: 0 | CI45: 0 | CJ45: 0 | CK45: 0 | CL45: =IF($O$21<>0,SUM(BZ45:CK45)*$O$21+$N$21,-1) -> -1 | CN45: 0.002181706738 | CO45: 0 | CP45: 0 | CQ45: 0 | CR45: 0 | CS45: 0 | CT45: 0 | CU45: 0 | CV45: 0 | CW45: 0 | CX45: 0 | CY45: 0 | CZ45: =IF($O$23<>0,SUM(CN45:CY45)*$O$23+$N$23,-1) -> -1
AE46: 17.2 | AF46: =IF($L$20>0,IF($AE46<$J$20,$H$20,IF($AE46<$J$20+$K$20,$H$20+((I$20-H$20)*($AE46-J$20)/K$20),$I$20)),$H$20) -> 0.544 | AG46: =IF($L$22>0,IF($AE46<$J$22,$H$22,IF($AE46<$J$22+$K$22,$H$22+((I$22-H$22)*($AE46-J$22)/K$22),$I$22)),$H$22) -> 0.544 | AI46: 0.88 | AJ46: 0.01107962103 | AK46: 0 | AL46: 0 | AM46: 0 | AN46: 0 | AO46: 0 | AP46: 0 | AQ46: 0 | AR46: 0 | AS46: 0 | AT46: 0 | AU46: 0 | AV46: =IF($O$20<>0,SUM(AJ46:AU46)*$O$20+$N$20,-1) -> 11.01107962 | AX46: 0.01107962103 | AY46: 0 | AZ46: 0 | BA46: 0 | BB46: 0 | BC46: 0 | BD46: 0 | BE46: 0 | BF46: 0 | BG46: 0 | BH46: 0 | BI46: 0 | BJ46: =IF($O$22<>0,SUM(AX46:BI46)*$O$22+$N$22,-1) -> 15.01107962 | BL46: 0.01107962103 | BM46: 0 | BN46: 0 | BO46: 0 | BP46: 0 | BQ46: 0 | BR46: 0 | BS46: 0 | BT46: 0 | BU46: 0 | BV46: 0 | BW46: 0 | BX46: =IF($O$24<>0,SUM(BL46:BW46)*$O$24+$N$24,-1) -> 9.988920379 | BZ46: 0.01107962103 | CA46: 0 | CB46: 0 | CC46: 0 | CD46: 0 | CE46: 0 | CF46: 0 | CG46: 0 | CH46: 0 | CI46: 0 | CJ46: 0 | CK46: 0 | CL46: =IF($O$21<>0,SUM(BZ46:CK46)*$O$21+$N$21,-1) -> -1 | CN46: 0.01107962103 | CO46: 0 | CP46: 0 | CQ46: 0 | CR46: 0 | CS46: 0 | CT46: 0 | CU46: 0 | CV46: 0 | CW46: 0 | CX46: 0 | CY46: 0 | CZ46: =IF($O$23<>0,SUM(CN46:CY46)*$O$23+$N$23,-1) -> -1
AE47: 17.6 | AF47: =IF($L$20>0,IF($AE47<$J$20,$H$20,IF($AE47<$J$20+$K$20,$H$20+((I$20-H$20)*($AE47-J$20)/K$20),$I$20)),$H$20) -> 0.552 | AG47: =IF($L$22>0,IF($AE47<$J$22,$H$22,IF($AE47<$J$22+$K$22,$H$22+((I$22-H$22)*($AE47-J$22)/K$22),$I$22)),$H$22) -> 0.552 | AI47: 0.9 | AJ47: 0.04382075123 | AK47: 0 | AL47: 0 | AM47: 0 | AN47: 0 | AO47: 0 | AP47: 0 | AQ47: 0 | AR47: 0 | AS47: 0 | AT47: 0 | AU47: 0 | AV47: =IF($O$20<>0,SUM(AJ47:AU47)*$O$20+$N$20,-1) -> 11.04382075 | AX47: 0.04382075123 | AY47: 0 | AZ47: 0 | BA47: 0 | BB47: 0 | BC47: 0 | BD47: 0 | BE47: 0 | BF47: 0 | BG47: 0 | BH47: 0 | BI47: 0 | BJ47: =IF($O$22<>0,SUM(AX47:BI47)*$O$22+$N$22,-1) -> 15.04382075 | BL47: 0.04382075123 | BM47: 0 | BN47: 0 | BO47: 0 | BP47: 0 | BQ47: 0 | BR47: 0 | BS47: 0 | BT47: 0 | BU47: 0 | BV47: 0 | BW47: 0 | BX47: =IF($O$24<>0,SUM(BL47:BW47)*$O$24+$N$24,-1) -> 9.956179249 | BZ47: 0.04382075123 | CA47: 0 | CB47: 0 | CC47: 0 | CD47: 0 | CE47: 0 | CF47: 0 | CG47: 0 | CH47: 0 | CI47: 0 | CJ47: 0 | CK47: 0 | CL47: =IF($O$21<>0,SUM(BZ47:CK47)*$O$21+$N$21,-1) -> -1 | CN47: 0.04382075123 | CO47: 0 | CP47: 0 | CQ47: 0 | CR47: 0 | CS47: 0 | CT47: 0 | CU47: 0 | CV47: 0 | CW47: 0 | CX47: 0 | CY47: 0 | CZ47: =IF($O$23<>0,SUM(CN47:CY47)*$O$23+$N$23,-1) -> -1
AE48: 18 | AF48: =IF($L$20>0,IF($AE48<$J$20,$H$20,IF($AE48<$J$20+$K$20,$H$20+((I$20-H$20)*($AE48-J$20)/K$20),$I$20)),$H$20) -> 0.56 | AG48: =IF($L$22>0,IF($AE48<$J$22,$H$22,IF($AE48<$J$22+$K$22,$H$22+((I$22-H$22)*($AE48-J$22)/K$22),$I$22)),$H$22) -> 0.56 | AI48: 0.92 | AJ48: 0.1349774163 | AK48: 0 | AL48: 0 | AM48: 0 | AN48: 0 | AO48: 0 | AP48: 0 | AQ48: 0 | AR48: 0 | AS48: 0 | AT48: 0 | AU48: 0 | AV48: =IF($O$20<>0,SUM(AJ48:AU48)*$O$20+$N$20,-1) -> 11.13497742 | AX48: 0.1349774163 | AY48: 0 | AZ48: 0 | BA48: 0 | BB48: 0 | BC48: 0 | BD48: 0 | BE48: 0 | BF48: 0 | BG48: 0 | BH48: 0 | BI48: 0 | BJ48: =IF($O$22<>0,SUM(AX48:BI48)*$O$22+$N$22,-1) -> 15.13497742 | BL48: 0.1349774163 | BM48: 0 | BN48: 0 | BO48: 0 | BP48: 0 | BQ48: 0 | BR48: 0 | BS48: 0 | BT48: 0 | BU48: 0 | BV48: 0 | BW48: 0 | BX48: =IF($O$24<>0,SUM(BL48:BW48)*$O$24+$N$24,-1) -> 9.865022584 | BZ48: 0.1349774163 | CA48: 0 | CB48: 0 | CC48: 0 | CD48: 0 | CE48: 0 | CF48: 0 | CG48: 0 | CH48: 0 | CI48: 0 | CJ48: 0 | CK48: 0 | CL48: =IF($O$21<>0,SUM(BZ48:CK48)*$O$21+$N$21,-1) -> -1 | CN48: 0.1349774163 | CO48: 0 | CP48: 0 | CQ48: 0 | CR48: 0 | CS48: 0 | CT48: 0 | CU48: 0 | CV48: 0 | CW48: 0 | CX48: 0 | CY48: 0 | CZ48: =IF($O$23<>0,SUM(CN48:CY48)*$O$23+$N$23,-1) -> -1
AE49: 18.4 | AF49: =IF($L$20>0,IF($AE49<$J$20,$H$20,IF($AE49<$J$20+$K$20,$H$20+((I$20-H$20)*($AE49-J$20)/K$20),$I$20)),$H$20) -> 0.568 | AG49: =IF($L$22>0,IF($AE49<$J$22,$H$22,IF($AE49<$J$22+$K$22,$H$22+((I$22-H$22)*($AE49-J$22)/K$22),$I$22)),$H$22) -> 0.568 | AI49: 0.94 | AJ49: 0.3237939892 | AK49: 0 | AL49: 0 | AM49: 0 | AN49: 0 | AO49: 0 | AP49: 0 | AQ49: 0 | AR49: 0 | AS49: 0 | AT49: 0 | AU49: 0 | AV49: =IF($O$20<>0,SUM(AJ49:AU49)*$O$20+$N$20,-1) -> 11.32379399 | AX49: 0.3237939892 | AY49: 0 | AZ49: 0 | BA49: 0 | BB49: 0 | BC49: 0 | BD49: 0 | BE49: 0 | BF49: 0 | BG49: 0 | BH49: 0 | BI49: 0 | BJ49: =IF($O$22<>0,SUM(AX49:BI49)*$O$22+$N$22,-1) -> 15.32379399 | BL49: 0.3237939892 | BM49: 0 | BN49: 0 | BO49: 0 | BP49: 0 | BQ49: 0 | BR49: 0 | BS49: 0 | BT49: 0 | BU49: 0 | BV49: 0 | BW49: 0 | BX49: =IF($O$24<>0,SUM(BL49:BW49)*$O$24+$N$24,-1) -> 9.676206011 | BZ49: 0.3237939892 | CA49: 0 | CB49: 0 | CC49: 0 | CD49: 0 | CE49: 0 | CF49: 0 | CG49: 0 | CH49: 0 | CI49: 0 | CJ49: 0 | CK49: 0 | CL49: =IF($O$21<>0,SUM(BZ49:CK49)*$O$21+$N$21,-1) -> -1 | CN49: 0.3237939892 | CO49: 0 | CP49: 0 | CQ49: 0 | CR49: 0 | CS49: 0 | CT49: 0 | CU49: 0 | CV49: 0 | CW49: 0 | CX49: 0 | CY49: 0 | CZ49: =IF($O$23<>0,SUM(CN49:CY49)*$O$23+$N$23,-1) -> -1
AE50: 18.8 | AF50: =IF($L$20>0,IF($AE50<$J$20,$H$20,IF($AE50<$J$20+$K$20,$H$20+((I$20-H$20)*($AE50-J$20)/K$20),$I$20)),$H$20) -> 0.576 | AG50: =IF($L$22>0,IF($AE50<$J$22,$H$22,IF($AE50<$J$22+$K$22,$H$22+((I$22-H$22)*($AE50-J$22)/K$22),$I$22)),$H$22) -> 0.576 | AI50: 0.96 | AJ50: 0.6049268113 | AK50: 0 | AL50: 0 | AM50: 0 | AN50: 0 | AO50: 0 | AP50: 0 | AQ50: 0 | AR50: 0 | AS50: 0 | AT50: 0 | AU50: 0 | AV50: =IF($O$20<>0,SUM(AJ50:AU50)*$O$20+$N$20,-1) -> 11.60492681 | AX50: 0.6049268113 | AY50: 0 | AZ50: 0 | BA50: 0 | BB50: 0 | BC50: 0 | BD50: 0 | BE50: 0 | BF50: 0 | BG50: 0 | BH50: 0 | BI50: 0 | BJ50: =IF($O$22<>0,SUM(AX50:BI50)*$O$22+$N$22,-1) -> 15.60492681 | BL50: 0.6049268113 | BM50: 0 | BN50: 0 | BO50: 0 | BP50: 0 | BQ50: 0 | BR50: 0 | BS50: 0 | BT50: 0 | BU50: 0 | BV50: 0 | BW50: 0 | BX50: =IF($O$24<>0,SUM(BL50:BW50)*$O$24+$N$24,-1) -> 9.395073189 | BZ50: 0.6049268113 | CA50: 0 | CB50: 0 | CC50: 0 | CD50: 0 | CE50: 0 | CF50: 0 | CG50: 0 | CH50: 0 | CI50: 0 | CJ50: 0 | CK50: 0 | CL50: =IF($O$21<>0,SUM(BZ50:CK50)*$O$21+$N$21,-1) -> -1 | CN50: 0.6049268113 | CO50: 0 | CP50: 0 | CQ50: 0 | CR50: 0 | CS50: 0 | CT50: 0 | CU50: 0 | CV50: 0 | CW50: 0 | CX50: 0 | CY50: 0 | CZ50: =IF($O$23<>0,SUM(CN50:CY50)*$O$23+$N$23,-1) -> -1
A51: Peaks | C51: =J14 -> Chromlith/ACN | G51: =K14 -> Chromlith/MeHO | J51: Reference | AE51: 19.2 | AF51: =IF($L$20>0,IF($AE51<$J$20,$H$20,IF($AE51<$J$20+$K$20,$H$20+((I$20-H$20)*($AE51-J$20)/K$20),$I$20)),$H$20) -> 0.584 | AG51: =IF($L$22>0,IF($AE51<$J$22,$H$22,IF($AE51<$J$22+$K$22,$H$22+((I$22-H$22)*($AE51-J$22)/K$22),$I$22)),$H$22) -> 0.584 | AI51: 0.98 | AJ51: 0.8801633169 | AK51: 0 | AL51: 0 | AM51: 0 | AN51: 0 | AO51: 0 | AP51: 0 | AQ51: 0 | AR51: 0 | AS51: 0 | AT51: 0 | AU51: 0 | AV51: =IF($O$20<>0,SUM(AJ51:AU51)*$O$20+$N$20,-1) -> 11.88016332 | AX51: 0.8801633169 | AY51: 0 | AZ51: 0 | BA51: 0 | BB51: 0 | BC51: 0 | BD51: 0 | BE51: 0 | BF51: 0 | BG51: 0 | BH51: 0 | BI51: 0 | BJ51: =IF($O$22<>0,SUM(AX51:BI51)*$O$22+$N$22,-1) -> 15.88016332 | BL51: 0.8801633169 | BM51: 0 | BN51: 0 | BO51: 0 | BP51: 0 | BQ51: 0 | BR51: 0 | BS51: 0 | BT51: 0 | BU51: 0 | BV51: 0 | BW51: 0 | BX51: =IF($O$24<>0,SUM(BL51:BW51)*$O$24+$N$24,-1) -> 9.119836683 | BZ51: 0.8801633169 | CA51: 0 | CB51: 0 | CC51: 0 | CD51: 0 | CE51: 0 | CF51: 0 | CG51: 0 | CH51: 0 | CI51: 0 | CJ51: 0 | CK51: 0 | CL51: =IF($O$21<>0,SUM(BZ51:CK51)*$O$21+$N$21,-1) -> -1 | CN51: 0.8801633169 | CO51: 0 | CP51: 0 | CQ51: 0 | CR51: 0 | CS51: 0 | CT51: 0 | CU51: 0 | CV51: 0 | CW51: 0 | CX51: 0 | CY51: 0 | CZ51: =IF($O$23<>0,SUM(CN51:CY51)*$O$23+$N$23,-1) -> -1
B52: tR | C52: w | D52: a | E52: RS | F52: tR | G52: w | H52: a | I52: RS | J52: tR | K52: w | M52: tR | N52: Retention time, min | AE52: 19.6 | AF52: =IF($L$20>0,IF($AE52<$J$20,$H$20,IF($AE52<$J$20+$K$20,$H$20+((I$20-H$20)*($AE52-J$20)/K$20),$I$20)),$H$20) -> 0.592 | AG52: =IF($L$22>0,IF($AE52<$J$22,$H$22,IF($AE52<$J$22+$K$22,$H$22+((I$22-H$22)*($AE52-J$22)/K$22),$I$22)),$H$22) -> 0.592 | AI52: 1 | AJ52: 0.997355701 | AK52: 0 | AL52: 0 | AM52: 0 | AN52: 0 | AO52: 0 | AP52: 0 | AQ52: 0 | AR52: 0 | AS52: 0 | AT52: 0 | AU52: 0 | AV52: =IF($O$20<>0,SUM(AJ52:AU52)*$O$20+$N$20,-1) -> 11.9973557 | AX52: 0.997355701 | AY52: 0 | AZ52: 0 | BA52: 0 | BB52: 0 | BC52: 0 | BD52: 0 | BE52: 0 | BF52: 0 | BG52: 0 | BH52: 0 | BI52: 0 | BJ52: =IF($O$22<>0,SUM(AX52:BI52)*$O$22+$N$22,-1) -> 15.9973557 | BL52: 0.997355701 | BM52: 0 | BN52: 0 | BO52: 0 | BP52: 0 | BQ52: 0 | BR52: 0 | BS52: 0 | BT52: 0 | BU52: 0 | BV52: 0 | BW52: 0 | BX52: =IF($O$24<>0,SUM(BL52:BW52)*$O$24+$N$24,-1) -> 9.002644299 | BZ52: 0.997355701 | CA52: 0 | CB52: 0 | CC52: 0 | CD52: 0 | CE52: 0 | CF52: 0 | CG52: 0 | CH52: 0 | CI52: 0 | CJ52: 0 | CK52: 0 | CL52: =IF($O$21<>0,SUM(BZ52:CK52)*$O$21+$N$21,-1) -> -1 | CN52: 0.997355701 | CO52: 0 | CP52: 0 | CQ52: 0 | CR52: 0 | CS52: 0 | CT52: 0 | CU52: 0 | CV52: 0 | CW52: 0 | CX52: 0 | CY52: 0 | CZ52: =IF($O$23<>0,SUM(CN52:CY52)*$O$23+$N$23,-1) -> -1
A53: 1 | B53: =IF(B6>0,IF(H83*B83=0,G83,$K$20+$J$20+I83),"") -> 2.728632401 | C53: =IF(B6>0,IF(OR(B83=0,B53<$J$20,D83/2>C83,D83<0),$B$24*$B$20*(1+C83),$B$24*(SQRT(($B$20*(1+D83/2))^2+I83^2))),"") -> 0.07447731446 | D53: =IF(AND(B7>0,B54>B53),(B54-$B$20)/(B53-$B$20),"") -> 3.401127673 | E53: =IF(D53<>"",2*ABS(B54-B53)/(C54+C53),"") -> 36.96069806 | F53: =IF(B6>0,IF(B97*H97<=0,G97,$K$22+$J$22+I97),"") -> 3.721182043 | G53: =IF(B6>0,IF(OR(B97=0,F53<$J$22,D97/2>C97,D97<0),$B$24*$B$20*(1+C97),$B$24*(SQRT(($B$20*(1+D97/2))^2+I97^2))),"") -> 0.09399925298 | H53: =IF(AND(B7>0,F54>F53),(F54-$B$20)/(F53-$B$20),"") -> 2.76910493 | I53: =IF(H53<>"",2*ABS(F54-F53)/(G54+G53),"") -> 35.51000276 | J53: =IF(E6<>"",E6,"") -> 2.728632401 | K53: =IF(J53<>"",IF(F6<>0,F6,C53),"") -> 0.07447731446 | M53: w | N53: Peak width at baseline, min | AE53: 20 | AF53: =IF($L$20>0,IF($AE53<$J$20,$H$20,IF($AE53<$J$20+$K$20,$H$20+((I$20-H$20)*($AE53-J$20)/K$20),$I$20)),$H$20) -> 0.6 | AG53: =IF($L$22>0,IF($AE53<$J$22,$H$22,IF($AE53<$J$22+$K$22,$H$22+((I$22-H$22)*($AE53-J$22)/K$22),$I$22)),$H$22) -> 0.6 | AI53: 1.02 | AJ53: 0.8801633169 | AK53: 0 | AL53: 0 | AM53: 0 | AN53: 0 | AO53: 0 | AP53: 0 | AQ53: 0 | AR53: 0 | AS53: 0 | AT53: 0 | AU53: 0 | AV53: =IF($O$20<>0,SUM(AJ53:AU53)*$O$20+$N$20,-1) -> 11.88016332 | AX53: 0.8801633169 | AY53: 0 | AZ53: 0 | BA53: 0 | BB53: 0 | BC53: 0 | BD53: 0 | BE53: 0 | BF53: 0 | BG53: 0 | BH53: 0 | BI53: 0 | BJ53: =IF($O$22<>0,SUM(AX53:BI53)*$O$22+$N$22,-1) -> 15.88016332 | BL53: 0.8801633169 | BM53: 0 | BN53: 0 | BO53: 0 | BP53: 0 | BQ53: 0 | BR53: 0 | BS53: 0 | BT53: 0 | BU53: 0 | BV53: 0 | BW53: 0 | BX53: =IF($O$24<>0,SUM(BL53:BW53)*$O$24+$N$24,-1) -> 9.119836683 | BZ53: 0.8801633169 | CA53: 0 | CB53: 0 | CC53: 0 | CD53: 0 | CE53: 0 | CF53: 0 | CG53: 0 | CH53: 0 | CI53: 0 | CJ53: 0 | CK53: 0 | CL53: =IF($O$21<>0,SUM(BZ53:CK53)*$O$21+$N$21,-1) -> -1 | CN53: 0.8801633169 | CO53: 0 | CP53: 0 | CQ53: 0 | CR53: 0 | CS53: 0 | CT53: 0 | CU53: 0 | CV53: 0 | CW53: 0 | CX53: 0 | CY53: 0 | CZ53: =IF($O$23<>0,SUM(CN53:CY53)*$O$23+$N$23,-1) -> -1
A54: 2 | B54: =IF(B7>0,IF(H84*B84=0,G84,$K$20+$J$20+I84),"") -> 6.879299497 | C54: =IF(B7>0,IF(OR(B84=0,B54<$J$20,D84/2>C84,D84<0),$B$24*$B$20*(1+C84),$B$24*(SQRT(($B$20*(1+D84/2))^2+I84^2))),"") -> 0.1501216414 | D54: 1.780073432 | E54: 25.46181651 | F54: =IF(B7>0,IF(B98*H98<=0,G98,$K$22+$J$22+I98),"") -> 8.535238611 | G54: =IF(B7>0,IF(OR(B98=0,F54<$J$22,D98/2>C98,D98<0),$B$24*$B$20*(1+C98),$B$24*(SQRT(($B$20*(1+D98/2))^2+I98^2))),"") -> 0.1771388036 | H54: 1.886254659 | I54: 30.94876095 | J54: 6.879299497 | K54: 0.1501216414 | M54: a | N54: Relative retention | AE54: 20.4 | AF54: =IF($L$20>0,IF($AE54<$J$20,$H$20,IF($AE54<$J$20+$K$20,$H$20+((I$20-H$20)*($AE54-J$20)/K$20),$I$20)),$H$20) -> 0.608 | AG54: =IF($L$22>0,IF($AE54<$J$22,$H$22,IF($AE54<$J$22+$K$22,$H$22+((I$22-H$22)*($AE54-J$22)/K$22),$I$22)),$H$22) -> 0.608 | AI54: 1.04 | AJ54: 0.6049268113 | AK54: 0 | AL54: 0 | AM54: 0 | AN54: 0 | AO54: 0 | AP54: 0 | AQ54: 0 | AR54: 0 | AS54: 0 | AT54: 0 | AU54: 0 | AV54: =IF($O$20<>0,SUM(AJ54:AU54)*$O$20+$N$20,-1) -> 11.60492681 | AX54: 0.6049268113 | AY54: 0 | AZ54: 0 | BA54: 0 | BB54: 0 | BC54: 0 | BD54: 0 | BE54: 0 | BF54: 0 | BG54: 0 | BH54: 0 | BI54: 0 | BJ54: =IF($O$22<>0,SUM(AX54:BI54)*$O$22+$N$22,-1) -> 15.60492681 | BL54: 0.6049268113 | BM54: 0 | BN54: 0 | BO54: 0 | BP54: 0 | BQ54: 0 | BR54: 0 | BS54: 0 | BT54: 0 | BU54: 0 | BV54: 0 | BW54: 0 | BX54: =IF($O$24<>0,SUM(BL54:BW54)*$O$24+$N$24,-1) -> 9.395073189 | BZ54: 0.6049268113 | CA54: 0 | CB54: 0 | CC54: 0 | CD54: 0 | CE54: 0 | CF54: 0 | CG54: 0 | CH54: 0 | CI54: 0 | CJ54: 0 | CK54: 0 | CL54: =IF($O$21<>0,SUM(BZ54:CK54)*$O$21+$N$21,-1) -> -1 | CN54: 0.6049268113 | CO54: 0 | CP54: 0 | CQ54: 0 | CR54: 0 | CS54: 0 | CT54: 0 | CU54: 0 | CV54: 0 | CW54: 0 | CX54: 0 | CY54: 0 | CZ54: =IF($O$23<>0,SUM(CN54:CY54)*$O$23+$N$23,-1) -> -1
A55: 3 | B55: =IF(B8>0,IF(H85*B85=0,G85,$K$20+$J$20+I85),"") -> 11.46558484 | C55: =IF(B8>0,IF(OR(B85=0,B55<$J$20,D85/2>C85,D85<0),$B$24*$B$20*(1+C85),$B$24*(SQRT(($B$20*(1+D85/2))^2+I85^2))),"") -> 0.2101264451 | D55: 1.121039028 | E55: =IF(D55<>"",2*ABS(B56-B55)/(C56+C55),"") -> 5.964772908 | F55: =IF(B8>0,IF(B99*H99<=0,G99,$K$22+$J$22+I99),"") -> 15.21337894 | G55: =IF(B8>0,IF(OR(B99=0,F55<$J$22,D99/2>C99,D99<0),$B$24*$B$20*(1+C99),$B$24*(SQRT(($B$20*(1+D99/2))^2+I99^2))),"") -> 0.2544222751 | H55: 1.13181965 | I55: 7.346048819 | J55: 11.46558484 | K55: 0.2101264451 | M55: RS | N55: Resolution | AE55: 20.8 | AF55: =IF($L$20>0,IF($AE55<$J$20,$H$20,IF($AE55<$J$20+$K$20,$H$20+((I$20-H$20)*($AE55-J$20)/K$20),$I$20)),$H$20) -> 0.616 | AG55: =IF($L$22>0,IF($AE55<$J$22,$H$22,IF($AE55<$J$22+$K$22,$H$22+((I$22-H$22)*($AE55-J$22)/K$22),$I$22)),$H$22) -> 0.616 | AI55: 1.06 | AJ55: 0.3237939892 | AK55: 0 | AL55: 0 | AM55: 0 | AN55: 0 | AO55: 0 | AP55: 0 | AQ55: 0 | AR55: 0 | AS55: 0 | AT55: 0 | AU55: 0 | AV55: =IF($O$20<>0,SUM(AJ55:AU55)*$O$20+$N$20,-1) -> 11.32379399 | AX55: 0.3237939892 | AY55: 0 | AZ55: 0 | BA55: 0 | BB55: 0 | BC55: 0 | BD55: 0 | BE55: 0 | BF55: 0 | BG55: 0 | BH55: 0 | BI55: 0 | BJ55: =IF($O$22<>0,SUM(AX55:BI55)*$O$22+$N$22,-1) -> 15.32379399 | BL55: 0.3237939892 | BM55: 0 | BN55: 0 | BO55: 0 | BP55: 0 | BQ55: 0 | BR55: 0 | BS55: 0 | BT55: 0 | BU55: 0 | BV55: 0 | BW55: 0 | BX55: =IF($O$24<>0,SUM(BL55:BW55)*$O$24+$N$24,-1) -> 9.676206011 | BZ55: 0.3237939892 | CA55: 0 | CB55: 0 | CC55: 0 | CD55: 0 | CE55: 0 | CF55: 0 | CG55: 0 | CH55: 0 | CI55: 0 | CJ55: 0 | CK55: 0 | CL55: =IF($O$21<>0,SUM(BZ55:CK55)*$O$21+$N$21,-1) -> -1 | CN55: 0.3237939892 | CO55: 0 | CP55: 0 | CQ55: 0 | CR55: 0 | CS55: 0 | CT55: 0 | CU55: 0 | CV55: 0 | CW55: 0 | CX55: 0 | CY55: 0 | CZ55: =IF($O$23<>0,SUM(CN55:CY55)*$O$23+$N$23,-1) -> -1
A56: 4 | B56: =IF(B9>0,IF(H86*B86=0,G86,$K$20+$J$20+I86),"") -> 12.73232905 | C56: =IF(B9>0,IF(OR(B86=0,B56<$J$20,D86/2>C86,D86<0),$B$24*$B$20*(1+C86),$B$24*(SQRT(($B$20*(1+D86/2))^2+I86^2))),"") -> 0.2146153632 | D56: 1.574940191 | E56: =IF(D56<>"",2*ABS(B57-B56)/(C57+C56),"") -> 34.24346073 | F56: =IF(B9>0,IF(B100*H100<=0,G100,$K$22+$J$22+I100),"") -> 17.08698158 | G56: =IF(B9>0,IF(OR(B100=0,F56<$J$22,D100/2>C100,D100<0),$B$24*$B$20*(1+C100),$B$24*(SQRT(($B$20*(1+D100/2))^2+I100^2))),"") -> 0.2556757873 | H56: 1.577028508 | I56: =IF(H56<>"",2*ABS(F57-F56)/(G57+G56),"") -> 40.49176052 | J56: 12.73232905 | K56: 0.2146153632 | AE56: 21.2 | AF56: =IF($L$20>0,IF($AE56<$J$20,$H$20,IF($AE56<$J$20+$K$20,$H$20+((I$20-H$20)*($AE56-J$20)/K$20),$I$20)),$H$20) -> 0.624 | AG56: =IF($L$22>0,IF($AE56<$J$22,$H$22,IF($AE56<$J$22+$K$22,$H$22+((I$22-H$22)*($AE56-J$22)/K$22),$I$22)),$H$22) -> 0.624 | AI56: 1.08 | AJ56: 0.1349774163 | AK56: 0 | AL56: 0 | AM56: 0 | AN56: 0 | AO56: 0 | AP56: 0 | AQ56: 0 | AR56: 0 | AS56: 0 | AT56: 0 | AU56: 0 | AV56: =IF($O$20<>0,SUM(AJ56:AU56)*$O$20+$N$20,-1) -> 11.13497742 | AX56: 0.1349774163 | AY56: 0 | AZ56: 0 | BA56: 0 | BB56: 0 | BC56: 0 | BD56: 0 | BE56: 0 | BF56: 0 | BG56: 0 | BH56: 0 | BI56: 0 | BJ56: =IF($O$22<>0,SUM(AX56:BI56)*$O$22+$N$22,-1) -> 15.13497742 | BL56: 0.1349774163 | BM56: 0 | BN56: 0 | BO56: 0 | BP56: 0 | BQ56: 0 | BR56: 0 | BS56: 0 | BT56: 0 | BU56: 0 | BV56: 0 | BW56: 0 | BX56: =IF($O$24<>0,SUM(BL56:BW56)*$O$24+$N$24,-1) -> 9.865022584 | BZ56: 0.1349774163 | CA56: 0 | CB56: 0 | CC56: 0 | CD56: 0 | CE56: 0 | CF56: 0 | CG56: 0 | CH56: 0 | CI56: 0 | CJ56: 0 | CK56: 0 | CL56: =IF($O$21<>0,SUM(BZ56:CK56)*$O$21+$N$21,-1) -> -1 | CN56: 0.1349774163 | CO56: 0 | CP56: 0 | CQ56: 0 | CR56: 0 | CS56: 0 | CT56: 0 | CU56: 0 | CV56: 0 | CW56: 0 | CX56: 0 | CY56: 0 | CZ56: =IF($O$23<>0,SUM(CN56:CY56)*$O$23+$N$23,-1) -> -1
A57: 5 | B57: =IF(B10>0,IF(H87*B87=0,G87,$K$20+$J$20+I87),"") -> 19.47771656 | C57: =IF(B10>0,IF(OR(B87=0,B57<$J$20,D87/2>C87,D87<0),$B$24*$B$20*(1+C87),$B$24*(SQRT(($B$20*(1+D87/2))^2+I87^2))),"") -> 0.1793510973 | D57: 1.055996738 | E57: 5.952709974 | F57: =IF(B10>0,IF(B101*H101<=0,G101,$K$22+$J$22+I101),"") -> 26.36962854 | G57: =IF(B10>0,IF(OR(B101=0,F57<$J$22,D101/2>C101,D101<0),$B$24*$B$20*(1+C101),$B$24*(SQRT(($B$20*(1+D101/2))^2+I101^2))),"") -> 0.2028198103 | H57: 1.047298083 | I57: =IF(H57<>"",2*ABS(F58-F57)/(G58+G57),"") -> 6.112642622 | J57: 19.47771656 | K57: 0.1793510973 | M57: OBS: If a is absent, the order of tR do not | AE57: 21.6 | AF57: =IF($L$20>0,IF($AE57<$J$20,$H$20,IF($AE57<$J$20+$K$20,$H$20+((I$20-H$20)*($AE57-J$20)/K$20),$I$20)),$H$20) -> 0.632 | AG57: =IF($L$22>0,IF($AE57<$J$22,$H$22,IF($AE57<$J$22+$K$22,$H$22+((I$22-H$22)*($AE57-J$22)/K$22),$I$22)),$H$22) -> 0.632 | AI57: 1.1 | AJ57: 0.04382075123 | AK57: 0 | AL57: 0 | AM57: 0 | AN57: 0 | AO57: 0 | AP57: 0 | AQ57: 0 | AR57: 0 | AS57: 0 | AT57: 0 | AU57: 0 | AV57: =IF($O$20<>0,SUM(AJ57:AU57)*$O$20+$N$20,-1) -> 11.04382075 | AX57: 0.04382075123 | AY57: 0 | AZ57: 0 | BA57: 0 | BB57: 0 | BC57: 0 | BD57: 0 | BE57: 0 | BF57: 0 | BG57: 0 | BH57: 0 | BI57: 0 | BJ57: =IF($O$22<>0,SUM(AX57:BI57)*$O$22+$N$22,-1) -> 15.04382075 | BL57: 0.04382075123 | BM57: 0 | BN57: 0 | BO57: 0 | BP57: 0 | BQ57: 0 | BR57: 0 | BS57: 0 | BT57: 0 | BU57: 0 | BV57: 0 | BW57: 0 | BX57: =IF($O$24<>0,SUM(BL57:BW57)*$O$24+$N$24,-1) -> 9.956179249 | BZ57: 0.04382075123 | CA57: 0 | CB57: 0 | CC57: 0 | CD57: 0 | CE57: 0 | CF57: 0 | CG57: 0 | CH57: 0 | CI57: 0 | CJ57: 0 | CK57: 0 | CL57: =IF($O$21<>0,SUM(BZ57:CK57)*$O$21+$N$21,-1) -> -1 | CN57: 0.04382075123 | CO57: 0 | CP57: 0 | CQ57: 0 | CR57: 0 | CS57: 0 | CT57: 0 | CU57: 0 | CV57: 0 | CW57: 0 | CX57: 0 | CY57: 0 | CZ57: =IF($O$23<>0,SUM(CN57:CY57)*$O$23+$N$23,-1) -> -1
A58: 6 | B58: =IF(B11>0,IF(H88*B88=0,G88,$K$20+$J$20+I88),"") -> 20.51240842 | C58: =IF(B11>0,IF(OR(B88=0,B58<$J$20,D88/2>C88,D88<0),$B$24*$B$20*(1+C88),$B$24*(SQRT(($B$20*(1+D88/2))^2+I88^2))),"") -> 0.1682861516 | D58: 1.239189395 | E58: 28.119324 | F58: =IF(B11>0,IF(B102*H102<=0,G102,$K$22+$J$22+I102),"") -> 27.56956333 | G58: =IF(B11>0,IF(OR(B102=0,F58<$J$22,D102/2>C102,D102<0),$B$24*$B$20*(1+C102),$B$24*(SQRT(($B$20*(1+D102/2))^2+I102^2))),"") -> 0.1897877286 | H58: 1.211371901 | I58: 29.70806771 | J58: 20.51240842 | K58: 0.1682861516 | M58: match the order of compounds in the input. | AE58: 22 | AF58: =IF($L$20>0,IF($AE58<$J$20,$H$20,IF($AE58<$J$20+$K$20,$H$20+((I$20-H$20)*($AE58-J$20)/K$20),$I$20)),$H$20) -> 0.64 | AG58: =IF($L$22>0,IF($AE58<$J$22,$H$22,IF($AE58<$J$22+$K$22,$H$22+((I$22-H$22)*($AE58-J$22)/K$22),$I$22)),$H$22) -> 0.64 | AI58: 1.12 | AJ58: 0.01107962103 | AK58: 0 | AL58: 0 | AM58: 0 | AN58: 0 | AO58: 0 | AP58: 0 | AQ58: 0 | AR58: 0 | AS58: 0 | AT58: 0 | AU58: 0 | AV58: =IF($O$20<>0,SUM(AJ58:AU58)*$O$20+$N$20,-1) -> 11.01107962 | AX58: 0.01107962103 | AY58: 0 | AZ58: 0 | BA58: 0 | BB58: 0 | BC58: 0 | BD58: 0 | BE58: 0 | BF58: 0 | BG58: 0 | BH58: 0 | BI58: 0 | BJ58: =IF($O$22<>0,SUM(AX58:BI58)*$O$22+$N$22,-1) -> 15.01107962 | BL58: 0.01107962103 | BM58: 0 | BN58: 0 | BO58: 0 | BP58: 0 | BQ58: 0 | BR58: 0 | BS58: 0 | BT58: 0 | BU58: 0 | BV58: 0 | BW58: 0 | BX58: =IF($O$24<>0,SUM(BL58:BW58)*$O$24+$N$24,-1) -> 9.988920379 | BZ58: 0.01107962103 | CA58: 0 | CB58: 0 | CC58: 0 | CD58: 0 | CE58: 0 | CF58: 0 | CG58: 0 | CH58: 0 | CI58: 0 | CJ58: 0 | CK58: 0 | CL58: =IF($O$21<>0,SUM(BZ58:CK58)*$O$21+$N$21,-1) -> -1 | CN58: 0.01107962103 | CO58: 0 | CP58: 0 | CQ58: 0 | CR58: 0 | CS58: 0 | CT58: 0 | CU58: 0 | CV58: 0 | CW58: 0 | CX58: 0 | CY58: 0 | CZ58: =IF($O$23<>0,SUM(CN58:CY58)*$O$23+$N$23,-1) -> -1
A59: 7 | B59: =IF(B12>0,IF(H89*B89=0,G89,$K$20+$J$20+I89),"") -> 25.17956958 | C59: =IF(B12>0,IF(OR(B89=0,B59<$J$20,D89/2>C89,D89<0),$B$24*$B$20*(1+C89),$B$24*(SQRT(($B$20*(1+D89/2))^2+I89^2))),"") -> 0.1636678571 | D59: 1.118570884 | E59: 19.51601668 | F59: =IF(B12>0,IF(B103*H103<=0,G103,$K$22+$J$22+I103),"") -> 33.18562246 | G59: =IF(B12>0,IF(OR(B103=0,F59<$J$22,D103/2>C103,D103<0),$B$24*$B$20*(1+C103),$B$24*(SQRT(($B$20*(1+D103/2))^2+I103^2))),"") -> 0.1882953684 | H59: 1.122348632 | I59: 23.3847594 | J59: 25.17956958 | K59: 0.1636678571 | M59: To fix it: sort peaks according to tR | AE59: 22.4 | AF59: =IF($L$20>0,IF($AE59<$J$20,$H$20,IF($AE59<$J$20+$K$20,$H$20+((I$20-H$20)*($AE59-J$20)/K$20),$I$20)),$H$20) -> 0.648 | AG59: =IF($L$22>0,IF($AE59<$J$22,$H$22,IF($AE59<$J$22+$K$22,$H$22+((I$22-H$22)*($AE59-J$22)/K$22),$I$22)),$H$22) -> 0.648 | AI59: 1.14 | AJ59: 0.002181706738 | AK59: 0 | AL59: 0 | AM59: 0 | AN59: 0 | AO59: 0 | AP59: 0 | AQ59: 0 | AR59: 0 | AS59: 0 | AT59: 0 | AU59: 0 | AV59: =IF($O$20<>0,SUM(AJ59:AU59)*$O$20+$N$20,-1) -> 11.00218171 | AX59: 0.002181706738 | AY59: 0 | AZ59: 0 | BA59: 0 | BB59: 0 | BC59: 0 | BD59: 0 | BE59: 0 | BF59: 0 | BG59: 0 | BH59: 0 | BI59: 0 | BJ59: =IF($O$22<>0,SUM(AX59:BI59)*$O$22+$N$22,-1) -> 15.00218171 | BL59: 0.002181706738 | BM59: 0 | BN59: 0 | BO59: 0 | BP59: 0 | BQ59: 0 | BR59: 0 | BS59: 0 | BT59: 0 | BU59: 0 | BV59: 0 | BW59: 0 | BX59: =IF($O$24<>0,SUM(BL59:BW59)*$O$24+$N$24,-1) -> 9.997818293 | BZ59: 0.002181706738 | CA59: 0 | CB59: 0 | CC59: 0 | CD59: 0 | CE59: 0 | CF59: 0 | CG59: 0 | CH59: 0 | CI59: 0 | CJ59: 0 | CK59: 0 | CL59: =IF($O$21<>0,SUM(BZ59:CK59)*$O$21+$N$21,-1) -> -1 | CN59: 0.002181706738 | CO59: 0 | CP59: 0 | CQ59: 0 | CR59: 0 | CS59: 0 | CT59: 0 | CU59: 0 | CV59: 0 | CW59: 0 | CX59: 0 | CY59: 0 | CZ59: =IF($O$23<>0,SUM(CN59:CY59)*$O$23+$N$23,-1) -> -1
A60: 8 | B60: =IF(B13>0,IF(H90*B90=0,G90,$K$20+$J$20+I90),"") -> 28.04656253 | C60: =IF(B13>0,IF(OR(B90=0,B60<$J$20,D90/2>C90,D90<0),$B$24*$B$20*(1+C90),$B$24*(SQRT(($B$20*(1+D90/2))^2+I90^2))),"") -> 0.1301413762 | F60: =IF(B13>0,IF(B104*H104<=0,G104,$K$22+$J$22+I104),"") -> 37.12348932 | G60: =IF(B13>0,IF(OR(B104=0,F60<$J$22,D104/2>C104,D104<0),$B$24*$B$20*(1+C104),$B$24*(SQRT(($B$20*(1+D104/2))^2+I104^2))),"") -> 0.1484938025 | J60: 28.04656253 | K60: 0.1301413762 | AE60: 22.8 | AF60: =IF($L$20>0,IF($AE60<$J$20,$H$20,IF($AE60<$J$20+$K$20,$H$20+((I$20-H$20)*($AE60-J$20)/K$20),$I$20)),$H$20) -> 0.656 | AG60: =IF($L$22>0,IF($AE60<$J$22,$H$22,IF($AE60<$J$22+$K$22,$H$22+((I$22-H$22)*($AE60-J$22)/K$22),$I$22)),$H$22) -> 0.656 | AI60: 1.16 | AJ60: 0.0003345755644 | AK60: 0 | AL60: 0 | AM60: 0 | AN60: 0 | AO60: 0 | AP60: 0 | AQ60: 0 | AR60: 0 | AS60: 0 | AT60: 0 | AU60: 0 | AV60: =IF($O$20<>0,SUM(AJ60:AU60)*$O$20+$N$20,-1) -> 11.00033458 | AX60: 0.0003345755644 | AY60: 0 | AZ60: 0 | BA60: 0 | BB60: 0 | BC60: 0 | BD60: 0 | BE60: 0 | BF60: 0 | BG60: 0 | BH60: 0 | BI60: 0 | BJ60: =IF($O$22<>0,SUM(AX60:BI60)*$O$22+$N$22,-1) -> 15.00033458 | BL60: 0.0003345755644 | BM60: 0 | BN60: 0 | BO60: 0 | BP60: 0 | BQ60: 0 | BR60: 0 | BS60: 0 | BT60: 0 | BU60: 0 | BV60: 0 | BW60: 0 | BX60: =IF($O$24<>0,SUM(BL60:BW60)*$O$24+$N$24,-1) -> 9.999665424 | BZ60: 0.0003345755644 | CA60: 0 | CB60: 0 | CC60: 0 | CD60: 0 | CE60: 0 | CF60: 0 | CG60: 0 | CH60: 0 | CI60: 0 | CJ60: 0 | CK60: 0 | CL60: =IF($O$21<>0,SUM(BZ60:CK60)*$O$21+$N$21,-1) -> -1 | CN60: 0.0003345755644 | CO60: 0 | CP60: 0 | CQ60: 0 | CR60: 0 | CS60: 0 | CT60: 0 | CU60: 0 | CV60: 0 | CW60: 0 | CX60: 0 | CY60: 0 | CZ60: =IF($O$23<>0,SUM(CN60:CY60)*$O$23+$N$23,-1) -> -1
A61: 9 | B61: =IF(B14>0,IF(H91*B91=0,G91,$K$20+$J$20+I91),"") ->  | C61: =IF(B14>0,IF(OR(B91=0,B61<$J$20,D91/2>C91,D91<0),$B$24*$B$20*(1+C91),$B$24*(SQRT(($B$20*(1+D91/2))^2+I91^2))),"") ->  | F61: =IF(B14>0,IF(B105*H105<=0,G105,$K$22+$J$22+I105),"") ->  | G61: =IF(B14>0,IF(OR(B105=0,F61<$J$22,D105/2>C105,D105<0),$B$24*$B$20*(1+C105),$B$24*(SQRT(($B$20*(1+D105/2))^2+I105^2))),"") ->  | AE61: 23.2 | AF61: =IF($L$20>0,IF($AE61<$J$20,$H$20,IF($AE61<$J$20+$K$20,$H$20+((I$20-H$20)*($AE61-J$20)/K$20),$I$20)),$H$20) -> 0.664 | AG61: =IF($L$22>0,IF($AE61<$J$22,$H$22,IF($AE61<$J$22+$K$22,$H$22+((I$22-H$22)*($AE61-J$22)/K$22),$I$22)),$H$22) -> 0.664 | AI61: 1.18 | AJ61: 3.995935277e-05 | AK61: 0 | AL61: 0 | AM61: 0 | AN61: 0 | AO61: 0 | AP61: 0 | AQ61: 0 | AR61: 0 | AS61: 0 | AT61: 0 | AU61: 0 | AV61: =IF($O$20<>0,SUM(AJ61:AU61)*$O$20+$N$20,-1) -> 11.00003996 | AX61: 3.995935277e-05 | AY61: 0 | AZ61: 0 | BA61: 0 | BB61: 0 | BC61: 0 | BD61: 0 | BE61: 0 | BF61: 0 | BG61: 0 | BH61: 0 | BI61: 0 | BJ61: =IF($O$22<>0,SUM(AX61:BI61)*$O$22+$N$22,-1) -> 15.00003996 | BL61: 3.995935277e-05 | BM61: 0 | BN61: 0 | BO61: 0 | BP61: 0 | BQ61: 0 | BR61: 0 | BS61: 0 | BT61: 0 | BU61: 0 | BV61: 0 | BW61: 0 | BX61: =IF($O$24<>0,SUM(BL61:BW61)*$O$24+$N$24,-1) -> 9.999960041 | BZ61: 3.995935277e-05 | CA61: 0 | CB61: 0 | CC61: 0 | CD61: 0 | CE61: 0 | CF61: 0 | CG61: 0 | CH61: 0 | CI61: 0 | CJ61: 0 | CK61: 0 | CL61: =IF($O$21<>0,SUM(BZ61:CK61)*$O$21+$N$21,-1) -> -1 | CN61: 3.995935277e-05 | CO61: 0 | CP61: 0 | CQ61: 0 | CR61: 0 | CS61: 0 | CT61: 0 | CU61: 0 | CV61: 0 | CW61: 0 | CX61: 0 | CY61: 0 | CZ61: =IF($O$23<>0,SUM(CN61:CY61)*$O$23+$N$23,-1) -> -1
A62: 10 | B62: =IF(B15>0,IF(H92*B92=0,G92,$K$20+$J$20+I92),"") ->  | C62: =IF(B15>0,IF(OR(B92=0,B62<$J$20,D92/2>C92,D92<0),$B$24*$B$20*(1+C92),$B$24*(SQRT(($B$20*(1+D92/2))^2+I92^2))),"") ->  | F62: =IF(B15>0,IF(B106*H106<=0,G106,$K$22+$J$22+I106),"") ->  | G62: =IF(B15>0,IF(OR(B106=0,F62<$J$22,D106/2>C106,D106<0),$B$24*$B$20*(1+C106),$B$24*(SQRT(($B$20*(1+D106/2))^2+I106^2))),"") ->  | AE62: 23.6 | AF62: =IF($L$20>0,IF($AE62<$J$20,$H$20,IF($AE62<$J$20+$K$20,$H$20+((I$20-H$20)*($AE62-J$20)/K$20),$I$20)),$H$20) -> 0.672 | AG62: =IF($L$22>0,IF($AE62<$J$22,$H$22,IF($AE62<$J$22+$K$22,$H$22+((I$22-H$22)*($AE62-J$22)/K$22),$I$22)),$H$22) -> 0.672 | AI62: 1.2 | AJ62: 3.716798787e-06 | AK62: 0 | AL62: 0 | AM62: 0 | AN62: 0 | AO62: 0 | AP62: 0 | AQ62: 0 | AR62: 0 | AS62: 0 | AT62: 0 | AU62: 0 | AV62: =IF($O$20<>0,SUM(AJ62:AU62)*$O$20+$N$20,-1) -> 11.00000372 | AX62: 3.716798787e-06 | AY62: 0 | AZ62: 0 | BA62: 0 | BB62: 0 | BC62: 0 | BD62: 0 | BE62: 0 | BF62: 0 | BG62: 0 | BH62: 0 | BI62: 0 | BJ62: =IF($O$22<>0,SUM(AX62:BI62)*$O$22+$N$22,-1) -> 15.00000372 | BL62: 3.716798787e-06 | BM62: 0 | BN62: 0 | BO62: 0 | BP62: 0 | BQ62: 0 | BR62: 0 | BS62: 0 | BT62: 0 | BU62: 0 | BV62: 0 | BW62: 0 | BX62: =IF($O$24<>0,SUM(BL62:BW62)*$O$24+$N$24,-1) -> 9.999996283 | BZ62: 3.716798787e-06 | CA62: 0 | CB62: 0 | CC62: 0 | CD62: 0 | CE62: 0 | CF62: 0 | CG62: 0 | CH62: 0 | CI62: 0 | CJ62: 0 | CK62: 0 | CL62: =IF($O$21<>0,SUM(BZ62:CK62)*$O$21+$N$21,-1) -> -1 | CN62: 3.716798787e-06 | CO62: 0 | CP62: 0 | CQ62: 0 | CR62: 0 | CS62: 0 | CT62: 0 | CU62: 0 | CV62: 0 | CW62: 0 | CX62: 0 | CY62: 0 | CZ62: =IF($O$23<>0,SUM(CN62:CY62)*$O$23+$N$23,-1) -> -1
A63: 11 | B63: =IF(B16>0,IF(H93*B93=0,G93,$K$20+$J$20+I93),"") ->  | C63: =IF(B16>0,IF(OR(B93=0,B63<$J$20,D93/2>C93,D93<0),$B$24*$B$20*(1+C93),$B$24*(SQRT(($B$20*(1+D93/2))^2+I93^2))),"") ->  | D63: =IF(AND(F49>0,B64>B63),(B64-$B$20)/(B63-$B$20),"") ->  | F63: =IF(B16>0,IF(B107*H107<=0,G107,$K$22+$J$22+I107),"") ->  | G63: =IF(B16>0,IF(OR(B107=0,F63<$J$22,D107/2>C107,D107<0),$B$24*$B$20*(1+C107),$B$24*(SQRT(($B$20*(1+D107/2))^2+I107^2))),"") ->  | AE63: 24 | AF63: =IF($L$20>0,IF($AE63<$J$20,$H$20,IF($AE63<$J$20+$K$20,$H$20+((I$20-H$20)*($AE63-J$20)/K$20),$I$20)),$H$20) -> 0.68 | AG63: =IF($L$22>0,IF($AE63<$J$22,$H$22,IF($AE63<$J$22+$K$22,$H$22+((I$22-H$22)*($AE63-J$22)/K$22),$I$22)),$H$22) -> 0.68 | AI63: 1.22 | AJ63: 2.692440011e-07 | AK63: 0 | AL63: 0 | AM63: 0 | AN63: 0 | AO63: 0 | AP63: 0 | AQ63: 0 | AR63: 0 | AS63: 0 | AT63: 0 | AU63: 0 | AV63: =IF($O$20<>0,SUM(AJ63:AU63)*$O$20+$N$20,-1) -> 11.00000027 | AX63: 2.692440011e-07 | AY63: 0 | AZ63: 0 | BA63: 0 | BB63: 0 | BC63: 0 | BD63: 0 | BE63: 0 | BF63: 0 | BG63: 0 | BH63: 0 | BI63: 0 | BJ63: =IF($O$22<>0,SUM(AX63:BI63)*$O$22+$N$22,-1) -> 15.00000027 | BL63: 2.692440011e-07 | BM63: 0 | BN63: 0 | BO63: 0 | BP63: 0 | BQ63: 0 | BR63: 0 | BS63: 0 | BT63: 0 | BU63: 0 | BV63: 0 | BW63: 0 | BX63: =IF($O$24<>0,SUM(BL63:BW63)*$O$24+$N$24,-1) -> 9.999999731 | BZ63: 2.692440011e-07 | CA63: 0 | CB63: 0 | CC63: 0 | CD63: 0 | CE63: 0 | CF63: 0 | CG63: 0 | CH63: 0 | CI63: 0 | CJ63: 0 | CK63: 0 | CL63: =IF($O$21<>0,SUM(BZ63:CK63)*$O$21+$N$21,-1) -> -1 | CN63: 2.692440011e-07 | CO63: 0 | CP63: 0 | CQ63: 0 | CR63: 0 | CS63: 0 | CT63: 0 | CU63: 0 | CV63: 0 | CW63: 0 | CX63: 0 | CY63: 0 | CZ63: =IF($O$23<>0,SUM(CN63:CY63)*$O$23+$N$23,-1) -> -1
A64: Max | B64: =IF(F49>0,IF(G94*C94=0,F94,$K$20+I94),"") ->  | E64: =MIN(E53:E63) -> 5.952709974 | I64: =MIN(I53:I63) -> 6.112642622 | AE64: 24.4 | AF64: =IF($L$20>0,IF($AE64<$J$20,$H$20,IF($AE64<$J$20+$K$20,$H$20+((I$20-H$20)*($AE64-J$20)/K$20),$I$20)),$H$20) -> 0.688 | AG64: =IF($L$22>0,IF($AE64<$J$22,$H$22,IF($AE64<$J$22+$K$22,$H$22+((I$22-H$22)*($AE64-J$22)/K$22),$I$22)),$H$22) -> 0.688 | AI64: 1.24 | AJ64: 1.518970712e-08 | AK64: 0 | AL64: 0 | AM64: 0 | AN64: 0 | AO64: 0 | AP64: 0 | AQ64: 0 | AR64: 0 | AS64: 0 | AT64: 0 | AU64: 0 | AV64: =IF($O$20<>0,SUM(AJ64:AU64)*$O$20+$N$20,-1) -> 11.00000002 | AX64: 1.518970712e-08 | AY64: 0 | AZ64: 0 | BA64: 0 | BB64: 0 | BC64: 0 | BD64: 0 | BE64: 0 | BF64: 0 | BG64: 0 | BH64: 0 | BI64: 0 | BJ64: =IF($O$22<>0,SUM(AX64:BI64)*$O$22+$N$22,-1) -> 15.00000002 | BL64: 1.518970712e-08 | BM64: 0 | BN64: 0 | BO64: 0 | BP64: 0 | BQ64: 0 | BR64: 0 | BS64: 0 | BT64: 0 | BU64: 0 | BV64: 0 | BW64: 0 | BX64: =IF($O$24<>0,SUM(BL64:BW64)*$O$24+$N$24,-1) -> 9.999999985 | BZ64: 1.518970712e-08 | CA64: 0 | CB64: 0 | CC64: 0 | CD64: 0 | CE64: 0 | CF64: 0 | CG64: 0 | CH64: 0 | CI64: 0 | CJ64: 0 | CK64: 0 | CL64: =IF($O$21<>0,SUM(BZ64:CK64)*$O$21+$N$21,-1) -> -1 | CN64: 1.518970712e-08 | CO64: 0 | CP64: 0 | CQ64: 0 | CR64: 0 | CS64: 0 | CT64: 0 | CU64: 0 | CV64: 0 | CW64: 0 | CX64: 0 | CY64: 0 | CZ64: =IF($O$23<>0,SUM(CN64:CY64)*$O$23+$N$23,-1) -> -1
AE65: 24.8 | AF65: =IF($L$20>0,IF($AE65<$J$20,$H$20,IF($AE65<$J$20+$K$20,$H$20+((I$20-H$20)*($AE65-J$20)/K$20),$I$20)),$H$20) -> 0.696 | AG65: =IF($L$22>0,IF($AE65<$J$22,$H$22,IF($AE65<$J$22+$K$22,$H$22+((I$22-H$22)*($AE65-J$22)/K$22),$I$22)),$H$22) -> 0.696 | AI65: 1.26 | AJ65: 6.673891537e-10 | AK65: 0 | AL65: 0 | AM65: 0 | AN65: 0 | AO65: 0 | AP65: 0 | AQ65: 0 | AR65: 0 | AS65: 0 | AT65: 0 | AU65: 0 | AV65: =IF($O$20<>0,SUM(AJ65:AU65)*$O$20+$N$20,-1) -> 11 | AX65: 6.673891537e-10 | AY65: 0 | AZ65: 0 | BA65: 0 | BB65: 0 | BC65: 0 | BD65: 0 | BE65: 0 | BF65: 0 | BG65: 0 | BH65: 0 | BI65: 0 | BJ65: =IF($O$22<>0,SUM(AX65:BI65)*$O$22+$N$22,-1) -> 15 | BL65: 6.673891537e-10 | BM65: 0 | BN65: 0 | BO65: 0 | BP65: 0 | BQ65: 0 | BR65: 0 | BS65: 0 | BT65: 0 | BU65: 0 | BV65: 0 | BW65: 0 | BX65: =IF($O$24<>0,SUM(BL65:BW65)*$O$24+$N$24,-1) -> 9.999999999 | BZ65: 6.673891537e-10 | CA65: 0 | CB65: 0 | CC65: 0 | CD65: 0 | CE65: 0 | CF65: 0 | CG65: 0 | CH65: 0 | CI65: 0 | CJ65: 0 | CK65: 0 | CL65: =IF($O$21<>0,SUM(BZ65:CK65)*$O$21+$N$21,-1) -> -1 | CN65: 6.673891537e-10 | CO65: 0 | CP65: 0 | CQ65: 0 | CR65: 0 | CS65: 0 | CT65: 0 | CU65: 0 | CV65: 0 | CW65: 0 | CX65: 0 | CY65: 0 | CZ65: =IF($O$23<>0,SUM(CN65:CY65)*$O$23+$N$23,-1) -> -1
A66: Peaks | C66: Nonlinear | D66: =J14 -> Chromlith/ACN | G66: Nonlinear | H66: =K14 -> Chromlith/MeHO | K66: DtR(1) | L66: DtR(2) | N66: OBS: | O66: A retention time tR =999.99 means that this compound | AE66: 25.2 | AF66: =IF($L$20>0,IF($AE66<$J$20,$H$20,IF($AE66<$J$20+$K$20,$H$20+((I$20-H$20)*($AE66-J$20)/K$20),$I$20)),$H$20) -> 0.704 | AG66: =IF($L$22>0,IF($AE66<$J$22,$H$22,IF($AE66<$J$22+$K$22,$H$22+((I$22-H$22)*($AE66-J$22)/K$22),$I$22)),$H$22) -> 0.704 | AI66: 1.28 | AJ66: =$B$23*NORMDIST($AI66,$B$20,$B$24*$B$20,FALSE) -> 2.283680102e-11 | AK66: =B$6*IF(B$6>0,NORMDIST($AI66,B$53,C$53/4,FALSE),0) -> 0 | AL66: =B$7*IF(B$7>0,NORMDIST($AI66,B$54,C$54/4,FALSE),0) -> 0 | AM66: =B$8*IF(B$8>0,NORMDIST($AI66,B$55,C$55/4,FALSE),0) -> 0 | AN66: =B$9*IF(B$9>0,NORMDIST($AI66,B$56,C$56/4,FALSE),0) -> 0 | AO66: =B$10*IF(B$10>0,NORMDIST($AI66,B$57,C$57/4,FALSE),0) -> 0 | AP66: =B$11*IF(B$11>0,NORMDIST($AI66,B$58,$C$58/4,FALSE),0) -> 0 | AQ66: =$B$12*IF($B$12>0,NORMDIST($AI66,B$59,$C$59/4,FALSE),0) -> 0 | AR66: =$B$13*IF($B$13>0,NORMDIST($AI66,B$60,$C$60/4,FALSE),0) -> 0 | AS66: =$B$14*IF($B$14>0,NORMDIST($AI66,$B$61,$C$61/4,FALSE),0) -> 0 | AT66: =$B$15*IF($B$15>0,NORMDIST($AI66,$B$62,$C$62/4,FALSE),0) -> 0 | AU66: =$B$16*IF($B$16>0,NORMDIST($AI66,$B$63,$C$63/4,FALSE),0) -> 0 | AV66: =IF($O$20<>0,SUM(AJ66:AU66)*$O$20+$N$20,-1) -> 11 | AX66: 2.283680102e-11 | AY66: =IF(B$6>0,B$6*NORMDIST($AI66,F$53,G$53/4,FALSE),0) -> 0 | AZ66: =IF(B$7>0,B$7*NORMDIST($AI66,F$54,G$54/4,FALSE),0) -> 0 | BA66: =IF(B$8>0,B$8*NORMDIST($AI66,F$55,G$55/4,FALSE),0) -> 0 | BB66: =IF(B$9>0,B$9*NORMDIST($AI66,F$56,G$56/4,FALSE),0) -> 0 | BC66: =IF(B$10>0,B$10*NORMDIST($AI66,F$57,G$57/4,FALSE),0) -> 0 | BD66: =IF(B$11>0,B$11*NORMDIST($AI66,F$58,G$58/4,FALSE),0) -> 0 | BE66: =IF($B$12>0,$B$12*NORMDIST($AI66,$F$59,$G$59/4,FALSE),0) -> 0 | BF66: =IF($B$13>0,$B$13*NORMDIST($AI66,$F$60,$G$60/4,FALSE),0) -> 0 | BG66: =IF($B$14>0,$B$14*NORMDIST($AI66,$F$61,$G$61/4,FALSE),0) -> 0 | BH66: =IF($B$15>0,$B$15*NORMDIST($AI66,$F$62,$G$62/4,FALSE),0) -> 0 | BI66: =IF($B$16>0,$B$16*NORMDIST($AI66,$F$63,$G$63/4,FALSE),0) -> 0 | BJ66: =IF($O$22<>0,SUM(AX66:BI66)*$O$22+$N$22,-1) -> 15 | BL66: =$B$23*NORMDIST($AI66,$B$20,$B$20*$B$24,FALSE) -> 2.283680102e-11 | BM66: =IF($B$6>0,$B$6*NORMDIST($AI66,$J$53,$K$53/4,FALSE),0) -> 0 | BN66: =IF($B$7>0,$B$7*NORMDIST($AI66,$J$54,$K$54/4,FALSE),0) -> 0 | BO66: =IF($B$8>0,$B$8*NORMDIST($AI66,$J$55,$K$55/4,FALSE),0) -> 0 | BP66: =IF($B$9>0,$B$9*NORMDIST($AI66,$J$56,$K$56/4,FALSE),0) -> 0 | BQ66: =IF($B$10>0,$B$10*NORMDIST($AI66,$J$57,$K$57/4,FALSE),0) -> 0 | BR66: =IF($B$11>0,$B$11*NORMDIST($AI66,$J$58,$K$58/4,FALSE),0) -> 0 | BS66: =IF($B$12>0,$B$12*NORMDIST($AI66,$J$59,$K$59/4,FALSE),0) -> 0 | BT66: =IF($B$13>0,$B$13*NORMDIST($AI66,$J$60,$K$60/4,FALSE),0) -> 0 | BU66: =IF($B$14>0,$B$14*NORMDIST($AI66,$J$61,$K$61/4,FALSE),0) -> 0 | BV66: =IF($B$15>0,$B$15*NORMDIST($AI66,$J$62,$K$62/4,FALSE),0) -> 0 | BW66: =IF($B$16>0,$B$16*NORMDIST($AI66,$J$63,$K$63/4,FALSE),0) -> 0 | BX66: =IF($O$24<>0,SUM(BL66:BW66)*$O$24+$N$24,-1) -> 10 | BZ66: =$B$23*NORMDIST($AI66,$B$20,$B$20*$B$24,FALSE) -> 2.283680102e-11 | CA66: =IF($B$6>0,$B$6*NORMDIST($AI66,$B$68,$C$68/4,FALSE),0) -> 0 | CB66: =IF($B$7>0,$B$7*NORMDIST($AI66,$B$69,$C$69/4,FALSE),0) -> 0 | CC66: =IF($B$8>0,$B$8*NORMDIST($AI66,$B$70,$C$70/4,FALSE),0) -> 0 | CD66: =IF($B$9>0,$B$9*NORMDIST($AI66,$B$71,$C$71/4,FALSE),0) -> 0 | CE66: =IF($B$10>0,$B$10*NORMDIST($AI66,$B$72,$C$72/4,FALSE),0) -> 0 | CF66: =IF($B$11>0,$B$11*NORMDIST($AI66,$B$73,$C$73/4,FALSE),0) -> 0 | CG66: =IF($B$12>0,$B$12*NORMDIST($AI66,$B$74,$C$74/4,FALSE),0) -> 0 | CH66: =IF($B$13>0,$B$13*NORMDIST($AI66,$B$75,$C$75/4,FALSE),0) -> 0 | CI66: =IF($B$14>0,$B$14*NORMDIST($AI66,$B$76,$C$76/4,FALSE),0) -> 0 | CJ66: =IF($B$15>0,$B$15*NORMDIST($AI66,$B$77,$C$77/4,FALSE),0) -> 0 | CK66: =IF($B$16>0,$B$16*NORMDIST($AI66,$B$78,$C$78/4,FALSE),0) -> 0 | CL66: =IF($O$21<>0,SUM(BZ66:CK66)*$O$21+$N$21,-1) -> -1 | CN66: =$B$23*NORMDIST($AI66,$B$20,$B$20*$B$24,FALSE) -> 2.283680102e-11 | CO66: =IF($B$6>0,$B$6*NORMDIST($AI66,$F$68,$G$68/4,FALSE),0) -> 0 | CP66: =IF($B$7>0,$B$7*NORMDIST($AI66,$F$69,$G$69/4,FALSE),0) -> 0 | CQ66: =IF($B$8>0,$B$8*NORMDIST($AI66,$F$70,$G$70/4,FALSE),0) -> 0 | CR66: =IF($B$9>0,$B$9*NORMDIST($AI66,$F$71,$G$71/4,FALSE),0) -> 0 | CS66: =IF($B$10>0,$B$10*NORMDIST($AI66,$F$72,$G$72/4,FALSE),0) -> 0 | CT66: =IF($B$11>0,$B$11*NORMDIST($AI66,$F$73,$G$73/4,FALSE),0) -> 0 | CU66: =IF($B$12>0,$B$12*NORMDIST($AI66,$F$74,$G$74/4,FALSE),0) -> 0 | CV66: =IF($B$13>0,$B$13*NORMDIST($AI66,$F$75,$G$75/4,FALSE),0) -> 0 | CW66: =IF($B$14>0,$B$14*NORMDIST($AI66,$F$76,$G$76/4,FALSE),0) -> 0 | CX66: =IF($B$15>0,$B$15*NORMDIST($AI66,$F$77,$G$77/4,FALSE),0) -> 0 | CY66: =IF($B$16>0,$B$16*NORMDIST($AI66,$F$78,$G$78/4,FALSE),0) -> 0 | CZ66: =IF($O$23<>0,SUM(CN66:CY66)*$O$23+$N$23,-1) -> -1
B67: tR | C67: w | D67: a | E67: RS | F67: tR | G67: w | H67: a | I67: RS | K67: Lin-Non | L67: Lin-Non | O67: was not eluted within tmax. | AE67: 25.6 | AF67: =IF($L$20>0,IF($AE67<$J$20,$H$20,IF($AE67<$J$20+$K$20,$H$20+((I$20-H$20)*($AE67-J$20)/K$20),$I$20)),$H$20) -> 0.712 | AG67: =IF($L$22>0,IF($AE67<$J$22,$H$22,IF($AE67<$J$22+$K$22,$H$22+((I$22-H$22)*($AE67-J$22)/K$22),$I$22)),$H$22) -> 0.712 | AI67: =AI66+$B$25 -> 1.3 | AJ67: 6.085801333e-13 | AK67: 0 | AL67: 0 | AM67: 0 | AN67: 0 | AO67: 0 | AP67: 0 | AQ67: 0 | AR67: 0 | AS67: 0 | AT67: 0 | AU67: 0 | AV67: =IF($O$20<>0,SUM(AJ67:AU67)*$O$20+$N$20,-1) -> 11 | AX67: =$B$23*NORMDIST($AI67,$B$20,$B$24*$B$20,FALSE) -> 6.085801333e-13 | AY67: 0 | AZ67: 0 | BA67: 0 | BB67: 0 | BC67: 0 | BD67: 0 | BE67: 0 | BF67: 0 | BG67: 0 | BH67: 0 | BI67: 0 | BJ67: =IF($O$22<>0,SUM(AX67:BI67)*$O$22+$N$22,-1) -> 15 | BL67: 6.085801333e-13 | BM67: 0 | BN67: 0 | BO67: 0 | BP67: 0 | BQ67: 0 | BR67: 0 | BS67: 0 | BT67: 0 | BU67: 0 | BV67: 0 | BW67: 0 | BX67: =IF($O$24<>0,SUM(BL67:BW67)*$O$24+$N$24,-1) -> 10 | BZ67: 6.085801333e-13 | CA67: 0 | CB67: 0 | CC67: 0 | CD67: 0 | CE67: 0 | CF67: 0 | CG67: 0 | CH67: 0 | CI67: 0 | CJ67: 0 | CK67: 0 | CL67: =IF($O$21<>0,SUM(BZ67:CK67)*$O$21+$N$21,-1) -> -1 | CN67: 6.085801333e-13 | CO67: 0 | CP67: 0 | CQ67: 0 | CR67: 0 | CS67: 0 | CT67: 0 | CU67: 0 | CV67: 0 | CW67: 0 | CX67: 0 | CY67: 0 | CZ67: =IF($O$23<>0,SUM(CN67:CY67)*$O$23+$N$23,-1) -> -1
A68: 1 | B68: 2.6 | C68: 0.07569707258 | D68: =IF(AND(B6>0,B69>B68),(B69-$B$20)/(B68-$B$20),"") -> 3.4 | E68: =IF(D68<>"",2*ABS(B69-B68)/(C69+C68),"") -> 33.29058726 | F68: 3.65 | G68: 0.1141463793 | H68: =IF(AND(B6>0,F69>F68),(F69-$B$20)/(F68-$B$20),"") -> 2.843396226 | I68: =IF(H68<>"",2*ABS(F69-F68)/(G69+G68),"") -> 31.27394591 | K68: =IF(AND(B68<>"",B68<999),B53-B68,"") -> 0.1286324015 | L68: =IF(AND(F68<>"",F68<999),F53-F68,"") -> 0.07118204341 | AE68: =AE67+$B$22/100 -> 26 | AF68: =IF($L$20>0,IF($AE68<$J$20,$H$20,IF($AE68<$J$20+$K$20,$H$20+((I$20-H$20)*($AE68-J$20)/K$20),$I$20)),$H$20) -> 0.72 | AG68: =IF($L$22>0,IF($AE68<$J$22,$H$22,IF($AE68<$J$22+$K$22,$H$22+((I$22-H$22)*($AE68-J$22)/K$22),$I$22)),$H$22) -> 0.72 | AI68: 1.32 | AJ68: 1.263067771e-14 | AK68: 0 | AL68: 0 | AM68: 0 | AN68: 0 | AO68: 0 | AP68: 0 | AQ68: 0 | AR68: 0 | AS68: 0 | AT68: 0 | AU68: 0 | AV68: =IF($O$20<>0,SUM(AJ68:AU68)*$O$20+$N$20,-1) -> 11 | AX68: 1.263067771e-14 | AY68: 0 | AZ68: 0 | BA68: 0 | BB68: 0 | BC68: 0 | BD68: 0 | BE68: 0 | BF68: 0 | BG68: 0 | BH68: 0 | BI68: 0 | BJ68: =IF($O$22<>0,SUM(AX68:BI68)*$O$22+$N$22,-1) -> 15 | BL68: 1.263067771e-14 | BM68: 0 | BN68: 0 | BO68: 0 | BP68: 0 | BQ68: 0 | BR68: 0 | BS68: 0 | BT68: 0 | BU68: 0 | BV68: 0 | BW68: 0 | BX68: =IF($O$24<>0,SUM(BL68:BW68)*$O$24+$N$24,-1) -> 10 | BZ68: 1.263067771e-14 | CA68: 0 | CB68: 0 | CC68: 0 | CD68: 0 | CE68: 0 | CF68: 0 | CG68: 0 | CH68: 0 | CI68: 0 | CJ68: 0 | CK68: 0 | CL68: =IF($O$21<>0,SUM(BZ68:CK68)*$O$21+$N$21,-1) -> -1 | CN68: 1.263067771e-14 | CO68: 0 | CP68: 0 | CQ68: 0 | CR68: 0 | CS68: 0 | CT68: 0 | CU68: 0 | CV68: 0 | CW68: 0 | CX68: 0 | CY68: 0 | CZ68: =IF($O$23<>0,SUM(CN68:CY68)*$O$23+$N$23,-1) -> -1
A69: 2 | B69: 6.44 | C69: 0.1549987677 | D69: 1.835477941 | E69: 25.05061574 | F69: 8.535 | G69: 0.1982542377 | H69: =IF(AND(B7>0,F70>F69),(F70-$B$20)/(F69-$B$20),"") -> 1.923025879 | I69: 31.12043473 | K69: =IF(AND(B69<>"",B69<999),B54-B69,"") -> 0.4392994968 | L69: =IF(AND(F69<>"",F69<999),F54-F69,"") -> 0.0002386114683 | N69: Nonlinear simulation in VBA | AE69: 26.4 | AF69: =IF($L$20>0,IF($AE69<$J$20,$H$20,IF($AE69<$J$20+$K$20,$H$20+((I$20-H$20)*($AE69-J$20)/K$20),$I$20)),$H$20) -> 0.728 | AG69: =IF($L$22>0,IF($AE69<$J$22,$H$22,IF($AE69<$J$22+$K$22,$H$22+((I$22-H$22)*($AE69-J$22)/K$22),$I$22)),$H$22) -> 0.728 | AI69: 1.34 | AJ69: 2.041558908e-16 | AK69: 0 | AL69: 0 | AM69: 0 | AN69: 0 | AO69: 0 | AP69: 0 | AQ69: 0 | AR69: 0 | AS69: 0 | AT69: 0 | AU69: 0 | AV69: =IF($O$20<>0,SUM(AJ69:AU69)*$O$20+$N$20,-1) -> 11 | AX69: 2.041558908e-16 | AY69: 0 | AZ69: 0 | BA69: 0 | BB69: 0 | BC69: 0 | BD69: 0 | BE69: 0 | BF69: 0 | BG69: 0 | BH69: 0 | BI69: 0 | BJ69: =IF($O$22<>0,SUM(AX69:BI69)*$O$22+$N$22,-1) -> 15 | BL69: 2.041558908e-16 | BM69: 0 | BN69: 0 | BO69: 0 | BP69: 0 | BQ69: 0 | BR69: 0 | BS69: 0 | BT69: 0 | BU69: 0 | BV69: 0 | BW69: 0 | BX69: =IF($O$24<>0,SUM(BL69:BW69)*$O$24+$N$24,-1) -> 10 | BZ69: 2.041558908e-16 | CA69: 0 | CB69: 0 | CC69: 0 | CD69: 0 | CE69: 0 | CF69: 0 | CG69: 0 | CH69: 0 | CI69: 0 | CJ69: 0 | CK69: 0 | CL69: =IF($O$21<>0,SUM(BZ69:CK69)*$O$21+$N$21,-1) -> -1 | CN69: 2.041558908e-16 | CO69: 0 | CP69: 0 | CQ69: 0 | CR69: 0 | CS69: 0 | CT69: 0 | CU69: 0 | CV69: 0 | CW69: 0 | CX69: 0 | CY69: 0 | CZ69: =IF($O$23<>0,SUM(CN69:CY69)*$O$23+$N$23,-1) -> -1
A70: 3 | B70: 10.985 | C70: 0.2078665644 | D70: 1.104656985 | E70: =IF(D70<>"",2*ABS(B71-B70)/(C71+C70),"") -> 5.056491815 | F70: 15.49 | G70: 0.2487189528 | H70: 1.128019324 | I70: 7.680850667 | K70: 0.4805848351 | L70: -0.2766210588 | N70: Column | O70: 1 | P70: 2 | AE70: 26.8 | AF70: =IF($L$20>0,IF($AE70<$J$20,$H$20,IF($AE70<$J$20+$K$20,$H$20+((I$20-H$20)*($AE70-J$20)/K$20),$I$20)),$H$20) -> 0.736 | AG70: =IF($L$22>0,IF($AE70<$J$22,$H$22,IF($AE70<$J$22+$K$22,$H$22+((I$22-H$22)*($AE70-J$22)/K$22),$I$22)),$H$22) -> 0.736 | AI70: 1.36 | AJ70: 2.569943393e-18 | AK70: 0 | AL70: 0 | AM70: 0 | AN70: 0 | AO70: 0 | AP70: 0 | AQ70: 0 | AR70: 0 | AS70: 0 | AT70: 0 | AU70: 0 | AV70: =IF($O$20<>0,SUM(AJ70:AU70)*$O$20+$N$20,-1) -> 11 | AX70: 2.569943393e-18 | AY70: 0 | AZ70: 0 | BA70: 0 | BB70: 0 | BC70: 0 | BD70: 0 | BE70: 0 | BF70: 0 | BG70: 0 | BH70: 0 | BI70: 0 | BJ70: =IF($O$22<>0,SUM(AX70:BI70)*$O$22+$N$22,-1) -> 15 | BL70: 2.569943393e-18 | BM70: 0 | BN70: 0 | BO70: 0 | BP70: 0 | BQ70: 0 | BR70: 0 | BS70: 0 | BT70: 0 | BU70: 0 | BV70: 0 | BW70: 0 | BX70: =IF($O$24<>0,SUM(BL70:BW70)*$O$24+$N$24,-1) -> 10 | BZ70: 2.569943393e-18 | CA70: 0 | CB70: 0 | CC70: 0 | CD70: 0 | CE70: 0 | CF70: 0 | CG70: 0 | CH70: 0 | CI70: 0 | CJ70: 0 | CK70: 0 | CL70: =IF($O$21<>0,SUM(BZ70:CK70)*$O$21+$N$21,-1) -> -1 | CN70: 2.569943393e-18 | CO70: 0 | CP70: 0 | CQ70: 0 | CR70: 0 | CS70: 0 | CT70: 0 | CU70: 0 | CV70: 0 | CW70: 0 | CX70: 0 | CY70: 0 | CZ70: =IF($O$23<>0,SUM(CN70:CY70)*$O$23+$N$23,-1) -> -1
A71: 4 | B71: 12.03 | C71: 0.2054634827 | D71: 1.651405258 | E71: =IF(D71<>"",2*ABS(B72-B71)/(C72+C71),"") -> 35.38356057 | F71: 17.345 | G71: 0.2343004628 | H71: 1.502906087 | I71: =IF(H71<>"",2*ABS(F72-F71)/(G72+G71),"") -> 43.57462218 | K71: 0.7023290505 | L71: -0.2580184244 | N71: CPU s | O71: 5.419921875 | P71: 5.59375 | AE71: 27.2 | AF71: =IF($L$20>0,IF($AE71<$J$20,$H$20,IF($AE71<$J$20+$K$20,$H$20+((I$20-H$20)*($AE71-J$20)/K$20),$I$20)),$H$20) -> 0.744 | AG71: =IF($L$22>0,IF($AE71<$J$22,$H$22,IF($AE71<$J$22+$K$22,$H$22+((I$22-H$22)*($AE71-J$22)/K$22),$I$22)),$H$22) -> 0.744 | AI71: 1.38 | AJ71: 2.519483849e-20 | AK71: 0 | AL71: 0 | AM71: 0 | AN71: 0 | AO71: 0 | AP71: 0 | AQ71: 0 | AR71: 0 | AS71: 0 | AT71: 0 | AU71: 0 | AV71: =IF($O$20<>0,SUM(AJ71:AU71)*$O$20+$N$20,-1) -> 11 | AX71: 2.519483849e-20 | AY71: 0 | AZ71: 0 | BA71: 0 | BB71: 0 | BC71: 0 | BD71: 0 | BE71: 0 | BF71: 0 | BG71: 0 | BH71: 0 | BI71: 0 | BJ71: =IF($O$22<>0,SUM(AX71:BI71)*$O$22+$N$22,-1) -> 15 | BL71: 2.519483849e-20 | BM71: 0 | BN71: 0 | BO71: 0 | BP71: 0 | BQ71: 0 | BR71: 0 | BS71: 0 | BT71: 0 | BU71: 0 | BV71: 0 | BW71: 0 | BX71: =IF($O$24<>0,SUM(BL71:BW71)*$O$24+$N$24,-1) -> 10 | BZ71: 2.519483849e-20 | CA71: 0 | CB71: 0 | CC71: 0 | CD71: 0 | CE71: 0 | CF71: 0 | CG71: 0 | CH71: 0 | CI71: 0 | CJ71: 0 | CK71: 0 | CL71: =IF($O$21<>0,SUM(BZ71:CK71)*$O$21+$N$21,-1) -> -1 | CN71: 2.519483849e-20 | CO71: 0 | CP71: 0 | CQ71: 0 | CR71: 0 | CS71: 0 | CT71: 0 | CU71: 0 | CV71: 0 | CW71: 0 | CX71: 0 | CY71: 0 | CZ71: =IF($O$23<>0,SUM(CN71:CY71)*$O$23+$N$23,-1) -> -1
A72: 5 | B72: 19.215 | C72: 0.2006573194 | D72: 1.084271205 | E72: 7.604323131 | F72: 25.565 | G72: 0.1429833593 | H72: 1.0400977 | I72: =IF(H72<>"",2*ABS(F73-F72)/(G73+G72),"") -> 7.25469656 | K72: 0.2627165598 | L72: 0.8046285446 | N72: Loops | O72: 12801600 | P72: 12801600 | AE72: 27.6 | AF72: =IF($L$20>0,IF($AE72<$J$20,$H$20,IF($AE72<$J$20+$K$20,$H$20+((I$20-H$20)*($AE72-J$20)/K$20),$I$20)),$H$20) -> 0.752 | AG72: =IF($L$22>0,IF($AE72<$J$22,$H$22,IF($AE72<$J$22+$K$22,$H$22+((I$22-H$22)*($AE72-J$22)/K$22),$I$22)),$H$22) -> 0.752 | AI72: 1.4 | AJ72: 1.923649657e-22 | AK72: 0 | AL72: 0 | AM72: 0 | AN72: 0 | AO72: 0 | AP72: 0 | AQ72: 0 | AR72: 0 | AS72: 0 | AT72: 0 | AU72: 0 | AV72: =IF($O$20<>0,SUM(AJ72:AU72)*$O$20+$N$20,-1) -> 11 | AX72: 1.923649657e-22 | AY72: 0 | AZ72: 0 | BA72: 0 | BB72: 0 | BC72: 0 | BD72: 0 | BE72: 0 | BF72: 0 | BG72: 0 | BH72: 0 | BI72: 0 | BJ72: =IF($O$22<>0,SUM(AX72:BI72)*$O$22+$N$22,-1) -> 15 | BL72: 1.923649657e-22 | BM72: 0 | BN72: 0 | BO72: 0 | BP72: 0 | BQ72: 0 | BR72: 0 | BS72: 0 | BT72: 0 | BU72: 0 | BV72: 0 | BW72: 0 | BX72: =IF($O$24<>0,SUM(BL72:BW72)*$O$24+$N$24,-1) -> 10 | BZ72: 1.923649657e-22 | CA72: 0 | CB72: 0 | CC72: 0 | CD72: 0 | CE72: 0 | CF72: 0 | CG72: 0 | CH72: 0 | CI72: 0 | CJ72: 0 | CK72: 0 | CL72: =IF($O$21<>0,SUM(BZ72:CK72)*$O$21+$N$21,-1) -> -1 | CN72: 1.923649657e-22 | CO72: 0 | CP72: 0 | CQ72: 0 | CR72: 0 | CS72: 0 | CT72: 0 | CU72: 0 | CV72: 0 | CW72: 0 | CX72: 0 | CY72: 0 | CZ72: =IF($O$23<>0,SUM(CN72:CY72)*$O$23+$N$23,-1) -> -1
A73: 6 | B73: 20.75 | C73: 0.2030604011 | D73: 1.276202532 | E73: 29.6732277 | F73: 26.55 | G73: 0.1285648693 | H73: 1.251076321 | I73: 45.63229001 | K73: -0.2375915808 | L73: 1.019563333 | AE73: 28 | AF73: =IF($L$20>0,IF($AE73<$J$20,$H$20,IF($AE73<$J$20+$K$20,$H$20+((I$20-H$20)*($AE73-J$20)/K$20),$I$20)),$H$20) -> 0.76 | AG73: =IF($L$22>0,IF($AE73<$J$22,$H$22,IF($AE73<$J$22+$K$22,$H$22+((I$22-H$22)*($AE73-J$22)/K$22),$I$22)),$H$22) -> 0.76 | AI73: 1.42 | AJ73: 1.143843898e-24 | AK73: 0 | AL73: 0 | AM73: 0 | AN73: 0 | AO73: 0 | AP73: 0 | AQ73: 0 | AR73: 0 | AS73: 0 | AT73: 0 | AU73: 0 | AV73: =IF($O$20<>0,SUM(AJ73:AU73)*$O$20+$N$20,-1) -> 11 | AX73: 1.143843898e-24 | AY73: 0 | AZ73: 0 | BA73: 0 | BB73: 0 | BC73: 0 | BD73: 0 | BE73: 0 | BF73: 0 | BG73: 0 | BH73: 0 | BI73: 0 | BJ73: =IF($O$22<>0,SUM(AX73:BI73)*$O$22+$N$22,-1) -> 15 | BL73: 1.143843898e-24 | BM73: 0 | BN73: 0 | BO73: 0 | BP73: 0 | BQ73: 0 | BR73: 0 | BS73: 0 | BT73: 0 | BU73: 0 | BV73: 0 | BW73: 0 | BX73: =IF($O$24<>0,SUM(BL73:BW73)*$O$24+$N$24,-1) -> 10 | BZ73: 1.143843898e-24 | CA73: 0 | CB73: 0 | CC73: 0 | CD73: 0 | CE73: 0 | CF73: 0 | CG73: 0 | CH73: 0 | CI73: 0 | CJ73: 0 | CK73: 0 | CL73: =IF($O$21<>0,SUM(BZ73:CK73)*$O$21+$N$21,-1) -> -1 | CN73: 1.143843898e-24 | CO73: 0 | CP73: 0 | CQ73: 0 | CR73: 0 | CS73: 0 | CT73: 0 | CU73: 0 | CV73: 0 | CW73: 0 | CX73: 0 | CY73: 0 | CZ73: =IF($O$23<>0,SUM(CN73:CY73)*$O$23+$N$23,-1) -> -1
A74: 7 | B74: 26.205 | C74: 0.1646110943 | D74: 1.194009125 | E74: 31.06697933 | F74: 32.965 | G74: 0.152595686 | H74: 1.152041295 | I74: 35.17222915 | K74: -1.025430419 | L74: 0.2206224557 | AE74: 28.4 | AF74: =IF($L$20>0,IF($AE74<$J$20,$H$20,IF($AE74<$J$20+$K$20,$H$20+((I$20-H$20)*($AE74-J$20)/K$20),$I$20)),$H$20) -> 0.768 | AG74: =IF($L$22>0,IF($AE74<$J$22,$H$22,IF($AE74<$J$22+$K$22,$H$22+((I$22-H$22)*($AE74-J$22)/K$22),$I$22)),$H$22) -> 0.768 | AI74: 1.44 | AJ74: 5.297048134e-27 | AK74: 0 | AL74: 0 | AM74: 0 | AN74: 0 | AO74: 0 | AP74: 0 | AQ74: 0 | AR74: 0 | AS74: 0 | AT74: 0 | AU74: 0 | AV74: =IF($O$20<>0,SUM(AJ74:AU74)*$O$20+$N$20,-1) -> 11 | AX74: 5.297048134e-27 | AY74: 0 | AZ74: 0 | BA74: 0 | BB74: 0 | BC74: 0 | BD74: 0 | BE74: 0 | BF74: 0 | BG74: 0 | BH74: 0 | BI74: 0 | BJ74: =IF($O$22<>0,SUM(AX74:BI74)*$O$22+$N$22,-1) -> 15 | BL74: 5.297048134e-27 | BM74: 0 | BN74: 0 | BO74: 0 | BP74: 0 | BQ74: 0 | BR74: 0 | BS74: 0 | BT74: 0 | BU74: 0 | BV74: 0 | BW74: 0 | BX74: =IF($O$24<>0,SUM(BL74:BW74)*$O$24+$N$24,-1) -> 10 | BZ74: 5.297048134e-27 | CA74: 0 | CB74: 0 | CC74: 0 | CD74: 0 | CE74: 0 | CF74: 0 | CG74: 0 | CH74: 0 | CI74: 0 | CJ74: 0 | CK74: 0 | CL74: =IF($O$21<>0,SUM(BZ74:CK74)*$O$21+$N$21,-1) -> -1 | CN74: 5.297048134e-27 | CO74: 0 | CP74: 0 | CQ74: 0 | CR74: 0 | CS74: 0 | CT74: 0 | CU74: 0 | CV74: 0 | CW74: 0 | CX74: 0 | CY74: 0 | CZ74: =IF($O$23<>0,SUM(CN74:CY74)*$O$23+$N$23,-1) -> -1
A75: 8 | B75: 31.095 | C75: 0.1501926043 | F75: 37.825 | G75: 0.123758706 | K75: -3.048437468 | L75: -0.7015106788 | AE75: 28.8 | AF75: =IF($L$20>0,IF($AE75<$J$20,$H$20,IF($AE75<$J$20+$K$20,$H$20+((I$20-H$20)*($AE75-J$20)/K$20),$I$20)),$H$20) -> 0.776 | AG75: =IF($L$22>0,IF($AE75<$J$22,$H$22,IF($AE75<$J$22+$K$22,$H$22+((I$22-H$22)*($AE75-J$22)/K$22),$I$22)),$H$22) -> 0.776 | AI75: 1.46 | AJ75: 1.910413853e-29 | AK75: 0 | AL75: 0 | AM75: 0 | AN75: 0 | AO75: 0 | AP75: 0 | AQ75: 0 | AR75: 0 | AS75: 0 | AT75: 0 | AU75: 0 | AV75: =IF($O$20<>0,SUM(AJ75:AU75)*$O$20+$N$20,-1) -> 11 | AX75: 1.910413853e-29 | AY75: 0 | AZ75: 0 | BA75: 0 | BB75: 0 | BC75: 0 | BD75: 0 | BE75: 0 | BF75: 0 | BG75: 0 | BH75: 0 | BI75: 0 | BJ75: =IF($O$22<>0,SUM(AX75:BI75)*$O$22+$N$22,-1) -> 15 | BL75: 1.910413853e-29 | BM75: 0 | BN75: 0 | BO75: 0 | BP75: 0 | BQ75: 0 | BR75: 0 | BS75: 0 | BT75: 0 | BU75: 0 | BV75: 0 | BW75: 0 | BX75: =IF($O$24<>0,SUM(BL75:BW75)*$O$24+$N$24,-1) -> 10 | BZ75: 1.910413853e-29 | CA75: 0 | CB75: 0 | CC75: 0 | CD75: 0 | CE75: 0 | CF75: 0 | CG75: 0 | CH75: 0 | CI75: 0 | CJ75: 0 | CK75: 0 | CL75: =IF($O$21<>0,SUM(BZ75:CK75)*$O$21+$N$21,-1) -> -1 | CN75: 1.910413853e-29 | CO75: 0 | CP75: 0 | CQ75: 0 | CR75: 0 | CS75: 0 | CT75: 0 | CU75: 0 | CV75: 0 | CW75: 0 | CX75: 0 | CY75: 0 | CZ75: =IF($O$23<>0,SUM(CN75:CY75)*$O$23+$N$23,-1) -> -1
A76: 9 | K76: =IF(AND(B76<>"",B76<999),B61-B76,"") ->  | AE76: 29.2 | AF76: =IF($L$20>0,IF($AE76<$J$20,$H$20,IF($AE76<$J$20+$K$20,$H$20+((I$20-H$20)*($AE76-J$20)/K$20),$I$20)),$H$20) -> 0.784 | AG76: =IF($L$22>0,IF($AE76<$J$22,$H$22,IF($AE76<$J$22+$K$22,$H$22+((I$22-H$22)*($AE76-J$22)/K$22),$I$22)),$H$22) -> 0.784 | AI76: 1.48 | AJ76: 5.365959339e-32 | AK76: 0 | AL76: 0 | AM76: 0 | AN76: 0 | AO76: 0 | AP76: 0 | AQ76: 0 | AR76: 0 | AS76: 0 | AT76: 0 | AU76: 0 | AV76: =IF($O$20<>0,SUM(AJ76:AU76)*$O$20+$N$20,-1) -> 11 | AX76: 5.365959339e-32 | AY76: 0 | AZ76: 0 | BA76: 0 | BB76: 0 | BC76: 0 | BD76: 0 | BE76: 0 | BF76: 0 | BG76: 0 | BH76: 0 | BI76: 0 | BJ76: =IF($O$22<>0,SUM(AX76:BI76)*$O$22+$N$22,-1) -> 15 | BL76: 5.365959339e-32 | BM76: 0 | BN76: 0 | BO76: 0 | BP76: 0 | BQ76: 0 | BR76: 0 | BS76: 0 | BT76: 0 | BU76: 0 | BV76: 0 | BW76: 0 | BX76: =IF($O$24<>0,SUM(BL76:BW76)*$O$24+$N$24,-1) -> 10 | BZ76: 5.365959339e-32 | CA76: 0 | CB76: 0 | CC76: 0 | CD76: 0 | CE76: 0 | CF76: 0 | CG76: 0 | CH76: 0 | CI76: 0 | CJ76: 0 | CK76: 0 | CL76: =IF($O$21<>0,SUM(BZ76:CK76)*$O$21+$N$21,-1) -> -1 | CN76: 5.365959339e-32 | CO76: 0 | CP76: 0 | CQ76: 0 | CR76: 0 | CS76: 0 | CT76: 0 | CU76: 0 | CV76: 0 | CW76: 0 | CX76: 0 | CY76: 0 | CZ76: =IF($O$23<>0,SUM(CN76:CY76)*$O$23+$N$23,-1) -> -1
A77: 10 | AE77: 29.6 | AF77: =IF($L$20>0,IF($AE77<$J$20,$H$20,IF($AE77<$J$20+$K$20,$H$20+((I$20-H$20)*($AE77-J$20)/K$20),$I$20)),$H$20) -> 0.792 | AG77: =IF($L$22>0,IF($AE77<$J$22,$H$22,IF($AE77<$J$22+$K$22,$H$22+((I$22-H$22)*($AE77-J$22)/K$22),$I$22)),$H$22) -> 0.792 | AI77: 1.5 | AJ77: 1.173798839e-34 | AK77: 0 | AL77: 0 | AM77: 0 | AN77: 0 | AO77: 0 | AP77: 0 | AQ77: 0 | AR77: 0 | AS77: 0 | AT77: 0 | AU77: 0 | AV77: =IF($O$20<>0,SUM(AJ77:AU77)*$O$20+$N$20,-1) -> 11 | AX77: 1.173798839e-34 | AY77: 0 | AZ77: 0 | BA77: 0 | BB77: 0 | BC77: 0 | BD77: 0 | BE77: 0 | BF77: 0 | BG77: 0 | BH77: 0 | BI77: 0 | BJ77: =IF($O$22<>0,SUM(AX77:BI77)*$O$22+$N$22,-1) -> 15 | BL77: 1.173798839e-34 | BM77: 0 | BN77: 0 | BO77: 0 | BP77: 0 | BQ77: 0 | BR77: 0 | BS77: 0 | BT77: 0 | BU77: 0 | BV77: 0 | BW77: 0 | BX77: =IF($O$24<>0,SUM(BL77:BW77)*$O$24+$N$24,-1) -> 10 | BZ77: 1.173798839e-34 | CA77: 0 | CB77: 0 | CC77: 0 | CD77: 0 | CE77: 0 | CF77: 0 | CG77: 0 | CH77: 0 | CI77: 0 | CJ77: 0 | CK77: 0 | CL77: =IF($O$21<>0,SUM(BZ77:CK77)*$O$21+$N$21,-1) -> -1 | CN77: 1.173798839e-34 | CO77: 0 | CP77: 0 | CQ77: 0 | CR77: 0 | CS77: 0 | CT77: 0 | CU77: 0 | CV77: 0 | CW77: 0 | CX77: 0 | CY77: 0 | CZ77: =IF($O$23<>0,SUM(CN77:CY77)*$O$23+$N$23,-1) -> -1
A78: 11 | AE78: 30 | AF78: =IF($L$20>0,IF($AE78<$J$20,$H$20,IF($AE78<$J$20+$K$20,$H$20+((I$20-H$20)*($AE78-J$20)/K$20),$I$20)),$H$20) -> 0.8 | AG78: =IF($L$22>0,IF($AE78<$J$22,$H$22,IF($AE78<$J$22+$K$22,$H$22+((I$22-H$22)*($AE78-J$22)/K$22),$I$22)),$H$22) -> 0.8 | AI78: 1.52 | AJ78: 1.999706939e-37 | AK78: 0 | AL78: 0 | AM78: 0 | AN78: 0 | AO78: 0 | AP78: 0 | AQ78: 0 | AR78: 0 | AS78: 0 | AT78: 0 | AU78: 0 | AV78: =IF($O$20<>0,SUM(AJ78:AU78)*$O$20+$N$20,-1) -> 11 | AX78: 1.999706939e-37 | AY78: 0 | AZ78: 0 | BA78: 0 | BB78: 0 | BC78: 0 | BD78: 0 | BE78: 0 | BF78: 0 | BG78: 0 | BH78: 0 | BI78: 0 | BJ78: =IF($O$22<>0,SUM(AX78:BI78)*$O$22+$N$22,-1) -> 15 | BL78: 1.999706939e-37 | BM78: 0 | BN78: 0 | BO78: 0 | BP78: 0 | BQ78: 0 | BR78: 0 | BS78: 0 | BT78: 0 | BU78: 0 | BV78: 0 | BW78: 0 | BX78: =IF($O$24<>0,SUM(BL78:BW78)*$O$24+$N$24,-1) -> 10 | BZ78: 1.999706939e-37 | CA78: 0 | CB78: 0 | CC78: 0 | CD78: 0 | CE78: 0 | CF78: 0 | CG78: 0 | CH78: 0 | CI78: 0 | CJ78: 0 | CK78: 0 | CL78: =IF($O$21<>0,SUM(BZ78:CK78)*$O$21+$N$21,-1) -> -1 | CN78: 1.999706939e-37 | CO78: 0 | CP78: 0 | CQ78: 0 | CR78: 0 | CS78: 0 | CT78: 0 | CU78: 0 | CV78: 0 | CW78: 0 | CX78: 0 | CY78: 0 | CZ78: =IF($O$23<>0,SUM(CN78:CY78)*$O$23+$N$23,-1) -> -1
A79: Min | E79: =MIN(E68:E78) -> 5.056491815 | I79: =MIN(I68:I78) -> 7.25469656 | J79: Max | K79: =MAX(K68:K78,-MIN(K68:K78)) -> 3.048437468 | L79: =MAX(L68:L78,-MIN(L68:L78)) -> 1.019563333 | AE79: 30.4 | AF79: =IF($L$20>0,IF($AE79<$J$20,$H$20,IF($AE79<$J$20+$K$20,$H$20+((I$20-H$20)*($AE79-J$20)/K$20),$I$20)),$H$20) -> 0.808 | AG79: =IF($L$22>0,IF($AE79<$J$22,$H$22,IF($AE79<$J$22+$K$22,$H$22+((I$22-H$22)*($AE79-J$22)/K$22),$I$22)),$H$22) -> 0.808 | AI79: 1.54 | AJ79: 2.653172035e-40 | AK79: 0 | AL79: 0 | AM79: 0 | AN79: 0 | AO79: 0 | AP79: 0 | AQ79: 0 | AR79: 0 | AS79: 0 | AT79: 0 | AU79: 0 | AV79: =IF($O$20<>0,SUM(AJ79:AU79)*$O$20+$N$20,-1) -> 11 | AX79: 2.653172035e-40 | AY79: 0 | AZ79: 0 | BA79: 0 | BB79: 0 | BC79: 0 | BD79: 0 | BE79: 0 | BF79: 0 | BG79: 0 | BH79: 0 | BI79: 0 | BJ79: =IF($O$22<>0,SUM(AX79:BI79)*$O$22+$N$22,-1) -> 15 | BL79: 2.653172035e-40 | BM79: 0 | BN79: 0 | BO79: 0 | BP79: 0 | BQ79: 0 | BR79: 0 | BS79: 0 | BT79: 0 | BU79: 0 | BV79: 0 | BW79: 0 | BX79: =IF($O$24<>0,SUM(BL79:BW79)*$O$24+$N$24,-1) -> 10 | BZ79: 2.653172035e-40 | CA79: 0 | CB79: 0 | CC79: 0 | CD79: 0 | CE79: 0 | CF79: 0 | CG79: 0 | CH79: 0 | CI79: 0 | CJ79: 0 | CK79: 0 | CL79: =IF($O$21<>0,SUM(BZ79:CK79)*$O$21+$N$21,-1) -> -1 | CN79: 2.653172035e-40 | CO79: 0 | CP79: 0 | CQ79: 0 | CR79: 0 | CS79: 0 | CT79: 0 | CU79: 0 | CV79: 0 | CW79: 0 | CX79: 0 | CY79: 0 | CZ79: =IF($O$23<>0,SUM(CN79:CY79)*$O$23+$N$23,-1) -> -1
AE80: 30.8 | AF80: =IF($L$20>0,IF($AE80<$J$20,$H$20,IF($AE80<$J$20+$K$20,$H$20+((I$20-H$20)*($AE80-J$20)/K$20),$I$20)),$H$20) -> 0.816 | AG80: =IF($L$22>0,IF($AE80<$J$22,$H$22,IF($AE80<$J$22+$K$22,$H$22+((I$22-H$22)*($AE80-J$22)/K$22),$I$22)),$H$22) -> 0.816 | AI80: 1.56 | AJ80: 2.741516398e-43 | AK80: 0 | AL80: 0 | AM80: 0 | AN80: 0 | AO80: 0 | AP80: 0 | AQ80: 0 | AR80: 0 | AS80: 0 | AT80: 0 | AU80: 0 | AV80: =IF($O$20<>0,SUM(AJ80:AU80)*$O$20+$N$20,-1) -> 11 | AX80: 2.741516398e-43 | AY80: 0 | AZ80: 0 | BA80: 0 | BB80: 0 | BC80: 0 | BD80: 0 | BE80: 0 | BF80: 0 | BG80: 0 | BH80: 0 | BI80: 0 | BJ80: =IF($O$22<>0,SUM(AX80:BI80)*$O$22+$N$22,-1) -> 15 | BL80: 2.741516398e-43 | BM80: 0 | BN80: 0 | BO80: 0 | BP80: 0 | BQ80: 0 | BR80: 0 | BS80: 0 | BT80: 0 | BU80: 0 | BV80: 0 | BW80: 0 | BX80: =IF($O$24<>0,SUM(BL80:BW80)*$O$24+$N$24,-1) -> 10 | BZ80: 2.741516398e-43 | CA80: 0 | CB80: 0 | CC80: 0 | CD80: 0 | CE80: 0 | CF80: 0 | CG80: 0 | CH80: 0 | CI80: 0 | CJ80: 0 | CK80: 0 | CL80: =IF($O$21<>0,SUM(BZ80:CK80)*$O$21+$N$21,-1) -> -1 | CN80: 2.741516398e-43 | CO80: 0 | CP80: 0 | CQ80: 0 | CR80: 0 | CS80: 0 | CT80: 0 | CU80: 0 | CV80: 0 | CW80: 0 | CX80: 0 | CY80: 0 | CZ80: =IF($O$23<>0,SUM(CN80:CY80)*$O$23+$N$23,-1) -> -1
A81: Calc | D81: =C51 -> Chromlith/ACN | K81: LSS Parameters Column 1: | O81: ko | P81: k' at start of program | AE81: 31.2 | AF81: =IF($L$20>0,IF($AE81<$J$20,$H$20,IF($AE81<$J$20+$K$20,$H$20+((I$20-H$20)*($AE81-J$20)/K$20),$I$20)),$H$20) -> 0.824 | AG81: =IF($L$22>0,IF($AE81<$J$22,$H$22,IF($AE81<$J$22+$K$22,$H$22+((I$22-H$22)*($AE81-J$22)/K$22),$I$22)),$H$22) -> 0.824 | AI81: 1.58 | AJ81: 2.206188744e-46 | AK81: 0 | AL81: 0 | AM81: 0 | AN81: 0 | AO81: 0 | AP81: 0 | AQ81: 0 | AR81: 0 | AS81: 0 | AT81: 0 | AU81: 0 | AV81: =IF($O$20<>0,SUM(AJ81:AU81)*$O$20+$N$20,-1) -> 11 | AX81: 2.206188744e-46 | AY81: 0 | AZ81: 0 | BA81: 0 | BB81: 0 | BC81: 0 | BD81: 0 | BE81: 0 | BF81: 0 | BG81: 0 | BH81: 0 | BI81: 0 | BJ81: =IF($O$22<>0,SUM(AX81:BI81)*$O$22+$N$22,-1) -> 15 | BL81: 2.206188744e-46 | BM81: 0 | BN81: 0 | BO81: 0 | BP81: 0 | BQ81: 0 | BR81: 0 | BS81: 0 | BT81: 0 | BU81: 0 | BV81: 0 | BW81: 0 | BX81: =IF($O$24<>0,SUM(BL81:BW81)*$O$24+$N$24,-1) -> 10 | BZ81: 2.206188744e-46 | CA81: 0 | CB81: 0 | CC81: 0 | CD81: 0 | CE81: 0 | CF81: 0 | CG81: 0 | CH81: 0 | CI81: 0 | CJ81: 0 | CK81: 0 | CL81: =IF($O$21<>0,SUM(BZ81:CK81)*$O$21+$N$21,-1) -> -1 | CN81: 2.206188744e-46 | CO81: 0 | CP81: 0 | CQ81: 0 | CR81: 0 | CS81: 0 | CT81: 0 | CU81: 0 | CV81: 0 | CW81: 0 | CX81: 0 | CY81: 0 | CZ81: =IF($O$23<>0,SUM(CN81:CY81)*$O$23+$N$23,-1) -> -1
A82: Param | B82: b | C82: ko | D82: =IF(B83=0,"k'","k*") -> k* | E82: =IF(B83=0,"","k**") -> k** | F82: ke | G82: tRuncorr | H82: tR-tD-tG | I82: tadd | K82: kw | L82: log(kw) | M82: Slope | O82: b | P82: program steepness | AE82: 31.6 | AF82: =IF($L$20>0,IF($AE82<$J$20,$H$20,IF($AE82<$J$20+$K$20,$H$20+((I$20-H$20)*($AE82-J$20)/K$20),$I$20)),$H$20) -> 0.832 | AG82: =IF($L$22>0,IF($AE82<$J$22,$H$22,IF($AE82<$J$22+$K$22,$H$22+((I$22-H$22)*($AE82-J$22)/K$22),$I$22)),$H$22) -> 0.832 | AI82: 1.6 | AJ82: 1.382677387e-49 | AK82: 0 | AL82: 0 | AM82: 0 | AN82: 0 | AO82: 0 | AP82: 0 | AQ82: 0 | AR82: 0 | AS82: 0 | AT82: 0 | AU82: 0 | AV82: =IF($O$20<>0,SUM(AJ82:AU82)*$O$20+$N$20,-1) -> 11 | AX82: 1.382677387e-49 | AY82: 0 | AZ82: 0 | BA82: 0 | BB82: 0 | BC82: 0 | BD82: 0 | BE82: 0 | BF82: 0 | BG82: 0 | BH82: 0 | BI82: 0 | BJ82: =IF($O$22<>0,SUM(AX82:BI82)*$O$22+$N$22,-1) -> 15 | BL82: 1.382677387e-49 | BM82: 0 | BN82: 0 | BO82: 0 | BP82: 0 | BQ82: 0 | BR82: 0 | BS82: 0 | BT82: 0 | BU82: 0 | BV82: 0 | BW82: 0 | BX82: =IF($O$24<>0,SUM(BL82:BW82)*$O$24+$N$24,-1) -> 10 | BZ82: 1.382677387e-49 | CA82: 0 | CB82: 0 | CC82: 0 | CD82: 0 | CE82: 0 | CF82: 0 | CG82: 0 | CH82: 0 | CI82: 0 | CJ82: 0 | CK82: 0 | CL82: =IF($O$21<>0,SUM(BZ82:CK82)*$O$21+$N$21,-1) -> -1 | CN82: 1.382677387e-49 | CO82: 0 | CP82: 0 | CQ82: 0 | CR82: 0 | CS82: 0 | CT82: 0 | CU82: 0 | CV82: 0 | CW82: 0 | CX82: 0 | CY82: 0 | CZ82: =IF($O$23<>0,SUM(CN82:CY82)*$O$23+$N$23,-1) -> -1
A83: 1 | B83: =IF(B6>0,IF($L$20>0,$B$20*$L$20*M83/$K$20,0),"") -> 0.04577713371 | C83: =IF(B6>0,K$83*10^(-M$83*$H$20),"") -> 1.896134628 | D83: =IF(B6>0,IF($D$82="k'",C83,C83/(LN(10)*B83*(C83/2-$J$20/$B$20)+1)),"") -> 1.723865723 | E83: =IF(AND(B6>0,B83>0),1/(1.15*B83),"") -> 18.99562395 | F83: =IF(B6>0,K83*10^(-M83*$I$20),"") -> 0.02797588416 | G83: =IF(B6>0,IF(B83>0,IF($J$20<$B$20*C83,($B$20/B83)*LOG(LN(10)*C83*B83*(1-$J$20/($B$20*C83))+1)+$B$20+$J$20,$B$20*(1+C83)),$B$20*(1+D83)),"") -> 2.728632401 | H83: =IF(B6>0,IF(G83>$K$20+$J$20,G83-$K$20-$J$20,0),"") -> 0 | I83: =IF(AND(B6>0,B83>0),(1+F83)*MIN(H83*B83/(LOG(LN(10)*F83*B83+1)+B83),$B$20),"") -> 0 | K83: =IF($B6>0,10^L83,"") -> 5.440521196 | L83: =IF(C6<>"",SPmodel!J7+LOG($G$20),"") -> 0.7356405067 | M83: =SPmodel!K7 -> 2.288856686 | O83: k* | P83: k' at the center of the column for a program | AE83: 32 | AF83: =IF($L$20>0,IF($AE83<$J$20,$H$20,IF($AE83<$J$20+$K$20,$H$20+((I$20-H$20)*($AE83-J$20)/K$20),$I$20)),$H$20) -> 0.84 | AG83: =IF($L$22>0,IF($AE83<$J$22,$H$22,IF($AE83<$J$22+$K$22,$H$22+((I$22-H$22)*($AE83-J$22)/K$22),$I$22)),$H$22) -> 0.84 | AI83: 1.62 | AJ83: 6.748782561e-53 | AK83: 0 | AL83: 0 | AM83: 0 | AN83: 0 | AO83: 0 | AP83: 0 | AQ83: 0 | AR83: 0 | AS83: 0 | AT83: 0 | AU83: 0 | AV83: =IF($O$20<>0,SUM(AJ83:AU83)*$O$20+$N$20,-1) -> 11 | AX83: 6.748782561e-53 | AY83: 0 | AZ83: 0 | BA83: 0 | BB83: 0 | BC83: 0 | BD83: 0 | BE83: 0 | BF83: 0 | BG83: 0 | BH83: 0 | BI83: 0 | BJ83: =IF($O$22<>0,SUM(AX83:BI83)*$O$22+$N$22,-1) -> 15 | BL83: 6.748782561e-53 | BM83: 0 | BN83: 0 | BO83: 0 | BP83: 0 | BQ83: 0 | BR83: 0 | BS83: 0 | BT83: 0 | BU83: 0 | BV83: 0 | BW83: 0 | BX83: =IF($O$24<>0,SUM(BL83:BW83)*$O$24+$N$24,-1) -> 10 | BZ83: 6.748782561e-53 | CA83: 0 | CB83: 0 | CC83: 0 | CD83: 0 | CE83: 0 | CF83: 0 | CG83: 0 | CH83: 0 | CI83: 0 | CJ83: 0 | CK83: 0 | CL83: =IF($O$21<>0,SUM(BZ83:CK83)*$O$21+$N$21,-1) -> -1 | CN83: 6.748782561e-53 | CO83: 0 | CP83: 0 | CQ83: 0 | CR83: 0 | CS83: 0 | CT83: 0 | CU83: 0 | CV83: 0 | CW83: 0 | CX83: 0 | CY83: 0 | CZ83: =IF($O$23<>0,SUM(CN83:CY83)*$O$23+$N$23,-1) -> -1
A84: 2 | B84: =IF(B7>0,IF($L$20>0,$B$20*$L$20*M84/$K$20,0),"") -> 0.06707419314 | C84: =IF(B7>0,K$84*10^(-M$84*$H$20),"") -> 9.578972988 | D84: =IF(B7>0,IF($D$82="k'",C84,C84/(LN(10)*B84*(C84/2-$J$20/$B$20)+1)),"") -> 5.506082068 | E84: 12.96422926 | F84: =IF(B7>0,K84*10^(-M84*$I$20),"") -> 0.01987701763 | G84: =IF(B7>0,IF(B84>0,IF($J$20<$B$20*C84,($B$20/B84)*LOG(LN(10)*C84*B84*(1-$J$20/($B$20*C84))+1)+$B$20+$J$20,$B$20*(1+C84)),$B$20*(1+D84)),"") -> 6.879299497 | H84: =IF(B7>0,IF(G84>$K$20+$J$20,G84-$K$20-$J$20,0),"") -> 0 | I84: 0 | K84: 44.88083001 | L84: =IF(C7<>"",SPmodel!J8+LOG($G$20),"") -> 1.65206088 | M84: =SPmodel!K8 -> 3.353709657 | O84: k**: | P84: k* without correction for ko | AE84: 32.4 | AF84: =IF($L$20>0,IF($AE84<$J$20,$H$20,IF($AE84<$J$20+$K$20,$H$20+((I$20-H$20)*($AE84-J$20)/K$20),$I$20)),$H$20) -> 0.848 | AG84: =IF($L$22>0,IF($AE84<$J$22,$H$22,IF($AE84<$J$22+$K$22,$H$22+((I$22-H$22)*($AE84-J$22)/K$22),$I$22)),$H$22) -> 0.848 | AI84: 1.64 | AJ84: 2.565407682e-56 | AK84: 0 | AL84: 0 | AM84: 0 | AN84: 0 | AO84: 0 | AP84: 0 | AQ84: 0 | AR84: 0 | AS84: 0 | AT84: 0 | AU84: 0 | AV84: =IF($O$20<>0,SUM(AJ84:AU84)*$O$20+$N$20,-1) -> 11 | AX84: 2.565407682e-56 | AY84: 0 | AZ84: 0 | BA84: 0 | BB84: 0 | BC84: 0 | BD84: 0 | BE84: 0 | BF84: 0 | BG84: 0 | BH84: 0 | BI84: 0 | BJ84: =IF($O$22<>0,SUM(AX84:BI84)*$O$22+$N$22,-1) -> 15 | BL84: 2.565407682e-56 | BM84: 0 | BN84: 0 | BO84: 0 | BP84: 0 | BQ84: 0 | BR84: 0 | BS84: 0 | BT84: 0 | BU84: 0 | BV84: 0 | BW84: 0 | BX84: =IF($O$24<>0,SUM(BL84:BW84)*$O$24+$N$24,-1) -> 10 | BZ84: 2.565407682e-56 | CA84: 0 | CB84: 0 | CC84: 0 | CD84: 0 | CE84: 0 | CF84: 0 | CG84: 0 | CH84: 0 | CI84: 0 | CJ84: 0 | CK84: 0 | CL84: =IF($O$21<>0,SUM(BZ84:CK84)*$O$21+$N$21,-1) -> -1 | CN84: 2.565407682e-56 | CO84: 0 | CP84: 0 | CQ84: 0 | CR84: 0 | CS84: 0 | CT84: 0 | CU84: 0 | CV84: 0 | CW84: 0 | CX84: 0 | CY84: 0 | CZ84: =IF($O$23<>0,SUM(CN84:CY84)*$O$23+$N$23,-1) -> -1
A85: 3 | B85: =IF(B8>0,IF($L$20>0,$B$20*$L$20*M85/$K$20,0),"") -> 0.07060211486 | C85: =IF(B8>0,K$85*10^(-M$85*$H$20),"") -> 27.5664883 | D85: =IF(B8>0,IF($D$82="k'",C85,C85/(LN(10)*B85*(C85/2-$J$20/$B$20)+1)),"") -> 8.506322255 | E85: 12.31641884 | F85: =IF(B8>0,K85*10^(-M85*$I$20),"") -> 0.04133299262 | G85: =IF(B8>0,IF(B85>0,IF($J$20<$B$20*C85,($B$20/B85)*LOG(LN(10)*C85*B85*(1-$J$20/($B$20*C85))+1)+$B$20+$J$20,$B$20*(1+C85)),$B$20*(1+D85)),"") -> 11.46558484 | H85: =IF(B8>0,IF(G85>$K$20+$J$20,G85-$K$20-$J$20,0),"") -> 0 | I85: 0 | K85: 140.0885349 | L85: =IF(C8<>"",SPmodel!J9+LOG($G$20),"") -> 2.146402593 | M85: =SPmodel!K9 -> 3.530105743 | O85: tRuncorr | P85: tR for an unlimited program | AE85: 32.8 | AF85: =IF($L$20>0,IF($AE85<$J$20,$H$20,IF($AE85<$J$20+$K$20,$H$20+((I$20-H$20)*($AE85-J$20)/K$20),$I$20)),$H$20) -> 0.856 | AG85: =IF($L$22>0,IF($AE85<$J$22,$H$22,IF($AE85<$J$22+$K$22,$H$22+((I$22-H$22)*($AE85-J$22)/K$22),$I$22)),$H$22) -> 0.856 | AI85: 1.66 | AJ85: 7.594754247e-60 | AK85: 0 | AL85: 0 | AM85: 0 | AN85: 0 | AO85: 0 | AP85: 0 | AQ85: 0 | AR85: 0 | AS85: 0 | AT85: 0 | AU85: 0 | AV85: =IF($O$20<>0,SUM(AJ85:AU85)*$O$20+$N$20,-1) -> 11 | AX85: 7.594754247e-60 | AY85: 0 | AZ85: 0 | BA85: 0 | BB85: 0 | BC85: 0 | BD85: 0 | BE85: 0 | BF85: 0 | BG85: 0 | BH85: 0 | BI85: 0 | BJ85: =IF($O$22<>0,SUM(AX85:BI85)*$O$22+$N$22,-1) -> 15 | BL85: 7.594754247e-60 | BM85: 0 | BN85: 0 | BO85: 0 | BP85: 0 | BQ85: 0 | BR85: 0 | BS85: 0 | BT85: 0 | BU85: 0 | BV85: 0 | BW85: 0 | BX85: =IF($O$24<>0,SUM(BL85:BW85)*$O$24+$N$24,-1) -> 10 | BZ85: 7.594754247e-60 | CA85: 0 | CB85: 0 | CC85: 0 | CD85: 0 | CE85: 0 | CF85: 0 | CG85: 0 | CH85: 0 | CI85: 0 | CJ85: 0 | CK85: 0 | CL85: =IF($O$21<>0,SUM(BZ85:CK85)*$O$21+$N$21,-1) -> -1 | CN85: 7.594754247e-60 | CO85: 0 | CP85: 0 | CQ85: 0 | CR85: 0 | CS85: 0 | CT85: 0 | CU85: 0 | CV85: 0 | CW85: 0 | CX85: 0 | CY85: 0 | CZ85: =IF($O$23<>0,SUM(CN85:CY85)*$O$23+$N$23,-1) -> -1
A86: 4 | B86: =IF(B9>0,IF($L$20>0,$B$20*$L$20*M86/$K$20,0),"") -> 0.077826008 | C86: =IF(B9>0,K$86*10^(-M$86*$H$20),"") -> 40.10112532 | D86: =IF(B9>0,IF($D$82="k'",C86,C86/(LN(10)*B86*(C86/2-$J$20/$B$20)+1)),"") -> 8.730768159 | E86: 11.17319569 | F86: =IF(B9>0,K86*10^(-M86*$I$20),"") -> 0.03091122668 | G86: =IF(B9>0,IF(B86>0,IF($J$20<$B$20*C86,($B$20/B86)*LOG(LN(10)*C86*B86*(1-$J$20/($B$20*C86))+1)+$B$20+$J$20,$B$20*(1+C86)),$B$20*(1+D86)),"") -> 12.73232905 | H86: =IF(B9>0,IF(G86>$K$20+$J$20,G86-$K$20-$J$20,0),"") -> 0 | I86: 0 | K86: 240.667053 | L86: =IF(C9<>"",SPmodel!J10+LOG($G$20),"") -> 2.38141664 | M86: =SPmodel!K10 -> 3.8913004 | O86: tR-tD-tG | P86: time after program hold | AE86: 33.2 | AF86: =IF($L$20>0,IF($AE86<$J$20,$H$20,IF($AE86<$J$20+$K$20,$H$20+((I$20-H$20)*($AE86-J$20)/K$20),$I$20)),$H$20) -> 0.864 | AG86: =IF($L$22>0,IF($AE86<$J$22,$H$22,IF($AE86<$J$22+$K$22,$H$22+((I$22-H$22)*($AE86-J$22)/K$22),$I$22)),$H$22) -> 0.864 | AI86: 1.68 | AJ86: 1.751045534e-63 | AK86: 0 | AL86: 0 | AM86: 0 | AN86: 0 | AO86: 0 | AP86: 0 | AQ86: 0 | AR86: 0 | AS86: 0 | AT86: 0 | AU86: 0 | AV86: =IF($O$20<>0,SUM(AJ86:AU86)*$O$20+$N$20,-1) -> 11 | AX86: 1.751045534e-63 | AY86: 0 | AZ86: 0 | BA86: 0 | BB86: 0 | BC86: 0 | BD86: 0 | BE86: 0 | BF86: 0 | BG86: 0 | BH86: 0 | BI86: 0 | BJ86: =IF($O$22<>0,SUM(AX86:BI86)*$O$22+$N$22,-1) -> 15 | BL86: 1.751045534e-63 | BM86: 0 | BN86: 0 | BO86: 0 | BP86: 0 | BQ86: 0 | BR86: 0 | BS86: 0 | BT86: 0 | BU86: 0 | BV86: 0 | BW86: 0 | BX86: =IF($O$24<>0,SUM(BL86:BW86)*$O$24+$N$24,-1) -> 10 | BZ86: 1.751045534e-63 | CA86: 0 | CB86: 0 | CC86: 0 | CD86: 0 | CE86: 0 | CF86: 0 | CG86: 0 | CH86: 0 | CI86: 0 | CJ86: 0 | CK86: 0 | CL86: =IF($O$21<>0,SUM(BZ86:CK86)*$O$21+$N$21,-1) -> -1 | CN86: 1.751045534e-63 | CO86: 0 | CP86: 0 | CQ86: 0 | CR86: 0 | CS86: 0 | CT86: 0 | CU86: 0 | CV86: 0 | CW86: 0 | CX86: 0 | CY86: 0 | CZ86: =IF($O$23<>0,SUM(CN86:CY86)*$O$23+$N$23,-1) -> -1
A87: 5 | B87: =IF(B10>0,IF($L$20>0,$B$20*$L$20*M87/$K$20,0),"") -> 0.1233584674 | C87: =IF(B10>0,K$87*10^(-M$87*$H$20),"") -> 666.3611552 | D87: =IF(B10>0,IF($D$82="k'",C87,C87/(LN(10)*B87*(C87/2-$J$20/$B$20)+1)),"") -> 6.967554865 | E87: 7.049092255 | F87: =IF(B10>0,K87*10^(-M87*$I$20),"") -> 0.007751236273 | G87: =IF(B10>0,IF(B87>0,IF($J$20<$B$20*C87,($B$20/B87)*LOG(LN(10)*C87*B87*(1-$J$20/($B$20*C87))+1)+$B$20+$J$20,$B$20*(1+C87)),$B$20*(1+D87)),"") -> 19.47771656 | H87: =IF(B10>0,IF(G87>$K$20+$J$20,G87-$K$20-$J$20,0),"") -> 0 | I87: 0 | K87: 11410.22863 | L87: =IF(C10<>"",SPmodel!J11+LOG($G$20),"") -> 4.057294347 | M87: =SPmodel!K11 -> 6.167923371 | O87: ke | P87: k' at end of program | AE87: 33.6 | AF87: =IF($L$20>0,IF($AE87<$J$20,$H$20,IF($AE87<$J$20+$K$20,$H$20+((I$20-H$20)*($AE87-J$20)/K$20),$I$20)),$H$20) -> 0.872 | AG87: =IF($L$22>0,IF($AE87<$J$22,$H$22,IF($AE87<$J$22+$K$22,$H$22+((I$22-H$22)*($AE87-J$22)/K$22),$I$22)),$H$22) -> 0.872 | AI87: 1.7 | AJ87: 3.144180957e-67 | AK87: 0 | AL87: 0 | AM87: 0 | AN87: 0 | AO87: 0 | AP87: 0 | AQ87: 0 | AR87: 0 | AS87: 0 | AT87: 0 | AU87: 0 | AV87: =IF($O$20<>0,SUM(AJ87:AU87)*$O$20+$N$20,-1) -> 11 | AX87: 3.144180957e-67 | AY87: 0 | AZ87: 0 | BA87: 0 | BB87: 0 | BC87: 0 | BD87: 0 | BE87: 0 | BF87: 0 | BG87: 0 | BH87: 0 | BI87: 0 | BJ87: =IF($O$22<>0,SUM(AX87:BI87)*$O$22+$N$22,-1) -> 15 | BL87: 3.144180957e-67 | BM87: 0 | BN87: 0 | BO87: 0 | BP87: 0 | BQ87: 0 | BR87: 0 | BS87: 0 | BT87: 0 | BU87: 0 | BV87: 0 | BW87: 0 | BX87: =IF($O$24<>0,SUM(BL87:BW87)*$O$24+$N$24,-1) -> 10 | BZ87: 3.144180957e-67 | CA87: 0 | CB87: 0 | CC87: 0 | CD87: 0 | CE87: 0 | CF87: 0 | CG87: 0 | CH87: 0 | CI87: 0 | CJ87: 0 | CK87: 0 | CL87: =IF($O$21<>0,SUM(BZ87:CK87)*$O$21+$N$21,-1) -> -1 | CN87: 3.144180957e-67 | CO87: 0 | CP87: 0 | CQ87: 0 | CR87: 0 | CS87: 0 | CT87: 0 | CU87: 0 | CV87: 0 | CW87: 0 | CX87: 0 | CY87: 0 | CZ87: =IF($O$23<>0,SUM(CN87:CY87)*$O$23+$N$23,-1) -> -1
A88: 6 | B88: =IF(B11>0,IF($L$20>0,$B$20*$L$20*M88/$K$20,0),"") -> 0.1347807497 | C88: =IF(B11>0,K$88*10^(-M$88*$H$20),"") -> 1370.988956 | D88: =IF(B11>0,IF($D$82="k'",C88,C88/(LN(10)*B88*(C88/2-$J$20/$B$20)+1)),"") -> 6.414307579 | E88: 6.451701888 | F88: =IF(B11>0,K88*10^(-M88*$I$20),"") -> 0.005569343025 | G88: =IF(B11>0,IF(B88>0,IF($J$20<$B$20*C88,($B$20/B88)*LOG(LN(10)*C88*B88*(1-$J$20/($B$20*C88))+1)+$B$20+$J$20,$B$20*(1+C88)),$B$20*(1+D88)),"") -> 20.51240842 | H88: =IF(B11>0,IF(G88>$K$20+$J$20,G88-$K$20-$J$20,0),"") -> 0 | I88: 0 | K88: 30538.06065 | L88: =IF(C11<>"",SPmodel!J12+LOG($G$20),"") -> 4.484841453 | M88: =SPmodel!K12 -> 6.739037486 | O88: tadd | P88: time to add to program end | AE88: 34 | AF88: =IF($L$20>0,IF($AE88<$J$20,$H$20,IF($AE88<$J$20+$K$20,$H$20+((I$20-H$20)*($AE88-J$20)/K$20),$I$20)),$H$20) -> 0.88 | AG88: =IF($L$22>0,IF($AE88<$J$22,$H$22,IF($AE88<$J$22+$K$22,$H$22+((I$22-H$22)*($AE88-J$22)/K$22),$I$22)),$H$22) -> 0.88 | AI88: 1.72 | AJ88: 4.396873856e-71 | AK88: 0 | AL88: 0 | AM88: 0 | AN88: 0 | AO88: 0 | AP88: 0 | AQ88: 0 | AR88: 0 | AS88: 0 | AT88: 0 | AU88: 0 | AV88: =IF($O$20<>0,SUM(AJ88:AU88)*$O$20+$N$20,-1) -> 11 | AX88: 4.396873856e-71 | AY88: 0 | AZ88: 0 | BA88: 0 | BB88: 0 | BC88: 0 | BD88: 0 | BE88: 0 | BF88: 0 | BG88: 0 | BH88: 0 | BI88: 0 | BJ88: =IF($O$22<>0,SUM(AX88:BI88)*$O$22+$N$22,-1) -> 15 | BL88: 4.396873856e-71 | BM88: 0 | BN88: 0 | BO88: 0 | BP88: 0 | BQ88: 0 | BR88: 0 | BS88: 0 | BT88: 0 | BU88: 0 | BV88: 0 | BW88: 0 | BX88: =IF($O$24<>0,SUM(BL88:BW88)*$O$24+$N$24,-1) -> 10 | BZ88: 4.396873856e-71 | CA88: 0 | CB88: 0 | CC88: 0 | CD88: 0 | CE88: 0 | CF88: 0 | CG88: 0 | CH88: 0 | CI88: 0 | CJ88: 0 | CK88: 0 | CL88: =IF($O$21<>0,SUM(BZ88:CK88)*$O$21+$N$21,-1) -> -1 | CN88: 4.396873856e-71 | CO88: 0 | CP88: 0 | CQ88: 0 | CR88: 0 | CS88: 0 | CT88: 0 | CU88: 0 | CV88: 0 | CW88: 0 | CX88: 0 | CY88: 0 | CZ88: =IF($O$23<>0,SUM(CN88:CY88)*$O$23+$N$23,-1) -> -1
A89: 7 | B89: =IF(B12>0,IF($L$20>0,$B$20*$L$20*M89/$K$20,0),"") -> 0.1403578469 | C89: =IF(B12>0,K89*10^(-M89*$H$20),"") -> 7658.866828 | D89: =IF(B12>0,IF($D$82="k'",C89,C89/(LN(10)*B89*(C89/2-$J$20/$B$20)+1)),"") -> 6.183392857 | E89: 6.19534452 | F89: =IF(B12>0,K89*10^(-M89*$I$20),"") -> 0.01861446865 | G89: =IF(B12>0,IF(B89>0,IF($J$20<$B$20*C89,($B$20/B89)*LOG(LN(10)*C89*B89*(1-$J$20/($B$20*C89))+1)+$B$20+$J$20,$B$20*(1+C89)),$B$20*(1+D89)),"") -> 25.17956958 | H89: =IF(B12>0,IF(G89>$K$20+$J$20,G89-$K$20-$J$20,0),"") -> 0 | I89: 0 | K89: 193973.7611 | L89: =IF(C12<>"",SPmodel!J13+LOG($G$20),"") -> 5.287742987 | M89: =SPmodel!K13 -> 7.017892343 | AE89: 34.4 | AF89: =IF($L$20>0,IF($AE89<$J$20,$H$20,IF($AE89<$J$20+$K$20,$H$20+((I$20-H$20)*($AE89-J$20)/K$20),$I$20)),$H$20) -> 0.888 | AG89: =IF($L$22>0,IF($AE89<$J$22,$H$22,IF($AE89<$J$22+$K$22,$H$22+((I$22-H$22)*($AE89-J$22)/K$22),$I$22)),$H$22) -> 0.888 | AI89: 1.74 | AJ89: 4.788581229e-75 | AK89: 0 | AL89: 0 | AM89: 0 | AN89: 0 | AO89: 0 | AP89: 0 | AQ89: 0 | AR89: 0 | AS89: 0 | AT89: 0 | AU89: 0 | AV89: =IF($O$20<>0,SUM(AJ89:AU89)*$O$20+$N$20,-1) -> 11 | AX89: 4.788581229e-75 | AY89: 0 | AZ89: 0 | BA89: 0 | BB89: 0 | BC89: 0 | BD89: 0 | BE89: 0 | BF89: 0 | BG89: 0 | BH89: 0 | BI89: 0 | BJ89: =IF($O$22<>0,SUM(AX89:BI89)*$O$22+$N$22,-1) -> 15 | BL89: 4.788581229e-75 | BM89: 0 | BN89: 0 | BO89: 0 | BP89: 0 | BQ89: 0 | BR89: 0 | BS89: 0 | BT89: 0 | BU89: 0 | BV89: 0 | BW89: 0 | BX89: =IF($O$24<>0,SUM(BL89:BW89)*$O$24+$N$24,-1) -> 10 | BZ89: 4.788581229e-75 | CA89: 0 | CB89: 0 | CC89: 0 | CD89: 0 | CE89: 0 | CF89: 0 | CG89: 0 | CH89: 0 | CI89: 0 | CJ89: 0 | CK89: 0 | CL89: =IF($O$21<>0,SUM(BZ89:CK89)*$O$21+$N$21,-1) -> -1 | CN89: 4.788581229e-75 | CO89: 0 | CP89: 0 | CQ89: 0 | CR89: 0 | CS89: 0 | CT89: 0 | CU89: 0 | CV89: 0 | CW89: 0 | CX89: 0 | CY89: 0 | CZ89: =IF($O$23<>0,SUM(CN89:CY89)*$O$23+$N$23,-1) -> -1
A90: 8 | B90: =IF(B13>0,IF($L$20>0,$B$20*$L$20*M90/$K$20,0),"") -> 0.1927146766 | C90: =IF(B13>0,K90*10^(-M90*$H$20),"") -> 367397.6784 | D90: =IF(B13>0,IF($D$82="k'",C90,C90/(LN(10)*B90*(C90/2-$J$20/$B$20)+1)),"") -> 4.507068812 | E90: 4.512189901 | F90: =IF(B13>0,K90*10^(-M90*$I$20),"") -> 0.007187028131 | G90: =IF(B13>0,IF(B90>0,IF($J$20<$B$20*C90,($B$20/B90)*LOG(LN(10)*C90*B90*(1-$J$20/($B$20*C90))+1)+$B$20+$J$20,$B$20*(1+C90)),$B$20*(1+D90)),"") -> 28.04656253 | H90: =IF(B13>0,IF(G90>$K$20+$J$20,G90-$K$20-$J$20,0),"") -> 0 | I90: 0 | K90: 31065845.16 | L90: =IF(C13<>"",SPmodel!J14+LOG($G$20),"") -> 7.492283173 | M90: =SPmodel!K14 -> 9.635733829 | AE90: 34.8 | AF90: =IF($L$20>0,IF($AE90<$J$20,$H$20,IF($AE90<$J$20+$K$20,$H$20+((I$20-H$20)*($AE90-J$20)/K$20),$I$20)),$H$20) -> 0.896 | AG90: =IF($L$22>0,IF($AE90<$J$22,$H$22,IF($AE90<$J$22+$K$22,$H$22+((I$22-H$22)*($AE90-J$22)/K$22),$I$22)),$H$22) -> 0.896 | AI90: 1.76 | AJ90: 4.061590092e-79 | AK90: 0 | AL90: 0 | AM90: 0 | AN90: 0 | AO90: 0 | AP90: 0 | AQ90: 0 | AR90: 0 | AS90: 0 | AT90: 0 | AU90: 0 | AV90: =IF($O$20<>0,SUM(AJ90:AU90)*$O$20+$N$20,-1) -> 11 | AX90: 4.061590092e-79 | AY90: 0 | AZ90: 0 | BA90: 0 | BB90: 0 | BC90: 0 | BD90: 0 | BE90: 0 | BF90: 0 | BG90: 0 | BH90: 0 | BI90: 0 | BJ90: =IF($O$22<>0,SUM(AX90:BI90)*$O$22+$N$22,-1) -> 15 | BL90: 4.061590092e-79 | BM90: 0 | BN90: 0 | BO90: 0 | BP90: 0 | BQ90: 0 | BR90: 0 | BS90: 0 | BT90: 0 | BU90: 0 | BV90: 0 | BW90: 0 | BX90: =IF($O$24<>0,SUM(BL90:BW90)*$O$24+$N$24,-1) -> 10 | BZ90: 4.061590092e-79 | CA90: 0 | CB90: 0 | CC90: 0 | CD90: 0 | CE90: 0 | CF90: 0 | CG90: 0 | CH90: 0 | CI90: 0 | CJ90: 0 | CK90: 0 | CL90: =IF($O$21<>0,SUM(BZ90:CK90)*$O$21+$N$21,-1) -> -1 | CN90: 4.061590092e-79 | CO90: 0 | CP90: 0 | CQ90: 0 | CR90: 0 | CS90: 0 | CT90: 0 | CU90: 0 | CV90: 0 | CW90: 0 | CX90: 0 | CY90: 0 | CZ90: =IF($O$23<>0,SUM(CN90:CY90)*$O$23+$N$23,-1) -> -1
A91: 9 | B91: =IF(B14>0,IF($L$20>0,$B$20*$L$20*M91/$K$20,0),"") ->  | C91: =IF(B14>0,K91*10^(-M91*$H$20),"") ->  | D91: =IF(B14>0,IF($D$82="k'",C91,C91/(LN(10)*B91*(C91/2-$J$20/$B$20)+1)),"") ->  | F91: =IF(B14>0,K91*10^(-M91*$I$20),"") ->  | G91: =IF(B14>0,IF(B91>0,IF($J$20<$B$20*C91,($B$20/B91)*LOG(LN(10)*C91*B91*(1-$J$20/($B$20*C91))+1)+$B$20+$J$20,$B$20*(1+C91)),$B$20*(1+D91)),"") ->  | H91: =IF(B14>0,IF(G91>$K$20+$J$20,G91-$K$20-$J$20,0),"") ->  | L91: =IF(C14<>"",SPmodel!J15+LOG($G$20),"") ->  | M91: =SPmodel!K15 ->  | AE91: 35.2 | AF91: =IF($L$20>0,IF($AE91<$J$20,$H$20,IF($AE91<$J$20+$K$20,$H$20+((I$20-H$20)*($AE91-J$20)/K$20),$I$20)),$H$20) -> 0.904 | AG91: =IF($L$22>0,IF($AE91<$J$22,$H$22,IF($AE91<$J$22+$K$22,$H$22+((I$22-H$22)*($AE91-J$22)/K$22),$I$22)),$H$22) -> 0.904 | AI91: 1.78 | AJ91: 2.682944585e-83 | AK91: 0 | AL91: 0 | AM91: 0 | AN91: 0 | AO91: 0 | AP91: 0 | AQ91: 0 | AR91: 0 | AS91: 0 | AT91: 0 | AU91: 0 | AV91: =IF($O$20<>0,SUM(AJ91:AU91)*$O$20+$N$20,-1) -> 11 | AX91: 2.682944585e-83 | AY91: 0 | AZ91: 0 | BA91: 0 | BB91: 0 | BC91: 0 | BD91: 0 | BE91: 0 | BF91: 0 | BG91: 0 | BH91: 0 | BI91: 0 | BJ91: =IF($O$22<>0,SUM(AX91:BI91)*$O$22+$N$22,-1) -> 15 | BL91: 2.682944585e-83 | BM91: 0 | BN91: 0 | BO91: 0 | BP91: 0 | BQ91: 0 | BR91: 0 | BS91: 0 | BT91: 0 | BU91: 0 | BV91: 0 | BW91: 0 | BX91: =IF($O$24<>0,SUM(BL91:BW91)*$O$24+$N$24,-1) -> 10 | BZ91: 2.682944585e-83 | CA91: 0 | CB91: 0 | CC91: 0 | CD91: 0 | CE91: 0 | CF91: 0 | CG91: 0 | CH91: 0 | CI91: 0 | CJ91: 0 | CK91: 0 | CL91: =IF($O$21<>0,SUM(BZ91:CK91)*$O$21+$N$21,-1) -> -1 | CN91: 2.682944585e-83 | CO91: 0 | CP91: 0 | CQ91: 0 | CR91: 0 | CS91: 0 | CT91: 0 | CU91: 0 | CV91: 0 | CW91: 0 | CX91: 0 | CY91: 0 | CZ91: =IF($O$23<>0,SUM(CN91:CY91)*$O$23+$N$23,-1) -> -1
A92: 10 | B92: =IF(B15>0,IF($L$20>0,$B$20*$L$20*M92/$K$20,0),"") ->  | C92: =IF(B15>0,K92*10^(-M92*$H$20),"") ->  | D92: =IF(B15>0,IF($D$82="k'",C92,C92/(LN(10)*B92*(C92/2-$J$20/$B$20)+1)),"") ->  | F92: =IF(B15>0,K92*10^(-M92*$I$20),"") ->  | G92: =IF(B15>0,IF(B92>0,IF($J$20<$B$20*C92,($B$20/B92)*LOG(LN(10)*C92*B92*(1-$J$20/($B$20*C92))+1)+$B$20+$J$20,$B$20*(1+C92)),$B$20*(1+D92)),"") ->  | H92: =IF(B15>0,IF(G92>$K$20+$J$20,G92-$K$20-$J$20,0),"") ->  | L92: =IF(C15<>"",SPmodel!J16+LOG($G$20),"") ->  | M92: =SPmodel!K16 ->  | AE92: 35.6 | AF92: =IF($L$20>0,IF($AE92<$J$20,$H$20,IF($AE92<$J$20+$K$20,$H$20+((I$20-H$20)*($AE92-J$20)/K$20),$I$20)),$H$20) -> 0.912 | AG92: =IF($L$22>0,IF($AE92<$J$22,$H$22,IF($AE92<$J$22+$K$22,$H$22+((I$22-H$22)*($AE92-J$22)/K$22),$I$22)),$H$22) -> 0.912 | AI92: 1.8 | AJ92: 1.380237091e-87 | AK92: 0 | AL92: 0 | AM92: 0 | AN92: 0 | AO92: 0 | AP92: 0 | AQ92: 0 | AR92: 0 | AS92: 0 | AT92: 0 | AU92: 0 | AV92: =IF($O$20<>0,SUM(AJ92:AU92)*$O$20+$N$20,-1) -> 11 | AX92: 1.380237091e-87 | AY92: 0 | AZ92: 0 | BA92: 0 | BB92: 0 | BC92: 0 | BD92: 0 | BE92: 0 | BF92: 0 | BG92: 0 | BH92: 0 | BI92: 0 | BJ92: =IF($O$22<>0,SUM(AX92:BI92)*$O$22+$N$22,-1) -> 15 | BL92: 1.380237091e-87 | BM92: 0 | BN92: 0 | BO92: 0 | BP92: 0 | BQ92: 0 | BR92: 0 | BS92: 0 | BT92: 0 | BU92: 0 | BV92: 0 | BW92: 0 | BX92: =IF($O$24<>0,SUM(BL92:BW92)*$O$24+$N$24,-1) -> 10 | BZ92: 1.380237091e-87 | CA92: 0 | CB92: 0 | CC92: 0 | CD92: 0 | CE92: 0 | CF92: 0 | CG92: 0 | CH92: 0 | CI92: 0 | CJ92: 0 | CK92: 0 | CL92: =IF($O$21<>0,SUM(BZ92:CK92)*$O$21+$N$21,-1) -> -1 | CN92: 1.380237091e-87 | CO92: 0 | CP92: 0 | CQ92: 0 | CR92: 0 | CS92: 0 | CT92: 0 | CU92: 0 | CV92: 0 | CW92: 0 | CX92: 0 | CY92: 0 | CZ92: =IF($O$23<>0,SUM(CN92:CY92)*$O$23+$N$23,-1) -> -1
A93: 11 | B93: =IF(B16>0,IF($L$20>0,$B$20*$L$20*M93/$K$20,0),"") ->  | C93: =IF(B16>0,K93*10^(-M93*$H$20),"") ->  | D93: =IF(B16>0,IF($D$82="k'",C93,C93/(LN(10)*B93*(C93/2-$J$20/$B$20)+1)),"") ->  | F93: =IF(B16>0,K93*10^(-M93*$I$20),"") ->  | G93: =IF(B16>0,IF(B93>0,IF($J$20<$B$20*C93,($B$20/B93)*LOG(LN(10)*C93*B93*(1-$J$20/($B$20*C93))+1)+$B$20+$J$20,$B$20*(1+C93)),$B$20*(1+D93)),"") ->  | H93: =IF(B16>0,IF(G93>$K$20+$J$20,G93-$K$20-$J$20,0),"") ->  | L93: =IF(C16<>"",SPmodel!J17+LOG($G$20),"") ->  | M93: =SPmodel!K17 ->  | AE93: 36 | AF93: =IF($L$20>0,IF($AE93<$J$20,$H$20,IF($AE93<$J$20+$K$20,$H$20+((I$20-H$20)*($AE93-J$20)/K$20),$I$20)),$H$20) -> 0.92 | AG93: =IF($L$22>0,IF($AE93<$J$22,$H$22,IF($AE93<$J$22+$K$22,$H$22+((I$22-H$22)*($AE93-J$22)/K$22),$I$22)),$H$22) -> 0.92 | AI93: 1.82 | AJ93: 5.529960951e-92 | AK93: 0 | AL93: 0 | AM93: 0 | AN93: 0 | AO93: 0 | AP93: 0 | AQ93: 0 | AR93: 0 | AS93: 0 | AT93: 0 | AU93: 0 | AV93: =IF($O$20<>0,SUM(AJ93:AU93)*$O$20+$N$20,-1) -> 11 | AX93: 5.529960951e-92 | AY93: 0 | AZ93: 0 | BA93: 0 | BB93: 0 | BC93: 0 | BD93: 0 | BE93: 0 | BF93: 0 | BG93: 0 | BH93: 0 | BI93: 0 | BJ93: =IF($O$22<>0,SUM(AX93:BI93)*$O$22+$N$22,-1) -> 15 | BL93: 5.529960951e-92 | BM93: 0 | BN93: 0 | BO93: 0 | BP93: 0 | BQ93: 0 | BR93: 0 | BS93: 0 | BT93: 0 | BU93: 0 | BV93: 0 | BW93: 0 | BX93: =IF($O$24<>0,SUM(BL93:BW93)*$O$24+$N$24,-1) -> 10 | BZ93: 5.529960951e-92 | CA93: 0 | CB93: 0 | CC93: 0 | CD93: 0 | CE93: 0 | CF93: 0 | CG93: 0 | CH93: 0 | CI93: 0 | CJ93: 0 | CK93: 0 | CL93: =IF($O$21<>0,SUM(BZ93:CK93)*$O$21+$N$21,-1) -> -1 | CN93: 5.529960951e-92 | CO93: 0 | CP93: 0 | CQ93: 0 | CR93: 0 | CS93: 0 | CT93: 0 | CU93: 0 | CV93: 0 | CW93: 0 | CX93: 0 | CY93: 0 | CZ93: =IF($O$23<>0,SUM(CN93:CY93)*$O$23+$N$23,-1) -> -1
AE94: 36.4 | AF94: =IF($L$20>0,IF($AE94<$J$20,$H$20,IF($AE94<$J$20+$K$20,$H$20+((I$20-H$20)*($AE94-J$20)/K$20),$I$20)),$H$20) -> 0.928 | AG94: =IF($L$22>0,IF($AE94<$J$22,$H$22,IF($AE94<$J$22+$K$22,$H$22+((I$22-H$22)*($AE94-J$22)/K$22),$I$22)),$H$22) -> 0.928 | AI94: 1.84 | AJ94: 1.725507355e-96 | AK94: 0 | AL94: 0 | AM94: 0 | AN94: 0 | AO94: 0 | AP94: 0 | AQ94: 0 | AR94: 0 | AS94: 0 | AT94: 0 | AU94: 0 | AV94: =IF($O$20<>0,SUM(AJ94:AU94)*$O$20+$N$20,-1) -> 11 | AX94: 1.725507355e-96 | AY94: 0 | AZ94: 0 | BA94: 0 | BB94: 0 | BC94: 0 | BD94: 0 | BE94: 0 | BF94: 0 | BG94: 0 | BH94: 0 | BI94: 0 | BJ94: =IF($O$22<>0,SUM(AX94:BI94)*$O$22+$N$22,-1) -> 15 | BL94: 1.725507355e-96 | BM94: 0 | BN94: 0 | BO94: 0 | BP94: 0 | BQ94: 0 | BR94: 0 | BS94: 0 | BT94: 0 | BU94: 0 | BV94: 0 | BW94: 0 | BX94: =IF($O$24<>0,SUM(BL94:BW94)*$O$24+$N$24,-1) -> 10 | BZ94: 1.725507355e-96 | CA94: 0 | CB94: 0 | CC94: 0 | CD94: 0 | CE94: 0 | CF94: 0 | CG94: 0 | CH94: 0 | CI94: 0 | CJ94: 0 | CK94: 0 | CL94: =IF($O$21<>0,SUM(BZ94:CK94)*$O$21+$N$21,-1) -> -1 | CN94: 1.725507355e-96 | CO94: 0 | CP94: 0 | CQ94: 0 | CR94: 0 | CS94: 0 | CT94: 0 | CU94: 0 | CV94: 0 | CW94: 0 | CX94: 0 | CY94: 0 | CZ94: =IF($O$23<>0,SUM(CN94:CY94)*$O$23+$N$23,-1) -> -1
A95: Calc | D95: =G51 -> Chromlith/MeHO | K95: LSS Parameters Column 2: | AE95: 36.8 | AF95: =IF($L$20>0,IF($AE95<$J$20,$H$20,IF($AE95<$J$20+$K$20,$H$20+((I$20-H$20)*($AE95-J$20)/K$20),$I$20)),$H$20) -> 0.936 | AG95: =IF($L$22>0,IF($AE95<$J$22,$H$22,IF($AE95<$J$22+$K$22,$H$22+((I$22-H$22)*($AE95-J$22)/K$22),$I$22)),$H$22) -> 0.936 | AI95: 1.86 | AJ95: 4.193126307e-101 | AK95: 0 | AL95: 0 | AM95: 0 | AN95: 0 | AO95: 0 | AP95: 0 | AQ95: 0 | AR95: 0 | AS95: 0 | AT95: 0 | AU95: 0 | AV95: =IF($O$20<>0,SUM(AJ95:AU95)*$O$20+$N$20,-1) -> 11 | AX95: 4.193126307e-101 | AY95: 0 | AZ95: 0 | BA95: 0 | BB95: 0 | BC95: 0 | BD95: 0 | BE95: 0 | BF95: 0 | BG95: 0 | BH95: 0 | BI95: 0 | BJ95: =IF($O$22<>0,SUM(AX95:BI95)*$O$22+$N$22,-1) -> 15 | BL95: 4.193126307e-101 | BM95: 0 | BN95: 0 | BO95: 0 | BP95: 0 | BQ95: 0 | BR95: 0 | BS95: 0 | BT95: 0 | BU95: 0 | BV95: 0 | BW95: 0 | BX95: =IF($O$24<>0,SUM(BL95:BW95)*$O$24+$N$24,-1) -> 10 | BZ95: 4.193126307e-101 | CA95: 0 | CB95: 0 | CC95: 0 | CD95: 0 | CE95: 0 | CF95: 0 | CG95: 0 | CH95: 0 | CI95: 0 | CJ95: 0 | CK95: 0 | CL95: =IF($O$21<>0,SUM(BZ95:CK95)*$O$21+$N$21,-1) -> -1 | CN95: 4.193126307e-101 | CO95: 0 | CP95: 0 | CQ95: 0 | CR95: 0 | CS95: 0 | CT95: 0 | CU95: 0 | CV95: 0 | CW95: 0 | CX95: 0 | CY95: 0 | CZ95: =IF($O$23<>0,SUM(CN95:CY95)*$O$23+$N$23,-1) -> -1
A96: Param | B96: b | C96: ko | D96: =IF(B97=0,"k'","k*") -> k* | E96: =IF(B97=0,"","k**") -> k** | F96: ke | G96: tRuncorr | H96: tR-tD-tG | I96: tadd | K96: kw | L96: log(kw) | M96: Slope | AE96: 37.2 | AF96: =IF($L$20>0,IF($AE96<$J$20,$H$20,IF($AE96<$J$20+$K$20,$H$20+((I$20-H$20)*($AE96-J$20)/K$20),$I$20)),$H$20) -> 0.944 | AG96: =IF($L$22>0,IF($AE96<$J$22,$H$22,IF($AE96<$J$22+$K$22,$H$22+((I$22-H$22)*($AE96-J$22)/K$22),$I$22)),$H$22) -> 0.944 | AI96: 1.88 | AJ96: 7.935703882e-106 | AK96: 0 | AL96: 0 | AM96: 0 | AN96: 0 | AO96: 0 | AP96: 0 | AQ96: 0 | AR96: 0 | AS96: 0 | AT96: 0 | AU96: 0 | AV96: =IF($O$20<>0,SUM(AJ96:AU96)*$O$20+$N$20,-1) -> 11 | AX96: 7.935703882e-106 | AY96: 0 | AZ96: 0 | BA96: 0 | BB96: 0 | BC96: 0 | BD96: 0 | BE96: 0 | BF96: 0 | BG96: 0 | BH96: 0 | BI96: 0 | BJ96: =IF($O$22<>0,SUM(AX96:BI96)*$O$22+$N$22,-1) -> 15 | BL96: 7.935703882e-106 | BM96: 0 | BN96: 0 | BO96: 0 | BP96: 0 | BQ96: 0 | BR96: 0 | BS96: 0 | BT96: 0 | BU96: 0 | BV96: 0 | BW96: 0 | BX96: =IF($O$24<>0,SUM(BL96:BW96)*$O$24+$N$24,-1) -> 10 | BZ96: 7.935703882e-106 | CA96: 0 | CB96: 0 | CC96: 0 | CD96: 0 | CE96: 0 | CF96: 0 | CG96: 0 | CH96: 0 | CI96: 0 | CJ96: 0 | CK96: 0 | CL96: =IF($O$21<>0,SUM(BZ96:CK96)*$O$21+$N$21,-1) -> -1 | CN96: 7.935703882e-106 | CO96: 0 | CP96: 0 | CQ96: 0 | CR96: 0 | CS96: 0 | CT96: 0 | CU96: 0 | CV96: 0 | CW96: 0 | CX96: 0 | CY96: 0 | CZ96: =IF($O$23<>0,SUM(CN96:CY96)*$O$23+$N$23,-1) -> -1
A97: 1 | B97: =IF(B6>0,IF($L$22>0,$B$20*$L$22*M97/$K$22,0),"") -> 0.049050824 | C97: =IF(B6>0,K97*10^(-M97*$H$22),"") -> 3.185690937 | D97: =IF(B6>0,IF($D$96="k'",C97,C97/(LN(10)*B97*(C97/2-$J$22/$B$20)+1)),"") -> 2.699962649 | E97: =IF(AND(B6>0,B97>0),1/(1.15*B97),"") -> 17.72784118 | F97: =IF(B6>0,K97*10^(-M97*$I$22),"") -> 0.03476727718 | G97: =IF(B6>0,IF(B97>0,IF($J$22<$B$20*C97,($B$20/B97)*LOG(LN(10)*C97*B97*(1-$J$22/($B$20*C97))+1)+$B$20+$J$22,$B$20*(1+C97)),$B$20*(1+D97)),"") -> 3.721182043 | H97: =IF(B6>0,IF(G97>$K$22+$J$22,G97-$K$22-$J$22,0),"") -> 0 | I97: =IF(AND(B6>0,B97>0),(1+F97)*MIN(H97*B97/(LOG(LN(10)*F97*B97+1)+B97),$K$6),"") -> 0 | K97: =IF($B6>0,10^L97,"") -> 9.856253843 | L97: =IF(C6<>"",SPmodel!O7+LOG($G$22),"") -> 0.99371188 | M97: =SPmodel!P7 -> 2.4525412 | AE97: 37.6 | AF97: =IF($L$20>0,IF($AE97<$J$20,$H$20,IF($AE97<$J$20+$K$20,$H$20+((I$20-H$20)*($AE97-J$20)/K$20),$I$20)),$H$20) -> 0.952 | AG97: =IF($L$22>0,IF($AE97<$J$22,$H$22,IF($AE97<$J$22+$K$22,$H$22+((I$22-H$22)*($AE97-J$22)/K$22),$I$22)),$H$22) -> 0.952 | AI97: 1.9 | AJ97: 1.169659204e-110 | AK97: 0 | AL97: 0 | AM97: 0 | AN97: 0 | AO97: 0 | AP97: 0 | AQ97: 0 | AR97: 0 | AS97: 0 | AT97: 0 | AU97: 0 | AV97: =IF($O$20<>0,SUM(AJ97:AU97)*$O$20+$N$20,-1) -> 11 | AX97: 1.169659204e-110 | AY97: 0 | AZ97: 0 | BA97: 0 | BB97: 0 | BC97: 0 | BD97: 0 | BE97: 0 | BF97: 0 | BG97: 0 | BH97: 0 | BI97: 0 | BJ97: =IF($O$22<>0,SUM(AX97:BI97)*$O$22+$N$22,-1) -> 15 | BL97: 1.169659204e-110 | BM97: 0 | BN97: 0 | BO97: 0 | BP97: 0 | BQ97: 0 | BR97: 0 | BS97: 0 | BT97: 0 | BU97: 0 | BV97: 0 | BW97: 0 | BX97: =IF($O$24<>0,SUM(BL97:BW97)*$O$24+$N$24,-1) -> 10 | BZ97: 1.169659204e-110 | CA97: 1.649500847e-296 | CB97: 0 | CC97: 0 | CD97: 0 | CE97: 0 | CF97: 0 | CG97: 0 | CH97: 0 | CI97: 0 | CJ97: 0 | CK97: 0 | CL97: =IF($O$21<>0,SUM(BZ97:CK97)*$O$21+$N$21,-1) -> -1 | CN97: 1.169659204e-110 | CO97: 0 | CP97: 0 | CQ97: 0 | CR97: 0 | CS97: 0 | CT97: 0 | CU97: 0 | CV97: 0 | CW97: 0 | CX97: 0 | CY97: 0 | CZ97: =IF($O$23<>0,SUM(CN97:CY97)*$O$23+$N$23,-1) -> -1
A98: 2 | B98: =IF(B7>0,IF($L$22>0,$B$20*$L$22*M98/$K$22,0),"") -> 0.063419808 | C98: =IF(B7>0,K98*10^(-M98*$H$22),"") -> 13.73194578 | D98: =IF(B7>0,IF($D$96="k'",C98,C98/(LN(10)*B98*(C98/2-$J$22/$B$20)+1)),"") -> 6.856940178 | E98: 13.71125591 | F98: =IF(B7>0,K98*10^(-M98*$I$22),"") -> 0.03989695584 | G98: =IF(B7>0,IF(B98>0,IF($J$22<$B$20*C98,($B$20/B98)*LOG(LN(10)*C98*B98*(1-$J$22/($B$20*C98))+1)+$B$20+$J$22,$B$20*(1+C98)),$B$20*(1+D98)),"") -> 8.535238611 | H98: =IF(B7>0,IF(G98>$K$22+$J$22,G98-$K$22-$J$22,0),"") -> 0 | I98: 0 | K98: 59.14665113 | L98: =IF(C7<>"",SPmodel!O8+LOG($G$22),"") -> 1.77193016 | M98: =SPmodel!P8 -> 3.1709904 | AE98: 38 | AF98: =IF($L$20>0,IF($AE98<$J$20,$H$20,IF($AE98<$J$20+$K$20,$H$20+((I$20-H$20)*($AE98-J$20)/K$20),$I$20)),$H$20) -> 0.96 | AG98: =IF($L$22>0,IF($AE98<$J$22,$H$22,IF($AE98<$J$22+$K$22,$H$22+((I$22-H$22)*($AE98-J$22)/K$22),$I$22)),$H$22) -> 0.96 | AI98: 1.92 | AJ98: 1.342640091e-115 | AK98: 0 | AL98: 0 | AM98: 0 | AN98: 0 | AO98: 0 | AP98: 0 | AQ98: 0 | AR98: 0 | AS98: 0 | AT98: 0 | AU98: 0 | AV98: =IF($O$20<>0,SUM(AJ98:AU98)*$O$20+$N$20,-1) -> 11 | AX98: 1.342640091e-115 | AY98: 0 | AZ98: 0 | BA98: 0 | BB98: 0 | BC98: 0 | BD98: 0 | BE98: 0 | BF98: 0 | BG98: 0 | BH98: 0 | BI98: 0 | BJ98: =IF($O$22<>0,SUM(AX98:BI98)*$O$22+$N$22,-1) -> 15 | BL98: 1.342640091e-115 | BM98: 0 | BN98: 0 | BO98: 0 | BP98: 0 | BQ98: 0 | BR98: 0 | BS98: 0 | BT98: 0 | BU98: 0 | BV98: 0 | BW98: 0 | BX98: =IF($O$24<>0,SUM(BL98:BW98)*$O$24+$N$24,-1) -> 10 | BZ98: 1.342640091e-115 | CA98: 8.960517137e-280 | CB98: 0 | CC98: 0 | CD98: 0 | CE98: 0 | CF98: 0 | CG98: 0 | CH98: 0 | CI98: 0 | CJ98: 0 | CK98: 0 | CL98: =IF($O$21<>0,SUM(BZ98:CK98)*$O$21+$N$21,-1) -> -1 | CN98: 1.342640091e-115 | CO98: 0 | CP98: 0 | CQ98: 0 | CR98: 0 | CS98: 0 | CT98: 0 | CU98: 0 | CV98: 0 | CW98: 0 | CX98: 0 | CY98: 0 | CZ98: =IF($O$23<>0,SUM(CN98:CY98)*$O$23+$N$23,-1) -> -1
A99: 3 | B99: =IF(B8>0,IF($L$22>0,$B$20*$L$22*M99/$K$22,0),"") -> 0.062417876 | C99: =IF(B8>0,K99*10^(-M99*$H$22),"") -> 46.7013527 | D99: =IF(B8>0,IF($D$96="k'",C99,C99/(LN(10)*B99*(C99/2-$J$22/$B$20)+1)),"") -> 10.72111375 | E99: 13.93134905 | F99: =IF(B8>0,K99*10^(-M99*$I$22),"") -> 0.1488039364 | G99: =IF(B8>0,IF(B99>0,IF($J$22<$B$20*C99,($B$20/B99)*LOG(LN(10)*C99*B99*(1-$J$22/($B$20*C99))+1)+$B$20+$J$22,$B$20*(1+C99)),$B$20*(1+D99)),"") -> 15.21337894 | H99: =IF(B8>0,IF(G99>$K$22+$J$22,G99-$K$22-$J$22,0),"") -> 0 | I99: 0 | K99: 196.5659185 | L99: =IF(C8<>"",SPmodel!O9+LOG($G$22),"") -> 2.29350822 | M99: =SPmodel!P9 -> 3.1208938 | AE99: 38.4 | AF99: =IF($L$20>0,IF($AE99<$J$20,$H$20,IF($AE99<$J$20+$K$20,$H$20+((I$20-H$20)*($AE99-J$20)/K$20),$I$20)),$H$20) -> 0.968 | AG99: =IF($L$22>0,IF($AE99<$J$22,$H$22,IF($AE99<$J$22+$K$22,$H$22+((I$22-H$22)*($AE99-J$22)/K$22),$I$22)),$H$22) -> 0.968 | AI99: 1.94 | AJ99: 1.200290196e-120 | AK99: 0 | AL99: 0 | AM99: 0 | AN99: 0 | AO99: 0 | AP99: 0 | AQ99: 0 | AR99: 0 | AS99: 0 | AT99: 0 | AU99: 0 | AV99: =IF($O$20<>0,SUM(AJ99:AU99)*$O$20+$N$20,-1) -> 11 | AX99: 1.200290196e-120 | AY99: 0 | AZ99: 0 | BA99: 0 | BB99: 0 | BC99: 0 | BD99: 0 | BE99: 0 | BF99: 0 | BG99: 0 | BH99: 0 | BI99: 0 | BJ99: =IF($O$22<>0,SUM(AX99:BI99)*$O$22+$N$22,-1) -> 15 | BL99: 1.200290196e-120 | BM99: 0 | BN99: 0 | BO99: 0 | BP99: 0 | BQ99: 0 | BR99: 0 | BS99: 0 | BT99: 0 | BU99: 0 | BV99: 0 | BW99: 0 | BX99: =IF($O$24<>0,SUM(BL99:BW99)*$O$24+$N$24,-1) -> 10 | BZ99: 1.200290196e-120 | CA99: 1.59309512e-263 | CB99: 0 | CC99: 0 | CD99: 0 | CE99: 0 | CF99: 0 | CG99: 0 | CH99: 0 | CI99: 0 | CJ99: 0 | CK99: 0 | CL99: =IF($O$21<>0,SUM(BZ99:CK99)*$O$21+$N$21,-1) -> -1 | CN99: 1.200290196e-120 | CO99: 0 | CP99: 0 | CQ99: 0 | CR99: 0 | CS99: 0 | CT99: 0 | CU99: 0 | CV99: 0 | CW99: 0 | CX99: 0 | CY99: 0 | CZ99: =IF($O$23<>0,SUM(CN99:CY99)*$O$23+$N$23,-1) -> -1
A100: 4 | B100: =IF(B9>0,IF($L$22>0,$B$20*$L$22*M100/$K$22,0),"") -> 0.068903264 | C100: =IF(B9>0,K100*10^(-M100*$H$22),"") -> 74.60477759 | D100: =IF(B9>0,IF($D$96="k'",C100,C100/(LN(10)*B100*(C100/2-$J$22/$B$20)+1)),"") -> 10.78378936 | E100: 12.62008745 | F100: =IF(B9>0,K100*10^(-M100*$I$22),"") -> 0.1308085345 | G100: =IF(B9>0,IF(B100>0,IF($J$22<$B$20*C100,($B$20/B100)*LOG(LN(10)*C100*B100*(1-$J$22/($B$20*C100))+1)+$B$20+$J$22,$B$20*(1+C100)),$B$20*(1+D100)),"") -> 17.08698158 | H100: =IF(B9>0,IF(G100>$K$22+$J$22,G100-$K$22-$J$22,0),"") -> 0 | I100: 0 | K100: 364.5854058 | L100: =IF(C9<>"",SPmodel!O10+LOG($G$22),"") -> 2.56179928 | M100: =SPmodel!P10 -> 3.4451632 | AE100: 38.8 | AF100: =IF($L$20>0,IF($AE100<$J$20,$H$20,IF($AE100<$J$20+$K$20,$H$20+((I$20-H$20)*($AE100-J$20)/K$20),$I$20)),$H$20) -> 0.976 | AG100: =IF($L$22>0,IF($AE100<$J$22,$H$22,IF($AE100<$J$22+$K$22,$H$22+((I$22-H$22)*($AE100-J$22)/K$22),$I$22)),$H$22) -> 0.976 | AI100: 1.96 | AJ100: 8.356786104e-126 | AK100: 0 | AL100: 0 | AM100: 0 | AN100: 0 | AO100: 0 | AP100: 0 | AQ100: 0 | AR100: 0 | AS100: 0 | AT100: 0 | AU100: 0 | AV100: =IF($O$20<>0,SUM(AJ100:AU100)*$O$20+$N$20,-1) -> 11 | AX100: 8.356786104e-126 | AY100: 0 | AZ100: 0 | BA100: 0 | BB100: 0 | BC100: 0 | BD100: 0 | BE100: 0 | BF100: 0 | BG100: 0 | BH100: 0 | BI100: 0 | BJ100: =IF($O$22<>0,SUM(AX100:BI100)*$O$22+$N$22,-1) -> 15 | BL100: 8.356786104e-126 | BM100: 0 | BN100: 0 | BO100: 0 | BP100: 0 | BQ100: 0 | BR100: 0 | BS100: 0 | BT100: 0 | BU100: 0 | BV100: 0 | BW100: 0 | BX100: =IF($O$24<>0,SUM(BL100:BW100)*$O$24+$N$24,-1) -> 10 | BZ100: 8.356786104e-126 | CA100: 9.269972383e-248 | CB100: 0 | CC100: 0 | CD100: 0 | CE100: 0 | CF100: 0 | CG100: 0 | CH100: 0 | CI100: 0 | CJ100: 0 | CK100: 0 | CL100: =IF($O$21<>0,SUM(BZ100:CK100)*$O$21+$N$21,-1) -> -1 | CN100: 8.356786104e-126 | CO100: 0 | CP100: 0 | CQ100: 0 | CR100: 0 | CS100: 0 | CT100: 0 | CU100: 0 | CV100: 0 | CW100: 0 | CX100: 0 | CY100: 0 | CZ100: =IF($O$23<>0,SUM(CN100:CY100)*$O$23+$N$23,-1) -> -1
A101: 5 | B101: =IF(B10>0,IF($L$22>0,$B$20*$L$22*M101/$K$22,0),"") -> 0.106264328 | C101: =IF(B10>0,K101*10^(-M101*$H$22),"") -> 2024.919115 | D101: =IF(B10>0,IF($D$96="k'",C101,C101/(LN(10)*B101*(C101/2-$J$22/$B$20)+1)),"") -> 8.140990515 | E101: 8.183039725 | F101: =IF(B10>0,K101*10^(-M101*$I$22),"") -> 0.1137194001 | G101: =IF(B10>0,IF(B101>0,IF($J$22<$B$20*C101,($B$20/B101)*LOG(LN(10)*C101*B101*(1-$J$22/($B$20*C101))+1)+$B$20+$J$22,$B$20*(1+C101)),$B$20*(1+D101)),"") -> 26.36962854 | H101: =IF(B10>0,IF(G101>$K$22+$J$22,G101-$K$22-$J$22,0),"") -> 0 | I101: 0 | K101: 23391.11693 | L101: =IF(C10<>"",SPmodel!O11+LOG($G$22),"") -> 4.36905096 | M101: =SPmodel!P11 -> 5.3132164 | AE101: 39.2 | AF101: =IF($L$20>0,IF($AE101<$J$20,$H$20,IF($AE101<$J$20+$K$20,$H$20+((I$20-H$20)*($AE101-J$20)/K$20),$I$20)),$H$20) -> 0.984 | AG101: =IF($L$22>0,IF($AE101<$J$22,$H$22,IF($AE101<$J$22+$K$22,$H$22+((I$22-H$22)*($AE101-J$22)/K$22),$I$22)),$H$22) -> 0.984 | AI101: 1.98 | AJ101: 4.531256984e-131 | AK101: 0 | AL101: 0 | AM101: 0 | AN101: 0 | AO101: 0 | AP101: 0 | AQ101: 0 | AR101: 0 | AS101: 0 | AT101: 0 | AU101: 0 | AV101: =IF($O$20<>0,SUM(AJ101:AU101)*$O$20+$N$20,-1) -> 11 | AX101: 4.531256984e-131 | AY101: 0 | AZ101: 0 | BA101: 0 | BB101: 0 | BC101: 0 | BD101: 0 | BE101: 0 | BF101: 0 | BG101: 0 | BH101: 0 | BI101: 0 | BJ101: =IF($O$22<>0,SUM(AX101:BI101)*$O$22+$N$22,-1) -> 15 | BL101: 4.531256984e-131 | BM101: 0 | BN101: 0 | BO101: 0 | BP101: 0 | BQ101: 0 | BR101: 0 | BS101: 0 | BT101: 0 | BU101: 0 | BV101: 0 | BW101: 0 | BX101: =IF($O$24<>0,SUM(BL101:BW101)*$O$24+$N$24,-1) -> 10 | BZ101: 4.531256984e-131 | CA101: 1.765400616e-232 | CB101: 0 | CC101: 0 | CD101: 0 | CE101: 0 | CF101: 0 | CG101: 0 | CH101: 0 | CI101: 0 | CJ101: 0 | CK101: 0 | CL101: =IF($O$21<>0,SUM(BZ101:CK101)*$O$21+$N$21,-1) -> -1 | CN101: 4.531256984e-131 | CO101: 0 | CP101: 0 | CQ101: 0 | CR101: 0 | CS101: 0 | CT101: 0 | CU101: 0 | CV101: 0 | CW101: 0 | CX101: 0 | CY101: 0 | CZ101: =IF($O$23<>0,SUM(CN101:CY101)*$O$23+$N$23,-1) -> -1
A102: 6 | B102: =IF(B11>0,IF($L$22>0,$B$20*$L$22*M102/$K$22,0),"") -> 0.115781552 | C102: =IF(B11>0,K102*10^(-M102*$H$22),"") -> 4467.306189 | D102: =IF(B11>0,IF($D$96="k'",C102,C102/(LN(10)*B102*(C102/2-$J$22/$B$20)+1)),"") -> 7.489386432 | E102: 7.510395243 | F102: =IF(B11>0,K102*10^(-M102*$I$22),"") -> 0.1044199882 | G102: =IF(B11>0,IF(B102>0,IF($J$22<$B$20*C102,($B$20/B102)*LOG(LN(10)*C102*B102*(1-$J$22/($B$20*C102))+1)+$B$20+$J$22,$B$20*(1+C102)),$B$20*(1+D102)),"") -> 27.56956333 | H102: =IF(B11>0,IF(G102>$K$22+$J$22,G102-$K$22-$J$22,0),"") -> 0 | I102: 0 | K102: 64248.24071 | L102: =IF(C11<>"",SPmodel!O12+LOG($G$22),"") -> 4.80786124 | M102: =SPmodel!P12 -> 5.7890776 | AE102: 39.6 | AF102: =IF($L$20>0,IF($AE102<$J$20,$H$20,IF($AE102<$J$20+$K$20,$H$20+((I$20-H$20)*($AE102-J$20)/K$20),$I$20)),$H$20) -> 0.992 | AG102: =IF($L$22>0,IF($AE102<$J$22,$H$22,IF($AE102<$J$22+$K$22,$H$22+((I$22-H$22)*($AE102-J$22)/K$22),$I$22)),$H$22) -> 0.992 | AI102: 2 | AJ102: 1.913482434e-136 | AK102: 0 | AL102: 0 | AM102: 0 | AN102: 0 | AO102: 0 | AP102: 0 | AQ102: 0 | AR102: 0 | AS102: 0 | AT102: 0 | AU102: 0 | AV102: =IF($O$20<>0,SUM(AJ102:AU102)*$O$20+$N$20,-1) -> 11 | AX102: 1.913482434e-136 | AY102: 0 | AZ102: 0 | BA102: 0 | BB102: 0 | BC102: 0 | BD102: 0 | BE102: 0 | BF102: 0 | BG102: 0 | BH102: 0 | BI102: 0 | BJ102: =IF($O$22<>0,SUM(AX102:BI102)*$O$22+$N$22,-1) -> 15 | BL102: 1.913482434e-136 | BM102: 0 | BN102: 0 | BO102: 0 | BP102: 0 | BQ102: 0 | BR102: 0 | BS102: 0 | BT102: 0 | BU102: 0 | BV102: 0 | BW102: 0 | BX102: =IF($O$24<>0,SUM(BL102:BW102)*$O$24+$N$24,-1) -> 10 | BZ102: 1.913482434e-136 | CA102: 1.100363581e-217 | CB102: 0 | CC102: 0 | CD102: 0 | CE102: 0 | CF102: 0 | CG102: 0 | CH102: 0 | CI102: 0 | CJ102: 0 | CK102: 0 | CL102: =IF($O$21<>0,SUM(BZ102:CK102)*$O$21+$N$21,-1) -> -1 | CN102: 1.913482434e-136 | CO102: 0 | CP102: 0 | CQ102: 0 | CR102: 0 | CS102: 0 | CT102: 0 | CU102: 0 | CV102: 0 | CW102: 0 | CX102: 0 | CY102: 0 | CZ102: =IF($O$23<>0,SUM(CN102:CY102)*$O$23+$N$23,-1) -> -1
A103: 7 | B103: =IF(B12>0,IF($L$22>0,$B$20*$L$22*M103/$K$22,0),"") -> 0.117103232 | C103: =IF(B12>0,K103*10^(-M103*$H$22),"") -> 21786.22176 | D103: =IF(B12>0,IF($D$96="k'",C103,C103/(LN(10)*B103*(C103/2-$J$22/$B$20)+1)),"") -> 7.414768419 | E103: 7.425629528 | F103: =IF(B12>0,K103*10^(-M103*$I$22),"") -> 0.4508713505 | G103: =IF(B12>0,IF(B103>0,IF($J$22<$B$20*C103,($B$20/B103)*LOG(LN(10)*C103*B103*(1-$J$22/($B$20*C103))+1)+$B$20+$J$22,$B$20*(1+C103)),$B$20*(1+D103)),"") -> 33.18562246 | H103: =IF(B12>0,IF(G103>$K$22+$J$22,G103-$K$22-$J$22,0),"") -> 0 | I103: 0 | K103: 323008.715 | L103: =IF(C12<>"",SPmodel!O13+LOG($G$22),"") -> 5.50921424 | M103: =SPmodel!P13 -> 5.8551616 | AE103: 40 | AF103: =IF($L$20>0,IF($AE103<$J$20,$H$20,IF($AE103<$J$20+$K$20,$H$20+((I$20-H$20)*($AE103-J$20)/K$20),$I$20)),$H$20) -> 1 | AG103: =IF($L$22>0,IF($AE103<$J$22,$H$22,IF($AE103<$J$22+$K$22,$H$22+((I$22-H$22)*($AE103-J$22)/K$22),$I$22)),$H$22) -> 1 | AI103: 2.02 | AJ103: 6.292984263e-142 | AK103: 0 | AL103: 0 | AM103: 0 | AN103: 0 | AO103: 0 | AP103: 0 | AQ103: 0 | AR103: 0 | AS103: 0 | AT103: 0 | AU103: 0 | AV103: =IF($O$20<>0,SUM(AJ103:AU103)*$O$20+$N$20,-1) -> 11 | AX103: 6.292984263e-142 | AY103: 0 | AZ103: 0 | BA103: 0 | BB103: 0 | BC103: 0 | BD103: 0 | BE103: 0 | BF103: 0 | BG103: 0 | BH103: 0 | BI103: 0 | BJ103: =IF($O$22<>0,SUM(AX103:BI103)*$O$22+$N$22,-1) -> 15 | BL103: 6.292984263e-142 | BM103: 0 | BN103: 0 | BO103: 0 | BP103: 0 | BQ103: 0 | BR103: 0 | BS103: 0 | BT103: 0 | BU103: 0 | BV103: 0 | BW103: 0 | BX103: =IF($O$24<>0,SUM(BL103:BW103)*$O$24+$N$24,-1) -> 10 | BZ103: 6.292984263e-142 | CA103: 2.2446945e-203 | CB103: 0 | CC103: 0 | CD103: 0 | CE103: 0 | CF103: 0 | CG103: 0 | CH103: 0 | CI103: 0 | CJ103: 0 | CK103: 0 | CL103: =IF($O$21<>0,SUM(BZ103:CK103)*$O$21+$N$21,-1) -> -1 | CN103: 6.292984263e-142 | CO103: 0 | CP103: 0 | CQ103: 0 | CR103: 0 | CS103: 0 | CT103: 0 | CU103: 0 | CV103: 0 | CW103: 0 | CX103: 0 | CY103: 0 | CZ103: =IF($O$23<>0,SUM(CN103:CY103)*$O$23+$N$23,-1) -> -1
A104: 8 | B104: =IF(B13>0,IF($L$22>0,$B$20*$L$22*M104/$K$22,0),"") -> 0.160117184 | C104: =IF(B13>0,K104*10^(-M104*$H$22),"") -> 1649441.966 | D104: =IF(B13>0,IF($D$96="k'",C104,C104/(LN(10)*B104*(C104/2-$J$22/$B$20)+1)),"") -> 5.424690127 | E104: 5.430805087 | F104: =IF(B13>0,K104*10^(-M104*$I$22),"") -> 0.6496054801 | G104: =IF(B13>0,IF(B104>0,IF($J$22<$B$20*C104,($B$20/B104)*LOG(LN(10)*C104*B104*(1-$J$22/($B$20*C104))+1)+$B$20+$J$22,$B$20*(1+C104)),$B$20*(1+D104)),"") -> 37.12348932 | H104: =IF(B13>0,IF(G104>$K$22+$J$22,G104-$K$22-$J$22,0),"") -> 0 | I104: 0 | K104: 65842889.27 | L104: =IF(C13<>"",SPmodel!O14+LOG($G$22),"") -> 7.81850888 | M104: =SPmodel!P14 -> 8.0058592 | AI104: 2.04 | AJ104: 1.611814993e-147 | AK104: 1.996866005e-296 | AL104: 0 | AM104: 0 | AN104: 0 | AO104: 0 | AP104: 0 | AQ104: 0 | AR104: 0 | AS104: 0 | AT104: 0 | AU104: 0 | AV104: =IF($O$20<>0,SUM(AJ104:AU104)*$O$20+$N$20,-1) -> 11 | AX104: 1.611814993e-147 | AY104: 0 | AZ104: 0 | BA104: 0 | BB104: 0 | BC104: 0 | BD104: 0 | BE104: 0 | BF104: 0 | BG104: 0 | BH104: 0 | BI104: 0 | BJ104: =IF($O$22<>0,SUM(AX104:BI104)*$O$22+$N$22,-1) -> 15 | BL104: 1.611814993e-147 | BM104: 1.996866005e-296 | BN104: 0 | BO104: 0 | BP104: 0 | BQ104: 0 | BR104: 0 | BS104: 0 | BT104: 0 | BU104: 0 | BV104: 0 | BW104: 0 | BX104: =IF($O$24<>0,SUM(BL104:BW104)*$O$24+$N$24,-1) -> 10 | BZ104: 1.611814993e-147 | CA104: 1.498671255e-189 | CB104: 0 | CC104: 0 | CD104: 0 | CE104: 0 | CF104: 0 | CG104: 0 | CH104: 0 | CI104: 0 | CJ104: 0 | CK104: 0 | CL104: =IF($O$21<>0,SUM(BZ104:CK104)*$O$21+$N$21,-1) -> -1 | CN104: 1.611814993e-147 | CO104: 0 | CP104: 0 | CQ104: 0 | CR104: 0 | CS104: 0 | CT104: 0 | CU104: 0 | CV104: 0 | CW104: 0 | CX104: 0 | CY104: 0 | CZ104: =IF($O$23<>0,SUM(CN104:CY104)*$O$23+$N$23,-1) -> -1
A105: 9 | B105: =IF(B14>0,IF($L$22>0,$B$20*$L$22*M105/$K$22,0),"") ->  | C105: =IF(B14>0,K105*10^(-M105*$H$22),"") ->  | D105: =IF(B14>0,IF($D$96="k'",C105,C105/(LN(10)*B105*(C105/2-$J$22/$B$20)+1)),"") ->  | F105: =IF(B14>0,K105*10^(-M105*$I$22),"") ->  | G105: =IF(B14>0,IF(B105>0,IF($J$22<$B$20*C105,($B$20/B105)*LOG(LN(10)*C105*B105*(1-$J$22/($B$20*C105))+1)+$B$20+$J$22,$B$20*(1+C105)),$B$20*(1+D105)),"") ->  | H105: =IF(B14>0,IF(G105>$K$22+$J$22,G105-$K$22-$J$22,0),"") ->  | L105: =IF(C14<>"",SPmodel!O15+LOG($G$22),"") ->  | M105: =SPmodel!P15 ->  | AI105: 2.06 | AJ105: 3.215141685e-153 | AK105: 2.009857621e-279 | AL105: 0 | AM105: 0 | AN105: 0 | AO105: 0 | AP105: 0 | AQ105: 0 | AR105: 0 | AS105: 0 | AT105: 0 | AU105: 0 | AV105: =IF($O$20<>0,SUM(AJ105:AU105)*$O$20+$N$20,-1) -> 11 | AX105: 3.215141685e-153 | AY105: 0 | AZ105: 0 | BA105: 0 | BB105: 0 | BC105: 0 | BD105: 0 | BE105: 0 | BF105: 0 | BG105: 0 | BH105: 0 | BI105: 0 | BJ105: =IF($O$22<>0,SUM(AX105:BI105)*$O$22+$N$22,-1) -> 15 | BL105: 3.215141685e-153 | BM105: 2.009857621e-279 | BN105: 0 | BO105: 0 | BP105: 0 | BQ105: 0 | BR105: 0 | BS105: 0 | BT105: 0 | BU105: 0 | BV105: 0 | BW105: 0 | BX105: =IF($O$24<>0,SUM(BL105:BW105)*$O$24+$N$24,-1) -> 10 | BZ105: 3.215141685e-153 | CA105: 3.274791189e-176 | CB105: 0 | CC105: 0 | CD105: 0 | CE105: 0 | CF105: 0 | CG105: 0 | CH105: 0 | CI105: 0 | CJ105: 0 | CK105: 0 | CL105: =IF($O$21<>0,SUM(BZ105:CK105)*$O$21+$N$21,-1) -> -1 | CN105: 3.215141685e-153 | CO105: 0 | CP105: 0 | CQ105: 0 | CR105: 0 | CS105: 0 | CT105: 0 | CU105: 0 | CV105: 0 | CW105: 0 | CX105: 0 | CY105: 0 | CZ105: =IF($O$23<>0,SUM(CN105:CY105)*$O$23+$N$23,-1) -> -1
A106: 10 | B106: =IF(B15>0,IF($L$22>0,$B$20*$L$22*M106/$K$22,0),"") ->  | C106: =IF(B15>0,K106*10^(-M106*$H$22),"") ->  | D106: =IF(B15>0,IF($D$96="k'",C106,C106/(LN(10)*B106*(C106/2-$J$22/$B$20)+1)),"") ->  | F106: =IF(B15>0,K106*10^(-M106*$I$22),"") ->  | G106: =IF(B15>0,IF(B106>0,IF($J$22<$B$20*C106,($B$20/B106)*LOG(LN(10)*C106*B106*(1-$J$22/($B$20*C106))+1)+$B$20+$J$22,$B$20*(1+C106)),$B$20*(1+D106)),"") ->  | H106: =IF(B15>0,IF(G106>$K$22+$J$22,G106-$K$22-$J$22,0),"") ->  | L106: =IF(C15<>"",SPmodel!O16+LOG($G$22),"") ->  | M106: =SPmodel!P16 ->  | AI106: 2.08 | AJ106: 4.994723148e-159 | AK106: 6.381033833e-263 | AL106: 0 | AM106: 0 | AN106: 0 | AO106: 0 | AP106: 0 | AQ106: 0 | AR106: 0 | AS106: 0 | AT106: 0 | AU106: 0 | AV106: =IF($O$20<>0,SUM(AJ106:AU106)*$O$20+$N$20,-1) -> 11 | AX106: 4.994723148e-159 | AY106: 0 | AZ106: 0 | BA106: 0 | BB106: 0 | BC106: 0 | BD106: 0 | BE106: 0 | BF106: 0 | BG106: 0 | BH106: 0 | BI106: 0 | BJ106: =IF($O$22<>0,SUM(AX106:BI106)*$O$22+$N$22,-1) -> 15 | BL106: 4.994723148e-159 | BM106: 6.381033833e-263 | BN106: 0 | BO106: 0 | BP106: 0 | BQ106: 0 | BR106: 0 | BS106: 0 | BT106: 0 | BU106: 0 | BV106: 0 | BW106: 0 | BX106: =IF($O$24<>0,SUM(BL106:BW106)*$O$24+$N$24,-1) -> 10 | BZ106: 4.994723148e-159 | CA106: 2.342011101e-163 | CB106: 0 | CC106: 0 | CD106: 0 | CE106: 0 | CF106: 0 | CG106: 0 | CH106: 0 | CI106: 0 | CJ106: 0 | CK106: 0 | CL106: =IF($O$21<>0,SUM(BZ106:CK106)*$O$21+$N$21,-1) -> -1 | CN106: 4.994723148e-159 | CO106: 0 | CP106: 0 | CQ106: 0 | CR106: 0 | CS106: 0 | CT106: 0 | CU106: 0 | CV106: 0 | CW106: 0 | CX106: 0 | CY106: 0 | CZ106: =IF($O$23<>0,SUM(CN106:CY106)*$O$23+$N$23,-1) -> -1
A107: 11 | B107: =IF(B16>0,IF($L$22>0,$B$20*$L$22*M107/$K$22,0),"") ->  | C107: =IF(B16>0,K107*10^(-M107*$H$22),"") ->  | D107: =IF(B16>0,IF($D$96="k'",C107,C107/(LN(10)*B107*(C107/2-$J$22/$B$20)+1)),"") ->  | F107: =IF(B16>0,K107*10^(-M107*$I$22),"") ->  | G107: =IF(B16>0,IF(B107>0,IF($J$22<$B$20*C107,($B$20/B107)*LOG(LN(10)*C107*B107*(1-$J$22/($B$20*C107))+1)+$B$20+$J$22,$B$20*(1+C107)),$B$20*(1+D107)),"") ->  | H107: =IF(B16>0,IF(G107>$K$22+$J$22,G107-$K$22-$J$22,0),"") ->  | L107: =IF(C16<>"",SPmodel!O17+LOG($G$22),"") ->  | M107: =SPmodel!P17 ->  | AI107: 2.1 | AJ107: 6.042951447e-165 | AK107: 6.390372684e-247 | AL107: 0 | AM107: 0 | AN107: 0 | AO107: 0 | AP107: 0 | AQ107: 0 | AR107: 0 | AS107: 0 | AT107: 0 | AU107: 0 | AV107: =IF($O$20<>0,SUM(AJ107:AU107)*$O$20+$N$20,-1) -> 11 | AX107: 6.042951447e-165 | AY107: 0 | AZ107: 0 | BA107: 0 | BB107: 0 | BC107: 0 | BD107: 0 | BE107: 0 | BF107: 0 | BG107: 0 | BH107: 0 | BI107: 0 | BJ107: =IF($O$22<>0,SUM(AX107:BI107)*$O$22+$N$22,-1) -> 15 | BL107: 6.042951447e-165 | BM107: 6.390372684e-247 | BN107: 0 | BO107: 0 | BP107: 0 | BQ107: 0 | BR107: 0 | BS107: 0 | BT107: 0 | BU107: 0 | BV107: 0 | BW107: 0 | BX107: =IF($O$24<>0,SUM(BL107:BW107)*$O$24+$N$24,-1) -> 10 | BZ107: 6.042951447e-165 | CA107: 5.481789896e-151 | CB107: 0 | CC107: 0 | CD107: 0 | CE107: 0 | CF107: 0 | CG107: 0 | CH107: 0 | CI107: 0 | CJ107: 0 | CK107: 0 | CL107: =IF($O$21<>0,SUM(BZ107:CK107)*$O$21+$N$21,-1) -> -1 | CN107: 6.042951447e-165 | CO107: 0 | CP107: 0 | CQ107: 0 | CR107: 0 | CS107: 0 | CT107: 0 | CU107: 0 | CV107: 0 | CW107: 0 | CX107: 0 | CY107: 0 | CZ107: =IF($O$23<>0,SUM(CN107:CY107)*$O$23+$N$23,-1) -> -1
AI108: 2.12 | AJ108: 5.693943697e-171 | AK108: 2.018695018e-231 | AL108: 0 | AM108: 0 | AN108: 0 | AO108: 0 | AP108: 0 | AQ108: 0 | AR108: 0 | AS108: 0 | AT108: 0 | AU108: 0 | AV108: =IF($O$20<>0,SUM(AJ108:AU108)*$O$20+$N$20,-1) -> 11 | AX108: 5.693943697e-171 | AY108: 0 | AZ108: 0 | BA108: 0 | BB108: 0 | BC108: 0 | BD108: 0 | BE108: 0 | BF108: 0 | BG108: 0 | BH108: 0 | BI108: 0 | BJ108: =IF($O$22<>0,SUM(AX108:BI108)*$O$22+$N$22,-1) -> 15 | BL108: 5.693943697e-171 | BM108: 2.018695018e-231 | BN108: 0 | BO108: 0 | BP108: 0 | BQ108: 0 | BR108: 0 | BS108: 0 | BT108: 0 | BU108: 0 | BV108: 0 | BW108: 0 | BX108: =IF($O$24<>0,SUM(BL108:BW108)*$O$24+$N$24,-1) -> 10 | BZ108: 5.693943697e-171 | CA108: 4.199367891e-139 | CB108: 0 | CC108: 0 | CD108: 0 | CE108: 0 | CF108: 0 | CG108: 0 | CH108: 0 | CI108: 0 | CJ108: 0 | CK108: 0 | CL108: =IF($O$21<>0,SUM(BZ108:CK108)*$O$21+$N$21,-1) -> -1 | CN108: 5.693943697e-171 | CO108: 0 | CP108: 0 | CQ108: 0 | CR108: 0 | CS108: 0 | CT108: 0 | CU108: 0 | CV108: 0 | CW108: 0 | CX108: 0 | CY108: 0 | CZ108: =IF($O$23<>0,SUM(CN108:CY108)*$O$23+$N$23,-1) -> -1
V109: Copy for sorting Macro 4 | AI109: 2.14 | AJ109: 4.178338413e-177 | AK109: 2.011521231e-216 | AL109: 0 | AM109: 0 | AN109: 0 | AO109: 0 | AP109: 0 | AQ109: 0 | AR109: 0 | AS109: 0 | AT109: 0 | AU109: 0 | AV109: =IF($O$20<>0,SUM(AJ109:AU109)*$O$20+$N$20,-1) -> 11 | AX109: 4.178338413e-177 | AY109: 0 | AZ109: 0 | BA109: 0 | BB109: 0 | BC109: 0 | BD109: 0 | BE109: 0 | BF109: 0 | BG109: 0 | BH109: 0 | BI109: 0 | BJ109: =IF($O$22<>0,SUM(AX109:BI109)*$O$22+$N$22,-1) -> 15 | BL109: 4.178338413e-177 | BM109: 2.011521231e-216 | BN109: 0 | BO109: 0 | BP109: 0 | BQ109: 0 | BR109: 0 | BS109: 0 | BT109: 0 | BU109: 0 | BV109: 0 | BW109: 0 | BX109: =IF($O$24<>0,SUM(BL109:BW109)*$O$24+$N$24,-1) -> 10 | BZ109: 4.178338413e-177 | CA109: 1.052867114e-127 | CB109: 0 | CC109: 0 | CD109: 0 | CE109: 0 | CF109: 0 | CG109: 0 | CH109: 0 | CI109: 0 | CJ109: 0 | CK109: 0 | CL109: =IF($O$21<>0,SUM(BZ109:CK109)*$O$21+$N$21,-1) -> -1 | CN109: 4.178338413e-177 | CO109: 0 | CP109: 0 | CQ109: 0 | CR109: 0 | CS109: 0 | CT109: 0 | CU109: 0 | CV109: 0 | CW109: 0 | CX109: 0 | CY109: 0 | CZ109: =IF($O$23<>0,SUM(CN109:CY109)*$O$23+$N$23,-1) -> -1
A110: What-If Analysis: | F110: Cells: | V110: Lin 1 | W110: tR ref | X110: W ref | Y110: Nonlinear 1 | AA110: Nonlinear 2 | AI110: 2.16 | AJ110: 2.387923635e-183 | AK110: 6.322486569e-202 | AL110: 0 | AM110: 0 | AN110: 0 | AO110: 0 | AP110: 0 | AQ110: 0 | AR110: 0 | AS110: 0 | AT110: 0 | AU110: 0 | AV110: =IF($O$20<>0,SUM(AJ110:AU110)*$O$20+$N$20,-1) -> 11 | AX110: 2.387923635e-183 | AY110: 0 | AZ110: 0 | BA110: 0 | BB110: 0 | BC110: 0 | BD110: 0 | BE110: 0 | BF110: 0 | BG110: 0 | BH110: 0 | BI110: 0 | BJ110: =IF($O$22<>0,SUM(AX110:BI110)*$O$22+$N$22,-1) -> 15 | BL110: 2.387923635e-183 | BM110: 6.322486569e-202 | BN110: 0 | BO110: 0 | BP110: 0 | BQ110: 0 | BR110: 0 | BS110: 0 | BT110: 0 | BU110: 0 | BV110: 0 | BW110: 0 | BX110: =IF($O$24<>0,SUM(BL110:BW110)*$O$24+$N$24,-1) -> 10 | BZ110: 2.387923635e-183 | CA110: 8.639553517e-117 | CB110: 0 | CC110: 0 | CD110: 0 | CE110: 0 | CF110: 0 | CG110: 0 | CH110: 0 | CI110: 0 | CJ110: 0 | CK110: 0 | CL110: =IF($O$21<>0,SUM(BZ110:CK110)*$O$21+$N$21,-1) -> -1 | CN110: 2.387923635e-183 | CO110: 0 | CP110: 0 | CQ110: 0 | CR110: 0 | CS110: 0 | CT110: 0 | CU110: 0 | CV110: 0 | CW110: 0 | CX110: 0 | CY110: 0 | CZ110: =IF($O$23<>0,SUM(CN110:CY110)*$O$23+$N$23,-1) -> -1
A111: 0) If the table exists, just correct the input as wanted | V111: Aniline | W111: 2.728632401 | X111: 0.07447731446 | Y111: 1.38 | Z111: 0.03003852087 | AA111: 1.775 | AB111: 0.04926317422 | AI111: 2.18 | AJ111: 1.062829588e-189 | AK111: 6.268456191e-188 | AL111: 0 | AM111: 0 | AN111: 0 | AO111: 0 | AP111: 0 | AQ111: 0 | AR111: 0 | AS111: 0 | AT111: 0 | AU111: 0 | AV111: =IF($O$20<>0,SUM(AJ111:AU111)*$O$20+$N$20,-1) -> 11 | AX111: 1.062829588e-189 | AY111: 0 | AZ111: 0 | BA111: 0 | BB111: 0 | BC111: 0 | BD111: 0 | BE111: 0 | BF111: 0 | BG111: 0 | BH111: 0 | BI111: 0 | BJ111: =IF($O$22<>0,SUM(AX111:BI111)*$O$22+$N$22,-1) -> 15 | BL111: 1.062829588e-189 | BM111: 6.268456191e-188 | BN111: 0 | BO111: 0 | BP111: 0 | BQ111: 0 | BR111: 0 | BS111: 0 | BT111: 0 | BU111: 0 | BV111: 0 | BW111: 0 | BX111: =IF($O$24<>0,SUM(BL111:BW111)*$O$24+$N$24,-1) -> 10 | BZ111: 1.062829588e-189 | CA111: 2.32026259e-106 | CB111: 0 | CC111: 0 | CD111: 0 | CE111: 0 | CF111: 0 | CG111: 0 | CH111: 0 | CI111: 0 | CJ111: 0 | CK111: 0 | CL111: =IF($O$21<>0,SUM(BZ111:CK111)*$O$21+$N$21,-1) -> -1 | CN111: 1.062829588e-189 | CO111: 0 | CP111: 0 | CQ111: 0 | CR111: 0 | CS111: 0 | CT111: 0 | CU111: 0 | CV111: 0 | CW111: 0 | CX111: 0 | CY111: 0 | CZ111: =IF($O$23<>0,SUM(CN111:CY111)*$O$23+$N$23,-1) -> -1
A112: 1) Type the input values in a column | F112: B124:B131 | V112: Indole | W112: 6.879299497 | X112: 0.1501216414 | Y112: 10.06 | Z112: 0.2006573194 | AA112: 13.005 | AB112: 0.04926317422 | AI112: 2.2 | AJ112: 3.684115337e-196 | AK112: 1.960390818e-174 | AL112: 0 | AM112: 0 | AN112: 0 | AO112: 0 | AP112: 0 | AQ112: 0 | AR112: 0 | AS112: 0 | AT112: 0 | AU112: 0 | AV112: =IF($O$20<>0,SUM(AJ112:AU112)*$O$20+$N$20,-1) -> 11 | AX112: 3.684115337e-196 | AY112: 0 | AZ112: 0 | BA112: 0 | BB112: 0 | BC112: 0 | BD112: 0 | BE112: 0 | BF112: 0 | BG112: 0 | BH112: 0 | BI112: 0 | BJ112: =IF($O$22<>0,SUM(AX112:BI112)*$O$22+$N$22,-1) -> 15 | BL112: 3.684115337e-196 | BM112: 1.960390818e-174 | BN112: 0 | BO112: 0 | BP112: 0 | BQ112: 0 | BR112: 0 | BS112: 0 | BT112: 0 | BU112: 0 | BV112: 0 | BW112: 0 | BX112: =IF($O$24<>0,SUM(BL112:BW112)*$O$24+$N$24,-1) -> 10 | BZ112: 3.684115337e-196 | CA112: 2.039440677e-96 | CB112: 0 | CC112: 0 | CD112: 0 | CE112: 0 | CF112: 0 | CG112: 0 | CH112: 0 | CI112: 0 | CJ112: 0 | CK112: 0 | CL112: =IF($O$21<>0,SUM(BZ112:CK112)*$O$21+$N$21,-1) -> -1 | CN112: 3.684115337e-196 | CO112: 0 | CP112: 0 | CQ112: 0 | CR112: 0 | CS112: 0 | CT112: 0 | CU112: 0 | CV112: 0 | CW112: 0 | CX112: 0 | CY112: 0 | CZ112: =IF($O$23<>0,SUM(CN112:CY112)*$O$23+$N$23,-1) -> -1
A113: 2) Type the formula for the output in a row starting one | F113: C123:E123 | V113: toluene | W113: 11.46558484 | X113: 0.2101264451 | Y113: 11.435 | Z113: 0.2126727277 | AA113: 15.64 | AB113: 0.04926317422 | AI113: 2.22 | AJ113: 9.945558568e-203 | AK113: 1.933900427e-161 | AL113: 0 | AM113: 0 | AN113: 0 | AO113: 0 | AP113: 0 | AQ113: 0 | AR113: 0 | AS113: 0 | AT113: 0 | AU113: 0 | AV113: =IF($O$20<>0,SUM(AJ113:AU113)*$O$20+$N$20,-1) -> 11 | AX113: 9.945558568e-203 | AY113: 0 | AZ113: 0 | BA113: 0 | BB113: 0 | BC113: 0 | BD113: 0 | BE113: 0 | BF113: 0 | BG113: 0 | BH113: 0 | BI113: 0 | BJ113: =IF($O$22<>0,SUM(AX113:BI113)*$O$22+$N$22,-1) -> 15 | BL113: 9.945558568e-203 | BM113: 1.933900427e-161 | BN113: 0 | BO113: 0 | BP113: 0 | BQ113: 0 | BR113: 0 | BS113: 0 | BT113: 0 | BU113: 0 | BV113: 0 | BW113: 0 | BX113: =IF($O$24<>0,SUM(BL113:BW113)*$O$24+$N$24,-1) -> 10 | BZ113: 9.945558568e-203 | CA113: 5.866959862e-87 | CB113: 0 | CC113: 0 | CD113: 0 | CE113: 0 | CF113: 0 | CG113: 0 | CH113: 0 | CI113: 0 | CJ113: 0 | CK113: 0 | CL113: =IF($O$21<>0,SUM(BZ113:CK113)*$O$21+$N$21,-1) -> -1 | CN113: 9.945558568e-203 | CO113: 0 | CP113: 0 | CQ113: 0 | CR113: 0 | CS113: 0 | CT113: 0 | CU113: 0 | CV113: 0 | CW113: 0 | CX113: 0 | CY113: 0 | CZ113: =IF($O$23<>0,SUM(CN113:CY113)*$O$23+$N$23,-1) -> -1
A114: column to the right and one row higher than the input | V114: Styrene | W114: 12.73232905 | X114: 0.2146153632 | Y114: 12.705 | Z114: 0.2054634827 | AA114: 17.145 | AB114: 0.2391066261 | AI114: 2.24 | AJ114: 2.090987901e-209 | AK114: 6.017761121e-149 | AL114: 0 | AM114: 0 | AN114: 0 | AO114: 0 | AP114: 0 | AQ114: 0 | AR114: 0 | AS114: 0 | AT114: 0 | AU114: 0 | AV114: =IF($O$20<>0,SUM(AJ114:AU114)*$O$20+$N$20,-1) -> 11 | AX114: 2.090987901e-209 | AY114: 0 | AZ114: 0 | BA114: 0 | BB114: 0 | BC114: 0 | BD114: 0 | BE114: 0 | BF114: 0 | BG114: 0 | BH114: 0 | BI114: 0 | BJ114: =IF($O$22<>0,SUM(AX114:BI114)*$O$22+$N$22,-1) -> 15 | BL114: 2.090987901e-209 | BM114: 6.017761121e-149 | BN114: 0 | BO114: 0 | BP114: 0 | BQ114: 0 | BR114: 0 | BS114: 0 | BT114: 0 | BU114: 0 | BV114: 0 | BW114: 0 | BX114: =IF($O$24<>0,SUM(BL114:BW114)*$O$24+$N$24,-1) -> 10 | BZ114: 2.090987901e-209 | CA114: 5.52386756e-78 | CB114: 0 | CC114: 0 | CD114: 0 | CE114: 0 | CF114: 0 | CG114: 0 | CH114: 0 | CI114: 0 | CJ114: 0 | CK114: 0 | CL114: =IF($O$21<>0,SUM(BZ114:CK114)*$O$21+$N$21,-1) -> -1 | CN114: 2.090987901e-209 | CO114: 0 | CP114: 0 | CQ114: 0 | CR114: 0 | CS114: 0 | CT114: 0 | CU114: 0 | CV114: 0 | CW114: 0 | CX114: 0 | CY114: 0 | CZ114: =IF($O$23<>0,SUM(CN114:CY114)*$O$23+$N$23,-1) -> -1
A115: 3) Write the target cell name for your own information | F115: B123 | V115: Anthracene | W115: 19.47771656 | X115: 0.1793510973 | Y115: 1.38 | Z115: 0.03003852087 | AA115: 1.775 | AB115: 0.2631374428 | AI115: 2.26 | AJ115: 3.42373577e-216 | AK115: 5.906703403e-137 | AL115: 0 | AM115: 0 | AN115: 0 | AO115: 0 | AP115: 0 | AQ115: 0 | AR115: 0 | AS115: 0 | AT115: 0 | AU115: 0 | AV115: =IF($O$20<>0,SUM(AJ115:AU115)*$O$20+$N$20,-1) -> 11 | AX115: 3.42373577e-216 | AY115: 0 | AZ115: 0 | BA115: 0 | BB115: 0 | BC115: 0 | BD115: 0 | BE115: 0 | BF115: 0 | BG115: 0 | BH115: 0 | BI115: 0 | BJ115: =IF($O$22<>0,SUM(AX115:BI115)*$O$22+$N$22,-1) -> 15 | BL115: 3.42373577e-216 | BM115: 5.906703403e-137 | BN115: 0 | BO115: 0 | BP115: 0 | BQ115: 0 | BR115: 0 | BS115: 0 | BT115: 0 | BU115: 0 | BV115: 0 | BW115: 0 | BX115: =IF($O$24<>0,SUM(BL115:BW115)*$O$24+$N$24,-1) -> 10 | BZ115: 3.42373577e-216 | CA115: 1.70216438e-69 | CB115: 0 | CC115: 0 | CD115: 0 | CE115: 0 | CF115: 0 | CG115: 0 | CH115: 0 | CI115: 0 | CJ115: 0 | CK115: 0 | CL115: =IF($O$21<>0,SUM(BZ115:CK115)*$O$21+$N$21,-1) -> -1 | CN115: 3.42373577e-216 | CO115: 0 | CP115: 0 | CQ115: 0 | CR115: 0 | CS115: 0 | CT115: 0 | CU115: 0 | CV115: 0 | CW115: 0 | CX115: 0 | CY115: 0 | CZ115: =IF($O$23<>0,SUM(CN115:CY115)*$O$23+$N$23,-1) -> -1
A116: 4) Mark the whole rectangle | F116: B122:E131 | V116: Pyrene | W116: 20.51240842 | X116: 0.1682861516 | Y116: 20.495 | Z116: 0.138177196 | AA116: 26.925 | AB116: 0.2535251161 | AI116: 2.28 | AJ116: 4.365915642e-223 | AK116: 1.828793918e-125 | AL116: 0 | AM116: 0 | AN116: 0 | AO116: 0 | AP116: 0 | AQ116: 0 | AR116: 0 | AS116: 0 | AT116: 0 | AU116: 0 | AV116: =IF($O$20<>0,SUM(AJ116:AU116)*$O$20+$N$20,-1) -> 11 | AX116: 4.365915642e-223 | AY116: 0 | AZ116: 0 | BA116: 0 | BB116: 0 | BC116: 0 | BD116: 0 | BE116: 0 | BF116: 0 | BG116: 0 | BH116: 0 | BI116: 0 | BJ116: =IF($O$22<>0,SUM(AX116:BI116)*$O$22+$N$22,-1) -> 15 | BL116: 4.365915642e-223 | BM116: 1.828793918e-125 | BN116: 0 | BO116: 0 | BP116: 0 | BQ116: 0 | BR116: 0 | BS116: 0 | BT116: 0 | BU116: 0 | BV116: 0 | BW116: 0 | BX116: =IF($O$24<>0,SUM(BL116:BW116)*$O$24+$N$24,-1) -> 10 | BZ116: 4.365915642e-223 | CA116: 1.71667404e-61 | CB116: 0 | CC116: 0 | CD116: 0 | CE116: 0 | CF116: 0 | CG116: 0 | CH116: 0 | CI116: 0 | CJ116: 0 | CK116: 0 | CL116: =IF($O$21<>0,SUM(BZ116:CK116)*$O$21+$N$21,-1) -> -1 | CN116: 4.365915642e-223 | CO116: 0 | CP116: 0 | CQ116: 0 | CR116: 0 | CS116: 0 | CT116: 0 | CU116: 0 | CV116: 0 | CW116: 0 | CX116: 0 | CY116: 0 | CZ116: =IF($O$23<>0,SUM(CN116:CY116)*$O$23+$N$23,-1) -> -1
A117: 5) Klik on Data->What-If-Analysis->Data Table | V117: Decane | W117: 25.17956958 | X117: 0.1636678571 | Y117: 1.38 | Z117: 0.03003852087 | AA117: 1.775 | AB117: 0.1718203394 | AI117: 2.3 | AJ117: 4.335875659e-230 | AK117: 1.7860506e-114 | AL117: 0 | AM117: 0 | AN117: 0 | AO117: 0 | AP117: 0 | AQ117: 0 | AR117: 0 | AS117: 0 | AT117: 0 | AU117: 0 | AV117: =IF($O$20<>0,SUM(AJ117:AU117)*$O$20+$N$20,-1) -> 11 | AX117: 4.335875659e-230 | AY117: 0 | AZ117: 0 | BA117: 0 | BB117: 0 | BC117: 0 | BD117: 0 | BE117: 0 | BF117: 0 | BG117: 0 | BH117: 0 | BI117: 0 | BJ117: =IF($O$22<>0,SUM(AX117:BI117)*$O$22+$N$22,-1) -> 15 | BL117: 4.335875659e-230 | BM117: 1.7860506e-114 | BN117: 0 | BO117: 0 | BP117: 0 | BQ117: 0 | BR117: 0 | BS117: 0 | BT117: 0 | BU117: 0 | BV117: 0 | BW117: 0 | BX117: =IF($O$24<>0,SUM(BL117:BW117)*$O$24+$N$24,-1) -> 10 | BZ117: 4.335875659e-230 | CA117: 5.666335451e-54 | CB117: 0 | CC117: 0 | CD117: 0 | CE117: 0 | CF117: 0 | CG117: 0 | CH117: 0 | CI117: 0 | CJ117: 0 | CK117: 0 | CL117: =IF($O$21<>0,SUM(BZ117:CK117)*$O$21+$N$21,-1) -> -1 | CN117: 4.335875659e-230 | CO117: 0 | CP117: 0 | CQ117: 0 | CR117: 0 | CS117: 0 | CT117: 0 | CU117: 0 | CV117: 0 | CW117: 0 | CX117: 0 | CY117: 0 | CZ117: =IF($O$23<>0,SUM(CN117:CY117)*$O$23+$N$23,-1) -> -1
A118: 6) Set the Column Cell to the target cell for the input values | V118: Tetradecane | W118: 28.04656253 | X118: 0.1301413762 | Y118: 28.035 | Z118: 0.09972788928 | AA118: 33.125 | AB118: 0.08530939926 | AI118: 2.32 | AJ118: 3.353549168e-237 | AK118: 5.502146293e-104 | AL118: 0 | AM118: 0 | AN118: 0 | AO118: 0 | AP118: 0 | AQ118: 0 | AR118: 0 | AS118: 0 | AT118: 0 | AU118: 0 | AV118: =IF($O$20<>0,SUM(AJ118:AU118)*$O$20+$N$20,-1) -> 11 | AX118: 3.353549168e-237 | AY118: 0 | AZ118: 0 | BA118: 0 | BB118: 0 | BC118: 0 | BD118: 0 | BE118: 0 | BF118: 0 | BG118: 0 | BH118: 0 | BI118: 0 | BJ118: =IF($O$22<>0,SUM(AX118:BI118)*$O$22+$N$22,-1) -> 15 | BL118: 3.353549168e-237 | BM118: 5.502146293e-104 | BN118: 0 | BO118: 0 | BP118: 0 | BQ118: 0 | BR118: 0 | BS118: 0 | BT118: 0 | BU118: 0 | BV118: 0 | BW118: 0 | BX118: =IF($O$24<>0,SUM(BL118:BW118)*$O$24+$N$24,-1) -> 10 | BZ118: 3.353549168e-237 | CA118: 6.121316343e-47 | CB118: 0 | CC118: 0 | CD118: 0 | CE118: 0 | CF118: 0 | CG118: 0 | CH118: 0 | CI118: 0 | CJ118: 0 | CK118: 0 | CL118: =IF($O$21<>0,SUM(BZ118:CK118)*$O$21+$N$21,-1) -> -1 | CN118: 3.353549168e-237 | CO118: 0 | CP118: 0 | CQ118: 0 | CR118: 0 | CS118: 0 | CT118: 0 | CU118: 0 | CV118: 0 | CW118: 0 | CX118: 0 | CY118: 0 | CZ118: =IF($O$23<>0,SUM(CN118:CY118)*$O$23+$N$23,-1) -> -1
A119: 7) Write the name of the output variables | F119: C122:E122 | V119: Pyren | AI119: 2.34 | AJ119: 2.020035103e-244 | AK119: 5.346627075e-94 | AL119: 0 | AM119: 0 | AN119: 0 | AO119: 0 | AP119: 0 | AQ119: 0 | AR119: 0 | AS119: 0 | AT119: 0 | AU119: 0 | AV119: =IF($O$20<>0,SUM(AJ119:AU119)*$O$20+$N$20,-1) -> 11 | AX119: 2.020035103e-244 | AY119: 0 | AZ119: 0 | BA119: 0 | BB119: 0 | BC119: 0 | BD119: 0 | BE119: 0 | BF119: 0 | BG119: 0 | BH119: 0 | BI119: 0 | BJ119: =IF($O$22<>0,SUM(AX119:BI119)*$O$22+$N$22,-1) -> 15 | BL119: 2.020035103e-244 | BM119: 5.346627075e-94 | BN119: 0 | BO119: 0 | BP119: 0 | BQ119: 0 | BR119: 0 | BS119: 0 | BT119: 0 | BU119: 0 | BV119: 0 | BW119: 0 | BX119: =IF($O$24<>0,SUM(BL119:BW119)*$O$24+$N$24,-1) -> 10 | BZ119: 2.020035103e-244 | CA119: 2.16429007e-40 | CB119: 0 | CC119: 0 | CD119: 0 | CE119: 0 | CF119: 0 | CG119: 0 | CH119: 0 | CI119: 0 | CJ119: 0 | CK119: 0 | CL119: =IF($O$21<>0,SUM(BZ119:CK119)*$O$21+$N$21,-1) -> -1 | CN119: 2.020035103e-244 | CO119: 0 | CP119: 0 | CQ119: 0 | CR119: 0 | CS119: 0 | CT119: 0 | CU119: 0 | CV119: 0 | CW119: 0 | CX119: 0 | CY119: 0 | CZ119: =IF($O$23<>0,SUM(CN119:CY119)*$O$23+$N$23,-1) -> -1
A120: 8) Formula and input valuescan be changed without calling the function again | AI120: 2.36 | AJ120: 9.476316e-252 | AK120: 1.638841822e-84 | AL120: 0 | AM120: 0 | AN120: 0 | AO120: 0 | AP120: 0 | AQ120: 0 | AR120: 0 | AS120: 0 | AT120: 0 | AU120: 0 | AV120: =IF($O$20<>0,SUM(AJ120:AU120)*$O$20+$N$20,-1) -> 11 | AX120: 9.476316e-252 | AY120: 0 | AZ120: 0 | BA120: 0 | BB120: 0 | BC120: 0 | BD120: 0 | BE120: 0 | BF120: 0 | BG120: 0 | BH120: 0 | BI120: 0 | BJ120: =IF($O$22<>0,SUM(AX120:BI120)*$O$22+$N$22,-1) -> 15 | BL120: 9.476316e-252 | BM120: 1.638841822e-84 | BN120: 0 | BO120: 0 | BP120: 0 | BQ120: 0 | BR120: 0 | BS120: 0 | BT120: 0 | BU120: 0 | BV120: 0 | BW120: 0 | BX120: =IF($O$24<>0,SUM(BL120:BW120)*$O$24+$N$24,-1) -> 10 | BZ120: 9.476316e-252 | CA120: 2.504460638e-34 | CB120: 0 | CC120: 0 | CD120: 0 | CE120: 0 | CF120: 0 | CG120: 0 | CH120: 0 | CI120: 0 | CJ120: 0 | CK120: 0 | CL120: =IF($O$21<>0,SUM(BZ120:CK120)*$O$21+$N$21,-1) -> -1 | CN120: 9.476316e-252 | CO120: 0 | CP120: 0 | CQ120: 0 | CR120: 0 | CS120: 0 | CT120: 0 | CU120: 0 | CV120: 0 | CW120: 0 | CX120: 0 | CY120: 0 | CZ120: =IF($O$23<>0,SUM(CN120:CY120)*$O$23+$N$23,-1) -> -1
AI121: 2.38 | AJ121: 3.462155196e-259 | AK121: 1.584541318e-75 | AL121: 0 | AM121: 0 | AN121: 0 | AO121: 0 | AP121: 0 | AQ121: 0 | AR121: 0 | AS121: 0 | AT121: 0 | AU121: 0 | AV121: =IF($O$20<>0,SUM(AJ121:AU121)*$O$20+$N$20,-1) -> 11 | AX121: 3.462155196e-259 | AY121: 0 | AZ121: 0 | BA121: 0 | BB121: 0 | BC121: 0 | BD121: 0 | BE121: 0 | BF121: 0 | BG121: 0 | BH121: 0 | BI121: 0 | BJ121: =IF($O$22<>0,SUM(AX121:BI121)*$O$22+$N$22,-1) -> 15 | BL121: 3.462155196e-259 | BM121: 1.584541318e-75 | BN121: 0 | BO121: 0 | BP121: 0 | BQ121: 0 | BR121: 0 | BS121: 0 | BT121: 0 | BU121: 0 | BV121: 0 | BW121: 0 | BX121: =IF($O$24<>0,SUM(BL121:BW121)*$O$24+$N$24,-1) -> 10 | BZ121: 3.462155196e-259 | CA121: 9.485081226e-29 | CB121: 0 | CC121: 0 | CD121: 0 | CE121: 0 | CF121: 0 | CG121: 0 | CH121: 0 | CI121: 0 | CJ121: 0 | CK121: 0 | CL121: =IF($O$21<>0,SUM(BZ121:CK121)*$O$21+$N$21,-1) -> -1 | CN121: 3.462155196e-259 | CO121: 0 | CP121: 0 | CQ121: 0 | CR121: 0 | CS121: 0 | CT121: 0 | CU121: 0 | CV121: 0 | CW121: 0 | CX121: 0 | CY121: 0 | CZ121: =IF($O$23<>0,SUM(CN121:CY121)*$O$23+$N$23,-1) -> -1
C122: tR(1) | D122: tR(5) | E122: tR(4) | AI122: 2.4 | AJ122: 9.850990693e-267 | AK122: 4.832584797e-67 | AL122: 0 | AM122: 0 | AN122: 0 | AO122: 0 | AP122: 0 | AQ122: 0 | AR122: 0 | AS122: 0 | AT122: 0 | AU122: 0 | AV122: =IF($O$20<>0,SUM(AJ122:AU122)*$O$20+$N$20,-1) -> 11 | AX122: 9.850990693e-267 | AY122: 0 | AZ122: 0 | BA122: 0 | BB122: 0 | BC122: 0 | BD122: 0 | BE122: 0 | BF122: 0 | BG122: 0 | BH122: 0 | BI122: 0 | BJ122: =IF($O$22<>0,SUM(AX122:BI122)*$O$22+$N$22,-1) -> 15 | BL122: 9.850990693e-267 | BM122: 4.832584797e-67 | BN122: 0 | BO122: 0 | BP122: 0 | BQ122: 0 | BR122: 0 | BS122: 0 | BT122: 0 | BU122: 0 | BV122: 0 | BW122: 0 | BX122: =IF($O$24<>0,SUM(BL122:BW122)*$O$24+$N$24,-1) -> 10 | BZ122: 9.850990693e-267 | CA122: 1.175698594e-23 | CB122: 0 | CC122: 0 | CD122: 0 | CE122: 0 | CF122: 0 | CG122: 0 | CH122: 0 | CI122: 0 | CJ122: 0 | CK122: 0 | CL122: =IF($O$21<>0,SUM(BZ122:CK122)*$O$21+$N$21,-1) -> -1 | CN122: 9.850990693e-267 | CO122: 0 | CP122: 0 | CQ122: 0 | CR122: 0 | CS122: 0 | CT122: 0 | CU122: 0 | CV122: 0 | CW122: 0 | CX122: 0 | CY122: 0 | CZ122: =IF($O$23<>0,SUM(CN122:CY122)*$O$23+$N$23,-1) -> -1
A123: Input cell: | B123: To, =G20 | C123: =B53 -> 2.728632401 | D123: =B57 -> 19.47771656 | E123: =B56 -> 12.73232905 | AI123: 2.42 | AJ123: 2.182929275e-274 | AK123: 4.649056062e-59 | AL123: 0 | AM123: 0 | AN123: 0 | AO123: 0 | AP123: 0 | AQ123: 0 | AR123: 0 | AS123: 0 | AT123: 0 | AU123: 0 | AV123: =IF($O$20<>0,SUM(AJ123:AU123)*$O$20+$N$20,-1) -> 11 | AX123: 2.182929275e-274 | AY123: 0 | AZ123: 0 | BA123: 0 | BB123: 0 | BC123: 0 | BD123: 0 | BE123: 0 | BF123: 0 | BG123: 0 | BH123: 0 | BI123: 0 | BJ123: =IF($O$22<>0,SUM(AX123:BI123)*$O$22+$N$22,-1) -> 15 | BL123: 2.182929275e-274 | BM123: 4.649056062e-59 | BN123: 0 | BO123: 0 | BP123: 0 | BQ123: 0 | BR123: 0 | BS123: 0 | BT123: 0 | BU123: 0 | BV123: 0 | BW123: 0 | BX123: =IF($O$24<>0,SUM(BL123:BW123)*$O$24+$N$24,-1) -> 10 | BZ123: 2.182929275e-274 | CA123: 4.769567988e-19 | CB123: 0 | CC123: 0 | CD123: 0 | CE123: 0 | CF123: 0 | CG123: 0 | CH123: 0 | CI123: 0 | CJ123: 0 | CK123: 0 | CL123: =IF($O$21<>0,SUM(BZ123:CK123)*$O$21+$N$21,-1) -> -1 | CN123: 2.182929275e-274 | CO123: 0 | CP123: 0 | CQ123: 0 | CR123: 0 | CS123: 0 | CT123: 0 | CU123: 0 | CV123: 0 | CW123: 0 | CX123: 0 | CY123: 0 | CZ123: =IF($O$23<>0,SUM(CN123:CY123)*$O$23+$N$23,-1) -> -1
B124: 0.1 | C124: 3.721424351 | D124: 22.22473256 | E124: 16.05548933 | AI124: 2.44 | AJ124: 3.767261794e-282 | AK124: 1.410780566e-51 | AL124: 0 | AM124: 0 | AN124: 0 | AO124: 0 | AP124: 0 | AQ124: 0 | AR124: 0 | AS124: 0 | AT124: 0 | AU124: 0 | AV124: =IF($O$20<>0,SUM(AJ124:AU124)*$O$20+$N$20,-1) -> 11 | AX124: 3.767261794e-282 | AY124: 0 | AZ124: 0 | BA124: 0 | BB124: 0 | BC124: 0 | BD124: 0 | BE124: 0 | BF124: 0 | BG124: 0 | BH124: 0 | BI124: 0 | BJ124: =IF($O$22<>0,SUM(AX124:BI124)*$O$22+$N$22,-1) -> 15 | BL124: 3.767261794e-282 | BM124: 1.410780566e-51 | BN124: 0 | BO124: 0 | BP124: 0 | BQ124: 0 | BR124: 0 | BS124: 0 | BT124: 0 | BU124: 0 | BV124: 0 | BW124: 0 | BX124: =IF($O$24<>0,SUM(BL124:BW124)*$O$24+$N$24,-1) -> 10 | BZ124: 3.767261794e-282 | CA124: 6.332718589e-15 | CB124: 0 | CC124: 0 | CD124: 0 | CE124: 0 | CF124: 0 | CG124: 0 | CH124: 0 | CI124: 0 | CJ124: 0 | CK124: 0 | CL124: =IF($O$21<>0,SUM(BZ124:CK124)*$O$21+$N$21,-1) -> -1 | CN124: 3.767261794e-282 | CO124: 0 | CP124: 0 | CQ124: 0 | CR124: 0 | CS124: 0 | CT124: 0 | CU124: 0 | CV124: 0 | CW124: 0 | CX124: 0 | CY124: 0 | CZ124: =IF($O$23<>0,SUM(CN124:CY124)*$O$23+$N$23,-1) -> -1
B125: 0.15 | C125: 3.178939201 | D125: 20.93524231 | E125: 14.45131514 | AI125: 2.46 | AJ125: 5.063354291e-290 | AK125: 1.350403449e-44 | AL125: 0 | AM125: 0 | AN125: 0 | AO125: 0 | AP125: 0 | AQ125: 0 | AR125: 0 | AS125: 0 | AT125: 0 | AU125: 0 | AV125: =IF($O$20<>0,SUM(AJ125:AU125)*$O$20+$N$20,-1) -> 11 | AX125: 5.063354291e-290 | AY125: 0 | AZ125: 0 | BA125: 0 | BB125: 0 | BC125: 0 | BD125: 0 | BE125: 0 | BF125: 0 | BG125: 0 | BH125: 0 | BI125: 0 | BJ125: =IF($O$22<>0,SUM(AX125:BI125)*$O$22+$N$22,-1) -> 15 | BL125: 5.063354291e-290 | BM125: 1.350403449e-44 | BN125: 0 | BO125: 0 | BP125: 0 | BQ125: 0 | BR125: 0 | BS125: 0 | BT125: 0 | BU125: 0 | BV125: 0 | BW125: 0 | BX125: =IF($O$24<>0,SUM(BL125:BW125)*$O$24+$N$24,-1) -> 10 | BZ125: 5.063354291e-290 | CA125: 2.751879643e-11 | CB125: 0 | CC125: 0 | CD125: 0 | CE125: 0 | CF125: 0 | CG125: 0 | CH125: 0 | CI125: 0 | CJ125: 0 | CK125: 0 | CL125: =IF($O$21<>0,SUM(BZ125:CK125)*$O$21+$N$21,-1) -> -1 | CN125: 5.063354291e-290 | CO125: 0 | CP125: 0 | CQ125: 0 | CR125: 0 | CS125: 0 | CT125: 0 | CU125: 0 | CV125: 0 | CW125: 0 | CX125: 0 | CY125: 0 | CZ125: =IF($O$23<>0,SUM(CN125:CY125)*$O$23+$N$23,-1) -> -1
B126: 0.2 | C126: 2.728632401 | D126: 19.47771656 | E126: 12.73232905 | AI126: 2.48 | AJ126: 5.300016379e-298 | AK126: 4.077340619e-38 | AL126: 0 | AM126: 0 | AN126: 0 | AO126: 0 | AP126: 0 | AQ126: 0 | AR126: 0 | AS126: 0 | AT126: 0 | AU126: 0 | AV126: =IF($O$20<>0,SUM(AJ126:AU126)*$O$20+$N$20,-1) -> 11 | AX126: 5.300016379e-298 | AY126: 0 | AZ126: 0 | BA126: 0 | BB126: 0 | BC126: 0 | BD126: 0 | BE126: 0 | BF126: 0 | BG126: 0 | BH126: 0 | BI126: 0 | BJ126: =IF($O$22<>0,SUM(AX126:BI126)*$O$22+$N$22,-1) -> 15 | BL126: 5.300016379e-298 | BM126: 4.077340619e-38 | BN126: 0 | BO126: 0 | BP126: 0 | BQ126: 0 | BR126: 0 | BS126: 0 | BT126: 0 | BU126: 0 | BV126: 0 | BW126: 0 | BX126: =IF($O$24<>0,SUM(BL126:BW126)*$O$24+$N$24,-1) -> 10 | BZ126: 5.300016379e-298 | CA126: 3.913783357e-08 | CB126: 0 | CC126: 0 | CD126: 0 | CE126: 0 | CF126: 0 | CG126: 0 | CH126: 0 | CI126: 0 | CJ126: 0 | CK126: 0 | CL126: =IF($O$21<>0,SUM(BZ126:CK126)*$O$21+$N$21,-1) -> -1 | CN126: 5.300016379e-298 | CO126: 0 | CP126: 0 | CQ126: 0 | CR126: 0 | CS126: 0 | CT126: 0 | CU126: 0 | CV126: 0 | CW126: 0 | CX126: 0 | CY126: 0 | CZ126: =IF($O$23<>0,SUM(CN126:CY126)*$O$23+$N$23,-1) -> -1
B127: 0.25 | C127: 2.361107229 | D127: 17.82355359 | E127: 10.93160598 | AI127: 2.5 | AJ127: 4.320584331e-306 | AK127: 3.883290085e-32 | AL127: 0 | AM127: 0 | AN127: 0 | AO127: 0 | AP127: 0 | AQ127: 0 | AR127: 0 | AS127: 0 | AT127: 0 | AU127: 0 | AV127: =IF($O$20<>0,SUM(AJ127:AU127)*$O$20+$N$20,-1) -> 11 | AX127: 4.320584331e-306 | AY127: 0 | AZ127: 0 | BA127: 0 | BB127: 0 | BC127: 0 | BD127: 0 | BE127: 0 | BF127: 0 | BG127: 0 | BH127: 0 | BI127: 0 | BJ127: =IF($O$22<>0,SUM(AX127:BI127)*$O$22+$N$22,-1) -> 15 | BL127: 4.320584331e-306 | BM127: 3.883290085e-32 | BN127: 0 | BO127: 0 | BP127: 0 | BQ127: 0 | BR127: 0 | BS127: 0 | BT127: 0 | BU127: 0 | BV127: 0 | BW127: 0 | BX127: =IF($O$24<>0,SUM(BL127:BW127)*$O$24+$N$24,-1) -> 10 | BZ127: 4.320584331e-306 | CA127: 1.821764476e-05 | CB127: 0 | CC127: 0 | CD127: 0 | CE127: 0 | CF127: 0 | CG127: 0 | CH127: 0 | CI127: 0 | CJ127: 0 | CK127: 0 | CL127: =IF($O$21<>0,SUM(BZ127:CK127)*$O$21+$N$21,-1) -> -1 | CN127: 4.320584331e-306 | CO127: 0 | CP127: 0 | CQ127: 0 | CR127: 0 | CS127: 0 | CT127: 0 | CU127: 0 | CV127: 0 | CW127: 0 | CX127: 0 | CY127: 0 | CZ127: =IF($O$23<>0,SUM(CN127:CY127)*$O$23+$N$23,-1) -> -1
B128: 0.3 | C128: 2.065303759 | D128: 15.94393043 | E128: 9.109907552 | AI128: 2.52 | AJ128: 0 | AK128: 1.166627096e-26 | AL128: 0 | AM128: 0 | AN128: 0 | AO128: 0 | AP128: 0 | AQ128: 0 | AR128: 0 | AS128: 0 | AT128: 0 | AU128: 0 | AV128: =IF($O$20<>0,SUM(AJ128:AU128)*$O$20+$N$20,-1) -> 11 | AX128: 0 | AY128: 0 | AZ128: 0 | BA128: 0 | BB128: 0 | BC128: 0 | BD128: 0 | BE128: 0 | BF128: 0 | BG128: 0 | BH128: 0 | BI128: 0 | BJ128: =IF($O$22<>0,SUM(AX128:BI128)*$O$22+$N$22,-1) -> 15 | BL128: 0 | BM128: 1.166627096e-26 | BN128: 0 | BO128: 0 | BP128: 0 | BQ128: 0 | BR128: 0 | BS128: 0 | BT128: 0 | BU128: 0 | BV128: 0 | BW128: 0 | BX128: =IF($O$24<>0,SUM(BL128:BW128)*$O$24+$N$24,-1) -> 10 | BZ128: 0 | CA128: 0.002775337328 | CB128: 0 | CC128: 0 | CD128: 0 | CE128: 0 | CF128: 0 | CG128: 0 | CH128: 0 | CI128: 0 | CJ128: 0 | CK128: 0 | CL128: =IF($O$21<>0,SUM(BZ128:CK128)*$O$21+$N$21,-1) -> -1 | CN128: 0 | CO128: 0 | CP128: 0 | CQ128: 0 | CR128: 0 | CS128: 0 | CT128: 0 | CU128: 0 | CV128: 0 | CW128: 0 | CX128: 0 | CY128: 0 | CZ128: =IF($O$23<>0,SUM(CN128:CY128)*$O$23+$N$23,-1) -> -1
B129: 0.35 | C129: 1.829881328 | D129: 13.81940343 | E129: 7.355355784 | AI129: 2.54 | AJ129: 0 | AK129: 1.105537986e-21 | AL129: 0 | AM129: 0 | AN129: 0 | AO129: 0 | AP129: 0 | AQ129: 0 | AR129: 0 | AS129: 0 | AT129: 0 | AU129: 0 | AV129: =IF($O$20<>0,SUM(AJ129:AU129)*$O$20+$N$20,-1) -> 11 | AX129: 0 | AY129: 0 | AZ129: 0 | BA129: 0 | BB129: 0 | BC129: 0 | BD129: 0 | BE129: 0 | BF129: 0 | BG129: 0 | BH129: 0 | BI129: 0 | BJ129: =IF($O$22<>0,SUM(AX129:BI129)*$O$22+$N$22,-1) -> 15 | BL129: 0 | BM129: 1.105537986e-21 | BN129: 0 | BO129: 0 | BP129: 0 | BQ129: 0 | BR129: 0 | BS129: 0 | BT129: 0 | BU129: 0 | BV129: 0 | BW129: 0 | BX129: =IF($O$24<>0,SUM(BL129:BW129)*$O$24+$N$24,-1) -> 10 | BZ129: 0 | CA129: 0.1383781197 | CB129: 0 | CC129: 0 | CD129: 0 | CE129: 0 | CF129: 0 | CG129: 0 | CH129: 0 | CI129: 0 | CJ129: 0 | CK129: 0 | CL129: =IF($O$21<>0,SUM(BZ129:CK129)*$O$21+$N$21,-1) -> -1 | CN129: 0 | CO129: 0 | CP129: 0 | CQ129: 0 | CR129: 0 | CS129: 0 | CT129: 0 | CU129: 0 | CV129: 0 | CW129: 0 | CX129: 0 | CY129: 0 | CZ129: =IF($O$23<>0,SUM(CN129:CY129)*$O$23+$N$23,-1) -> -1
B130: 0.4 | C130: 1.644158886 | D130: 11.46306055 | E130: 5.768012702 | AI130: 2.56 | AJ130: =$B$23*NORMDIST($AI130,$B$20,$B$24*$B$20,FALSE) -> 0 | AK130: =B$6*IF(B$6>0,NORMDIST($AI130,B$53,C$53/4,FALSE),0) -> 3.304643876e-17 | AL130: =B$7*IF(B$7>0,NORMDIST($AI130,B$54,C$54/4,FALSE),0) -> 0 | AM130: =B$8*IF(B$8>0,NORMDIST($AI130,B$55,C$55/4,FALSE),0) -> 0 | AN130: =B$9*IF(B$9>0,NORMDIST($AI130,B$56,C$56/4,FALSE),0) -> 0 | AO130: =B$10*IF(B$10>0,NORMDIST($AI130,B$57,C$57/4,FALSE),0) -> 0 | AP130: =B$11*IF(B$11>0,NORMDIST($AI130,B$58,$C$58/4,FALSE),0) -> 0 | AQ130: =$B$12*IF($B$12>0,NORMDIST($AI130,B$59,$C$59/4,FALSE),0) -> 0 | AR130: =$B$13*IF($B$13>0,NORMDIST($AI130,B$60,$C$60/4,FALSE),0) -> 0 | AS130: =$B$14*IF($B$14>0,NORMDIST($AI130,$B$61,$C$61/4,FALSE),0) -> 0 | AT130: =$B$15*IF($B$15>0,NORMDIST($AI130,$B$62,$C$62/4,FALSE),0) -> 0 | AU130: =$B$16*IF($B$16>0,NORMDIST($AI130,$B$63,$C$63/4,FALSE),0) -> 0 | AV130: =IF($O$20<>0,SUM(AJ130:AU130)*$O$20+$N$20,-1) -> 11 | AX130: 0 | AY130: =IF(B$6>0,B$6*NORMDIST($AI130,F$53,G$53/4,FALSE),0) -> 0 | AZ130: =IF(B$7>0,B$7*NORMDIST($AI130,F$54,G$54/4,FALSE),0) -> 0 | BA130: =IF(B$8>0,B$8*NORMDIST($AI130,F$55,G$55/4,FALSE),0) -> 0 | BB130: =IF(B$9>0,B$9*NORMDIST($AI130,F$56,G$56/4,FALSE),0) -> 0 | BC130: =IF(B$10>0,B$10*NORMDIST($AI130,F$57,G$57/4,FALSE),0) -> 0 | BD130: =IF(B$11>0,B$11*NORMDIST($AI130,F$58,G$58/4,FALSE),0) -> 0 | BE130: =IF($B$12>0,$B$12*NORMDIST($AI130,$F$59,$G$59/4,FALSE),0) -> 0 | BF130: =IF($B$13>0,$B$13*NORMDIST($AI130,$F$60,$G$60/4,FALSE),0) -> 0 | BG130: =IF($B$14>0,$B$14*NORMDIST($AI130,$F$61,$G$61/4,FALSE),0) -> 0 | BH130: =IF($B$15>0,$B$15*NORMDIST($AI130,$F$62,$G$62/4,FALSE),0) -> 0 | BI130: =IF($B$16>0,$B$16*NORMDIST($AI130,$F$63,$G$63/4,FALSE),0) -> 0 | BJ130: =IF($O$22<>0,SUM(AX130:BI130)*$O$22+$N$22,-1) -> 15 | BL130: =$B$23*NORMDIST($AI130,$B$20,$B$20*$B$24,FALSE) -> 0 | BM130: =IF($B$6>0,$B$6*NORMDIST($AI130,$J$53,$K$53/4,FALSE),0) -> 3.304643876e-17 | BN130: =IF($B$7>0,$B$7*NORMDIST($AI130,$J$54,$K$54/4,FALSE),0) -> 0 | BO130: =IF($B$8>0,$B$8*NORMDIST($AI130,$J$55,$K$55/4,FALSE),0) -> 0 | BP130: =IF($B$9>0,$B$9*NORMDIST($AI130,$J$56,$K$56/4,FALSE),0) -> 0 | BQ130: =IF($B$10>0,$B$10*NORMDIST($AI130,$J$57,$K$57/4,FALSE),0) -> 0 | BR130: =IF($B$11>0,$B$11*NORMDIST($AI130,$J$58,$K$58/4,FALSE),0) -> 0 | BS130: =IF($B$12>0,$B$12*NORMDIST($AI130,$J$59,$K$59/4,FALSE),0) -> 0 | BT130: =IF($B$13>0,$B$13*NORMDIST($AI130,$J$60,$K$60/4,FALSE),0) -> 0 | BU130: =IF($B$14>0,$B$14*NORMDIST($AI130,$J$61,$K$61/4,FALSE),0) -> 0 | BV130: =IF($B$15>0,$B$15*NORMDIST($AI130,$J$62,$K$62/4,FALSE),0) -> 0 | BW130: =IF($B$16>0,$B$16*NORMDIST($AI130,$J$63,$K$63/4,FALSE),0) -> 0 | BX130: =IF($O$24<>0,SUM(BL130:BW130)*$O$24+$N$24,-1) -> 10 | BZ130: =$B$23*NORMDIST($AI130,$B$20,$B$20*$B$24,FALSE) -> 0 | CA130: =IF($B$6>0,$B$6*NORMDIST($AI130,$B$68,$C$68/4,FALSE),0) -> 2.258120814 | CB130: =IF($B$7>0,$B$7*NORMDIST($AI130,$B$69,$C$69/4,FALSE),0) -> 0 | CC130: =IF($B$8>0,$B$8*NORMDIST($AI130,$B$70,$C$70/4,FALSE),0) -> 0 | CD130: =IF($B$9>0,$B$9*NORMDIST($AI130,$B$71,$C$71/4,FALSE),0) -> 0 | CE130: =IF($B$10>0,$B$10*NORMDIST($AI130,$B$72,$C$72/4,FALSE),0) -> 0 | CF130: =IF($B$11>0,$B$11*NORMDIST($AI130,$B$73,$C$73/4,FALSE),0) -> 0 | CG130: =IF($B$12>0,$B$12*NORMDIST($AI130,$B$74,$C$74/4,FALSE),0) -> 0 | CH130: =IF($B$13>0,$B$13*NORMDIST($AI130,$B$75,$C$75/4,FALSE),0) -> 0 | CI130: =IF($B$14>0,$B$14*NORMDIST($AI130,$B$76,$C$76/4,FALSE),0) -> 0 | CJ130: =IF($B$15>0,$B$15*NORMDIST($AI130,$B$77,$C$77/4,FALSE),0) -> 0 | CK130: =IF($B$16>0,$B$16*NORMDIST($AI130,$B$78,$C$78/4,FALSE),0) -> 0 | CL130: =IF($O$21<>0,SUM(BZ130:CK130)*$O$21+$N$21,-1) -> -1 | CN130: =$B$23*NORMDIST($AI130,$B$20,$B$20*$B$24,FALSE) -> 0 | CO130: =IF($B$6>0,$B$6*NORMDIST($AI130,$F$68,$G$68/4,FALSE),0) -> 0 | CP130: =IF($B$7>0,$B$7*NORMDIST($AI130,$F$69,$G$69/4,FALSE),0) -> 0 | CQ130: =IF($B$8>0,$B$8*NORMDIST($AI130,$F$70,$G$70/4,FALSE),0) -> 0 | CR130: =IF($B$9>0,$B$9*NORMDIST($AI130,$F$71,$G$71/4,FALSE),0) -> 0 | CS130: =IF($B$10>0,$B$10*NORMDIST($AI130,$F$72,$G$72/4,FALSE),0) -> 0 | CT130: =IF($B$11>0,$B$11*NORMDIST($AI130,$F$73,$G$73/4,FALSE),0) -> 0 | CU130: =IF($B$12>0,$B$12*NORMDIST($AI130,$F$74,$G$74/4,FALSE),0) -> 0 | CV130: =IF($B$13>0,$B$13*NORMDIST($AI130,$F$75,$G$75/4,FALSE),0) -> 0 | CW130: =IF($B$14>0,$B$14*NORMDIST($AI130,$F$76,$G$76/4,FALSE),0) -> 0 | CX130: =IF($B$15>0,$B$15*NORMDIST($AI130,$F$77,$G$77/4,FALSE),0) -> 0 | CY130: =IF($B$16>0,$B$16*NORMDIST($AI130,$F$78,$G$78/4,FALSE),0) -> 0 | CZ130: =IF($O$23<>0,SUM(CN130:CY130)*$O$23+$N$23,-1) -> -1
B131: 0.45 | C131: 1.498637421 | D131: 8.96372798 | E131: 4.430315834 | AI131: =AI130+$B$25 -> 2.58 | AJ131: 0 | AK131: 3.115911005e-13 | AL131: 0 | AM131: 0 | AN131: 0 | AO131: 0 | AP131: 0 | AQ131: 0 | AR131: 0 | AS131: 0 | AT131: 0 | AU131: 0 | AV131: =IF($O$20<>0,SUM(AJ131:AU131)*$O$20+$N$20,-1) -> 11 | AX131: =$B$23*NORMDIST($AI131,$B$20,$B$24*$B$20,FALSE) -> 0 | AY131: 0 | AZ131: 0 | BA131: 0 | BB131: 0 | BC131: 0 | BD131: 0 | BE131: 0 | BF131: 0 | BG131: 0 | BH131: 0 | BI131: 0 | BJ131: =IF($O$22<>0,SUM(AX131:BI131)*$O$22+$N$22,-1) -> 15 | BL131: 0 | BM131: 3.115911005e-13 | BN131: 0 | BO131: 0 | BP131: 0 | BQ131: 0 | BR131: 0 | BS131: 0 | BT131: 0 | BU131: 0 | BV131: 0 | BW131: 0 | BX131: =IF($O$24<>0,SUM(BL131:BW131)*$O$24+$N$24,-1) -> 10 | BZ131: 0 | CA131: 12.06021425 | CB131: 0 | CC131: 0 | CD131: 0 | CE131: 0 | CF131: 0 | CG131: 0 | CH131: 0 | CI131: 0 | CJ131: 0 | CK131: 0 | CL131: =IF($O$21<>0,SUM(BZ131:CK131)*$O$21+$N$21,-1) -> -1 | CN131: 0 | CO131: 7.112089007e-305 | CP131: 0 | CQ131: 0 | CR131: 0 | CS131: 0 | CT131: 0 | CU131: 0 | CV131: 0 | CW131: 0 | CX131: 0 | CY131: 0 | CZ131: =IF($O$23<>0,SUM(CN131:CY131)*$O$23+$N$23,-1) -> -1
AI132: 2.6 | AJ132: 0 | AK132: 9.267333891e-10 | AL132: 0 | AM132: 0 | AN132: 0 | AO132: 0 | AP132: 0 | AQ132: 0 | AR132: 0 | AS132: 0 | AT132: 0 | AU132: 0 | AV132: =IF($O$20<>0,SUM(AJ132:AU132)*$O$20+$N$20,-1) -> 11 | AX132: 0 | AY132: 0 | AZ132: 0 | BA132: 0 | BB132: 0 | BC132: 0 | BD132: 0 | BE132: 0 | BF132: 0 | BG132: 0 | BH132: 0 | BI132: 0 | BJ132: =IF($O$22<>0,SUM(AX132:BI132)*$O$22+$N$22,-1) -> 15 | BL132: 0 | BM132: 9.267333891e-10 | BN132: 0 | BO132: 0 | BP132: 0 | BQ132: 0 | BR132: 0 | BS132: 0 | BT132: 0 | BU132: 0 | BV132: 0 | BW132: 0 | BX132: =IF($O$24<>0,SUM(BL132:BW132)*$O$24+$N$24,-1) -> 9.999999999 | BZ132: 0 | CA132: 21.08098857 | CB132: 0 | CC132: 0 | CD132: 0 | CE132: 0 | CF132: 0 | CG132: 0 | CH132: 0 | CI132: 0 | CJ132: 0 | CK132: 0 | CL132: =IF($O$21<>0,SUM(BZ132:CK132)*$O$21+$N$21,-1) -> -1 | CN132: 0 | CO132: 1.439383883e-293 | CP132: 0 | CQ132: 0 | CR132: 0 | CS132: 0 | CT132: 0 | CU132: 0 | CV132: 0 | CW132: 0 | CX132: 0 | CY132: 0 | CZ132: =IF($O$23<>0,SUM(CN132:CY132)*$O$23+$N$23,-1) -> -1
AI133: 2.62 | AJ133: 0 | AK133: 8.694286771e-07 | AL133: 0 | AM133: 0 | AN133: 0 | AO133: 0 | AP133: 0 | AQ133: 0 | AR133: 0 | AS133: 0 | AT133: 0 | AU133: 0 | AV133: =IF($O$20<>0,SUM(AJ133:AU133)*$O$20+$N$20,-1) -> 11.00000087 | AX133: 0 | AY133: 0 | AZ133: 0 | BA133: 0 | BB133: 0 | BC133: 0 | BD133: 0 | BE133: 0 | BF133: 0 | BG133: 0 | BH133: 0 | BI133: 0 | BJ133: =IF($O$22<>0,SUM(AX133:BI133)*$O$22+$N$22,-1) -> 15 | BL133: 0 | BM133: 8.694286771e-07 | BN133: 0 | BO133: 0 | BP133: 0 | BQ133: 0 | BR133: 0 | BS133: 0 | BT133: 0 | BU133: 0 | BV133: 0 | BW133: 0 | BX133: =IF($O$24<>0,SUM(BL133:BW133)*$O$24+$N$24,-1) -> 9.999999131 | BZ133: 0 | CA133: 12.06021425 | CB133: 0 | CC133: 0 | CD133: 0 | CE133: 0 | CF133: 0 | CG133: 0 | CH133: 0 | CI133: 0 | CJ133: 0 | CK133: 0 | CL133: =IF($O$21<>0,SUM(BZ133:CK133)*$O$21+$N$21,-1) -> -1 | CN133: 0 | CO133: 1.782509887e-282 | CP133: 0 | CQ133: 0 | CR133: 0 | CS133: 0 | CT133: 0 | CU133: 0 | CV133: 0 | CW133: 0 | CX133: 0 | CY133: 0 | CZ133: =IF($O$23<>0,SUM(CN133:CY133)*$O$23+$N$23,-1) -> -1
AI134: 2.64 | AJ134: 0 | AK134: 0.0002572897567 | AL134: 0 | AM134: 0 | AN134: 0 | AO134: 0 | AP134: 0 | AQ134: 0 | AR134: 0 | AS134: 0 | AT134: 0 | AU134: 0 | AV134: =IF($O$20<>0,SUM(AJ134:AU134)*$O$20+$N$20,-1) -> 11.00025729 | AX134: 0 | AY134: 0 | AZ134: 0 | BA134: 0 | BB134: 0 | BC134: 0 | BD134: 0 | BE134: 0 | BF134: 0 | BG134: 0 | BH134: 0 | BI134: 0 | BJ134: =IF($O$22<>0,SUM(AX134:BI134)*$O$22+$N$22,-1) -> 15 | BL134: 0 | BM134: 0.0002572897567 | BN134: 0 | BO134: 0 | BP134: 0 | BQ134: 0 | BR134: 0 | BS134: 0 | BT134: 0 | BU134: 0 | BV134: 0 | BW134: 0 | BX134: =IF($O$24<>0,SUM(BL134:BW134)*$O$24+$N$24,-1) -> 9.99974271 | BZ134: 0 | CA134: 2.258120814 | CB134: 0 | CC134: 0 | CD134: 0 | CE134: 0 | CF134: 0 | CG134: 0 | CH134: 0 | CI134: 0 | CJ134: 0 | CK134: 0 | CL134: =IF($O$21<>0,SUM(BZ134:CK134)*$O$21+$N$21,-1) -> -1 | CN134: 0 | CO134: 1.350713121e-271 | CP134: 0 | CQ134: 0 | CR134: 0 | CS134: 0 | CT134: 0 | CU134: 0 | CV134: 0 | CW134: 0 | CX134: 0 | CY134: 0 | CZ134: =IF($O$23<>0,SUM(CN134:CY134)*$O$23+$N$23,-1) -> -1
AI135: 2.66 | AJ135: 0 | AK135: 0.02401709173 | AL135: 0 | AM135: 0 | AN135: 0 | AO135: 0 | AP135: 0 | AQ135: 0 | AR135: 0 | AS135: 0 | AT135: 0 | AU135: 0 | AV135: =IF($O$20<>0,SUM(AJ135:AU135)*$O$20+$N$20,-1) -> 11.02401709 | AX135: 0 | AY135: 0 | AZ135: 0 | BA135: 0 | BB135: 0 | BC135: 0 | BD135: 0 | BE135: 0 | BF135: 0 | BG135: 0 | BH135: 0 | BI135: 0 | BJ135: =IF($O$22<>0,SUM(AX135:BI135)*$O$22+$N$22,-1) -> 15 | BL135: 0 | BM135: 0.02401709173 | BN135: 0 | BO135: 0 | BP135: 0 | BQ135: 0 | BR135: 0 | BS135: 0 | BT135: 0 | BU135: 0 | BV135: 0 | BW135: 0 | BX135: =IF($O$24<>0,SUM(BL135:BW135)*$O$24+$N$24,-1) -> 9.975982908 | BZ135: 0 | CA135: 0.1383781197 | CB135: 0 | CC135: 0 | CD135: 0 | CE135: 0 | CF135: 0 | CG135: 0 | CH135: 0 | CI135: 0 | CJ135: 0 | CK135: 0 | CL135: =IF($O$21<>0,SUM(BZ135:CK135)*$O$21+$N$21,-1) -> -1 | CN135: 0 | CO135: 6.262823165e-261 | CP135: 0 | CQ135: 0 | CR135: 0 | CS135: 0 | CT135: 0 | CU135: 0 | CV135: 0 | CW135: 0 | CX135: 0 | CY135: 0 | CZ135: =IF($O$23<>0,SUM(CN135:CY135)*$O$23+$N$23,-1) -> -1
AI136: 2.68 | AJ136: 0 | AK136: 0.7071763403 | AL136: 0 | AM136: 0 | AN136: 0 | AO136: 0 | AP136: 0 | AQ136: 0 | AR136: 0 | AS136: 0 | AT136: 0 | AU136: 0 | AV136: =IF($O$20<>0,SUM(AJ136:AU136)*$O$20+$N$20,-1) -> 11.70717634 | AX136: 0 | AY136: 0 | AZ136: 0 | BA136: 0 | BB136: 0 | BC136: 0 | BD136: 0 | BE136: 0 | BF136: 0 | BG136: 0 | BH136: 0 | BI136: 0 | BJ136: =IF($O$22<>0,SUM(AX136:BI136)*$O$22+$N$22,-1) -> 15 | BL136: 0 | BM136: 0.7071763403 | BN136: 0 | BO136: 0 | BP136: 0 | BQ136: 0 | BR136: 0 | BS136: 0 | BT136: 0 | BU136: 0 | BV136: 0 | BW136: 0 | BX136: =IF($O$24<>0,SUM(BL136:BW136)*$O$24+$N$24,-1) -> 9.29282366 | BZ136: 0 | CA136: 0.002775337328 | CB136: 0 | CC136: 0 | CD136: 0 | CE136: 0 | CF136: 0 | CG136: 0 | CH136: 0 | CI136: 0 | CJ136: 0 | CK136: 0 | CL136: =IF($O$21<>0,SUM(BZ136:CK136)*$O$21+$N$21,-1) -> -1 | CN136: 0 | CO136: 1.776859298e-250 | CP136: 0 | CQ136: 0 | CR136: 0 | CS136: 0 | CT136: 0 | CU136: 0 | CV136: 0 | CW136: 0 | CX136: 0 | CY136: 0 | CZ136: =IF($O$23<>0,SUM(CN136:CY136)*$O$23+$N$23,-1) -> -1
AI137: 2.7 | AJ137: 0 | AK137: 6.568170423 | AL137: 0 | AM137: 0 | AN137: 0 | AO137: 0 | AP137: 0 | AQ137: 0 | AR137: 0 | AS137: 0 | AT137: 0 | AU137: 0 | AV137: =IF($O$20<>0,SUM(AJ137:AU137)*$O$20+$N$20,-1) -> 17.56817042 | AX137: 0 | AY137: 0 | AZ137: 0 | BA137: 0 | BB137: 0 | BC137: 0 | BD137: 0 | BE137: 0 | BF137: 0 | BG137: 0 | BH137: 0 | BI137: 0 | BJ137: =IF($O$22<>0,SUM(AX137:BI137)*$O$22+$N$22,-1) -> 15 | BL137: 0 | BM137: 6.568170423 | BN137: 0 | BO137: 0 | BP137: 0 | BQ137: 0 | BR137: 0 | BS137: 0 | BT137: 0 | BU137: 0 | BV137: 0 | BW137: 0 | BX137: =IF($O$24<>0,SUM(BL137:BW137)*$O$24+$N$24,-1) -> 3.431829577 | BZ137: 0 | CA137: 1.821764476e-05 | CB137: 0 | CC137: 0 | CD137: 0 | CE137: 0 | CF137: 0 | CG137: 0 | CH137: 0 | CI137: 0 | CJ137: 0 | CK137: 0 | CL137: =IF($O$21<>0,SUM(BZ137:CK137)*$O$21+$N$21,-1) -> -1 | CN137: 0 | CO137: 3.084691869e-240 | CP137: 0 | CQ137: 0 | CR137: 0 | CS137: 0 | CT137: 0 | CU137: 0 | CV137: 0 | CW137: 0 | CX137: 0 | CY137: 0 | CZ137: =IF($O$23<>0,SUM(CN137:CY137)*$O$23+$N$23,-1) -> -1
AI138: 2.72 | AJ138: 0 | AK138: 19.24289847 | AL138: 0 | AM138: 0 | AN138: 0 | AO138: 0 | AP138: 0 | AQ138: 0 | AR138: 0 | AS138: 0 | AT138: 0 | AU138: 0 | AV138: =IF($O$20<>0,SUM(AJ138:AU138)*$O$20+$N$20,-1) -> 30.24289847 | AX138: 0 | AY138: 0 | AZ138: 0 | BA138: 0 | BB138: 0 | BC138: 0 | BD138: 0 | BE138: 0 | BF138: 0 | BG138: 0 | BH138: 0 | BI138: 0 | BJ138: =IF($O$22<>0,SUM(AX138:BI138)*$O$22+$N$22,-1) -> 15 | BL138: 0 | BM138: 19.24289847 | BN138: 0 | BO138: 0 | BP138: 0 | BQ138: 0 | BR138: 0 | BS138: 0 | BT138: 0 | BU138: 0 | BV138: 0 | BW138: 0 | BX138: =IF($O$24<>0,SUM(BL138:BW138)*$O$24+$N$24,-1) -> -9.242898469 | BZ138: 0 | CA138: 3.913783357e-08 | CB138: 0 | CC138: 0 | CD138: 0 | CE138: 0 | CF138: 0 | CG138: 0 | CH138: 0 | CI138: 0 | CJ138: 0 | CK138: 0 | CL138: =IF($O$21<>0,SUM(BZ138:CK138)*$O$21+$N$21,-1) -> -1 | CN138: 0 | CO138: 3.276773309e-230 | CP138: 0 | CQ138: 0 | CR138: 0 | CS138: 0 | CT138: 0 | CU138: 0 | CV138: 0 | CW138: 0 | CX138: 0 | CY138: 0 | CZ138: =IF($O$23<>0,SUM(CN138:CY138)*$O$23+$N$23,-1) -> -1
AI139: 2.74 | AJ139: 0 | AK139: 17.78303769 | AL139: 0 | AM139: 0 | AN139: 0 | AO139: 0 | AP139: 0 | AQ139: 0 | AR139: 0 | AS139: 0 | AT139: 0 | AU139: 0 | AV139: =IF($O$20<>0,SUM(AJ139:AU139)*$O$20+$N$20,-1) -> 28.78303769 | AX139: 0 | AY139: 0 | AZ139: 0 | BA139: 0 | BB139: 0 | BC139: 0 | BD139: 0 | BE139: 0 | BF139: 0 | BG139: 0 | BH139: 0 | BI139: 0 | BJ139: =IF($O$22<>0,SUM(AX139:BI139)*$O$22+$N$22,-1) -> 15 | BL139: 0 | BM139: 17.78303769 | BN139: 0 | BO139: 0 | BP139: 0 | BQ139: 0 | BR139: 0 | BS139: 0 | BT139: 0 | BU139: 0 | BV139: 0 | BW139: 0 | BX139: =IF($O$24<>0,SUM(BL139:BW139)*$O$24+$N$24,-1) -> -7.783037693 | BZ139: 0 | CA139: 2.751879643e-11 | CB139: 0 | CC139: 0 | CD139: 0 | CE139: 0 | CF139: 0 | CG139: 0 | CH139: 0 | CI139: 0 | CJ139: 0 | CK139: 0 | CL139: =IF($O$21<>0,SUM(BZ139:CK139)*$O$21+$N$21,-1) -> -1 | CN139: 0 | CO139: 2.129888485e-220 | CP139: 0 | CQ139: 0 | CR139: 0 | CS139: 0 | CT139: 0 | CU139: 0 | CV139: 0 | CW139: 0 | CX139: 0 | CY139: 0 | CZ139: =IF($O$23<>0,SUM(CN139:CY139)*$O$23+$N$23,-1) -> -1
AI140: 2.76 | AJ140: 0 | AK140: 5.183830525 | AL140: 0 | AM140: 0 | AN140: 0 | AO140: 0 | AP140: 0 | AQ140: 0 | AR140: 0 | AS140: 0 | AT140: 0 | AU140: 0 | AV140: =IF($O$20<>0,SUM(AJ140:AU140)*$O$20+$N$20,-1) -> 16.18383052 | AX140: 0 | AY140: 0 | AZ140: 0 | BA140: 0 | BB140: 0 | BC140: 0 | BD140: 0 | BE140: 0 | BF140: 0 | BG140: 0 | BH140: 0 | BI140: 0 | BJ140: =IF($O$22<>0,SUM(AX140:BI140)*$O$22+$N$22,-1) -> 15 | BL140: 0 | BM140: 5.183830525 | BN140: 0 | BO140: 0 | BP140: 0 | BQ140: 0 | BR140: 0 | BS140: 0 | BT140: 0 | BU140: 0 | BV140: 0 | BW140: 0 | BX140: =IF($O$24<>0,SUM(BL140:BW140)*$O$24+$N$24,-1) -> 4.816169475 | BZ140: 0 | CA140: 6.332718589e-15 | CB140: 0 | CC140: 0 | CD140: 0 | CE140: 0 | CF140: 0 | CG140: 0 | CH140: 0 | CI140: 0 | CJ140: 0 | CK140: 0 | CL140: =IF($O$21<>0,SUM(BZ140:CK140)*$O$21+$N$21,-1) -> -1 | CN140: 0 | CO140: 8.471166018e-211 | CP140: 0 | CQ140: 0 | CR140: 0 | CS140: 0 | CT140: 0 | CU140: 0 | CV140: 0 | CW140: 0 | CX140: 0 | CY140: 0 | CZ140: =IF($O$23<>0,SUM(CN140:CY140)*$O$23+$N$23,-1) -> -1
AI141: 2.78 | AJ141: 0 | AK141: 0.4766559574 | AL141: 0 | AM141: 0 | AN141: 0 | AO141: 0 | AP141: 0 | AQ141: 0 | AR141: 0 | AS141: 0 | AT141: 0 | AU141: 0 | AV141: =IF($O$20<>0,SUM(AJ141:AU141)*$O$20+$N$20,-1) -> 11.47665596 | AX141: 0 | AY141: 0 | AZ141: 0 | BA141: 0 | BB141: 0 | BC141: 0 | BD141: 0 | BE141: 0 | BF141: 0 | BG141: 0 | BH141: 0 | BI141: 0 | BJ141: =IF($O$22<>0,SUM(AX141:BI141)*$O$22+$N$22,-1) -> 15 | BL141: 0 | BM141: 0.4766559574 | BN141: 0 | BO141: 0 | BP141: 0 | BQ141: 0 | BR141: 0 | BS141: 0 | BT141: 0 | BU141: 0 | BV141: 0 | BW141: 0 | BX141: =IF($O$24<>0,SUM(BL141:BW141)*$O$24+$N$24,-1) -> 9.523344043 | BZ141: 0 | CA141: 4.769567988e-19 | CB141: 0 | CC141: 0 | CD141: 0 | CE141: 0 | CF141: 0 | CG141: 0 | CH141: 0 | CI141: 0 | CJ141: 0 | CK141: 0 | CL141: =IF($O$21<>0,SUM(BZ141:CK141)*$O$21+$N$21,-1) -> -1 | CN141: 0 | CO141: 2.061604626e-201 | CP141: 0 | CQ141: 0 | CR141: 0 | CS141: 0 | CT141: 0 | CU141: 0 | CV141: 0 | CW141: 0 | CX141: 0 | CY141: 0 | CZ141: =IF($O$23<>0,SUM(CN141:CY141)*$O$23+$N$23,-1) -> -1
AI142: 2.8 | AJ142: 0 | AK142: 0.01382511145 | AL142: 0 | AM142: 0 | AN142: 0 | AO142: 0 | AP142: 0 | AQ142: 0 | AR142: 0 | AS142: 0 | AT142: 0 | AU142: 0 | AV142: =IF($O$20<>0,SUM(AJ142:AU142)*$O$20+$N$20,-1) -> 11.01382511 | AX142: 0 | AY142: 0 | AZ142: 0 | BA142: 0 | BB142: 0 | BC142: 0 | BD142: 0 | BE142: 0 | BF142: 0 | BG142: 0 | BH142: 0 | BI142: 0 | BJ142: =IF($O$22<>0,SUM(AX142:BI142)*$O$22+$N$22,-1) -> 15 | BL142: 0 | BM142: 0.01382511145 | BN142: 0 | BO142: 0 | BP142: 0 | BQ142: 0 | BR142: 0 | BS142: 0 | BT142: 0 | BU142: 0 | BV142: 0 | BW142: 0 | BX142: =IF($O$24<>0,SUM(BL142:BW142)*$O$24+$N$24,-1) -> 9.986174889 | BZ142: 0 | CA142: 1.175698594e-23 | CB142: 0 | CC142: 0 | CD142: 0 | CE142: 0 | CF142: 0 | CG142: 0 | CH142: 0 | CI142: 0 | CJ142: 0 | CK142: 0 | CL142: =IF($O$21<>0,SUM(BZ142:CK142)*$O$21+$N$21,-1) -> -1 | CN142: 0 | CO142: 3.070035705e-192 | CP142: 0 | CQ142: 0 | CR142: 0 | CS142: 0 | CT142: 0 | CU142: 0 | CV142: 0 | CW142: 0 | CX142: 0 | CY142: 0 | CZ142: =IF($O$23<>0,SUM(CN142:CY142)*$O$23+$N$23,-1) -> -1
AI143: 2.82 | AJ143: 0 | AK143: 0.0001264857621 | AL143: 0 | AM143: 0 | AN143: 0 | AO143: 0 | AP143: 0 | AQ143: 0 | AR143: 0 | AS143: 0 | AT143: 0 | AU143: 0 | AV143: =IF($O$20<>0,SUM(AJ143:AU143)*$O$20+$N$20,-1) -> 11.00012649 | AX143: 0 | AY143: 0 | AZ143: 0 | BA143: 0 | BB143: 0 | BC143: 0 | BD143: 0 | BE143: 0 | BF143: 0 | BG143: 0 | BH143: 0 | BI143: 0 | BJ143: =IF($O$22<>0,SUM(AX143:BI143)*$O$22+$N$22,-1) -> 15 | BL143: 0 | BM143: 0.0001264857621 | BN143: 0 | BO143: 0 | BP143: 0 | BQ143: 0 | BR143: 0 | BS143: 0 | BT143: 0 | BU143: 0 | BV143: 0 | BW143: 0 | BX143: =IF($O$24<>0,SUM(BL143:BW143)*$O$24+$N$24,-1) -> 9.999873514 | BZ143: 0 | CA143: 9.485081226e-29 | CB143: 0 | CC143: 0 | CD143: 0 | CE143: 0 | CF143: 0 | CG143: 0 | CH143: 0 | CI143: 0 | CJ143: 0 | CK143: 0 | CL143: =IF($O$21<>0,SUM(BZ143:CK143)*$O$21+$N$21,-1) -> -1 | CN143: 0 | CO143: 2.797417788e-183 | CP143: 0 | CQ143: 0 | CR143: 0 | CS143: 0 | CT143: 0 | CU143: 0 | CV143: 0 | CW143: 0 | CX143: 0 | CY143: 0 | CZ143: =IF($O$23<>0,SUM(CN143:CY143)*$O$23+$N$23,-1) -> -1
AI144: 2.84 | AJ144: 0 | AK144: 3.650261919e-07 | AL144: 0 | AM144: 0 | AN144: 0 | AO144: 0 | AP144: 0 | AQ144: 0 | AR144: 0 | AS144: 0 | AT144: 0 | AU144: 0 | AV144: =IF($O$20<>0,SUM(AJ144:AU144)*$O$20+$N$20,-1) -> 11.00000037 | AX144: 0 | AY144: 8.105484689e-305 | AZ144: 0 | BA144: 0 | BB144: 0 | BC144: 0 | BD144: 0 | BE144: 0 | BF144: 0 | BG144: 0 | BH144: 0 | BI144: 0 | BJ144: =IF($O$22<>0,SUM(AX144:BI144)*$O$22+$N$22,-1) -> 15 | BL144: 0 | BM144: 3.650261919e-07 | BN144: 0 | BO144: 0 | BP144: 0 | BQ144: 0 | BR144: 0 | BS144: 0 | BT144: 0 | BU144: 0 | BV144: 0 | BW144: 0 | BX144: =IF($O$24<>0,SUM(BL144:BW144)*$O$24+$N$24,-1) -> 9.999999635 | BZ144: 0 | CA144: 2.504460638e-34 | CB144: 0 | CC144: 0 | CD144: 0 | CE144: 0 | CF144: 0 | CG144: 0 | CH144: 0 | CI144: 0 | CJ144: 0 | CK144: 0 | CL144: =IF($O$21<>0,SUM(BZ144:CK144)*$O$21+$N$21,-1) -> -1 | CN144: 0 | CO144: 1.559721638e-174 | CP144: 0 | CQ144: 0 | CR144: 0 | CS144: 0 | CT144: 0 | CU144: 0 | CV144: 0 | CW144: 0 | CX144: 0 | CY144: 0 | CZ144: =IF($O$23<>0,SUM(CN144:CY144)*$O$23+$N$23,-1) -> -1
AI145: 2.86 | AJ145: 0 | AK145: 3.322888728e-10 | AL145: 0 | AM145: 0 | AN145: 0 | AO145: 0 | AP145: 0 | AQ145: 0 | AR145: 0 | AS145: 0 | AT145: 0 | AU145: 0 | AV145: =IF($O$20<>0,SUM(AJ145:AU145)*$O$20+$N$20,-1) -> 11 | AX145: 0 | AY145: 4.084212101e-291 | AZ145: 0 | BA145: 0 | BB145: 0 | BC145: 0 | BD145: 0 | BE145: 0 | BF145: 0 | BG145: 0 | BH145: 0 | BI145: 0 | BJ145: =IF($O$22<>0,SUM(AX145:BI145)*$O$22+$N$22,-1) -> 15 | BL145: 0 | BM145: 3.322888728e-10 | BN145: 0 | BO145: 0 | BP145: 0 | BQ145: 0 | BR145: 0 | BS145: 0 | BT145: 0 | BU145: 0 | BV145: 0 | BW145: 0 | BX145: =IF($O$24<>0,SUM(BL145:BW145)*$O$24+$N$24,-1) -> 10 | BZ145: 0 | CA145: 2.16429007e-40 | CB145: 0 | CC145: 0 | CD145: 0 | CE145: 0 | CF145: 0 | CG145: 0 | CH145: 0 | CI145: 0 | CJ145: 0 | CK145: 0 | CL145: =IF($O$21<>0,SUM(BZ145:CK145)*$O$21+$N$21,-1) -> -1 | CN145: 0 | CO145: 5.321238465e-166 | CP145: 0 | CQ145: 0 | CR145: 0 | CS145: 0 | CT145: 0 | CU145: 0 | CV145: 0 | CW145: 0 | CX145: 0 | CY145: 0 | CZ145: =IF($O$23<>0,SUM(CN145:CY145)*$O$23+$N$23,-1) -> -1
AI146: 2.88 | AJ146: 0 | AK146: 9.541506586e-14 | AL146: 0 | AM146: 0 | AN146: 0 | AO146: 0 | AP146: 0 | AQ146: 0 | AR146: 0 | AS146: 0 | AT146: 0 | AU146: 0 | AV146: =IF($O$20<>0,SUM(AJ146:AU146)*$O$20+$N$20,-1) -> 11 | AX146: 0 | AY146: 9.973989464e-278 | AZ146: 0 | BA146: 0 | BB146: 0 | BC146: 0 | BD146: 0 | BE146: 0 | BF146: 0 | BG146: 0 | BH146: 0 | BI146: 0 | BJ146: =IF($O$22<>0,SUM(AX146:BI146)*$O$22+$N$22,-1) -> 15 | BL146: 0 | BM146: 9.541506586e-14 | BN146: 0 | BO146: 0 | BP146: 0 | BQ146: 0 | BR146: 0 | BS146: 0 | BT146: 0 | BU146: 0 | BV146: 0 | BW146: 0 | BX146: =IF($O$24<>0,SUM(BL146:BW146)*$O$24+$N$24,-1) -> 10 | BZ146: 0 | CA146: 6.121316343e-47 | CB146: 0 | CC146: 0 | CD146: 0 | CE146: 0 | CF146: 0 | CG146: 0 | CH146: 0 | CI146: 0 | CJ146: 0 | CK146: 0 | CL146: =IF($O$21<>0,SUM(BZ146:CK146)*$O$21+$N$21,-1) -> -1 | CN146: 0 | CO146: 1.110846895e-157 | CP146: 0 | CQ146: 0 | CR146: 0 | CS146: 0 | CT146: 0 | CU146: 0 | CV146: 0 | CW146: 0 | CX146: 0 | CY146: 0 | CZ146: =IF($O$23<>0,SUM(CN146:CY146)*$O$23+$N$23,-1) -> -1
AI147: 2.9 | AJ147: 0 | AK147: 8.642263333e-18 | AL147: 0 | AM147: 0 | AN147: 0 | AO147: 0 | AP147: 0 | AQ147: 0 | AR147: 0 | AS147: 0 | AT147: 0 | AU147: 0 | AV147: =IF($O$20<>0,SUM(AJ147:AU147)*$O$20+$N$20,-1) -> 11 | AX147: 0 | AY147: 1.180486003e-264 | AZ147: 0 | BA147: 0 | BB147: 0 | BC147: 0 | BD147: 0 | BE147: 0 | BF147: 0 | BG147: 0 | BH147: 0 | BI147: 0 | BJ147: =IF($O$22<>0,SUM(AX147:BI147)*$O$22+$N$22,-1) -> 15 | BL147: 0 | BM147: 8.642263333e-18 | BN147: 0 | BO147: 0 | BP147: 0 | BQ147: 0 | BR147: 0 | BS147: 0 | BT147: 0 | BU147: 0 | BV147: 0 | BW147: 0 | BX147: =IF($O$24<>0,SUM(BL147:BW147)*$O$24+$N$24,-1) -> 10 | BZ147: 0 | CA147: 5.666335451e-54 | CB147: 0 | CC147: 0 | CD147: 0 | CE147: 0 | CF147: 0 | CG147: 0 | CH147: 0 | CI147: 0 | CJ147: 0 | CK147: 0 | CL147: =IF($O$21<>0,SUM(BZ147:CK147)*$O$21+$N$21,-1) -> -1 | CN147: 0 | CO147: 1.418964561e-149 | CP147: 0 | CQ147: 0 | CR147: 0 | CS147: 0 | CT147: 0 | CU147: 0 | CV147: 0 | CW147: 0 | CX147: 0 | CY147: 0 | CZ147: =IF($O$23<>0,SUM(CN147:CY147)*$O$23+$N$23,-1) -> -1
AI148: 2.92 | AJ148: 0 | AK148: 2.4691497e-22 | AL148: 0 | AM148: 0 | AN148: 0 | AO148: 0 | AP148: 0 | AQ148: 0 | AR148: 0 | AS148: 0 | AT148: 0 | AU148: 0 | AV148: =IF($O$20<>0,SUM(AJ148:AU148)*$O$20+$N$20,-1) -> 11 | AX148: 0 | AY148: 6.771487765e-252 | AZ148: 0 | BA148: 0 | BB148: 0 | BC148: 0 | BD148: 0 | BE148: 0 | BF148: 0 | BG148: 0 | BH148: 0 | BI148: 0 | BJ148: =IF($O$22<>0,SUM(AX148:BI148)*$O$22+$N$22,-1) -> 15 | BL148: 0 | BM148: 2.4691497e-22 | BN148: 0 | BO148: 0 | BP148: 0 | BQ148: 0 | BR148: 0 | BS148: 0 | BT148: 0 | BU148: 0 | BV148: 0 | BW148: 0 | BX148: =IF($O$24<>0,SUM(BL148:BW148)*$O$24+$N$24,-1) -> 10 | BZ148: 0 | CA148: 1.71667404e-61 | CB148: 0 | CC148: 0 | CD148: 0 | CE148: 0 | CF148: 0 | CG148: 0 | CH148: 0 | CI148: 0 | CJ148: 0 | CK148: 0 | CL148: =IF($O$21<>0,SUM(BZ148:CK148)*$O$21+$N$21,-1) -> -1 | CN148: 0 | CO148: 1.109084795e-141 | CP148: 0 | CQ148: 0 | CR148: 0 | CS148: 0 | CT148: 0 | CU148: 0 | CV148: 0 | CW148: 0 | CX148: 0 | CY148: 0 | CZ148: =IF($O$23<>0,SUM(CN148:CY148)*$O$23+$N$23,-1) -> -1
AI149: 2.94 | AJ149: 0 | AK149: 2.225239355e-27 | AL149: 0 | AM149: 0 | AN149: 0 | AO149: 0 | AP149: 0 | AQ149: 0 | AR149: 0 | AS149: 0 | AT149: 0 | AU149: 0 | AV149: =IF($O$20<>0,SUM(AJ149:AU149)*$O$20+$N$20,-1) -> 11 | AX149: 0 | AY149: 1.882515989e-239 | AZ149: 0 | BA149: 0 | BB149: 0 | BC149: 0 | BD149: 0 | BE149: 0 | BF149: 0 | BG149: 0 | BH149: 0 | BI149: 0 | BJ149: =IF($O$22<>0,SUM(AX149:BI149)*$O$22+$N$22,-1) -> 15 | BL149: 0 | BM149: 2.225239355e-27 | BN149: 0 | BO149: 0 | BP149: 0 | BQ149: 0 | BR149: 0 | BS149: 0 | BT149: 0 | BU149: 0 | BV149: 0 | BW149: 0 | BX149: =IF($O$24<>0,SUM(BL149:BW149)*$O$24+$N$24,-1) -> 10 | BZ149: 0 | CA149: 1.70216438e-69 | CB149: 0 | CC149: 0 | CD149: 0 | CE149: 0 | CF149: 0 | CG149: 0 | CH149: 0 | CI149: 0 | CJ149: 0 | CK149: 0 | CL149: =IF($O$21<>0,SUM(BZ149:CK149)*$O$21+$N$21,-1) -> -1 | CN149: 0 | CO149: 5.304370042e-134 | CP149: 0 | CQ149: 0 | CR149: 0 | CS149: 0 | CT149: 0 | CU149: 0 | CV149: 0 | CW149: 0 | CX149: 0 | CY149: 0 | CZ149: =IF($O$23<>0,SUM(CN149:CY149)*$O$23+$N$23,-1) -> -1
AI150: 2.96 | AJ150: 0 | AK150: 6.325799583e-33 | AL150: 0 | AM150: 0 | AN150: 0 | AO150: 0 | AP150: 0 | AQ150: 0 | AR150: 0 | AS150: 0 | AT150: 0 | AU150: 0 | AV150: =IF($O$20<>0,SUM(AJ150:AU150)*$O$20+$N$20,-1) -> 11 | AX150: 0 | AY150: 2.536439855e-227 | AZ150: 0 | BA150: 0 | BB150: 0 | BC150: 0 | BD150: 0 | BE150: 0 | BF150: 0 | BG150: 0 | BH150: 0 | BI150: 0 | BJ150: =IF($O$22<>0,SUM(AX150:BI150)*$O$22+$N$22,-1) -> 15 | BL150: 0 | BM150: 6.325799583e-33 | BN150: 0 | BO150: 0 | BP150: 0 | BQ150: 0 | BR150: 0 | BS150: 0 | BT150: 0 | BU150: 0 | BV150: 0 | BW150: 0 | BX150: =IF($O$24<>0,SUM(BL150:BW150)*$O$24+$N$24,-1) -> 10 | BZ150: 0 | CA150: 5.52386756e-78 | CB150: 0 | CC150: 0 | CD150: 0 | CE150: 0 | CF150: 0 | CG150: 0 | CH150: 0 | CI150: 0 | CJ150: 0 | CK150: 0 | CL150: =IF($O$21<>0,SUM(BZ150:CK150)*$O$21+$N$21,-1) -> -1 | CN150: 0 | CO150: 1.552311e-126 | CP150: 0 | CQ150: 0 | CR150: 0 | CS150: 0 | CT150: 0 | CU150: 0 | CV150: 0 | CW150: 0 | CX150: 0 | CY150: 0 | CZ150: =IF($O$23<>0,SUM(CN150:CY150)*$O$23+$N$23,-1) -> -1
AI151: 2.98 | AJ151: 0 | AK151: 5.672356388e-39 | AL151: 0 | AM151: 0 | AN151: 0 | AO151: 0 | AP151: 0 | AQ151: 0 | AR151: 0 | AS151: 0 | AT151: 0 | AU151: 0 | AV151: =IF($O$20<>0,SUM(AJ151:AU151)*$O$20+$N$20,-1) -> 11 | AX151: 0 | AY151: 1.656310607e-215 | AZ151: 0 | BA151: 0 | BB151: 0 | BC151: 0 | BD151: 0 | BE151: 0 | BF151: 0 | BG151: 0 | BH151: 0 | BI151: 0 | BJ151: =IF($O$22<>0,SUM(AX151:BI151)*$O$22+$N$22,-1) -> 15 | BL151: 0 | BM151: 5.672356388e-39 | BN151: 0 | BO151: 0 | BP151: 0 | BQ151: 0 | BR151: 0 | BS151: 0 | BT151: 0 | BU151: 0 | BV151: 0 | BW151: 0 | BX151: =IF($O$24<>0,SUM(BL151:BW151)*$O$24+$N$24,-1) -> 10 | BZ151: 0 | CA151: 5.866959862e-87 | CB151: 0 | CC151: 0 | CD151: 0 | CE151: 0 | CF151: 0 | CG151: 0 | CH151: 0 | CI151: 0 | CJ151: 0 | CK151: 0 | CL151: =IF($O$21<>0,SUM(BZ151:CK151)*$O$21+$N$21,-1) -> -1 | CN151: 0 | CO151: 2.779710169e-119 | CP151: 0 | CQ151: 0 | CR151: 0 | CS151: 0 | CT151: 0 | CU151: 0 | CV151: 0 | CW151: 0 | CX151: 0 | CY151: 0 | CZ151: =IF($O$23<>0,SUM(CN151:CY151)*$O$23+$N$23,-1) -> -1
AI152: 3 | AJ152: 0 | AK152: 1.604430744e-45 | AL152: 0 | AM152: 0 | AN152: 0 | AO152: 0 | AP152: 0 | AQ152: 0 | AR152: 0 | AS152: 0 | AT152: 0 | AU152: 0 | AV152: =IF($O$20<>0,SUM(AJ152:AU152)*$O$20+$N$20,-1) -> 11 | AX152: 0 | AY152: 5.241919132e-204 | AZ152: 0 | BA152: 0 | BB152: 0 | BC152: 0 | BD152: 0 | BE152: 0 | BF152: 0 | BG152: 0 | BH152: 0 | BI152: 0 | BJ152: =IF($O$22<>0,SUM(AX152:BI152)*$O$22+$N$22,-1) -> 15 | BL152: 0 | BM152: 1.604430744e-45 | BN152: 0 | BO152: 0 | BP152: 0 | BQ152: 0 | BR152: 0 | BS152: 0 | BT152: 0 | BU152: 0 | BV152: 0 | BW152: 0 | BX152: =IF($O$24<>0,SUM(BL152:BW152)*$O$24+$N$24,-1) -> 10 | BZ152: 0 | CA152: 2.039440677e-96 | CB152: 0 | CC152: 0 | CD152: 0 | CE152: 0 | CF152: 0 | CG152: 0 | CH152: 0 | CI152: 0 | CJ152: 0 | CK152: 0 | CL152: =IF($O$21<>0,SUM(BZ152:CK152)*$O$21+$N$21,-1) -> -1 | CN152: 0 | CO152: 3.045763347e-112 | CP152: 0 | CQ152: 0 | CR152: 0 | CS152: 0 | CT152: 0 | CU152: 0 | CV152: 0 | CW152: 0 | CX152: 0 | CY152: 0 | CZ152: =IF($O$23<>0,SUM(CN152:CY152)*$O$23+$N$23,-1) -> -1
AI153: 3.02 | AJ153: 0 | AK153: 1.431488378e-52 | AL153: 0 | AM153: 0 | AN153: 0 | AO153: 0 | AP153: 0 | AQ153: 0 | AR153: 0 | AS153: 0 | AT153: 0 | AU153: 0 | AV153: =IF($O$20<>0,SUM(AJ153:AU153)*$O$20+$N$20,-1) -> 11 | AX153: 0 | AY153: 8.040261426e-193 | AZ153: 0 | BA153: 0 | BB153: 0 | BC153: 0 | BD153: 0 | BE153: 0 | BF153: 0 | BG153: 0 | BH153: 0 | BI153: 0 | BJ153: =IF($O$22<>0,SUM(AX153:BI153)*$O$22+$N$22,-1) -> 15 | BL153: 0 | BM153: 1.431488378e-52 | BN153: 0 | BO153: 0 | BP153: 0 | BQ153: 0 | BR153: 0 | BS153: 0 | BT153: 0 | BU153: 0 | BV153: 0 | BW153: 0 | BX153: =IF($O$24<>0,SUM(BL153:BW153)*$O$24+$N$24,-1) -> 10 | BZ153: 0 | CA153: 2.32026259e-106 | CB153: 0 | CC153: 0 | CD153: 0 | CE153: 0 | CF153: 0 | CG153: 0 | CH153: 0 | CI153: 0 | CJ153: 0 | CK153: 0 | CL153: =IF($O$21<>0,SUM(BZ153:CK153)*$O$21+$N$21,-1) -> -1 | CN153: 0 | CO153: 2.042060739e-105 | CP153: 0 | CQ153: 0 | CR153: 0 | CS153: 0 | CT153: 0 | CU153: 0 | CV153: 0 | CW153: 0 | CX153: 0 | CY153: 0 | CZ153: =IF($O$23<>0,SUM(CN153:CY153)*$O$23+$N$23,-1) -> -1
AI154: 3.04 | AJ154: 0 | AK154: 4.028691968e-60 | AL154: 0 | AM154: 0 | AN154: 0 | AO154: 0 | AP154: 0 | AQ154: 0 | AR154: 0 | AS154: 0 | AT154: 0 | AU154: 0 | AV154: =IF($O$20<>0,SUM(AJ154:AU154)*$O$20+$N$20,-1) -> 11 | AX154: 0 | AY154: 5.976973667e-182 | AZ154: 0 | BA154: 0 | BB154: 0 | BC154: 0 | BD154: 0 | BE154: 0 | BF154: 0 | BG154: 0 | BH154: 0 | BI154: 0 | BJ154: =IF($O$22<>0,SUM(AX154:BI154)*$O$22+$N$22,-1) -> 15 | BL154: 0 | BM154: 4.028691968e-60 | BN154: 0 | BO154: 0 | BP154: 0 | BQ154: 0 | BR154: 0 | BS154: 0 | BT154: 0 | BU154: 0 | BV154: 0 | BW154: 0 | BX154: =IF($O$24<>0,SUM(BL154:BW154)*$O$24+$N$24,-1) -> 10 | BZ154: 0 | CA154: 8.639553517e-117 | CB154: 0 | CC154: 0 | CD154: 0 | CE154: 0 | CF154: 0 | CG154: 0 | CH154: 0 | CI154: 0 | CJ154: 0 | CK154: 0 | CL154: =IF($O$21<>0,SUM(BZ154:CK154)*$O$21+$N$21,-1) -> -1 | CN154: 0 | CO154: 8.377549731e-99 | CP154: 0 | CQ154: 0 | CR154: 0 | CS154: 0 | CT154: 0 | CU154: 0 | CV154: 0 | CW154: 0 | CX154: 0 | CY154: 0 | CZ154: =IF($O$23<>0,SUM(CN154:CY154)*$O$23+$N$23,-1) -> -1
AI155: 3.06 | AJ155: 0 | AK155: 3.576429627e-68 | AL155: 0 | AM155: 0 | AN155: 0 | AO155: 0 | AP155: 0 | AQ155: 0 | AR155: 0 | AS155: 0 | AT155: 0 | AU155: 0 | AV155: =IF($O$20<>0,SUM(AJ155:AU155)*$O$20+$N$20,-1) -> 11 | AX155: 0 | AY155: 2.153395665e-171 | AZ155: 0 | BA155: 0 | BB155: 0 | BC155: 0 | BD155: 0 | BE155: 0 | BF155: 0 | BG155: 0 | BH155: 0 | BI155: 0 | BJ155: =IF($O$22<>0,SUM(AX155:BI155)*$O$22+$N$22,-1) -> 15 | BL155: 0 | BM155: 3.576429627e-68 | BN155: 0 | BO155: 0 | BP155: 0 | BQ155: 0 | BR155: 0 | BS155: 0 | BT155: 0 | BU155: 0 | BV155: 0 | BW155: 0 | BX155: =IF($O$24<>0,SUM(BL155:BW155)*$O$24+$N$24,-1) -> 10 | BZ155: 0 | CA155: 1.052867114e-127 | CB155: 0 | CC155: 0 | CD155: 0 | CE155: 0 | CF155: 0 | CG155: 0 | CH155: 0 | CI155: 0 | CJ155: 0 | CK155: 0 | CL155: =IF($O$21<>0,SUM(BZ155:CK155)*$O$21+$N$21,-1) -> -1 | CN155: 0 | CO155: 2.103009492e-92 | CP155: 0 | CQ155: 0 | CR155: 0 | CS155: 0 | CT155: 0 | CU155: 0 | CV155: 0 | CW155: 0 | CX155: 0 | CY155: 0 | CZ155: =IF($O$23<>0,SUM(CN155:CY155)*$O$23+$N$23,-1) -> -1
AI156: 3.08 | AJ156: 0 | AK156: 1.001485556e-76 | AL156: 0 | AM156: 0 | AN156: 0 | AO156: 0 | AP156: 0 | AQ156: 0 | AR156: 0 | AS156: 0 | AT156: 0 | AU156: 0 | AV156: =IF($O$20<>0,SUM(AJ156:AU156)*$O$20+$N$20,-1) -> 11 | AX156: 0 | AY156: 3.760084853e-161 | AZ156: 0 | BA156: 0 | BB156: 0 | BC156: 0 | BD156: 0 | BE156: 0 | BF156: 0 | BG156: 0 | BH156: 0 | BI156: 0 | BJ156: =IF($O$22<>0,SUM(AX156:BI156)*$O$22+$N$22,-1) -> 15 | BL156: 0 | BM156: 1.001485556e-76 | BN156: 0 | BO156: 0 | BP156: 0 | BQ156: 0 | BR156: 0 | BS156: 0 | BT156: 0 | BU156: 0 | BV156: 0 | BW156: 0 | BX156: =IF($O$24<>0,SUM(BL156:BW156)*$O$24+$N$24,-1) -> 10 | BZ156: 0 | CA156: 4.199367891e-139 | CB156: 0 | CC156: 0 | CD156: 0 | CE156: 0 | CF156: 0 | CG156: 0 | CH156: 0 | CI156: 0 | CJ156: 0 | CK156: 0 | CL156: =IF($O$21<>0,SUM(BZ156:CK156)*$O$21+$N$21,-1) -> -1 | CN156: 0 | CO156: 3.230288496e-86 | CP156: 0 | CQ156: 0 | CR156: 0 | CS156: 0 | CT156: 0 | CU156: 0 | CV156: 0 | CW156: 0 | CX156: 0 | CY156: 0 | CZ156: =IF($O$23<>0,SUM(CN156:CY156)*$O$23+$N$23,-1) -> -1
AI157: 3.1 | AJ157: 0 | AK157: 8.846043719e-86 | AL157: 0 | AM157: 0 | AN157: 0 | AO157: 0 | AP157: 0 | AQ157: 0 | AR157: 0 | AS157: 0 | AT157: 0 | AU157: 0 | AV157: =IF($O$20<>0,SUM(AJ157:AU157)*$O$20+$N$20,-1) -> 11 | AX157: 0 | AY157: 3.182019058e-151 | AZ157: 0 | BA157: 0 | BB157: 0 | BC157: 0 | BD157: 0 | BE157: 0 | BF157: 0 | BG157: 0 | BH157: 0 | BI157: 0 | BJ157: =IF($O$22<>0,SUM(AX157:BI157)*$O$22+$N$22,-1) -> 15 | BL157: 0 | BM157: 8.846043719e-86 | BN157: 0 | BO157: 0 | BP157: 0 | BQ157: 0 | BR157: 0 | BS157: 0 | BT157: 0 | BU157: 0 | BV157: 0 | BW157: 0 | BX157: =IF($O$24<>0,SUM(BL157:BW157)*$O$24+$N$24,-1) -> 10 | BZ157: 0 | CA157: 5.481789896e-151 | CB157: 0 | CC157: 0 | CD157: 0 | CE157: 0 | CF157: 0 | CG157: 0 | CH157: 0 | CI157: 0 | CJ157: 0 | CK157: 0 | CL157: =IF($O$21<>0,SUM(BZ157:CK157)*$O$21+$N$21,-1) -> -1 | CN157: 0 | CO157: 3.036108222e-80 | CP157: 0 | CQ157: 0 | CR157: 0 | CS157: 0 | CT157: 0 | CU157: 0 | CV157: 0 | CW157: 0 | CX157: 0 | CY157: 0 | CZ157: =IF($O$23<>0,SUM(CN157:CY157)*$O$23+$N$23,-1) -> -1
AI158: 3.12 | AJ158: 0 | AK158: 2.464693148e-95 | AL158: 0 | AM158: 0 | AN158: 0 | AO158: 0 | AP158: 0 | AQ158: 0 | AR158: 0 | AS158: 0 | AT158: 0 | AU158: 0 | AV158: =IF($O$20<>0,SUM(AJ158:AU158)*$O$20+$N$20,-1) -> 11 | AX158: 0 | AY158: 1.305086288e-141 | AZ158: 0 | BA158: 0 | BB158: 0 | BC158: 0 | BD158: 0 | BE158: 0 | BF158: 0 | BG158: 0 | BH158: 0 | BI158: 0 | BJ158: =IF($O$22<>0,SUM(AX158:BI158)*$O$22+$N$22,-1) -> 15 | BL158: 0 | BM158: 2.464693148e-95 | BN158: 0 | BO158: 0 | BP158: 0 | BQ158: 0 | BR158: 0 | BS158: 0 | BT158: 0 | BU158: 0 | BV158: 0 | BW158: 0 | BX158: =IF($O$24<>0,SUM(BL158:BW158)*$O$24+$N$24,-1) -> 10 | BZ158: 0 | CA158: 2.342011101e-163 | CB158: 0 | CC158: 0 | CD158: 0 | CE158: 0 | CF158: 0 | CG158: 0 | CH158: 0 | CI158: 0 | CJ158: 0 | CK158: 0 | CL158: =IF($O$21<>0,SUM(BZ158:CK158)*$O$21+$N$21,-1) -> -1 | CN158: 0 | CO158: 1.746099727e-74 | CP158: 0 | CQ158: 0 | CR158: 0 | CS158: 0 | CT158: 0 | CU158: 0 | CV158: 0 | CW158: 0 | CX158: 0 | CY158: 0 | CZ158: =IF($O$23<>0,SUM(CN158:CY158)*$O$23+$N$23,-1) -> -1
AI159: 3.14 | AJ159: 0 | AK159: 2.166137491e-105 | AL159: 0 | AM159: 0 | AN159: 0 | AO159: 0 | AP159: 0 | AQ159: 0 | AR159: 0 | AS159: 0 | AT159: 0 | AU159: 0 | AV159: =IF($O$20<>0,SUM(AJ159:AU159)*$O$20+$N$20,-1) -> 11 | AX159: 0 | AY159: 2.594221153e-132 | AZ159: 0 | BA159: 0 | BB159: 0 | BC159: 0 | BD159: 0 | BE159: 0 | BF159: 0 | BG159: 0 | BH159: 0 | BI159: 0 | BJ159: =IF($O$22<>0,SUM(AX159:BI159)*$O$22+$N$22,-1) -> 15 | BL159: 0 | BM159: 2.166137491e-105 | BN159: 0 | BO159: 0 | BP159: 0 | BQ159: 0 | BR159: 0 | BS159: 0 | BT159: 0 | BU159: 0 | BV159: 0 | BW159: 0 | BX159: =IF($O$24<>0,SUM(BL159:BW159)*$O$24+$N$24,-1) -> 10 | BZ159: 0 | CA159: 3.274791189e-176 | CB159: 0 | CC159: 0 | CD159: 0 | CE159: 0 | CF159: 0 | CG159: 0 | CH159: 0 | CI159: 0 | CJ159: 0 | CK159: 0 | CL159: =IF($O$21<>0,SUM(BZ159:CK159)*$O$21+$N$21,-1) -> -1 | CN159: 0 | CO159: 6.144643631e-69 | CP159: 0 | CQ159: 0 | CR159: 0 | CS159: 0 | CT159: 0 | CU159: 0 | CV159: 0 | CW159: 0 | CX159: 0 | CY159: 0 | CZ159: =IF($O$23<>0,SUM(CN159:CY159)*$O$23+$N$23,-1) -> -1
AI160: 3.16 | AJ160: 0 | AK160: 6.005076791e-116 | AL160: 0 | AM160: 0 | AN160: 0 | AO160: 0 | AP160: 0 | AQ160: 0 | AR160: 0 | AS160: 0 | AT160: 0 | AU160: 0 | AV160: =IF($O$20<>0,SUM(AJ160:AU160)*$O$20+$N$20,-1) -> 11 | AX160: 0 | AY160: 2.499229193e-123 | AZ160: 0 | BA160: 0 | BB160: 0 | BC160: 0 | BD160: 0 | BE160: 0 | BF160: 0 | BG160: 0 | BH160: 0 | BI160: 0 | BJ160: =IF($O$22<>0,SUM(AX160:BI160)*$O$22+$N$22,-1) -> 15 | BL160: 0 | BM160: 6.005076791e-116 | BN160: 0 | BO160: 0 | BP160: 0 | BQ160: 0 | BR160: 0 | BS160: 0 | BT160: 0 | BU160: 0 | BV160: 0 | BW160: 0 | BX160: =IF($O$24<>0,SUM(BL160:BW160)*$O$24+$N$24,-1) -> 10 | BZ160: 0 | CA160: 1.498671255e-189 | CB160: 0 | CC160: 0 | CD160: 0 | CE160: 0 | CF160: 0 | CG160: 0 | CH160: 0 | CI160: 0 | CJ160: 0 | CK160: 0 | CL160: =IF($O$21<>0,SUM(BZ160:CK160)*$O$21+$N$21,-1) -> -1 | CN160: 0 | CO160: 1.32312299e-63 | CP160: 0 | CQ160: 0 | CR160: 0 | CS160: 0 | CT160: 0 | CU160: 0 | CV160: 0 | CW160: 0 | CX160: 0 | CY160: 0 | CZ160: =IF($O$23<>0,SUM(CN160:CY160)*$O$23+$N$23,-1) -> -1
AI161: 3.18 | AJ161: 0 | AK161: 5.251223427e-127 | AL161: 0 | AM161: 0 | AN161: 0 | AO161: 0 | AP161: 0 | AQ161: 0 | AR161: 0 | AS161: 0 | AT161: 0 | AU161: 0 | AV161: =IF($O$20<>0,SUM(AJ161:AU161)*$O$20+$N$20,-1) -> 11 | AX161: 0 | AY161: 1.166907667e-114 | AZ161: 0 | BA161: 0 | BB161: 0 | BC161: 0 | BD161: 0 | BE161: 0 | BF161: 0 | BG161: 0 | BH161: 0 | BI161: 0 | BJ161: =IF($O$22<>0,SUM(AX161:BI161)*$O$22+$N$22,-1) -> 15 | BL161: 0 | BM161: 5.251223427e-127 | BN161: 0 | BO161: 0 | BP161: 0 | BQ161: 0 | BR161: 0 | BS161: 0 | BT161: 0 | BU161: 0 | BV161: 0 | BW161: 0 | BX161: =IF($O$24<>0,SUM(BL161:BW161)*$O$24+$N$24,-1) -> 10 | BZ161: 0 | CA161: 2.2446945e-203 | CB161: 0 | CC161: 0 | CD161: 0 | CE161: 0 | CF161: 0 | CG161: 0 | CH161: 0 | CI161: 0 | CJ161: 0 | CK161: 0 | CL161: =IF($O$21<>0,SUM(BZ161:CK161)*$O$21+$N$21,-1) -> -1 | CN161: 0 | CO161: 1.743329946e-58 | CP161: 0 | CQ161: 0 | CR161: 0 | CS161: 0 | CT161: 0 | CU161: 0 | CV161: 0 | CW161: 0 | CX161: 0 | CY161: 0 | CZ161: =IF($O$23<>0,SUM(CN161:CY161)*$O$23+$N$23,-1) -> -1
AI162: 3.2 | AJ162: 0 | AK162: 1.4484777e-138 | AL162: 0 | AM162: 0 | AN162: 0 | AO162: 0 | AP162: 0 | AQ162: 0 | AR162: 0 | AS162: 0 | AT162: 0 | AU162: 0 | AV162: =IF($O$20<>0,SUM(AJ162:AU162)*$O$20+$N$20,-1) -> 11 | AX162: 0 | AY162: 2.64057326e-106 | AZ162: 0 | BA162: 0 | BB162: 0 | BC162: 0 | BD162: 0 | BE162: 0 | BF162: 0 | BG162: 0 | BH162: 0 | BI162: 0 | BJ162: =IF($O$22<>0,SUM(AX162:BI162)*$O$22+$N$22,-1) -> 15 | BL162: 0 | BM162: 1.4484777e-138 | BN162: 0 | BO162: 0 | BP162: 0 | BQ162: 0 | BR162: 0 | BS162: 0 | BT162: 0 | BU162: 0 | BV162: 0 | BW162: 0 | BX162: =IF($O$24<>0,SUM(BL162:BW162)*$O$24+$N$24,-1) -> 10 | BZ162: 0 | CA162: 1.100363581e-217 | CB162: 0 | CC162: 0 | CD162: 0 | CE162: 0 | CF162: 0 | CG162: 0 | CH162: 0 | CI162: 0 | CJ162: 0 | CK162: 0 | CL162: =IF($O$21<>0,SUM(BZ162:CK162)*$O$21+$N$21,-1) -> -1 | CN162: 0 | CO162: 1.405512862e-53 | CP162: 0 | CQ162: 0 | CR162: 0 | CS162: 0 | CT162: 0 | CU162: 0 | CV162: 0 | CW162: 0 | CX162: 0 | CY162: 0 | CZ162: =IF($O$23<>0,SUM(CN162:CY162)*$O$23+$N$23,-1) -> -1
AI163: 3.22 | AJ163: 0 | AK163: 1.260295875e-150 | AL163: 0 | AM163: 0 | AN163: 0 | AO163: 0 | AP163: 0 | AQ163: 0 | AR163: 0 | AS163: 0 | AT163: 0 | AU163: 0 | AV163: =IF($O$20<>0,SUM(AJ163:AU163)*$O$20+$N$20,-1) -> 11 | AX163: 0 | AY163: 2.895951393e-98 | AZ163: 0 | BA163: 0 | BB163: 0 | BC163: 0 | BD163: 0 | BE163: 0 | BF163: 0 | BG163: 0 | BH163: 0 | BI163: 0 | BJ163: =IF($O$22<>0,SUM(AX163:BI163)*$O$22+$N$22,-1) -> 15 | BL163: 0 | BM163: 1.260295875e-150 | BN163: 0 | BO163: 0 | BP163: 0 | BQ163: 0 | BR163: 0 | BS163: 0 | BT163: 0 | BU163: 0 | BV163: 0 | BW163: 0 | BX163: =IF($O$24<>0,SUM(BL163:BW163)*$O$24+$N$24,-1) -> 10 | BZ163: 0 | CA163: 1.765400616e-232 | CB163: 0 | CC163: 0 | CD163: 0 | CE163: 0 | CF163: 0 | CG163: 0 | CH163: 0 | CI163: 0 | CJ163: 0 | CK163: 0 | CL163: =IF($O$21<>0,SUM(BZ163:CK163)*$O$21+$N$21,-1) -> -1 | CN163: 0 | CO163: 6.933713902e-49 | CP163: 0 | CQ163: 0 | CR163: 0 | CS163: 0 | CT163: 0 | CU163: 0 | CV163: 0 | CW163: 0 | CX163: 0 | CY163: 0 | CZ163: =IF($O$23<>0,SUM(CN163:CY163)*$O$23+$N$23,-1) -> -1
AI164: 3.24 | AJ164: 0 | AK164: 3.458936596e-163 | AL164: 0 | AM164: 0 | AN164: 0 | AO164: 0 | AP164: 0 | AQ164: 0 | AR164: 0 | AS164: 0 | AT164: 0 | AU164: 0 | AV164: =IF($O$20<>0,SUM(AJ164:AU164)*$O$20+$N$20,-1) -> 11 | AX164: 0 | AY164: 1.53927294e-90 | AZ164: 0 | BA164: 0 | BB164: 0 | BC164: 0 | BD164: 0 | BE164: 0 | BF164: 0 | BG164: 0 | BH164: 0 | BI164: 0 | BJ164: =IF($O$22<>0,SUM(AX164:BI164)*$O$22+$N$22,-1) -> 15 | BL164: 0 | BM164: 3.458936596e-163 | BN164: 0 | BO164: 0 | BP164: 0 | BQ164: 0 | BR164: 0 | BS164: 0 | BT164: 0 | BU164: 0 | BV164: 0 | BW164: 0 | BX164: =IF($O$24<>0,SUM(BL164:BW164)*$O$24+$N$24,-1) -> 10 | BZ164: 0 | CA164: 9.269972383e-248 | CB164: 0 | CC164: 0 | CD164: 0 | CE164: 0 | CF164: 0 | CG164: 0 | CH164: 0 | CI164: 0 | CJ164: 0 | CK164: 0 | CL164: =IF($O$21<>0,SUM(BZ164:CK164)*$O$21+$N$21,-1) -> -1 | CN164: 0 | CO164: 2.093017554e-44 | CP164: 0 | CQ164: 0 | CR164: 0 | CS164: 0 | CT164: 0 | CU164: 0 | CV164: 0 | CW164: 0 | CX164: 0 | CY164: 0 | CZ164: =IF($O$23<>0,SUM(CN164:CY164)*$O$23+$N$23,-1) -> -1
AI165: 3.26 | AJ165: 0 | AK165: 2.994484523e-176 | AL165: 0 | AM165: 0 | AN165: 0 | AO165: 0 | AP165: 0 | AQ165: 0 | AR165: 0 | AS165: 0 | AT165: 0 | AU165: 0 | AV165: =IF($O$20<>0,SUM(AJ165:AU165)*$O$20+$N$20,-1) -> 11 | AX165: 0 | AY165: 3.965256819e-83 | AZ165: 0 | BA165: 0 | BB165: 0 | BC165: 0 | BD165: 0 | BE165: 0 | BF165: 0 | BG165: 0 | BH165: 0 | BI165: 0 | BJ165: =IF($O$22<>0,SUM(AX165:BI165)*$O$22+$N$22,-1) -> 15 | BL165: 0 | BM165: 2.994484523e-176 | BN165: 0 | BO165: 0 | BP165: 0 | BQ165: 0 | BR165: 0 | BS165: 0 | BT165: 0 | BU165: 0 | BV165: 0 | BW165: 0 | BX165: =IF($O$24<>0,SUM(BL165:BW165)*$O$24+$N$24,-1) -> 10 | BZ165: 0 | CA165: 1.59309512e-263 | CB165: 0 | CC165: 0 | CD165: 0 | CE165: 0 | CF165: 0 | CG165: 0 | CH165: 0 | CI165: 0 | CJ165: 0 | CK165: 0 | CL165: =IF($O$21<>0,SUM(BZ165:CK165)*$O$21+$N$21,-1) -> -1 | CN165: 0 | CO165: 3.865945105e-40 | CP165: 0 | CQ165: 0 | CR165: 0 | CS165: 0 | CT165: 0 | CU165: 0 | CV165: 0 | CW165: 0 | CX165: 0 | CY165: 0 | CZ165: =IF($O$23<>0,SUM(CN165:CY165)*$O$23+$N$23,-1) -> -1
AI166: 3.28 | AJ166: 0 | AK166: 8.1773188e-190 | AL166: 0 | AM166: 0 | AN166: 0 | AO166: 0 | AP166: 0 | AQ166: 0 | AR166: 0 | AS166: 0 | AT166: 0 | AU166: 0 | AV166: =IF($O$20<>0,SUM(AJ166:AU166)*$O$20+$N$20,-1) -> 11 | AX166: 0 | AY166: 4.950605568e-76 | AZ166: 0 | BA166: 0 | BB166: 0 | BC166: 0 | BD166: 0 | BE166: 0 | BF166: 0 | BG166: 0 | BH166: 0 | BI166: 0 | BJ166: =IF($O$22<>0,SUM(AX166:BI166)*$O$22+$N$22,-1) -> 15 | BL166: 0 | BM166: 8.1773188e-190 | BN166: 0 | BO166: 0 | BP166: 0 | BQ166: 0 | BR166: 0 | BS166: 0 | BT166: 0 | BU166: 0 | BV166: 0 | BW166: 0 | BX166: =IF($O$24<>0,SUM(BL166:BW166)*$O$24+$N$24,-1) -> 10 | BZ166: 0 | CA166: 8.960517137e-280 | CB166: 0 | CC166: 0 | CD166: 0 | CE166: 0 | CF166: 0 | CG166: 0 | CH166: 0 | CI166: 0 | CJ166: 0 | CK166: 0 | CL166: =IF($O$21<>0,SUM(BZ166:CK166)*$O$21+$N$21,-1) -> -1 | CN166: 0 | CO166: 4.369325049e-36 | CP166: 0 | CQ166: 0 | CR166: 0 | CS166: 0 | CT166: 0 | CU166: 0 | CV166: 0 | CW166: 0 | CX166: 0 | CY166: 0 | CZ166: =IF($O$23<>0,SUM(CN166:CY166)*$O$23+$N$23,-1) -> -1
AI167: 3.3 | AJ167: 0 | AK167: 7.043834949e-204 | AL167: 0 | AM167: 0 | AN167: 0 | AO167: 0 | AP167: 0 | AQ167: 0 | AR167: 0 | AS167: 0 | AT167: 0 | AU167: 0 | AV167: =IF($O$20<>0,SUM(AJ167:AU167)*$O$20+$N$20,-1) -> 11 | AX167: 0 | AY167: 2.995550536e-69 | AZ167: 0 | BA167: 0 | BB167: 0 | BC167: 0 | BD167: 0 | BE167: 0 | BF167: 0 | BG167: 0 | BH167: 0 | BI167: 0 | BJ167: =IF($O$22<>0,SUM(AX167:BI167)*$O$22+$N$22,-1) -> 15 | BL167: 0 | BM167: 7.043834949e-204 | BN167: 0 | BO167: 0 | BP167: 0 | BQ167: 0 | BR167: 0 | BS167: 0 | BT167: 0 | BU167: 0 | BV167: 0 | BW167: 0 | BX167: =IF($O$24<>0,SUM(BL167:BW167)*$O$24+$N$24,-1) -> 10 | BZ167: 0 | CA167: 1.649500847e-296 | CB167: 0 | CC167: 0 | CD167: 0 | CE167: 0 | CF167: 0 | CG167: 0 | CH167: 0 | CI167: 0 | CJ167: 0 | CK167: 0 | CL167: =IF($O$21<>0,SUM(BZ167:CK167)*$O$21+$N$21,-1) -> -1 | CN167: 0 | CO167: 3.021682891e-32 | CP167: 0 | CQ167: 0 | CR167: 0 | CS167: 0 | CT167: 0 | CU167: 0 | CV167: 0 | CW167: 0 | CX167: 0 | CY167: 0 | CZ167: =IF($O$23<>0,SUM(CN167:CY167)*$O$23+$N$23,-1) -> -1
AI168: 3.32 | AJ168: 0 | AK168: 1.913889226e-218 | AL168: 0 | AM168: 0 | AN168: 0 | AO168: 0 | AP168: 0 | AQ168: 0 | AR168: 0 | AS168: 0 | AT168: 0 | AU168: 0 | AV168: =IF($O$20<>0,SUM(AJ168:AU168)*$O$20+$N$20,-1) -> 11 | AX168: 0 | AY168: 8.784687054e-63 | AZ168: 0 | BA168: 0 | BB168: 0 | BC168: 0 | BD168: 0 | BE168: 0 | BF168: 0 | BG168: 0 | BH168: 0 | BI168: 0 | BJ168: =IF($O$22<>0,SUM(AX168:BI168)*$O$22+$N$22,-1) -> 15 | BL168: 0 | BM168: 1.913889226e-218 | BN168: 0 | BO168: 0 | BP168: 0 | BQ168: 0 | BR168: 0 | BS168: 0 | BT168: 0 | BU168: 0 | BV168: 0 | BW168: 0 | BX168: =IF($O$24<>0,SUM(BL168:BW168)*$O$24+$N$24,-1) -> 10 | BZ168: 0 | CA168: 0 | CB168: 0 | CC168: 0 | CD168: 0 | CE168: 0 | CF168: 0 | CG168: 0 | CH168: 0 | CI168: 0 | CJ168: 0 | CK168: 0 | CL168: =IF($O$21<>0,SUM(BZ168:CK168)*$O$21+$N$21,-1) -> -1 | CN168: 0 | CO168: 1.278672356e-28 | CP168: 0 | CQ168: 0 | CR168: 0 | CS168: 0 | CT168: 0 | CU168: 0 | CV168: 0 | CW168: 0 | CX168: 0 | CY168: 0 | CZ168: =IF($O$23<>0,SUM(CN168:CY168)*$O$23+$N$23,-1) -> -1
AI169: 3.34 | AJ169: 0 | AK169: 1.640339751e-233 | AL169: 0 | AM169: 0 | AN169: 0 | AO169: 0 | AP169: 0 | AQ169: 0 | AR169: 0 | AS169: 0 | AT169: 0 | AU169: 0 | AV169: =IF($O$20<>0,SUM(AJ169:AU169)*$O$20+$N$20,-1) -> 11 | AX169: 0 | AY169: 1.248553793e-56 | AZ169: 0 | BA169: 0 | BB169: 0 | BC169: 0 | BD169: 0 | BE169: 0 | BF169: 0 | BG169: 0 | BH169: 0 | BI169: 0 | BJ169: =IF($O$22<>0,SUM(AX169:BI169)*$O$22+$N$22,-1) -> 15 | BL169: 0 | BM169: 1.640339751e-233 | BN169: 0 | BO169: 0 | BP169: 0 | BQ169: 0 | BR169: 0 | BS169: 0 | BT169: 0 | BU169: 0 | BV169: 0 | BW169: 0 | BX169: =IF($O$24<>0,SUM(BL169:BW169)*$O$24+$N$24,-1) -> 10 | BZ169: 0 | CA169: 0 | CB169: 0 | CC169: 0 | CD169: 0 | CE169: 0 | CF169: 0 | CG169: 0 | CH169: 0 | CI169: 0 | CJ169: 0 | CK169: 0 | CL169: =IF($O$21<>0,SUM(BZ169:CK169)*$O$21+$N$21,-1) -> -1 | CN169: 0 | CO169: 3.310895898e-25 | CP169: 0 | CQ169: 0 | CR169: 0 | CS169: 0 | CT169: 0 | CU169: 0 | CV169: 0 | CW169: 0 | CX169: 0 | CY169: 0 | CZ169: =IF($O$23<>0,SUM(CN169:CY169)*$O$23+$N$23,-1) -> -1
AI170: 3.36 | AJ170: 0 | AK170: 4.43465875e-249 | AL170: 0 | AM170: 0 | AN170: 0 | AO170: 0 | AP170: 0 | AQ170: 0 | AR170: 0 | AS170: 0 | AT170: 0 | AU170: 0 | AV170: =IF($O$20<>0,SUM(AJ170:AU170)*$O$20+$N$20,-1) -> 11 | AX170: 0 | AY170: 8.600417638e-51 | AZ170: 0 | BA170: 0 | BB170: 0 | BC170: 0 | BD170: 0 | BE170: 0 | BF170: 0 | BG170: 0 | BH170: 0 | BI170: 0 | BJ170: =IF($O$22<>0,SUM(AX170:BI170)*$O$22+$N$22,-1) -> 15 | BL170: 0 | BM170: 4.43465875e-249 | BN170: 0 | BO170: 0 | BP170: 0 | BQ170: 0 | BR170: 0 | BS170: 0 | BT170: 0 | BU170: 0 | BV170: 0 | BW170: 0 | BX170: =IF($O$24<>0,SUM(BL170:BW170)*$O$24+$N$24,-1) -> 10 | BZ170: 0 | CA170: 0 | CB170: 0 | CC170: 0 | CD170: 0 | CE170: 0 | CF170: 0 | CG170: 0 | CH170: 0 | CI170: 0 | CJ170: 0 | CK170: 0 | CL170: =IF($O$21<>0,SUM(BZ170:CK170)*$O$21+$N$21,-1) -> -1 | CN170: 0 | CO170: 5.245750552e-22 | CP170: 0 | CQ170: 0 | CR170: 0 | CS170: 0 | CT170: 0 | CU170: 0 | CV170: 0 | CW170: 0 | CX170: 0 | CY170: 0 | CZ170: =IF($O$23<>0,SUM(CN170:CY170)*$O$23+$N$23,-1) -> -1
AI171: 3.38 | AJ171: 0 | AK171: 3.781777624e-265 | AL171: 0 | AM171: 0 | AN171: 0 | AO171: 0 | AP171: 0 | AQ171: 0 | AR171: 0 | AS171: 0 | AT171: 0 | AU171: 0 | AV171: =IF($O$20<>0,SUM(AJ171:AU171)*$O$20+$N$20,-1) -> 11 | AX171: 0 | AY171: 2.871198005e-45 | AZ171: 0 | BA171: 0 | BB171: 0 | BC171: 0 | BD171: 0 | BE171: 0 | BF171: 0 | BG171: 0 | BH171: 0 | BI171: 0 | BJ171: =IF($O$22<>0,SUM(AX171:BI171)*$O$22+$N$22,-1) -> 15 | BL171: 0 | BM171: 3.781777624e-265 | BN171: 0 | BO171: 0 | BP171: 0 | BQ171: 0 | BR171: 0 | BS171: 0 | BT171: 0 | BU171: 0 | BV171: 0 | BW171: 0 | BX171: =IF($O$24<>0,SUM(BL171:BW171)*$O$24+$N$24,-1) -> 10 | BZ171: 0 | CA171: 0 | CB171: 0 | CC171: 0 | CD171: 0 | CE171: 0 | CF171: 0 | CG171: 0 | CH171: 0 | CI171: 0 | CJ171: 0 | CK171: 0 | CL171: =IF($O$21<>0,SUM(BZ171:CK171)*$O$21+$N$21,-1) -> -1 | CN171: 0 | CO171: 5.085639875e-19 | CP171: 0 | CQ171: 0 | CR171: 0 | CS171: 0 | CT171: 0 | CU171: 0 | CV171: 0 | CW171: 0 | CX171: 0 | CY171: 0 | CZ171: =IF($O$23<>0,SUM(CN171:CY171)*$O$23+$N$23,-1) -> -1
AI172: 3.4 | AJ172: 0 | AK172: 1.017281519e-281 | AL172: 0 | AM172: 0 | AN172: 0 | AO172: 0 | AP172: 0 | AQ172: 0 | AR172: 0 | AS172: 0 | AT172: 0 | AU172: 0 | AV172: =IF($O$20<>0,SUM(AJ172:AU172)*$O$20+$N$20,-1) -> 11 | AX172: 0 | AY172: 4.64555991e-40 | AZ172: 0 | BA172: 0 | BB172: 0 | BC172: 0 | BD172: 0 | BE172: 0 | BF172: 0 | BG172: 0 | BH172: 0 | BI172: 0 | BJ172: =IF($O$22<>0,SUM(AX172:BI172)*$O$22+$N$22,-1) -> 15 | BL172: 0 | BM172: 1.017281519e-281 | BN172: 0 | BO172: 0 | BP172: 0 | BQ172: 0 | BR172: 0 | BS172: 0 | BT172: 0 | BU172: 0 | BV172: 0 | BW172: 0 | BX172: =IF($O$24<>0,SUM(BL172:BW172)*$O$24+$N$24,-1) -> 10 | BZ172: 0 | CA172: 0 | CB172: 0 | CC172: 0 | CD172: 0 | CE172: 0 | CF172: 0 | CG172: 0 | CH172: 0 | CI172: 0 | CJ172: 0 | CK172: 0 | CL172: =IF($O$21<>0,SUM(BZ172:CK172)*$O$21+$N$21,-1) -> -1 | CN172: 0 | CO172: 3.016889695e-16 | CP172: 0 | CQ172: 0 | CR172: 0 | CS172: 0 | CT172: 0 | CU172: 0 | CV172: 0 | CW172: 0 | CX172: 0 | CY172: 0 | CZ172: =IF($O$23<>0,SUM(CN172:CY172)*$O$23+$N$23,-1) -> -1
AI173: 3.42 | AJ173: 0 | AK173: 8.631687455e-299 | AL173: 0 | AM173: 0 | AN173: 0 | AO173: 0 | AP173: 0 | AQ173: 0 | AR173: 0 | AS173: 0 | AT173: 0 | AU173: 0 | AV173: =IF($O$20<>0,SUM(AJ173:AU173)*$O$20+$N$20,-1) -> 11 | AX173: 0 | AY173: 3.64287531e-35 | AZ173: 0 | BA173: 0 | BB173: 0 | BC173: 0 | BD173: 0 | BE173: 0 | BF173: 0 | BG173: 0 | BH173: 0 | BI173: 0 | BJ173: =IF($O$22<>0,SUM(AX173:BI173)*$O$22+$N$22,-1) -> 15 | BL173: 0 | BM173: 8.631687455e-299 | BN173: 0 | BO173: 0 | BP173: 0 | BQ173: 0 | BR173: 0 | BS173: 0 | BT173: 0 | BU173: 0 | BV173: 0 | BW173: 0 | BX173: =IF($O$24<>0,SUM(BL173:BW173)*$O$24+$N$24,-1) -> 10 | BZ173: 0 | CA173: 0 | CB173: 0 | CC173: 0 | CD173: 0 | CE173: 0 | CF173: 0 | CG173: 0 | CH173: 0 | CI173: 0 | CJ173: 0 | CK173: 0 | CL173: =IF($O$21<>0,SUM(BZ173:CK173)*$O$21+$N$21,-1) -> -1 | CN173: 0 | CO173: 1.095088249e-13 | CP173: 0 | CQ173: 0 | CR173: 0 | CS173: 0 | CT173: 0 | CU173: 0 | CV173: 0 | CW173: 0 | CX173: 0 | CY173: 0 | CZ173: =IF($O$23<>0,SUM(CN173:CY173)*$O$23+$N$23,-1) -> -1
AI174: 3.44 | AJ174: 0 | AK174: 0 | AL174: 0 | AM174: 0 | AN174: 0 | AO174: 0 | AP174: 0 | AQ174: 0 | AR174: 0 | AS174: 0 | AT174: 0 | AU174: 0 | AV174: =IF($O$20<>0,SUM(AJ174:AU174)*$O$20+$N$20,-1) -> 11 | AX174: 0 | AY174: 1.384464636e-30 | AZ174: 0 | BA174: 0 | BB174: 0 | BC174: 0 | BD174: 0 | BE174: 0 | BF174: 0 | BG174: 0 | BH174: 0 | BI174: 0 | BJ174: =IF($O$22<>0,SUM(AX174:BI174)*$O$22+$N$22,-1) -> 15 | BL174: 0 | BM174: 0 | BN174: 0 | BO174: 0 | BP174: 0 | BQ174: 0 | BR174: 0 | BS174: 0 | BT174: 0 | BU174: 0 | BV174: 0 | BW174: 0 | BX174: =IF($O$24<>0,SUM(BL174:BW174)*$O$24+$N$24,-1) -> 10 | BZ174: 0 | CA174: 0 | CB174: 0 | CC174: 0 | CD174: 0 | CE174: 0 | CF174: 0 | CG174: 0 | CH174: 0 | CI174: 0 | CJ174: 0 | CK174: 0 | CL174: =IF($O$21<>0,SUM(BZ174:CK174)*$O$21+$N$21,-1) -> -1 | CN174: 0 | CO174: 2.432286143e-11 | CP174: 0 | CQ174: 0 | CR174: 0 | CS174: 0 | CT174: 0 | CU174: 0 | CV174: 0 | CW174: 0 | CX174: 0 | CY174: 0 | CZ174: =IF($O$23<>0,SUM(CN174:CY174)*$O$23+$N$23,-1) -> -1
AI175: 3.46 | AJ175: 0 | AK175: 0 | AL175: 0 | AM175: 0 | AN175: 0 | AO175: 0 | AP175: 0 | AQ175: 0 | AR175: 0 | AS175: 0 | AT175: 0 | AU175: 0 | AV175: =IF($O$20<>0,SUM(AJ175:AU175)*$O$20+$N$20,-1) -> 11 | AX175: 0 | AY175: 2.550062041e-26 | AZ175: 0 | BA175: 0 | BB175: 0 | BC175: 0 | BD175: 0 | BE175: 0 | BF175: 0 | BG175: 0 | BH175: 0 | BI175: 0 | BJ175: =IF($O$22<>0,SUM(AX175:BI175)*$O$22+$N$22,-1) -> 15 | BL175: 0 | BM175: 0 | BN175: 0 | BO175: 0 | BP175: 0 | BQ175: 0 | BR175: 0 | BS175: 0 | BT175: 0 | BU175: 0 | BV175: 0 | BW175: 0 | BX175: =IF($O$24<>0,SUM(BL175:BW175)*$O$24+$N$24,-1) -> 10 | BZ175: 0 | CA175: 0 | CB175: 0 | CC175: 0 | CD175: 0 | CE175: 0 | CF175: 0 | CG175: 0 | CH175: 0 | CI175: 0 | CJ175: 0 | CK175: 0 | CL175: =IF($O$21<>0,SUM(BZ175:CK175)*$O$21+$N$21,-1) -> -1 | CN175: 0 | CO175: 3.305643933e-09 | CP175: 0 | CQ175: 0 | CR175: 0 | CS175: 0 | CT175: 0 | CU175: 0 | CV175: 0 | CW175: 0 | CX175: 0 | CY175: 0 | CZ175: =IF($O$23<>0,SUM(CN175:CY175)*$O$23+$N$23,-1) -> -1
AI176: 3.48 | AJ176: 0 | AK176: 0 | AL176: 0 | AM176: 0 | AN176: 0 | AO176: 0 | AP176: 0 | AQ176: 0 | AR176: 0 | AS176: 0 | AT176: 0 | AU176: 0 | AV176: =IF($O$20<>0,SUM(AJ176:AU176)*$O$20+$N$20,-1) -> 11 | AX176: 0 | AY176: 2.276412417e-22 | AZ176: 0 | BA176: 0 | BB176: 0 | BC176: 0 | BD176: 0 | BE176: 0 | BF176: 0 | BG176: 0 | BH176: 0 | BI176: 0 | BJ176: =IF($O$22<>0,SUM(AX176:BI176)*$O$22+$N$22,-1) -> 15 | BL176: 0 | BM176: 0 | BN176: 0 | BO176: 0 | BP176: 0 | BQ176: 0 | BR176: 0 | BS176: 0 | BT176: 0 | BU176: 0 | BV176: 0 | BW176: 0 | BX176: =IF($O$24<>0,SUM(BL176:BW176)*$O$24+$N$24,-1) -> 10 | BZ176: 0 | CA176: 0 | CB176: 0 | CC176: 0 | CD176: 0 | CE176: 0 | CF176: 0 | CG176: 0 | CH176: 0 | CI176: 0 | CJ176: 0 | CK176: 0 | CL176: =IF($O$21<>0,SUM(BZ176:CK176)*$O$21+$N$21,-1) -> -1 | CN176: 0 | CO176: 2.748991122e-07 | CP176: 0 | CQ176: 0 | CR176: 0 | CS176: 0 | CT176: 0 | CU176: 0 | CV176: 0 | CW176: 0 | CX176: 0 | CY176: 0 | CZ176: =IF($O$23<>0,SUM(CN176:CY176)*$O$23+$N$23,-1) -> -1
AI177: 3.5 | AJ177: 0 | AK177: 0 | AL177: 0 | AM177: 0 | AN177: 0 | AO177: 0 | AP177: 0 | AQ177: 0 | AR177: 0 | AS177: 0 | AT177: 0 | AU177: 0 | AV177: =IF($O$20<>0,SUM(AJ177:AU177)*$O$20+$N$20,-1) -> 11 | AX177: 0 | AY177: 9.84878064e-19 | AZ177: 0 | BA177: 0 | BB177: 0 | BC177: 0 | BD177: 0 | BE177: 0 | BF177: 0 | BG177: 0 | BH177: 0 | BI177: 0 | BJ177: =IF($O$22<>0,SUM(AX177:BI177)*$O$22+$N$22,-1) -> 15 | BL177: 0 | BM177: 0 | BN177: 0 | BO177: 0 | BP177: 0 | BQ177: 0 | BR177: 0 | BS177: 0 | BT177: 0 | BU177: 0 | BV177: 0 | BW177: 0 | BX177: =IF($O$24<>0,SUM(BL177:BW177)*$O$24+$N$24,-1) -> 10 | BZ177: 0 | CA177: 0 | CB177: 0 | CC177: 0 | CD177: 0 | CE177: 0 | CF177: 0 | CG177: 0 | CH177: 0 | CI177: 0 | CJ177: 0 | CK177: 0 | CL177: =IF($O$21<>0,SUM(BZ177:CK177)*$O$21+$N$21,-1) -> -1 | CN177: 0 | CO177: 1.39883491e-05 | CP177: 0 | CQ177: 0 | CR177: 0 | CS177: 0 | CT177: 0 | CU177: 0 | CV177: 0 | CW177: 0 | CX177: 0 | CY177: 0 | CZ177: =IF($O$23<>0,SUM(CN177:CY177)*$O$23+$N$23,-1) -> -1
AI178: 3.52 | AJ178: 0 | AK178: 0 | AL178: 0 | AM178: 0 | AN178: 0 | AO178: 0 | AP178: 0 | AQ178: 0 | AR178: 0 | AS178: 0 | AT178: 0 | AU178: 0 | AV178: =IF($O$20<>0,SUM(AJ178:AU178)*$O$20+$N$20,-1) -> 11 | AX178: 0 | AY178: 2.065120047e-15 | AZ178: 0 | BA178: 0 | BB178: 0 | BC178: 0 | BD178: 0 | BE178: 0 | BF178: 0 | BG178: 0 | BH178: 0 | BI178: 0 | BJ178: =IF($O$22<>0,SUM(AX178:BI178)*$O$22+$N$22,-1) -> 15 | BL178: 0 | BM178: 0 | BN178: 0 | BO178: 0 | BP178: 0 | BQ178: 0 | BR178: 0 | BS178: 0 | BT178: 0 | BU178: 0 | BV178: 0 | BW178: 0 | BX178: =IF($O$24<>0,SUM(BL178:BW178)*$O$24+$N$24,-1) -> 10 | BZ178: 0 | CA178: 0 | CB178: 0 | CC178: 0 | CD178: 0 | CE178: 0 | CF178: 0 | CG178: 0 | CH178: 0 | CI178: 0 | CJ178: 0 | CK178: 0 | CL178: =IF($O$21<>0,SUM(BZ178:CK178)*$O$21+$N$21,-1) -> -1 | CN178: 0 | CO178: 0.0004355474209 | CP178: 0 | CQ178: 0 | CR178: 0 | CS178: 0 | CT178: 0 | CU178: 0 | CV178: 0 | CW178: 0 | CX178: 0 | CY178: 0 | CZ178: =IF($O$23<>0,SUM(CN178:CY178)*$O$23+$N$23,-1) -> -1
AI179: 3.54 | AJ179: 0 | AK179: 0 | AL179: 0 | AM179: 0 | AN179: 0 | AO179: 0 | AP179: 0 | AQ179: 0 | AR179: 0 | AS179: 0 | AT179: 0 | AU179: 0 | AV179: =IF($O$20<>0,SUM(AJ179:AU179)*$O$20+$N$20,-1) -> 11 | AX179: 0 | AY179: 2.098647316e-12 | AZ179: 0 | BA179: 0 | BB179: 0 | BC179: 0 | BD179: 0 | BE179: 0 | BF179: 0 | BG179: 0 | BH179: 0 | BI179: 0 | BJ179: =IF($O$22<>0,SUM(AX179:BI179)*$O$22+$N$22,-1) -> 15 | BL179: 0 | BM179: 0 | BN179: 0 | BO179: 0 | BP179: 0 | BQ179: 0 | BR179: 0 | BS179: 0 | BT179: 0 | BU179: 0 | BV179: 0 | BW179: 0 | BX179: =IF($O$24<>0,SUM(BL179:BW179)*$O$24+$N$24,-1) -> 10 | BZ179: 0 | CA179: 0 | CB179: 0 | CC179: 0 | CD179: 0 | CE179: 0 | CF179: 0 | CG179: 0 | CH179: 0 | CI179: 0 | CJ179: 0 | CK179: 0 | CL179: =IF($O$21<>0,SUM(BZ179:CK179)*$O$21+$N$21,-1) -> -1 | CN179: 0 | CO179: 0.008298131067 | CP179: 0 | CQ179: 0 | CR179: 0 | CS179: 0 | CT179: 0 | CU179: 0 | CV179: 0 | CW179: 0 | CX179: 0 | CY179: 0 | CZ179: =IF($O$23<>0,SUM(CN179:CY179)*$O$23+$N$23,-1) -> -1
AI180: 3.56 | AJ180: 0 | AK180: 0 | AL180: 0 | AM180: 0 | AN180: 0 | AO180: 0 | AP180: 0 | AQ180: 0 | AR180: 0 | AS180: 0 | AT180: 0 | AU180: 0 | AV180: =IF($O$20<>0,SUM(AJ180:AU180)*$O$20+$N$20,-1) -> 11 | AX180: 0 | AY180: 1.033629598e-09 | AZ180: 0 | BA180: 0 | BB180: 0 | BC180: 0 | BD180: 0 | BE180: 0 | BF180: 0 | BG180: 0 | BH180: 0 | BI180: 0 | BJ180: =IF($O$22<>0,SUM(AX180:BI180)*$O$22+$N$22,-1) -> 15 | BL180: 0 | BM180: 0 | BN180: 0 | BO180: 0 | BP180: 0 | BQ180: 0 | BR180: 0 | BS180: 0 | BT180: 0 | BU180: 0 | BV180: 0 | BW180: 0 | BX180: =IF($O$24<>0,SUM(BL180:BW180)*$O$24+$N$24,-1) -> 10 | BZ180: 0 | CA180: 0 | CB180: 0 | CC180: 0 | CD180: 0 | CE180: 0 | CF180: 0 | CG180: 0 | CH180: 0 | CI180: 0 | CJ180: 0 | CK180: 0 | CL180: =IF($O$21<>0,SUM(BZ180:CK180)*$O$21+$N$21,-1) -> -1 | CN180: 0 | CO180: 0.09673886623 | CP180: 0 | CQ180: 0 | CR180: 0 | CS180: 0 | CT180: 0 | CU180: 0 | CV180: 0 | CW180: 0 | CX180: 0 | CY180: 0 | CZ180: =IF($O$23<>0,SUM(CN180:CY180)*$O$23+$N$23,-1) -> -1
AI181: 3.58 | AJ181: 0 | AK181: 0 | AL181: 0 | AM181: 0 | AN181: 0 | AO181: 0 | AP181: 0 | AQ181: 0 | AR181: 0 | AS181: 0 | AT181: 0 | AU181: 0 | AV181: =IF($O$20<>0,SUM(AJ181:AU181)*$O$20+$N$20,-1) -> 11 | AX181: 0 | AY181: 2.467298719e-07 | AZ181: 0 | BA181: 0 | BB181: 0 | BC181: 0 | BD181: 0 | BE181: 0 | BF181: 0 | BG181: 0 | BH181: 0 | BI181: 0 | BJ181: =IF($O$22<>0,SUM(AX181:BI181)*$O$22+$N$22,-1) -> 15.00000025 | BL181: 0 | BM181: 0 | BN181: 0 | BO181: 0 | BP181: 0 | BQ181: 0 | BR181: 0 | BS181: 0 | BT181: 0 | BU181: 0 | BV181: 0 | BW181: 0 | BX181: =IF($O$24<>0,SUM(BL181:BW181)*$O$24+$N$24,-1) -> 10 | BZ181: 0 | CA181: 0 | CB181: 0 | CC181: 0 | CD181: 0 | CE181: 0 | CF181: 0 | CG181: 0 | CH181: 0 | CI181: 0 | CJ181: 0 | CK181: 0 | CL181: =IF($O$21<>0,SUM(BZ181:CK181)*$O$21+$N$21,-1) -> -1 | CN181: 0 | CO181: 0.6900770045 | CP181: 0 | CQ181: 0 | CR181: 0 | CS181: 0 | CT181: 0 | CU181: 0 | CV181: 0 | CW181: 0 | CX181: 0 | CY181: 0 | CZ181: =IF($O$23<>0,SUM(CN181:CY181)*$O$23+$N$23,-1) -> -1
AI182: 3.6 | AJ182: 0 | AK182: 0 | AL182: 0 | AM182: 0 | AN182: 0 | AO182: 0 | AP182: 0 | AQ182: 0 | AR182: 0 | AS182: 0 | AT182: 0 | AU182: 0 | AV182: =IF($O$20<>0,SUM(AJ182:AU182)*$O$20+$N$20,-1) -> 11 | AX182: 0 | AY182: 2.854367244e-05 | AZ182: 0 | BA182: 0 | BB182: 0 | BC182: 0 | BD182: 0 | BE182: 0 | BF182: 0 | BG182: 0 | BH182: 0 | BI182: 0 | BJ182: =IF($O$22<>0,SUM(AX182:BI182)*$O$22+$N$22,-1) -> 15.00002854 | BL182: 0 | BM182: 0 | BN182: 0 | BO182: 0 | BP182: 0 | BQ182: 0 | BR182: 0 | BS182: 0 | BT182: 0 | BU182: 0 | BV182: 0 | BW182: 0 | BX182: =IF($O$24<>0,SUM(BL182:BW182)*$O$24+$N$24,-1) -> 10 | BZ182: 0 | CA182: 0 | CB182: 0 | CC182: 0 | CD182: 0 | CE182: 0 | CF182: 0 | CG182: 0 | CH182: 0 | CI182: 0 | CJ182: 0 | CK182: 0 | CL182: =IF($O$21<>0,SUM(BZ182:CK182)*$O$21+$N$21,-1) -> -1 | CN182: 0 | CO182: 3.012104101 | CP182: 0 | CQ182: 0 | CR182: 0 | CS182: 0 | CT182: 0 | CU182: 0 | CV182: 0 | CW182: 0 | CX182: 0 | CY182: 0 | CZ182: =IF($O$23<>0,SUM(CN182:CY182)*$O$23+$N$23,-1) -> -1
AI183: 3.62 | AJ183: 0 | AK183: 0 | AL183: 0 | AM183: 0 | AN183: 0 | AO183: 0 | AP183: 0 | AQ183: 0 | AR183: 0 | AS183: 0 | AT183: 0 | AU183: 0 | AV183: =IF($O$20<>0,SUM(AJ183:AU183)*$O$20+$N$20,-1) -> 11 | AX183: 0 | AY183: 0.001600402732 | AZ183: 0 | BA183: 0 | BB183: 0 | BC183: 0 | BD183: 0 | BE183: 0 | BF183: 0 | BG183: 0 | BH183: 0 | BI183: 0 | BJ183: =IF($O$22<>0,SUM(AX183:BI183)*$O$22+$N$22,-1) -> 15.0016004 | BL183: 0 | BM183: 0 | BN183: 0 | BO183: 0 | BP183: 0 | BQ183: 0 | BR183: 0 | BS183: 0 | BT183: 0 | BU183: 0 | BV183: 0 | BW183: 0 | BX183: =IF($O$24<>0,SUM(BL183:BW183)*$O$24+$N$24,-1) -> 10 | BZ183: 0 | CA183: 0 | CB183: 0 | CC183: 0 | CD183: 0 | CE183: 0 | CF183: 0 | CG183: 0 | CH183: 0 | CI183: 0 | CJ183: 0 | CK183: 0 | CL183: =IF($O$21<>0,SUM(BZ183:CK183)*$O$21+$N$21,-1) -> -1 | CN183: 0 | CO183: 8.044855702 | CP183: 0 | CQ183: 0 | CR183: 0 | CS183: 0 | CT183: 0 | CU183: 0 | CV183: 0 | CW183: 0 | CX183: 0 | CY183: 0 | CZ183: =IF($O$23<>0,SUM(CN183:CY183)*$O$23+$N$23,-1) -> -1
AI184: 3.64 | AJ184: 0 | AK184: 0 | AL184: 0 | AM184: 0 | AN184: 0 | AO184: 0 | AP184: 0 | AQ184: 0 | AR184: 0 | AS184: 0 | AT184: 0 | AU184: 0 | AV184: =IF($O$20<>0,SUM(AJ184:AU184)*$O$20+$N$20,-1) -> 11 | AX184: 0 | AY184: 0.04348906178 | AZ184: 0 | BA184: 0 | BB184: 0 | BC184: 0 | BD184: 0 | BE184: 0 | BF184: 0 | BG184: 0 | BH184: 0 | BI184: 0 | BJ184: =IF($O$22<>0,SUM(AX184:BI184)*$O$22+$N$22,-1) -> 15.04348906 | BL184: 0 | BM184: 0 | BN184: 0 | BO184: 0 | BP184: 0 | BQ184: 0 | BR184: 0 | BS184: 0 | BT184: 0 | BU184: 0 | BV184: 0 | BW184: 0 | BX184: =IF($O$24<>0,SUM(BL184:BW184)*$O$24+$N$24,-1) -> 10 | BZ184: 0 | CA184: 0 | CB184: 0 | CC184: 0 | CD184: 0 | CE184: 0 | CF184: 0 | CG184: 0 | CH184: 0 | CI184: 0 | CJ184: 0 | CK184: 0 | CL184: =IF($O$21<>0,SUM(BZ184:CK184)*$O$21+$N$21,-1) -> -1 | CN184: 0 | CO184: 13.14747638 | CP184: 0 | CQ184: 0 | CR184: 0 | CS184: 0 | CT184: 0 | CU184: 0 | CV184: 0 | CW184: 0 | CX184: 0 | CY184: 0 | CZ184: =IF($O$23<>0,SUM(CN184:CY184)*$O$23+$N$23,-1) -> -1
AI185: 3.66 | AJ185: 0 | AK185: 0 | AL185: 0 | AM185: 0 | AN185: 0 | AO185: 0 | AP185: 0 | AQ185: 0 | AR185: 0 | AS185: 0 | AT185: 0 | AU185: 0 | AV185: =IF($O$20<>0,SUM(AJ185:AU185)*$O$20+$N$20,-1) -> 11 | AX185: 0 | AY185: 0.5727460626 | AZ185: 0 | BA185: 0 | BB185: 0 | BC185: 0 | BD185: 0 | BE185: 0 | BF185: 0 | BG185: 0 | BH185: 0 | BI185: 0 | BJ185: =IF($O$22<>0,SUM(AX185:BI185)*$O$22+$N$22,-1) -> 15.57274606 | BL185: 0 | BM185: 0 | BN185: 0 | BO185: 0 | BP185: 0 | BQ185: 0 | BR185: 0 | BS185: 0 | BT185: 0 | BU185: 0 | BV185: 0 | BW185: 0 | BX185: =IF($O$24<>0,SUM(BL185:BW185)*$O$24+$N$24,-1) -> 10 | BZ185: 0 | CA185: 0 | CB185: 0 | CC185: 0 | CD185: 0 | CE185: 0 | CF185: 0 | CG185: 0 | CH185: 0 | CI185: 0 | CJ185: 0 | CK185: 0 | CL185: =IF($O$21<>0,SUM(BZ185:CK185)*$O$21+$N$21,-1) -> -1 | CN185: 0 | CO185: 13.14747638 | CP185: 0 | CQ185: 0 | CR185: 0 | CS185: 0 | CT185: 0 | CU185: 0 | CV185: 0 | CW185: 0 | CX185: 0 | CY185: 0 | CZ185: =IF($O$23<>0,SUM(CN185:CY185)*$O$23+$N$23,-1) -> -1
AI186: 3.68 | AJ186: 0 | AK186: 0 | AL186: 0 | AM186: 0 | AN186: 0 | AO186: 0 | AP186: 0 | AQ186: 0 | AR186: 0 | AS186: 0 | AT186: 0 | AU186: 0 | AV186: =IF($O$20<>0,SUM(AJ186:AU186)*$O$20+$N$20,-1) -> 11 | AX186: 0 | AY186: 3.655741724 | AZ186: 0 | BA186: 0 | BB186: 0 | BC186: 0 | BD186: 0 | BE186: 0 | BF186: 0 | BG186: 0 | BH186: 0 | BI186: 0 | BJ186: =IF($O$22<>0,SUM(AX186:BI186)*$O$22+$N$22,-1) -> 18.65574172 | BL186: 0 | BM186: 0 | BN186: 0 | BO186: 0 | BP186: 0 | BQ186: 0 | BR186: 0 | BS186: 0 | BT186: 0 | BU186: 0 | BV186: 0 | BW186: 0 | BX186: =IF($O$24<>0,SUM(BL186:BW186)*$O$24+$N$24,-1) -> 10 | BZ186: 0 | CA186: 0 | CB186: 0 | CC186: 0 | CD186: 0 | CE186: 0 | CF186: 0 | CG186: 0 | CH186: 0 | CI186: 0 | CJ186: 0 | CK186: 0 | CL186: =IF($O$21<>0,SUM(BZ186:CK186)*$O$21+$N$21,-1) -> -1 | CN186: 0 | CO186: 8.044855702 | CP186: 0 | CQ186: 0 | CR186: 0 | CS186: 0 | CT186: 0 | CU186: 0 | CV186: 0 | CW186: 0 | CX186: 0 | CY186: 0 | CZ186: =IF($O$23<>0,SUM(CN186:CY186)*$O$23+$N$23,-1) -> -1
AI187: 3.7 | AJ187: 0 | AK187: 0 | AL187: 0 | AM187: 0 | AN187: 0 | AO187: 0 | AP187: 0 | AQ187: 0 | AR187: 0 | AS187: 0 | AT187: 0 | AU187: 0 | AV187: =IF($O$20<>0,SUM(AJ187:AU187)*$O$20+$N$20,-1) -> 11 | AX187: 0 | AY187: 11.30889621 | AZ187: 0 | BA187: 0 | BB187: 0 | BC187: 0 | BD187: 0 | BE187: 0 | BF187: 0 | BG187: 0 | BH187: 0 | BI187: 0 | BJ187: =IF($O$22<>0,SUM(AX187:BI187)*$O$22+$N$22,-1) -> 26.30889621 | BL187: 0 | BM187: 0 | BN187: 0 | BO187: 0 | BP187: 0 | BQ187: 0 | BR187: 0 | BS187: 0 | BT187: 0 | BU187: 0 | BV187: 0 | BW187: 0 | BX187: =IF($O$24<>0,SUM(BL187:BW187)*$O$24+$N$24,-1) -> 10 | BZ187: 0 | CA187: 0 | CB187: 0 | CC187: 0 | CD187: 0 | CE187: 0 | CF187: 0 | CG187: 0 | CH187: 0 | CI187: 0 | CJ187: 0 | CK187: 0 | CL187: =IF($O$21<>0,SUM(BZ187:CK187)*$O$21+$N$21,-1) -> -1 | CN187: 0 | CO187: 3.012104101 | CP187: 0 | CQ187: 0 | CR187: 0 | CS187: 0 | CT187: 0 | CU187: 0 | CV187: 0 | CW187: 0 | CX187: 0 | CY187: 0 | CZ187: =IF($O$23<>0,SUM(CN187:CY187)*$O$23+$N$23,-1) -> -1
AI188: 3.72 | AJ188: 0 | AK188: 0 | AL188: 0 | AM188: 0 | AN188: 0 | AO188: 0 | AP188: 0 | AQ188: 0 | AR188: 0 | AS188: 0 | AT188: 0 | AU188: 0 | AV188: =IF($O$20<>0,SUM(AJ188:AU188)*$O$20+$N$20,-1) -> 11 | AX188: 0 | AY188: 16.95493973 | AZ188: 0 | BA188: 0 | BB188: 0 | BC188: 0 | BD188: 0 | BE188: 0 | BF188: 0 | BG188: 0 | BH188: 0 | BI188: 0 | BJ188: =IF($O$22<>0,SUM(AX188:BI188)*$O$22+$N$22,-1) -> 31.95493973 | BL188: 0 | BM188: 0 | BN188: 0 | BO188: 0 | BP188: 0 | BQ188: 0 | BR188: 0 | BS188: 0 | BT188: 0 | BU188: 0 | BV188: 0 | BW188: 0 | BX188: =IF($O$24<>0,SUM(BL188:BW188)*$O$24+$N$24,-1) -> 10 | BZ188: 0 | CA188: 0 | CB188: 0 | CC188: 0 | CD188: 0 | CE188: 0 | CF188: 0 | CG188: 0 | CH188: 0 | CI188: 0 | CJ188: 0 | CK188: 0 | CL188: =IF($O$21<>0,SUM(BZ188:CK188)*$O$21+$N$21,-1) -> -1 | CN188: 0 | CO188: 0.6900770045 | CP188: 0 | CQ188: 0 | CR188: 0 | CS188: 0 | CT188: 0 | CU188: 0 | CV188: 0 | CW188: 0 | CX188: 0 | CY188: 0 | CZ188: =IF($O$23<>0,SUM(CN188:CY188)*$O$23+$N$23,-1) -> -1
AI189: 3.74 | AJ189: 0 | AK189: 0 | AL189: 0 | AM189: 0 | AN189: 0 | AO189: 0 | AP189: 0 | AQ189: 0 | AR189: 0 | AS189: 0 | AT189: 0 | AU189: 0 | AV189: =IF($O$20<>0,SUM(AJ189:AU189)*$O$20+$N$20,-1) -> 11 | AX189: 0 | AY189: 12.31979842 | AZ189: 0 | BA189: 0 | BB189: 0 | BC189: 0 | BD189: 0 | BE189: 0 | BF189: 0 | BG189: 0 | BH189: 0 | BI189: 0 | BJ189: =IF($O$22<>0,SUM(AX189:BI189)*$O$22+$N$22,-1) -> 27.31979842 | BL189: 0 | BM189: 0 | BN189: 0 | BO189: 0 | BP189: 0 | BQ189: 0 | BR189: 0 | BS189: 0 | BT189: 0 | BU189: 0 | BV189: 0 | BW189: 0 | BX189: =IF($O$24<>0,SUM(BL189:BW189)*$O$24+$N$24,-1) -> 10 | BZ189: 0 | CA189: 0 | CB189: 0 | CC189: 0 | CD189: 0 | CE189: 0 | CF189: 0 | CG189: 0 | CH189: 0 | CI189: 0 | CJ189: 0 | CK189: 0 | CL189: =IF($O$21<>0,SUM(BZ189:CK189)*$O$21+$N$21,-1) -> -1 | CN189: 0 | CO189: 0.09673886623 | CP189: 0 | CQ189: 0 | CR189: 0 | CS189: 0 | CT189: 0 | CU189: 0 | CV189: 0 | CW189: 0 | CX189: 0 | CY189: 0 | CZ189: =IF($O$23<>0,SUM(CN189:CY189)*$O$23+$N$23,-1) -> -1
AI190: 3.76 | AJ190: 0 | AK190: 0 | AL190: 0 | AM190: 0 | AN190: 0 | AO190: 0 | AP190: 0 | AQ190: 0 | AR190: 0 | AS190: 0 | AT190: 0 | AU190: 0 | AV190: =IF($O$20<>0,SUM(AJ190:AU190)*$O$20+$N$20,-1) -> 11 | AX190: 0 | AY190: 4.33852668 | AZ190: 0 | BA190: 0 | BB190: 0 | BC190: 0 | BD190: 0 | BE190: 0 | BF190: 0 | BG190: 0 | BH190: 0 | BI190: 0 | BJ190: =IF($O$22<>0,SUM(AX190:BI190)*$O$22+$N$22,-1) -> 19.33852668 | BL190: 0 | BM190: 0 | BN190: 0 | BO190: 0 | BP190: 0 | BQ190: 0 | BR190: 0 | BS190: 0 | BT190: 0 | BU190: 0 | BV190: 0 | BW190: 0 | BX190: =IF($O$24<>0,SUM(BL190:BW190)*$O$24+$N$24,-1) -> 10 | BZ190: 0 | CA190: 0 | CB190: 0 | CC190: 0 | CD190: 0 | CE190: 0 | CF190: 0 | CG190: 0 | CH190: 0 | CI190: 0 | CJ190: 0 | CK190: 0 | CL190: =IF($O$21<>0,SUM(BZ190:CK190)*$O$21+$N$21,-1) -> -1 | CN190: 0 | CO190: 0.008298131067 | CP190: 0 | CQ190: 0 | CR190: 0 | CS190: 0 | CT190: 0 | CU190: 0 | CV190: 0 | CW190: 0 | CX190: 0 | CY190: 0 | CZ190: =IF($O$23<>0,SUM(CN190:CY190)*$O$23+$N$23,-1) -> -1
AI191: 3.78 | AJ191: 0 | AK191: 0 | AL191: 0 | AM191: 0 | AN191: 0 | AO191: 0 | AP191: 0 | AQ191: 0 | AR191: 0 | AS191: 0 | AT191: 0 | AU191: 0 | AV191: =IF($O$20<>0,SUM(AJ191:AU191)*$O$20+$N$20,-1) -> 11 | AX191: 0 | AY191: 0.7404781753 | AZ191: 0 | BA191: 0 | BB191: 0 | BC191: 0 | BD191: 0 | BE191: 0 | BF191: 0 | BG191: 0 | BH191: 0 | BI191: 0 | BJ191: =IF($O$22<>0,SUM(AX191:BI191)*$O$22+$N$22,-1) -> 15.74047818 | BL191: 0 | BM191: 0 | BN191: 0 | BO191: 0 | BP191: 0 | BQ191: 0 | BR191: 0 | BS191: 0 | BT191: 0 | BU191: 0 | BV191: 0 | BW191: 0 | BX191: =IF($O$24<>0,SUM(BL191:BW191)*$O$24+$N$24,-1) -> 10 | BZ191: 0 | CA191: 0 | CB191: 0 | CC191: 0 | CD191: 0 | CE191: 0 | CF191: 0 | CG191: 0 | CH191: 0 | CI191: 0 | CJ191: 0 | CK191: 0 | CL191: =IF($O$21<>0,SUM(BZ191:CK191)*$O$21+$N$21,-1) -> -1 | CN191: 0 | CO191: 0.0004355474209 | CP191: 0 | CQ191: 0 | CR191: 0 | CS191: 0 | CT191: 0 | CU191: 0 | CV191: 0 | CW191: 0 | CX191: 0 | CY191: 0 | CZ191: =IF($O$23<>0,SUM(CN191:CY191)*$O$23+$N$23,-1) -> -1
AI192: 3.8 | AJ192: 0 | AK192: 0 | AL192: 0 | AM192: 0 | AN192: 0 | AO192: 0 | AP192: 0 | AQ192: 0 | AR192: 0 | AS192: 0 | AT192: 0 | AU192: 0 | AV192: =IF($O$20<>0,SUM(AJ192:AU192)*$O$20+$N$20,-1) -> 11 | AX192: 0 | AY192: 0.06125105484 | AZ192: 0 | BA192: 0 | BB192: 0 | BC192: 0 | BD192: 0 | BE192: 0 | BF192: 0 | BG192: 0 | BH192: 0 | BI192: 0 | BJ192: =IF($O$22<>0,SUM(AX192:BI192)*$O$22+$N$22,-1) -> 15.06125105 | BL192: 0 | BM192: 0 | BN192: 0 | BO192: 0 | BP192: 0 | BQ192: 0 | BR192: 0 | BS192: 0 | BT192: 0 | BU192: 0 | BV192: 0 | BW192: 0 | BX192: =IF($O$24<>0,SUM(BL192:BW192)*$O$24+$N$24,-1) -> 10 | BZ192: 0 | CA192: 0 | CB192: 0 | CC192: 0 | CD192: 0 | CE192: 0 | CF192: 0 | CG192: 0 | CH192: 0 | CI192: 0 | CJ192: 0 | CK192: 0 | CL192: =IF($O$21<>0,SUM(BZ192:CK192)*$O$21+$N$21,-1) -> -1 | CN192: 0 | CO192: 1.39883491e-05 | CP192: 0 | CQ192: 0 | CR192: 0 | CS192: 0 | CT192: 0 | CU192: 0 | CV192: 0 | CW192: 0 | CX192: 0 | CY192: 0 | CZ192: =IF($O$23<>0,SUM(CN192:CY192)*$O$23+$N$23,-1) -> -1
AI193: 3.82 | AJ193: 0 | AK193: 0 | AL193: 0 | AM193: 0 | AN193: 0 | AO193: 0 | AP193: 0 | AQ193: 0 | AR193: 0 | AS193: 0 | AT193: 0 | AU193: 0 | AV193: =IF($O$20<>0,SUM(AJ193:AU193)*$O$20+$N$20,-1) -> 11 | AX193: 0 | AY193: 0.002455535411 | AZ193: 0 | BA193: 0 | BB193: 0 | BC193: 0 | BD193: 0 | BE193: 0 | BF193: 0 | BG193: 0 | BH193: 0 | BI193: 0 | BJ193: =IF($O$22<>0,SUM(AX193:BI193)*$O$22+$N$22,-1) -> 15.00245554 | BL193: 0 | BM193: 0 | BN193: 0 | BO193: 0 | BP193: 0 | BQ193: 0 | BR193: 0 | BS193: 0 | BT193: 0 | BU193: 0 | BV193: 0 | BW193: 0 | BX193: =IF($O$24<>0,SUM(BL193:BW193)*$O$24+$N$24,-1) -> 10 | BZ193: 0 | CA193: 0 | CB193: 0 | CC193: 0 | CD193: 0 | CE193: 0 | CF193: 0 | CG193: 0 | CH193: 0 | CI193: 0 | CJ193: 0 | CK193: 0 | CL193: =IF($O$21<>0,SUM(BZ193:CK193)*$O$21+$N$21,-1) -> -1 | CN193: 0 | CO193: 2.748991122e-07 | CP193: 0 | CQ193: 0 | CR193: 0 | CS193: 0 | CT193: 0 | CU193: 0 | CV193: 0 | CW193: 0 | CX193: 0 | CY193: 0 | CZ193: =IF($O$23<>0,SUM(CN193:CY193)*$O$23+$N$23,-1) -> -1
AI194: 3.84 | AJ194: =$B$23*NORMDIST($AI194,$B$20,$B$24*$B$20,FALSE) -> 0 | AK194: =B$6*IF(B$6>0,NORMDIST($AI194,B$53,C$53/4,FALSE),0) -> 0 | AL194: =B$7*IF(B$7>0,NORMDIST($AI194,B$54,C$54/4,FALSE),0) -> 0 | AM194: =B$8*IF(B$8>0,NORMDIST($AI194,B$55,C$55/4,FALSE),0) -> 0 | AN194: =B$9*IF(B$9>0,NORMDIST($AI194,B$56,C$56/4,FALSE),0) -> 0 | AO194: =B$10*IF(B$10>0,NORMDIST($AI194,B$57,C$57/4,FALSE),0) -> 0 | AP194: =B$11*IF(B$11>0,NORMDIST($AI194,B$58,$C$58/4,FALSE),0) -> 0 | AQ194: =$B$12*IF($B$12>0,NORMDIST($AI194,B$59,$C$59/4,FALSE),0) -> 0 | AR194: =$B$13*IF($B$13>0,NORMDIST($AI194,B$60,$C$60/4,FALSE),0) -> 0 | AS194: =$B$14*IF($B$14>0,NORMDIST($AI194,$B$61,$C$61/4,FALSE),0) -> 0 | AT194: =$B$15*IF($B$15>0,NORMDIST($AI194,$B$62,$C$62/4,FALSE),0) -> 0 | AU194: =$B$16*IF($B$16>0,NORMDIST($AI194,$B$63,$C$63/4,FALSE),0) -> 0 | AV194: =IF($O$20<>0,SUM(AJ194:AU194)*$O$20+$N$20,-1) -> 11 | AX194: 0 | AY194: =IF(B$6>0,B$6*NORMDIST($AI194,F$53,G$53/4,FALSE),0) -> 4.771008055e-05 | AZ194: =IF(B$7>0,B$7*NORMDIST($AI194,F$54,G$54/4,FALSE),0) -> 0 | BA194: =IF(B$8>0,B$8*NORMDIST($AI194,F$55,G$55/4,FALSE),0) -> 0 | BB194: =IF(B$9>0,B$9*NORMDIST($AI194,F$56,G$56/4,FALSE),0) -> 0 | BC194: =IF(B$10>0,B$10*NORMDIST($AI194,F$57,G$57/4,FALSE),0) -> 0 | BD194: =IF(B$11>0,B$11*NORMDIST($AI194,F$58,G$58/4,FALSE),0) -> 0 | BE194: =IF($B$12>0,$B$12*NORMDIST($AI194,$F$59,$G$59/4,FALSE),0) -> 0 | BF194: =IF($B$13>0,$B$13*NORMDIST($AI194,$F$60,$G$60/4,FALSE),0) -> 0 | BG194: =IF($B$14>0,$B$14*NORMDIST($AI194,$F$61,$G$61/4,FALSE),0) -> 0 | BH194: =IF($B$15>0,$B$15*NORMDIST($AI194,$F$62,$G$62/4,FALSE),0) -> 0 | BI194: =IF($B$16>0,$B$16*NORMDIST($AI194,$F$63,$G$63/4,FALSE),0) -> 0 | BJ194: =IF($O$22<>0,SUM(AX194:BI194)*$O$22+$N$22,-1) -> 15.00004771 | BL194: =$B$23*NORMDIST($AI194,$B$20,$B$20*$B$24,FALSE) -> 0 | BM194: =IF($B$6>0,$B$6*NORMDIST($AI194,$J$53,$K$53/4,FALSE),0) -> 0 | BN194: =IF($B$7>0,$B$7*NORMDIST($AI194,$J$54,$K$54/4,FALSE),0) -> 0 | BO194: =IF($B$8>0,$B$8*NORMDIST($AI194,$J$55,$K$55/4,FALSE),0) -> 0 | BP194: =IF($B$9>0,$B$9*NORMDIST($AI194,$J$56,$K$56/4,FALSE),0) -> 0 | BQ194: =IF($B$10>0,$B$10*NORMDIST($AI194,$J$57,$K$57/4,FALSE),0) -> 0 | BR194: =IF($B$11>0,$B$11*NORMDIST($AI194,$J$58,$K$58/4,FALSE),0) -> 0 | BS194: =IF($B$12>0,$B$12*NORMDIST($AI194,$J$59,$K$59/4,FALSE),0) -> 0 | BT194: =IF($B$13>0,$B$13*NORMDIST($AI194,$J$60,$K$60/4,FALSE),0) -> 0 | BU194: =IF($B$14>0,$B$14*NORMDIST($AI194,$J$61,$K$61/4,FALSE),0) -> 0 | BV194: =IF($B$15>0,$B$15*NORMDIST($AI194,$J$62,$K$62/4,FALSE),0) -> 0 | BW194: =IF($B$16>0,$B$16*NORMDIST($AI194,$J$63,$K$63/4,FALSE),0) -> 0 | BX194: =IF($O$24<>0,SUM(BL194:BW194)*$O$24+$N$24,-1) -> 10 | BZ194: =$B$23*NORMDIST($AI194,$B$20,$B$20*$B$24,FALSE) -> 0 | CA194: =IF($B$6>0,$B$6*NORMDIST($AI194,$B$68,$C$68/4,FALSE),0) -> 0 | CB194: =IF($B$7>0,$B$7*NORMDIST($AI194,$B$69,$C$69/4,FALSE),0) -> 0 | CC194: =IF($B$8>0,$B$8*NORMDIST($AI194,$B$70,$C$70/4,FALSE),0) -> 0 | CD194: =IF($B$9>0,$B$9*NORMDIST($AI194,$B$71,$C$71/4,FALSE),0) -> 0 | CE194: =IF($B$10>0,$B$10*NORMDIST($AI194,$B$72,$C$72/4,FALSE),0) -> 0 | CF194: =IF($B$11>0,$B$11*NORMDIST($AI194,$B$73,$C$73/4,FALSE),0) -> 0 | CG194: =IF($B$12>0,$B$12*NORMDIST($AI194,$B$74,$C$74/4,FALSE),0) -> 0 | CH194: =IF($B$13>0,$B$13*NORMDIST($AI194,$B$75,$C$75/4,FALSE),0) -> 0 | CI194: =IF($B$14>0,$B$14*NORMDIST($AI194,$B$76,$C$76/4,FALSE),0) -> 0 | CJ194: =IF($B$15>0,$B$15*NORMDIST($AI194,$B$77,$C$77/4,FALSE),0) -> 0 | CK194: =IF($B$16>0,$B$16*NORMDIST($AI194,$B$78,$C$78/4,FALSE),0) -> 0 | CL194: =IF($O$21<>0,SUM(BZ194:CK194)*$O$21+$N$21,-1) -> -1 | CN194: =$B$23*NORMDIST($AI194,$B$20,$B$20*$B$24,FALSE) -> 0 | CO194: =IF($B$6>0,$B$6*NORMDIST($AI194,$F$68,$G$68/4,FALSE),0) -> 3.305643933e-09 | CP194: =IF($B$7>0,$B$7*NORMDIST($AI194,$F$69,$G$69/4,FALSE),0) -> 0 | CQ194: =IF($B$8>0,$B$8*NORMDIST($AI194,$F$70,$G$70/4,FALSE),0) -> 0 | CR194: =IF($B$9>0,$B$9*NORMDIST($AI194,$F$71,$G$71/4,FALSE),0) -> 0 | CS194: =IF($B$10>0,$B$10*NORMDIST($AI194,$F$72,$G$72/4,FALSE),0) -> 0 | CT194: =IF($B$11>0,$B$11*NORMDIST($AI194,$F$73,$G$73/4,FALSE),0) -> 0 | CU194: =IF($B$12>0,$B$12*NORMDIST($AI194,$F$74,$G$74/4,FALSE),0) -> 0 | CV194: =IF($B$13>0,$B$13*NORMDIST($AI194,$F$75,$G$75/4,FALSE),0) -> 0 | CW194: =IF($B$14>0,$B$14*NORMDIST($AI194,$F$76,$G$76/4,FALSE),0) -> 0 | CX194: =IF($B$15>0,$B$15*NORMDIST($AI194,$F$77,$G$77/4,FALSE),0) -> 0 | CY194: =IF($B$16>0,$B$16*NORMDIST($AI194,$F$78,$G$78/4,FALSE),0) -> 0 | CZ194: =IF($O$23<>0,SUM(CN194:CY194)*$O$23+$N$23,-1) -> -1
AI195: =AI194+$B$25 -> 3.86 | AJ195: 0 | AK195: 0 | AL195: 0 | AM195: 0 | AN195: 0 | AO195: 0 | AP195: 0 | AQ195: 0 | AR195: 0 | AS195: 0 | AT195: 0 | AU195: 0 | AV195: =IF($O$20<>0,SUM(AJ195:AU195)*$O$20+$N$20,-1) -> 11 | AX195: =$B$23*NORMDIST($AI195,$B$20,$B$24*$B$20,FALSE) -> 0 | AY195: 4.49267929e-07 | AZ195: 0 | BA195: 0 | BB195: 0 | BC195: 0 | BD195: 0 | BE195: 0 | BF195: 0 | BG195: 0 | BH195: 0 | BI195: 0 | BJ195: =IF($O$22<>0,SUM(AX195:BI195)*$O$22+$N$22,-1) -> 15.00000045 | BL195: 0 | BM195: 0 | BN195: 0 | BO195: 0 | BP195: 0 | BQ195: 0 | BR195: 0 | BS195: 0 | BT195: 0 | BU195: 0 | BV195: 0 | BW195: 0 | BX195: =IF($O$24<>0,SUM(BL195:BW195)*$O$24+$N$24,-1) -> 10 | BZ195: 0 | CA195: 0 | CB195: 0 | CC195: 0 | CD195: 0 | CE195: 0 | CF195: 0 | CG195: 0 | CH195: 0 | CI195: 0 | CJ195: 0 | CK195: 0 | CL195: =IF($O$21<>0,SUM(BZ195:CK195)*$O$21+$N$21,-1) -> -1 | CN195: 0 | CO195: 2.432286143e-11 | CP195: 0 | CQ195: 0 | CR195: 0 | CS195: 0 | CT195: 0 | CU195: 0 | CV195: 0 | CW195: 0 | CX195: 0 | CY195: 0 | CZ195: =IF($O$23<>0,SUM(CN195:CY195)*$O$23+$N$23,-1) -> -1
AI196: 3.88 | AJ196: 0 | AK196: 0 | AL196: 0 | AM196: 0 | AN196: 0 | AO196: 0 | AP196: 0 | AQ196: 0 | AR196: 0 | AS196: 0 | AT196: 0 | AU196: 0 | AV196: =IF($O$20<>0,SUM(AJ196:AU196)*$O$20+$N$20,-1) -> 11 | AX196: 0 | AY196: 2.050368895e-09 | AZ196: 0 | BA196: 0 | BB196: 0 | BC196: 0 | BD196: 0 | BE196: 0 | BF196: 0 | BG196: 0 | BH196: 0 | BI196: 0 | BJ196: =IF($O$22<>0,SUM(AX196:BI196)*$O$22+$N$22,-1) -> 15 | BL196: 0 | BM196: 0 | BN196: 0 | BO196: 0 | BP196: 0 | BQ196: 0 | BR196: 0 | BS196: 0 | BT196: 0 | BU196: 0 | BV196: 0 | BW196: 0 | BX196: =IF($O$24<>0,SUM(BL196:BW196)*$O$24+$N$24,-1) -> 10 | BZ196: 0 | CA196: 0 | CB196: 0 | CC196: 0 | CD196: 0 | CE196: 0 | CF196: 0 | CG196: 0 | CH196: 0 | CI196: 0 | CJ196: 0 | CK196: 0 | CL196: =IF($O$21<>0,SUM(BZ196:CK196)*$O$21+$N$21,-1) -> -1 | CN196: 0 | CO196: 1.095088249e-13 | CP196: 0 | CQ196: 0 | CR196: 0 | CS196: 0 | CT196: 0 | CU196: 0 | CV196: 0 | CW196: 0 | CX196: 0 | CY196: 0 | CZ196: =IF($O$23<>0,SUM(CN196:CY196)*$O$23+$N$23,-1) -> -1
AI197: 3.9 | AJ197: 0 | AK197: 0 | AL197: 0 | AM197: 0 | AN197: 0 | AO197: 0 | AP197: 0 | AQ197: 0 | AR197: 0 | AS197: 0 | AT197: 0 | AU197: 0 | AV197: =IF($O$20<>0,SUM(AJ197:AU197)*$O$20+$N$20,-1) -> 11 | AX197: 0 | AY197: 4.535131783e-12 | AZ197: 0 | BA197: 0 | BB197: 0 | BC197: 0 | BD197: 0 | BE197: 0 | BF197: 0 | BG197: 0 | BH197: 0 | BI197: 0 | BJ197: =IF($O$22<>0,SUM(AX197:BI197)*$O$22+$N$22,-1) -> 15 | BL197: 0 | BM197: 0 | BN197: 0 | BO197: 0 | BP197: 0 | BQ197: 0 | BR197: 0 | BS197: 0 | BT197: 0 | BU197: 0 | BV197: 0 | BW197: 0 | BX197: =IF($O$24<>0,SUM(BL197:BW197)*$O$24+$N$24,-1) -> 10 | BZ197: 0 | CA197: 0 | CB197: 0 | CC197: 0 | CD197: 0 | CE197: 0 | CF197: 0 | CG197: 0 | CH197: 0 | CI197: 0 | CJ197: 0 | CK197: 0 | CL197: =IF($O$21<>0,SUM(BZ197:CK197)*$O$21+$N$21,-1) -> -1 | CN197: 0 | CO197: 3.016889695e-16 | CP197: 0 | CQ197: 0 | CR197: 0 | CS197: 0 | CT197: 0 | CU197: 0 | CV197: 0 | CW197: 0 | CX197: 0 | CY197: 0 | CZ197: =IF($O$23<>0,SUM(CN197:CY197)*$O$23+$N$23,-1) -> -1
AI198: 3.92 | AJ198: 0 | AK198: 0 | AL198: 0 | AM198: 0 | AN198: 0 | AO198: 0 | AP198: 0 | AQ198: 0 | AR198: 0 | AS198: 0 | AT198: 0 | AU198: 0 | AV198: =IF($O$20<>0,SUM(AJ198:AU198)*$O$20+$N$20,-1) -> 11 | AX198: 0 | AY198: 4.861599039e-15 | AZ198: 0 | BA198: 0 | BB198: 0 | BC198: 0 | BD198: 0 | BE198: 0 | BF198: 0 | BG198: 0 | BH198: 0 | BI198: 0 | BJ198: =IF($O$22<>0,SUM(AX198:BI198)*$O$22+$N$22,-1) -> 15 | BL198: 0 | BM198: 0 | BN198: 0 | BO198: 0 | BP198: 0 | BQ198: 0 | BR198: 0 | BS198: 0 | BT198: 0 | BU198: 0 | BV198: 0 | BW198: 0 | BX198: =IF($O$24<>0,SUM(BL198:BW198)*$O$24+$N$24,-1) -> 10 | BZ198: 0 | CA198: 0 | CB198: 0 | CC198: 0 | CD198: 0 | CE198: 0 | CF198: 0 | CG198: 0 | CH198: 0 | CI198: 0 | CJ198: 0 | CK198: 0 | CL198: =IF($O$21<>0,SUM(BZ198:CK198)*$O$21+$N$21,-1) -> -1 | CN198: 0 | CO198: 5.085639875e-19 | CP198: 0 | CQ198: 0 | CR198: 0 | CS198: 0 | CT198: 0 | CU198: 0 | CV198: 0 | CW198: 0 | CX198: 0 | CY198: 0 | CZ198: =IF($O$23<>0,SUM(CN198:CY198)*$O$23+$N$23,-1) -> -1
AI199: 3.94 | AJ199: 0 | AK199: 0 | AL199: 0 | AM199: 0 | AN199: 0 | AO199: 0 | AP199: 0 | AQ199: 0 | AR199: 0 | AS199: 0 | AT199: 0 | AU199: 0 | AV199: =IF($O$20<>0,SUM(AJ199:AU199)*$O$20+$N$20,-1) -> 11 | AX199: 0 | AY199: 2.52580421e-18 | AZ199: 0 | BA199: 0 | BB199: 0 | BC199: 0 | BD199: 0 | BE199: 0 | BF199: 0 | BG199: 0 | BH199: 0 | BI199: 0 | BJ199: =IF($O$22<>0,SUM(AX199:BI199)*$O$22+$N$22,-1) -> 15 | BL199: 0 | BM199: 0 | BN199: 0 | BO199: 0 | BP199: 0 | BQ199: 0 | BR199: 0 | BS199: 0 | BT199: 0 | BU199: 0 | BV199: 0 | BW199: 0 | BX199: =IF($O$24<>0,SUM(BL199:BW199)*$O$24+$N$24,-1) -> 10 | BZ199: 0 | CA199: 0 | CB199: 0 | CC199: 0 | CD199: 0 | CE199: 0 | CF199: 0 | CG199: 0 | CH199: 0 | CI199: 0 | CJ199: 0 | CK199: 0 | CL199: =IF($O$21<>0,SUM(BZ199:CK199)*$O$21+$N$21,-1) -> -1 | CN199: 0 | CO199: 5.245750552e-22 | CP199: 0 | CQ199: 0 | CR199: 0 | CS199: 0 | CT199: 0 | CU199: 0 | CV199: 0 | CW199: 0 | CX199: 0 | CY199: 0 | CZ199: =IF($O$23<>0,SUM(CN199:CY199)*$O$23+$N$23,-1) -> -1
AI200: 3.96 | AJ200: 0 | AK200: 0 | AL200: 0 | AM200: 0 | AN200: 0 | AO200: 0 | AP200: 0 | AQ200: 0 | AR200: 0 | AS200: 0 | AT200: 0 | AU200: 0 | AV200: =IF($O$20<>0,SUM(AJ200:AU200)*$O$20+$N$20,-1) -> 11 | AX200: 0 | AY200: 6.359918461e-22 | AZ200: 0 | BA200: 0 | BB200: 0 | BC200: 0 | BD200: 0 | BE200: 0 | BF200: 0 | BG200: 0 | BH200: 0 | BI200: 0 | BJ200: =IF($O$22<>0,SUM(AX200:BI200)*$O$22+$N$22,-1) -> 15 | BL200: 0 | BM200: 0 | BN200: 0 | BO200: 0 | BP200: 0 | BQ200: 0 | BR200: 0 | BS200: 0 | BT200: 0 | BU200: 0 | BV200: 0 | BW200: 0 | BX200: =IF($O$24<>0,SUM(BL200:BW200)*$O$24+$N$24,-1) -> 10 | BZ200: 0 | CA200: 0 | CB200: 0 | CC200: 0 | CD200: 0 | CE200: 0 | CF200: 0 | CG200: 0 | CH200: 0 | CI200: 0 | CJ200: 0 | CK200: 0 | CL200: =IF($O$21<>0,SUM(BZ200:CK200)*$O$21+$N$21,-1) -> -1 | CN200: 0 | CO200: 3.310895898e-25 | CP200: 0 | CQ200: 0 | CR200: 0 | CS200: 0 | CT200: 0 | CU200: 0 | CV200: 0 | CW200: 0 | CX200: 0 | CY200: 0 | CZ200: =IF($O$23<>0,SUM(CN200:CY200)*$O$23+$N$23,-1) -> -1
... 362 more rows

Sheet SPmodel
D1: Do not change any cells in this sheet!
B5: Compound name | J5: Column 1 | K5: =A21 -> 1 | O5: Column 2
D6: E | E6: S | F6: A | G6: B | H6: L | J6: Log(ko) | K6: Slope | M6: R^2 | O6: Log(ko) | P6: Slope | R6: R^2
A7: 1 | B7: =IF(LC!C6<>"",LC!C6,"") -> Aniline | D7: =IF($B7<>"",VLOOKUP($B7,Compounds!$B$11:'Compounds'!$G$403,2,FALSE),"") -> 0.955 | E7: =IF($B7<>"",VLOOKUP($B7,Compounds!$B$11:'Compounds'!$G$403,3,FALSE),"") -> 1.003 | F7: =IF($B7<>"",VLOOKUP($B7,Compounds!$B$11:'Compounds'!$G$403,4,FALSE),"") -> 0.249 | G7: =IF($B7<>"",VLOOKUP($B7,Compounds!$B$11:'Compounds'!$G$403,5,FALSE),"") -> 0.425 | H7: =IF($B7<>"",VLOOKUP($B7,Compounds!$B$11:'Compounds'!$G$403,6,FALSE),"") -> 0.8162 | J7: =IF(B7<>"",INTERCEPT(B34:K34,$B$33:$K$33),"") -> 0.7356405067 | K7: =IF(B7<>"",-SLOPE(B34:K34,$B$33:$K$33),"") -> 2.288856686 | M7: =IF(B7<>"",CORREL(B34:K34,$B$33:$K$33)^2,"") -> 0.96929737 | O7: =IF(B7<>"",INTERCEPT(P34:Y34,$P$33:$Y$33),"") -> 0.99371188 | P7: =IF(B7<>"",-SLOPE(P34:Y34,$P$33:$Y$33),"") -> 2.4525412 | R7: =IF(B7<>"",CORREL(P34:Y34,$P$33:$Y$33)^2,"") -> 0.9972026375
A8: 2 | B8: =IF(LC!C7<>"",LC!C7,"") -> Indole | D8: =IF($B8<>"",VLOOKUP($B8,Compounds!$B$11:'Compounds'!$G$403,2,FALSE),"") -> 1.039 | E8: =IF($B8<>"",VLOOKUP($B8,Compounds!$B$11:'Compounds'!$G$403,3,FALSE),"") -> 1.235 | F8: =IF($B8<>"",VLOOKUP($B8,Compounds!$B$11:'Compounds'!$G$403,4,FALSE),"") -> 0.422 | G8: =IF($B8<>"",VLOOKUP($B8,Compounds!$B$11:'Compounds'!$G$403,5,FALSE),"") -> 0.223 | H8: =IF($B8<>"",VLOOKUP($B8,Compounds!$B$11:'Compounds'!$G$403,6,FALSE),"") -> 0.9464 | J8: =IF(B8<>"",INTERCEPT(B35:K35,$B$33:$K$33),"") -> 1.65206088 | K8: 3.353709657 | M8: 0.9895480665 | O8: =IF(B8<>"",INTERCEPT(P35:Y35,$P$33:$Y$33),"") -> 1.77193016 | P8: =IF(B8<>"",-SLOPE(P35:Y35,$P$33:$Y$33),"") -> 3.1709904 | R8: =IF(B8<>"",CORREL(P35:Y35,$P$33:$Y$33)^2,"") -> 0.9993354312
A9: 3 | B9: =IF(LC!C8<>"",LC!C8,"") -> toluene | D9: =IF($B9<>"",VLOOKUP($B9,Compounds!$B$11:'Compounds'!$G$403,2,FALSE),"") -> 0.606 | E9: =IF($B9<>"",VLOOKUP($B9,Compounds!$B$11:'Compounds'!$G$403,3,FALSE),"") -> 0.499 | F9: =IF($B9<>"",VLOOKUP($B9,Compounds!$B$11:'Compounds'!$G$403,4,FALSE),"") -> 0 | G9: =IF($B9<>"",VLOOKUP($B9,Compounds!$B$11:'Compounds'!$G$403,5,FALSE),"") -> 0.139 | H9: =IF($B9<>"",VLOOKUP($B9,Compounds!$B$11:'Compounds'!$G$403,6,FALSE),"") -> 0.8573 | J9: 2.146402593 | K9: 3.530105743 | M9: 0.9952728849 | O9: 2.29350822 | P9: 3.1208938 | R9: 0.9962952588
A10: 4 | B10: =IF(LC!C9<>"",LC!C9,"") -> Styrene | D10: =IF($B10<>"",VLOOKUP($B10,Compounds!$B$11:'Compounds'!$G$403,2,FALSE),"") -> 0.849 | E10: =IF($B10<>"",VLOOKUP($B10,Compounds!$B$11:'Compounds'!$G$403,3,FALSE),"") -> 0.671 | F10: =IF($B10<>"",VLOOKUP($B10,Compounds!$B$11:'Compounds'!$G$403,4,FALSE),"") -> 0 | G10: =IF($B10<>"",VLOOKUP($B10,Compounds!$B$11:'Compounds'!$G$403,5,FALSE),"") -> 0.177 | H10: =IF($B10<>"",VLOOKUP($B10,Compounds!$B$11:'Compounds'!$G$403,6,FALSE),"") -> 0.9552 | J10: 2.38141664 | K10: 3.8913004 | M10: 0.9919381817 | O10: 2.56179928 | P10: 3.4451632 | R10: 0.9961663528
A11: 5 | B11: =IF(LC!C10<>"",LC!C10,"") -> Anthracene | D11: =IF($B11<>"",VLOOKUP($B11,Compounds!$B$11:'Compounds'!$G$403,2,FALSE),"") -> 1.923 | E11: =IF($B11<>"",VLOOKUP($B11,Compounds!$B$11:'Compounds'!$G$403,3,FALSE),"") -> 1.309 | F11: =IF($B11<>"",VLOOKUP($B11,Compounds!$B$11:'Compounds'!$G$403,4,FALSE),"") -> 0 | G11: =IF($B11<>"",VLOOKUP($B11,Compounds!$B$11:'Compounds'!$G$403,5,FALSE),"") -> 0.253 | H11: =IF($B11<>"",VLOOKUP($B11,Compounds!$B$11:'Compounds'!$G$403,6,FALSE),"") -> 1.4544 | J11: 4.057294347 | K11: 6.167923371 | M11: 0.9802156238 | O11: 4.36905096 | P11: 5.3132164 | R11: 0.9956024363
A12: 6 | B12: =IF(LC!C11<>"",LC!C11,"") -> Pyrene | D12: =IF($B12<>"",VLOOKUP($B12,Compounds!$B$11:'Compounds'!$G$403,2,FALSE),"") -> 2.165 | E12: =IF($B12<>"",VLOOKUP($B12,Compounds!$B$11:'Compounds'!$G$403,3,FALSE),"") -> 1.518 | F12: =IF($B12<>"",VLOOKUP($B12,Compounds!$B$11:'Compounds'!$G$403,4,FALSE),"") -> 0 | G12: =IF($B12<>"",VLOOKUP($B12,Compounds!$B$11:'Compounds'!$G$403,5,FALSE),"") -> 0.261 | H12: =IF($B12<>"",VLOOKUP($B12,Compounds!$B$11:'Compounds'!$G$403,6,FALSE),"") -> 1.5846 | J12: 4.484841453 | K12: 6.739037486 | M12: 0.9792221206 | O12: 4.80786124 | P12: 5.7890776 | R12: 0.9958960628
A13: 7 | B13: =IF(LC!C12<>"",LC!C12,"") -> Decane | D13: =IF($B13<>"",VLOOKUP($B13,Compounds!$B$11:'Compounds'!$G$403,2,FALSE),"") -> 0 | E13: =IF($B13<>"",VLOOKUP($B13,Compounds!$B$11:'Compounds'!$G$403,3,FALSE),"") -> 0 | F13: =IF($B13<>"",VLOOKUP($B13,Compounds!$B$11:'Compounds'!$G$403,4,FALSE),"") -> 0 | G13: =IF($B13<>"",VLOOKUP($B13,Compounds!$B$11:'Compounds'!$G$403,5,FALSE),"") -> 0 | H13: =IF($B13<>"",VLOOKUP($B13,Compounds!$B$11:'Compounds'!$G$403,6,FALSE),"") -> 1.5176 | J13: 5.287742987 | K13: 7.017892343 | M13: 0.9958813731 | O13: 5.50921424 | P13: 5.8551616 | R13: 0.9991005071
A14: 8 | B14: =IF(LC!C13<>"",LC!C13,"") -> Tetradecane | D14: =IF($B14<>"",VLOOKUP($B14,Compounds!$B$11:'Compounds'!$G$403,2,FALSE),"") -> 0 | E14: =IF($B14<>"",VLOOKUP($B14,Compounds!$B$11:'Compounds'!$G$403,3,FALSE),"") -> 0 | F14: =IF($B14<>"",VLOOKUP($B14,Compounds!$B$11:'Compounds'!$G$403,4,FALSE),"") -> 0 | G14: =IF($B14<>"",VLOOKUP($B14,Compounds!$B$11:'Compounds'!$G$403,5,FALSE),"") -> 0 | H14: =IF($B14<>"",VLOOKUP($B14,Compounds!$B$11:'Compounds'!$G$403,6,FALSE),"") -> 2.0812 | J14: 7.492283173 | K14: 9.635733829 | M14: 0.9942497028 | O14: 7.81850888 | P14: 8.0058592 | R14: 0.9988296949
A15: 9 | B15: =IF(LC!C14<>"",LC!C14,"") -> Pyren | D15: =IF($B15<>"",VLOOKUP($B15,Compounds!$B$11:'Compounds'!$G$403,2,FALSE),"") ->  | E15: =IF($B15<>"",VLOOKUP($B15,Compounds!$B$11:'Compounds'!$G$403,3,FALSE),"") ->  | F15: =IF($B15<>"",VLOOKUP($B15,Compounds!$B$11:'Compounds'!$G$403,4,FALSE),"") ->  | G15: =IF($B15<>"",VLOOKUP($B15,Compounds!$B$11:'Compounds'!$G$403,5,FALSE),"") ->  | H15: =IF($B15<>"",VLOOKUP($B15,Compounds!$B$11:'Compounds'!$G$403,6,FALSE),"") -> 
A16: 10 | B16: =IF(LC!C15<>"",LC!C15,"") ->  | C16: =IF($B16<>"",VLOOKUP($B16,Compounds!$B$11:'Compounds'!$G$403,1),"") ->  | D16: =IF($B16<>"",VLOOKUP($B16,Compounds!$B$11:'Compounds'!$G$403,2,FALSE),"") ->  | E16: =IF($B16<>"",VLOOKUP($B16,Compounds!$B$11:'Compounds'!$G$403,3,FALSE),"") ->  | F16: =IF($B16<>"",VLOOKUP($B16,Compounds!$B$11:'Compounds'!$G$403,4,FALSE),"") ->  | G16: =IF($B16<>"",VLOOKUP($B16,Compounds!$B$11:'Compounds'!$G$403,5,FALSE),"") ->  | H16: =IF($B16<>"",VLOOKUP($B16,Compounds!$B$11:'Compounds'!$G$403,6,FALSE),"") -> 
A17: 11 | B17: =IF(LC!C16<>"",LC!C16,"") ->  | D17: =IF($B17<>"",VLOOKUP($B17,Compounds!$B$11:'Compounds'!$G$403,2,FALSE),"") ->  | E17: =IF($B17<>"",VLOOKUP($B17,Compounds!$B$11:'Compounds'!$G$403,3,FALSE),"") ->  | F17: =IF($B17<>"",VLOOKUP($B17,Compounds!$B$11:'Compounds'!$G$403,4,FALSE),"") ->  | G17: =IF($B17<>"",VLOOKUP($B17,Compounds!$B$11:'Compounds'!$G$403,5,FALSE),"") ->  | H17: =IF($B17<>"",VLOOKUP($B17,Compounds!$B$11:'Compounds'!$G$403,6,FALSE),"") -> 
A20: Column 1 | B20: T | C20: e | D20: s | E20: a | F20: b | G20: l | H20: c | J20: If you want to restrict the temperature range | O20: Column 2 | P20: T | Q20: e | R20: s | S20: a | T20: b | U20: l | V20: c
A21: 1 | B21: Chromlith/ACN | D21: Chromlith RP-18e/ACN | J21: for the calibration, please delete the respective | O21: 2 | P21: Chromlith/MeHO | R21: Chromlith RP-18e/MeOH
B22: 0.1 | C22: 0.427 | D22: -0.714 | E22: -0.458 | F22: -2.631 | G22: 3.549 | H22: -0.752 | J22: temperatures in cell B22:B31 and/or P22:P31 | P22: 0.2 | Q22: 0.406 | R22: -0.863 | S22: -0.403 | T22: -2.177 | U22: 3.375 | V22: -0.773
B23: 0.2 | C23: 0.242 | D23: -0.567 | E23: -0.498 | F23: -2.66 | G23: 2.984 | H23: -0.591 | P23: 0.3 | Q23: 0.515 | R23: -0.883 | S23: -0.482 | T23: -2.067 | U23: 2.9 | V23: -0.687
B24: 0.3 | C24: 0.144 | D24: -0.452 | E24: -0.522 | F24: -2.355 | G24: 2.433 | H24: -0.573 | J24: 1 - cos q | K24: d | P24: 0.4 | Q24: 0.444 | R24: -0.849 | S24: -0.459 | T24: -1.979 | U24: 2.575 | V24: -0.703
B25: 0.4 | C25: 0.087 | D25: -0.379 | E25: -0.495 | F25: -1.921 | G25: 1.918 | H25: -0.565 | J25: =1-(C22*Q22+D22*R22+E22*S22+F22*T22+G22*U22)/(J28*K28) -> 0.003314055745 | K25: =SQRT((C22/J28-Q22/K28)^2+(D22/J28-R22/K28)^2+(E22/J28-S22/K28)^2+(F22/J28-T22/K28)^2+(G22/J28-U22/K28)^2) -> 0.08141321447 | P25: 0.5 | Q25: 0.39 | R25: -0.789 | S25: -0.452 | T25: -1.764 | U25: 2.176 | V25: -0.723
B26: 0.5 | C26: 0.04 | D26: -0.298 | E26: -0.437 | F26: -1.706 | G26: 1.6 | H26: -0.644 | P26: 0.6 | Q26: 0.317 | R26: -0.712 | S26: -0.408 | T26: -1.607 | U26: 1.829 | V26: -0.787
B27: 0.6 | C27: 0.111 | D27: -0.338 | E27: -0.44 | F27: -1.197 | G27: 1.231 | H27: -0.7 | J27: n1 | K27: n2
J28: =SQRT(C22^2+D22^2+E22^2+F22^2+G22^2) -> 4.518788665 | K28: =SQRT(Q22^2+R22^2+S22^2+T22^2+U22^2) -> 4.147525527
B33: =IF(B22<>"",B22,"") -> 0.1 | C33: =IF(B23<>"",B23,"") -> 0.2 | D33: =IF(B24<>"",B24,"") -> 0.3 | E33: =IF(B25<>"",B25,"") -> 0.4 | F33: =IF(B26<>"",B26,"") -> 0.5 | G33: =IF(B27<>"",B27,"") -> 0.6 | H33: =IF(B28<>"",B28,"") ->  | I33: =IF(B29<>"",B29,"") ->  | J33: =IF(B30<>"",B30,"") ->  | K33: =IF(B31<>"",B31,"") ->  | P33: =IF(P22<>"",P22,"") -> 0.2 | Q33: =IF(P23<>"",P23,"") -> 0.3 | R33: =IF(P24<>"",P24,"") -> 0.4 | S33: =IF(P25<>"",P25,"") -> 0.5 | T33: =IF(P26<>"",P26,"") -> 0.6 | U33: =IF(P27<>"",P27,"") ->  | V33: =IF(P28<>"",P28,"") ->  | W33: =IF(P29<>"",P29,"") ->  | X33: =IF(P30<>"",P30,"") ->  | Y33: =IF(P31<>"",P31,"") -> 
A34: 1 | B34: =IF(B$7<>"",IF($B22<>0,D$7*$C22+E$7*$D22+F$7*$E22+G$7*$F22+H$7*$G22+$H22,""),NA()) -> 0.6041198 | C34: =IF(B$7<>"",IF($B23<>0,D$7*$C23+E$7*$D23+F$7*$E23+G$7*$F23+H$7*$G23+$H23,""),NA()) -> 0.2524478 | D34: =IF(B$7<>"",IF($B24<>0,D$7*$C24+E$7*$D24+F$7*$E24+G$7*$F24+H$7*$G24+$H24,""),NA()) -> -0.0338744 | E34: =IF(B$7<>"",IF($B25<>0,D$7*$C25+E$7*$D25+F$7*$E25+G$7*$F25+H$7*$G25+$H25,""),NA()) -> -0.2362604 | F34: =IF(B$7<>"",IF($B26<>0,D$7*$C26+E$7*$D26+F$7*$E26+G$7*$F26+H$7*$G26+$H26,""),NA()) -> -0.432637 | G34: =IF(B$7<>"",IF($B27<>0,D$7*$C27+E$7*$D27+F$7*$E27+G$7*$F27+H$7*$G27+$H27,""),NA()) -> -0.5465518 | H34: =IF(B$7<>"",IF($B28<>0,D$7*$C28+E$7*$D28+F$7*$E28+G$7*$F28+H$7*$G28+$H28,""),NA()) ->  | I34: =IF(B$7<>"",IF($B29<>0,D$7*$C29+E$7*$D29+F$7*$E29+G$7*$F29+H$7*$G29+$H29,""),NA()) ->  | J34: =IF(B$7<>"",IF($B30<>0,D$7*$C30+E$7*$D30+F$7*$E30+G$7*$F30+H$7*$G30+$H30,""),NA()) ->  | K34: =IF(B$7<>"",IF($B31<>0,D$7*$C31+E$7*$D31+F$7*$E31+G$7*$F31+H$7*$G31+$H31,""),NA()) ->  | O34: 1 | P34: =IF($B7<>"",IF(P$22<>0,$D7*Q$22+$E7*R$22+$F7*S$22+$G7*T$22+$H7*U$22+V$22,""),NA()) -> 0.478244 | Q34: =IF($B7<>"",IF(P$23<>0,$D7*Q$23+$E7*R$23+$F7*S$23+$G7*T$23+$H7*U$23+V$23,""),NA()) -> 0.287663 | R34: =IF($B7<>"",IF(P$24<>0,$D7*Q$24+$E7*R$24+$F7*S$24+$G7*T$24+$H7*U$24+V$24,""),NA()) -> 0.015822 | S34: =IF($B7<>"",IF(P$25<>0,$D7*Q$25+$E7*R$25+$F7*S$25+$G7*T$25+$H7*U$25+V$25,""),NA()) -> -0.2281138 | T34: =IF($B7<>"",IF(P$26<>0,$D7*Q$26+$E7*R$26+$F7*S$26+$G7*T$26+$H7*U$26+V$26,""),NA()) -> -0.4901382 | U34: =IF($B7<>"",IF(P$27<>0,$D7*Q$27+$E7*R$27+$F7*S$27+$G7*T$27+$H7*U$27+V$27,""),NA()) ->  | V34: =IF($B7<>"",IF(P$28<>0,$D7*Q$28+$E7*R$28+$F7*S$28+$G7*T$28+$H7*U$28+V$28,""),NA()) ->  | W34: =IF($B7<>"",IF(P$29<>0,$D7*Q$29+$E7*R$29+$F7*S$29+$G7*T$29+$H7*U$29+V$29,""),NA()) ->  | X34: =IF($B7<>"",IF(P$30<>0,$D7*Q$30+$E7*R$30+$F7*S$30+$G7*T$30+$H7*U$30+V$30,""),NA()) ->  | Y34: =IF($B7<>"",IF(P$31<>0,$D7*Q$31+$E7*R$31+$F7*S$31+$G7*T$31+$H7*U$31+V$31,""),NA()) -> 
A35: 2 | B35: =IF(B$8<>"",IF($B22<>0,D$8*$C22+E$8*$D22+F$8*$E22+G$8*$F22+H$8*$G22+$H22,""),NA()) -> 1.3886476 | C35: =IF(B$8<>"",IF($B23<>0,D$8*$C23+E$8*$D23+F$8*$E23+G$8*$F23+H$8*$G23+$H23,""),NA()) -> 0.9809146 | D35: =IF(B$8<>"",IF($B24<>0,D$8*$C24+E$8*$D24+F$8*$E24+G$8*$F24+H$8*$G24+$H24,""),NA()) -> 0.5755382 | E35: =IF(B$8<>"",IF($B25<>0,D$8*$C25+E$8*$D25+F$8*$E25+G$8*$F25+H$8*$G25+$H25,""),NA()) -> 0.2352502 | F35: =IF(B$8<>"",IF($B26<>0,D$8*$C26+E$8*$D26+F$8*$E26+G$8*$F26+H$8*$G26+$H26,""),NA()) -> -0.021082 | G35: =IF(B$8<>"",IF($B27<>0,D$8*$C27+E$8*$D27+F$8*$E27+G$8*$F27+H$8*$G27+$H27,""),NA()) -> -0.2896936 | H35: =IF(B$8<>"",IF($B28<>0,D$8*$C28+E$8*$D28+F$8*$E28+G$8*$F28+H$8*$G28+$H28,""),NA()) ->  | I35: =IF(B$8<>"",IF($B29<>0,D$8*$C29+E$8*$D29+F$8*$E29+G$8*$F29+H$8*$G29+$H29,""),NA()) ->  | J35: =IF(B$8<>"",IF($B30<>0,D$8*$C30+E$8*$D30+F$8*$E30+G$8*$F30+H$8*$G30+$H30,""),NA()) ->  | K35: =IF(B$8<>"",IF($B31<>0,D$8*$C31+E$8*$D31+F$8*$E31+G$8*$F31+H$8*$G31+$H31,""),NA()) ->  | O35: 2 | P35: =IF($B8<>"",IF(P$22<>0,$D8*Q$22+$E8*R$22+$F8*S$22+$G8*T$22+$H8*U$22+V$22,""),NA()) -> 1.121592 | Q35: =IF($B8<>"",IF(P$23<>0,$D8*Q$23+$E8*R$23+$F8*S$23+$G8*T$23+$H8*U$23+V$23,""),NA()) -> 0.837795 | R35: =IF($B8<>"",IF(P$24<>0,$D8*Q$24+$E8*R$24+$F8*S$24+$G8*T$24+$H8*U$24+V$24,""),NA()) -> 0.511766 | S35: =IF($B8<>"",IF(P$25<>0,$D8*Q$25+$E8*R$25+$F8*S$25+$G8*T$25+$H8*U$25+V$25,""),NA()) -> 0.1830454 | T35: =IF($B8<>"",IF(P$26<>0,$D8*Q$26+$E8*R$26+$F8*S$26+$G8*T$26+$H8*U$26+V$26,""),NA()) -> -0.1365284 | U35: =IF($B8<>"",IF(P$27<>0,$D8*Q$27+$E8*R$27+$F8*S$27+$G8*T$27+$H8*U$27+V$27,""),NA()) ->  | V35: =IF($B8<>"",IF(P$28<>0,$D8*Q$28+$E8*R$28+$F8*S$28+$G8*T$28+$H8*U$28+V$28,""),NA()) ->  | W35: =IF($B8<>"",IF(P$29<>0,$D8*Q$29+$E8*R$29+$F8*S$29+$G8*T$29+$H8*U$29+V$29,""),NA()) ->  | X35: =IF($B8<>"",IF(P$30<>0,$D8*Q$30+$E8*R$30+$F8*S$30+$G8*T$30+$H8*U$30+V$30,""),NA()) ->  | Y35: =IF($B8<>"",IF(P$31<>0,$D8*Q$31+$E8*R$31+$F8*S$31+$G8*T$31+$H8*U$31+V$31,""),NA()) -> 
A36: 3 | B36: =IF(B$9<>"",IF($B22<>0,D$9*$C22+E$9*$D22+F$9*$E22+G$9*$F22+H$9*$G22+$H22,""),NA()) -> 1.8273247 | C36: =IF(B$9<>"",IF($B23<>0,D$9*$C23+E$9*$D23+F$9*$E23+G$9*$F23+H$9*$G23+$H23,""),NA()) -> 1.4611622 | D36: =IF(B$9<>"",IF($B24<>0,D$9*$C24+E$9*$D24+F$9*$E24+G$9*$F24+H$9*$G24+$H24,""),NA()) -> 1.0471819 | E36: =IF(B$9<>"",IF($B25<>0,D$9*$C25+E$9*$D25+F$9*$E25+G$9*$F25+H$9*$G25+$H25,""),NA()) -> 0.6758834 | F36: =IF(B$9<>"",IF($B26<>0,D$9*$C26+E$9*$D26+F$9*$E26+G$9*$F26+H$9*$G26+$H26,""),NA()) -> 0.366084 | G36: =IF(B$9<>"",IF($B27<>0,D$9*$C27+E$9*$D27+F$9*$E27+G$9*$F27+H$9*$G27+$H27,""),NA()) -> 0.0875573 | H36: =IF(B$9<>"",IF($B28<>0,D$9*$C28+E$9*$D28+F$9*$E28+G$9*$F28+H$9*$G28+$H28,""),NA()) ->  | I36: =IF(B$9<>"",IF($B29<>0,D$9*$C29+E$9*$D29+F$9*$E29+G$9*$F29+H$9*$G29+$H29,""),NA()) ->  | J36: =IF(B$9<>"",IF($B30<>0,D$9*$C30+E$9*$D30+F$9*$E30+G$9*$F30+H$9*$G30+$H30,""),NA()) ->  | K36: =IF(B$9<>"",IF($B31<>0,D$9*$C31+E$9*$D31+F$9*$E31+G$9*$F31+H$9*$G31+$H31,""),NA()) ->  | O36: 3 | P36: =IF($B9<>"",IF(P$22<>0,$D9*Q$22+$E9*R$22+$F9*S$22+$G9*T$22+$H9*U$22+V$22,""),NA()) -> 1.6331835 | Q36: =IF($B9<>"",IF(P$23<>0,$D9*Q$23+$E9*R$23+$F9*S$23+$G9*T$23+$H9*U$23+V$23,""),NA()) -> 1.38333 | R36: =IF($B9<>"",IF(P$24<>0,$D9*Q$24+$E9*R$24+$F9*S$24+$G9*T$24+$H9*U$24+V$24,""),NA()) -> 1.0748795 | S36: =IF($B9<>"",IF(P$25<>0,$D9*Q$25+$E9*R$25+$F9*S$25+$G9*T$25+$H9*U$25+V$25,""),NA()) -> 0.7399178 | T36: =IF($B9<>"",IF(P$26<>0,$D9*Q$26+$E9*R$26+$F9*S$26+$G9*T$26+$H9*U$26+V$26,""),NA()) -> 0.3944427 | U36: =IF($B9<>"",IF(P$27<>0,$D9*Q$27+$E9*R$27+$F9*S$27+$G9*T$27+$H9*U$27+V$27,""),NA()) ->  | V36: =IF($B9<>"",IF(P$28<>0,$D9*Q$28+$E9*R$28+$F9*S$28+$G9*T$28+$H9*U$28+V$28,""),NA()) ->  | W36: =IF($B9<>"",IF(P$29<>0,$D9*Q$29+$E9*R$29+$F9*S$29+$G9*T$29+$H9*U$29+V$29,""),NA()) ->  | X36: =IF($B9<>"",IF(P$30<>0,$D9*Q$30+$E9*R$30+$F9*S$30+$G9*T$30+$H9*U$30+V$30,""),NA()) ->  | Y36: =IF($B9<>"",IF(P$31<>0,$D9*Q$31+$E9*R$31+$F9*S$31+$G9*T$31+$H9*U$31+V$31,""),NA()) -> 
A37: 4 | B37: =IF(B$10<>"",IF($B22<>0,D$10*$C22+E$10*$D22+F$10*$E22+G$10*$F22+H$10*$G22+$H22,""),NA()) -> 2.0557468 | C37: =IF(B$10<>"",IF($B23<>0,D$10*$C23+E$10*$D23+F$10*$E23+G$10*$F23+H$10*$G23+$H23,""),NA()) -> 1.6134978 | D37: =IF(B$10<>"",IF($B24<>0,D$10*$C24+E$10*$D24+F$10*$E24+G$10*$F24+H$10*$G24+$H24,""),NA()) -> 1.1531306 | E37: =IF(B$10<>"",IF($B25<>0,D$10*$C25+E$10*$D25+F$10*$E25+G$10*$F25+H$10*$G25+$H25,""),NA()) -> 0.7466106 | F37: =IF(B$10<>"",IF($B26<>0,D$10*$C26+E$10*$D26+F$10*$E26+G$10*$F26+H$10*$G26+$H26,""),NA()) -> 0.41636 | G37: =IF(B$10<>"",IF($B27<>0,D$10*$C27+E$10*$D27+F$10*$E27+G$10*$F27+H$10*$G27+$H27,""),NA()) -> 0.1314232 | H37: =IF(B$10<>"",IF($B28<>0,D$10*$C28+E$10*$D28+F$10*$E28+G$10*$F28+H$10*$G28+$H28,""),NA()) ->  | I37: =IF(B$10<>"",IF($B29<>0,D$10*$C29+E$10*$D29+F$10*$E29+G$10*$F29+H$10*$G29+$H29,""),NA()) ->  | J37: =IF(B$10<>"",IF($B30<>0,D$10*$C30+E$10*$D30+F$10*$E30+G$10*$F30+H$10*$G30+$H30,""),NA()) ->  | K37: =IF(B$10<>"",IF($B31<>0,D$10*$C31+E$10*$D31+F$10*$E31+G$10*$F31+H$10*$G31+$H31,""),NA()) ->  | O37: 4 | P37: =IF($B10<>"",IF(P$22<>0,$D10*Q$22+$E10*R$22+$F10*S$22+$G10*T$22+$H10*U$22+V$22,""),NA()) -> 1.831092 | Q37: =IF($B10<>"",IF(P$23<>0,$D10*Q$23+$E10*R$23+$F10*S$23+$G10*T$23+$H10*U$23+V$23,""),NA()) -> 1.561963 | R37: =IF($B10<>"",IF(P$24<>0,$D10*Q$24+$E10*R$24+$F10*S$24+$G10*T$24+$H10*U$24+V$24,""),NA()) -> 1.213634 | S37: =IF($B10<>"",IF(P$25<>0,$D10*Q$25+$E10*R$25+$F10*S$25+$G10*T$25+$H10*U$25+V$25,""),NA()) -> 0.8449782 | T37: =IF($B10<>"",IF(P$26<>0,$D10*Q$26+$E10*R$26+$F10*S$26+$G10*T$26+$H10*U$26+V$26,""),NA()) -> 0.4670028 | U37: =IF($B10<>"",IF(P$27<>0,$D10*Q$27+$E10*R$27+$F10*S$27+$G10*T$27+$H10*U$27+V$27,""),NA()) ->  | V37: =IF($B10<>"",IF(P$28<>0,$D10*Q$28+$E10*R$28+$F10*S$28+$G10*T$28+$H10*U$28+V$28,""),NA()) ->  | W37: =IF($B10<>"",IF(P$29<>0,$D10*Q$29+$E10*R$29+$F10*S$29+$G10*T$29+$H10*U$29+V$29,""),NA()) ->  | X37: =IF($B10<>"",IF(P$30<>0,$D10*Q$30+$E10*R$30+$F10*S$30+$G10*T$30+$H10*U$30+V$30,""),NA()) ->  | Y37: =IF($B10<>"",IF(P$31<>0,$D10*Q$31+$E10*R$31+$F10*S$31+$G10*T$31+$H10*U$31+V$31,""),NA()) -> 
A38: 5 | B38: =IF(B$11<>"",IF($B22<>0,D$11*$C22+E$11*$D22+F$11*$E22+G$11*$F22+H$11*$G22+$H22,""),NA()) -> 3.6305176 | C38: =IF(B$11<>"",IF($B23<>0,D$11*$C23+E$11*$D23+F$11*$E23+G$11*$F23+H$11*$G23+$H23,""),NA()) -> 2.7991126 | D38: =IF(B$11<>"",IF($B24<>0,D$11*$C24+E$11*$D24+F$11*$E24+G$11*$F24+H$11*$G24+$H24,""),NA()) -> 2.0549842 | E38: =IF(B$11<>"",IF($B25<>0,D$11*$C25+E$11*$D25+F$11*$E25+G$11*$F25+H$11*$G25+$H25,""),NA()) -> 1.4097162 | F38: =IF(B$11<>"",IF($B26<>0,D$11*$C26+E$11*$D26+F$11*$E26+G$11*$F26+H$11*$G26+$H26,""),NA()) -> 0.93826 | G38: =IF(B$11<>"",IF($B27<>0,D$11*$C27+E$11*$D27+F$11*$E27+G$11*$F27+H$11*$G27+$H27,""),NA()) -> 0.5585364 | H38: =IF(B$11<>"",IF($B28<>0,D$11*$C28+E$11*$D28+F$11*$E28+G$11*$F28+H$11*$G28+$H28,""),NA()) ->  | I38: =IF(B$11<>"",IF($B29<>0,D$11*$C29+E$11*$D29+F$11*$E29+G$11*$F29+H$11*$G29+$H29,""),NA()) ->  | J38: =IF(B$11<>"",IF($B30<>0,D$11*$C30+E$11*$D30+F$11*$E30+G$11*$F30+H$11*$G30+$H30,""),NA()) ->  | K38: =IF(B$11<>"",IF($B31<>0,D$11*$C31+E$11*$D31+F$11*$E31+G$11*$F31+H$11*$G31+$H31,""),NA()) ->  | O38: 5 | P38: =IF($B11<>"",IF(P$22<>0,$D11*Q$22+$E11*R$22+$F11*S$22+$G11*T$22+$H11*U$22+V$22,""),NA()) -> 3.23589 | Q38: =IF($B11<>"",IF(P$23<>0,$D11*Q$23+$E11*R$23+$F11*S$23+$G11*T$23+$H11*U$23+V$23,""),NA()) -> 2.842307 | R38: =IF($B11<>"",IF(P$24<>0,$D11*Q$24+$E11*R$24+$F11*S$24+$G11*T$24+$H11*U$24+V$24,""),NA()) -> 2.283864 | S38: =IF($B11<>"",IF(P$25<>0,$D11*Q$25+$E11*R$25+$F11*S$25+$G11*T$25+$H11*U$25+V$25,""),NA()) -> 1.7126514 | T38: =IF($B11<>"",IF(P$26<>0,$D11*Q$26+$E11*R$26+$F11*S$26+$G11*T$26+$H11*U$26+V$26,""),NA()) -> 1.1441096 | U38: =IF($B11<>"",IF(P$27<>0,$D11*Q$27+$E11*R$27+$F11*S$27+$G11*T$27+$H11*U$27+V$27,""),NA()) ->  | V38: =IF($B11<>"",IF(P$28<>0,$D11*Q$28+$E11*R$28+$F11*S$28+$G11*T$28+$H11*U$28+V$28,""),NA()) ->  | W38: =IF($B11<>"",IF(P$29<>0,$D11*Q$29+$E11*R$29+$F11*S$29+$G11*T$29+$H11*U$29+V$29,""),NA()) ->  | X38: =IF($B11<>"",IF(P$30<>0,$D11*Q$30+$E11*R$30+$F11*S$30+$G11*T$30+$H11*U$30+V$30,""),NA()) ->  | Y38: =IF($B11<>"",IF(P$31<>0,$D11*Q$31+$E11*R$31+$F11*S$31+$G11*T$31+$H11*U$31+V$31,""),NA()) -> 
A39: 6 | B39: =IF(B$12<>"",IF($B22<>0,D$12*$C22+E$12*$D22+F$12*$E22+G$12*$F22+H$12*$G22+$H22,""),NA()) -> 4.0256574 | C39: =IF(B$12<>"",IF($B23<>0,D$12*$C23+E$12*$D23+F$12*$E23+G$12*$F23+H$12*$G23+$H23,""),NA()) -> 3.1064104 | D39: =IF(B$12<>"",IF($B24<>0,D$12*$C24+E$12*$D24+F$12*$E24+G$12*$F24+H$12*$G24+$H24,""),NA()) -> 2.2933008 | E39: =IF(B$12<>"",IF($B25<>0,D$12*$C25+E$12*$D25+F$12*$E25+G$12*$F25+H$12*$G25+$H25,""),NA()) -> 1.5859148 | F39: =IF(B$12<>"",IF($B26<>0,D$12*$C26+E$12*$D26+F$12*$E26+G$12*$F26+H$12*$G26+$H26,""),NA()) -> 1.08033 | G39: =IF(B$12<>"",IF($B27<>0,D$12*$C27+E$12*$D27+F$12*$E27+G$12*$F27+H$12*$G27+$H27,""),NA()) -> 0.6654566 | H39: =IF(B$12<>"",IF($B28<>0,D$12*$C28+E$12*$D28+F$12*$E28+G$12*$F28+H$12*$G28+$H28,""),NA()) ->  | I39: =IF(B$12<>"",IF($B29<>0,D$12*$C29+E$12*$D29+F$12*$E29+G$12*$F29+H$12*$G29+$H29,""),NA()) ->  | J39: =IF(B$12<>"",IF($B30<>0,D$12*$C30+E$12*$D30+F$12*$E30+G$12*$F30+H$12*$G30+$H30,""),NA()) ->  | K39: =IF(B$12<>"",IF($B31<>0,D$12*$C31+E$12*$D31+F$12*$E31+G$12*$F31+H$12*$G31+$H31,""),NA()) ->  | O39: 6 | P39: =IF($B12<>"",IF(P$22<>0,$D12*Q$22+$E12*R$22+$F12*S$22+$G12*T$22+$H12*U$22+V$22,""),NA()) -> 3.575784 | Q39: =IF($B12<>"",IF(P$23<>0,$D12*Q$23+$E12*R$23+$F12*S$23+$G12*T$23+$H12*U$23+V$23,""),NA()) -> 3.143434 | R39: =IF($B12<>"",IF(P$24<>0,$D12*Q$24+$E12*R$24+$F12*S$24+$G12*T$24+$H12*U$24+V$24,""),NA()) -> 2.533304 | S39: =IF($B12<>"",IF(P$25<>0,$D12*Q$25+$E12*R$25+$F12*S$25+$G12*T$25+$H12*U$25+V$25,""),NA()) -> 1.9113336 | T39: =IF($B12<>"",IF(P$26<>0,$D12*Q$26+$E12*R$26+$F12*S$26+$G12*T$26+$H12*U$26+V$26,""),NA()) -> 1.2972954 | U39: =IF($B12<>"",IF(P$27<>0,$D12*Q$27+$E12*R$27+$F12*S$27+$G12*T$27+$H12*U$27+V$27,""),NA()) ->  | V39: =IF($B12<>"",IF(P$28<>0,$D12*Q$28+$E12*R$28+$F12*S$28+$G12*T$28+$H12*U$28+V$28,""),NA()) ->  | W39: =IF($B12<>"",IF(P$29<>0,$D12*Q$29+$E12*R$29+$F12*S$29+$G12*T$29+$H12*U$29+V$29,""),NA()) ->  | X39: =IF($B12<>"",IF(P$30<>0,$D12*Q$30+$E12*R$30+$F12*S$30+$G12*T$30+$H12*U$30+V$30,""),NA()) ->  | Y39: =IF($B12<>"",IF(P$31<>0,$D12*Q$31+$E12*R$31+$F12*S$31+$G12*T$31+$H12*U$31+V$31,""),NA()) -> 
